Workbook

Sheet 1) Summary
C3: ='2) Order Form'!D4 -> ORDER FORM BIKE SUMMER 2021
C4: ='2) Order Form'!D5 -> Updated October 11th 2021
C6: CUSTOMER INFO: | F6: SHIP TO: (IF DIFFERENT!) | I6: DELIVERY WEEK *
B7: NAME: *
B8: ADDRESS: * | I8: PAYMENT TERM *
B9: ZIP/CITY/COUNTRY: *
B10: PHONE: * | I10: CUSTOMER #
B11: E-MAIL: *
B12: INVOICE E-MAIL:
B13: ORG/VAT NR: *
B14: CONTACT PERSON: *
B15: *mandatory information
C16: NOTE / COMMENTS:
C24: ORDER SUMMARY | M24: *hide if not applicable
C25: Category | E25: PCS | F25: ="Order "&"("&'2) Order Form'!$P$3&")" -> Order (EUR) | G25: ="Discount "&"("&'2) Order Form'!$P$3&")" -> Discount (EUR) | H25: ="Discount %" -> Discount % | I25: ="Sum "&"("&'2) Order Form'!$P$3&")" -> Sum (EUR) | J25: Markup | M25: Last year purchase | N25: Change | O25: Change %
C26: Helmets & Helmet Acc. | E26: =SUMIF('2) Order Form'!$B$9:$B$1048576,'1) Summary'!$C26,'2) Order Form'!$I$9:$I$1048576) -> 0 | F26: =SUMIF('2) Order Form'!$B$9:$B$1048576,'1) Summary'!$C26,'2) Order Form'!$R$9:$R$1048576) -> 0.00 | G26: =IFERROR(SUMIF('2) Order Form'!$B$9:$B$1048576,'1) Summary'!$C26,'2) Order Form'!$S$9:$S$1048576),0) -> 0.00 | H26: =IFERROR(G26/F26,0) -> 0.0 % | I26: =F26-G26 -> 0.00 | J26: =IFERROR(SUMIF('2) Order Form'!$B$9:$B$1048576,'1) Summary'!$C26,'2) Order Form'!$Y$9:$Y$1048576)/I26,0) -> 0.0 | M26: 0.00 | N26: =I26-M26 -> 0.00 | O26: =IFERROR(N26/M26,"") -> 
C27: Protection | E27: =SUMIF('2) Order Form'!$B$9:$B$1048576,'1) Summary'!$C27,'2) Order Form'!$I$9:$I$1048576) -> 0 | F27: =SUMIF('2) Order Form'!$B$9:$B$1048576,'1) Summary'!$C27,'2) Order Form'!$R$9:$R$1048576) -> 0.00 | G27: =IFERROR(SUMIF('2) Order Form'!$B$9:$B$1048576,'1) Summary'!$C27,'2) Order Form'!$S$9:$S$1048576),0) -> 0.00 | H27: =IFERROR(G27/F27,0) -> 0.0 % | I27: =F27-G27 -> 0.00 | J27: =IFERROR(SUMIF('2) Order Form'!$B$9:$B$1048576,'1) Summary'!$C27,'2) Order Form'!$Y$9:$Y$1048576)/I27,0) -> 0.0 | M27: 0.00 | N27: =I27-M27 -> 0.00 | O27: =IFERROR(N27/M27,"") -> 
C28: Eyewear | E28: =SUMIF('2) Order Form'!$B$9:$B$1048576,'1) Summary'!$C28,'2) Order Form'!$I$9:$I$1048576) -> 0 | F28: =SUMIF('2) Order Form'!$B$9:$B$1048576,'1) Summary'!$C28,'2) Order Form'!$R$9:$R$1048576) -> 0.00 | G28: =IFERROR(SUMIF('2) Order Form'!$B$9:$B$1048576,'1) Summary'!$C28,'2) Order Form'!$S$9:$S$1048576),0) -> 0.00 | H28: =IFERROR(G28/F28,0) -> 0.0 % | I28: =F28-G28 -> 0.00 | J28: =IFERROR(SUMIF('2) Order Form'!$B$9:$B$1048576,'1) Summary'!$C28,'2) Order Form'!$Y$9:$Y$1048576)/I28,0) -> 0.0 | M28: 0.00 | N28: =I28-M28 -> 0.00 | O28: =IFERROR(N28/M28,"") -> 
C29: Bike Apparel | E29: =SUMIF('2) Order Form'!$B$9:$B$1048576,'1) Summary'!$C29,'2) Order Form'!$I$9:$I$1048576) -> 0 | F29: =SUMIF('2) Order Form'!$B$9:$B$1048576,'1) Summary'!$C29,'2) Order Form'!$R$9:$R$1048576) -> 0.00 | G29: =IFERROR(SUMIF('2) Order Form'!$B$9:$B$1048576,'1) Summary'!$C29,'2) Order Form'!$S$9:$S$1048576),0) -> 0.00 | H29: =IFERROR(G29/F29,0) -> 0.0 % | I29: =F29-G29 -> 0.00 | J29: =IFERROR(SUMIF('2) Order Form'!$B$9:$B$1048576,'1) Summary'!$C29,'2) Order Form'!$Y$9:$Y$1048576)/I29,0) -> 0.0 | M29: 0.00 | N29: =I29-M29 -> 0.00 | O29: =IFERROR(N29/M29,"") -> 
C30: Streetwear & Accessories | E30: =SUMIF('2) Order Form'!$B$9:$B$1048576,'1) Summary'!$C30,'2) Order Form'!$I$9:$I$1048576) -> 0 | F30: =SUMIF('2) Order Form'!$B$9:$B$1048576,'1) Summary'!$C30,'2) Order Form'!$R$9:$R$1048576) -> 0.00 | G30: =IFERROR(SUMIF('2) Order Form'!$B$9:$B$1048576,'1) Summary'!$C30,'2) Order Form'!$S$9:$S$1048576),0) -> 0.00 | H30: =IFERROR(G30/F30,0) -> 0.0 % | I30: =F30-G30 -> 0.00 | J30: =IFERROR(SUMIF('2) Order Form'!$B$9:$B$1048576,'1) Summary'!$C30,'2) Order Form'!$Y$9:$Y$1048576)/I30,0) -> 0.0 | M30: 0.00 | N30: =I30-M30 -> 0.00 | O30: =IFERROR(N30/M30,"") -> 
C32: TOTALS | E32: =SUM(E26:E30) -> 0 | F32: =SUM(F26:F30) -> 0.00 | G32: =SUM(G26:G30) -> 0.00 | H32: =IFERROR(G32/F32,0) -> 0.0 % | I32: =SUM(I26:I30) -> 0.00 | J32: =IFERROR(SUM('2) Order Form'!Y9:Y1048576)/I32,0) -> 0.0 | M32: =SUM(M26:M30) -> 0.00 | N32: =I32-M32 -> 0.00 | O32: =IFERROR(N32/M32,"") -> 
C34: ="ORDER TOTALS "&"("&'2) Order Form'!$P$3&")" -> ORDER TOTALS (EUR)
C36: Total after discount | D36: ='2) Order Form'!S6 -> 0.00
C37: Markup | D37: =J32 -> 0.0 | E37: Enter VAT %
C38: Customer margin % | D38: =IFERROR((SUM('2) Order Form'!$Y$9:$Y$1048576)/(1+E38)-D36)/(SUM('2) Order Form'!$Y$9:$Y$1048576)/(1+E38)),0) -> 0.0 % | E38: 20% | F38: < < <

Sheet 2) Order Form
P2: CHOOSE CURRENCY: | R2: Total PCS | S2: =SUM(I9:I684) -> 0
O3: > > > | P3: EUR | R3: Markup: | S3: =IFERROR(SUMPRODUCT(Q9:Q684,I9:I684)/SUM(T9:T684),0) -> 0.00
D4: ORDER FORM BIKE SUMMER 2021 | P4: MAIN DISCOUNT: | R4: Total before %: | S4: =SUM(R9:R684) -> 0.00
D5: Updated October 11th 2021 | O5: > > > | P5: 0% | R5: Discount: | S5: =SUM(S9:S684) -> 0.00 | U5: =IFERROR(S5/S4,0) -> 0.0 %
R6: Net total: | S6: =SUM(S4-S5) -> 0.00
A8: CAT.NR | B8: CATEGORY | C8: STYLENR. | D8: PRODUCT NAME | E8: Variant | F8: COLOR [Eyewear: Lens/Frame/Strap] | G8: SIZE | H8: PCS per Pack | I8: ORDER QTY | J8: ATS NOW | K8: ATS NOW | L8: ATS W31 | M8: ATS W29 | N8: Discount Specific | O8: Discount FINAL | P8: ="WHS"&$P$3 -> WHSEUR | Q8: ="RETAIL"&$P$3 -> RETAILEUR | R8: Order | S8: Discount | T8: Net Total | U8: Size split | W8: EAN-code | Y8: Retail value | Z8: Category | AA8: Style | AB8: Color | AC8: CCTN1 | AD8: CCTN2 | AE8: Rekkefølge | AF8: Kategori | AG8: STATUS
A9: 1 | B9: =VLOOKUP(A9,Classification!$H$2:$I$11,2,FALSE) -> Helmets & Helmet Acc. | C9: =INDEX(ATS!$A:$AE,MATCH('2) Order Form'!$W9,ATS!$AD:$AD,0),1) -> 845073 | D9: =INDEX(ATS!$A:$AE,MATCH('2) Order Form'!$W9,ATS!$AD:$AD,0),2) -> Arbitrator Mips Helmet | E9: =INDEX(ATS!$A:$AE,MATCH('2) Order Form'!$W9,ATS!$AD:$AD,0),4) -> CORNC-SM | F9: =INDEX(ATS!$A:$AE,MATCH('2) Order Form'!$W9,ATS!$AD:$AD,0),5) -> Chopper Orange / Natural Carbon | G9: =INDEX(ATS!$A:$AE,MATCH('2) Order Form'!$W9,ATS!$AD:$AD,0),6) -> SM | H9: 1 | I9: 0 | J9: =IFERROR(VLOOKUP(W9,ATS!$AD:$AF,2,FALSE),0) -> 1 | K9: =IF(J9=99999,"OPEN",IF(J9>50,"50+",IF(J9<=0,"0",J9))) -> 1 | L9: =IFERROR(VLOOKUP(W9,ATS!$AD:$AF,3,FALSE),0) -> 1 | M9: =IF(L9=99999,"OPEN",IF(L9>50,"50+",IF(L9<=0,"0",L9))) -> 1 | N9: 0% | O9: =IF(N9<>0,N9,$P$5) -> 0% | P9: =VLOOKUP($C9,Prices!$A$3:$R$1996,MATCH('2) Order Form'!P$8,Prices!$A$2:$R$2,0),FALSE) -> 175.00 | Q9: =VLOOKUP($C9,Prices!$A$3:$R$1996,MATCH('2) Order Form'!Q$8,Prices!$A$2:$R$2,0),FALSE) -> 349.95 | R9: =I9*P9 -> 0 | S9: =R9*O9 -> 0 | T9: =R9-S9 -> 0 | U9: =IFERROR(I9/SUMIF($AC$9:$AC$684,AC9,$I$9:$I$684),0) -> 0% | W9: 7048652660404 | Y9: =I9*Q9 -> 0 | Z9: =IF(A9=OFFSET(A9,-1,0),0,1) -> 1 | AA9: =IF(C9=OFFSET(C9,-1,0),0,1) -> 1 | AB9: =IF(F9=OFFSET(F9,-1,0),0,1) -> 1 | AC9: =CONCATENATE(C9,F9) -> 845073Chopper Orange / Natural Carbon | AD9: =IFERROR(IF(B9="EYEWEAR",CONCATENATE(C9,"-",G9),C9),C9) -> 845073 | AE9: =VLOOKUP($C9,Classification!$A:$F,5,FALSE) -> 1.000 | AF9: =VLOOKUP($C9,Classification!$A:$F,6,FALSE) -> 1 | AG9: =INDEX(ATS!$A:$AE,MATCH('2) Order Form'!$W9,ATS!$AD:$AD,0),7) -> Stock
A10: 1 | B10: =VLOOKUP(A10,Classification!$H$2:$I$11,2,FALSE) -> Helmets & Helmet Acc. | C10: =INDEX(ATS!$A:$AE,MATCH('2) Order Form'!$W10,ATS!$AD:$AD,0),1) -> 845073 | D10: =INDEX(ATS!$A:$AE,MATCH('2) Order Form'!$W10,ATS!$AD:$AD,0),2) -> Arbitrator Mips Helmet | E10: =INDEX(ATS!$A:$AE,MATCH('2) Order Form'!$W10,ATS!$AD:$AD,0),4) -> CORNC-ML | F10: =INDEX(ATS!$A:$AE,MATCH('2) Order Form'!$W10,ATS!$AD:$AD,0),5) -> Chopper Orange / Natural Carbon | G10: =INDEX(ATS!$A:$AE,MATCH('2) Order Form'!$W10,ATS!$AD:$AD,0),6) -> ML | H10: 1 | I10: 0 | J10: =IFERROR(VLOOKUP(W10,ATS!$AD:$AF,2,FALSE),0) -> 0 | K10: =IF(J10=99999,"OPEN",IF(J10>50,"50+",IF(J10<=0,"0",J10))) -> 0 | L10: =IFERROR(VLOOKUP(W10,ATS!$AD:$AF,3,FALSE),0) -> 0 | M10: 0 | N10: 0% | O10: 0% | P10: =VLOOKUP($C10,Prices!$A$3:$R$1996,MATCH('2) Order Form'!P$8,Prices!$A$2:$R$2,0),FALSE) -> 175.00 | Q10: =VLOOKUP($C10,Prices!$A$3:$R$1996,MATCH('2) Order Form'!Q$8,Prices!$A$2:$R$2,0),FALSE) -> 349.95 | R10: 0 | S10: 0 | T10: 0 | U10: 0% | W10: 7048652660398 | Y10: 0 | Z10: 0 | AA10: 0 | AB10: 0 | AC10: 845073Chopper Orange / Natural Carbon | AD10: 845073 | AE10: =VLOOKUP($C10,Classification!$A:$F,5,FALSE) -> 1.000 | AF10: =VLOOKUP($C10,Classification!$A:$F,6,FALSE) -> 1 | AG10: =INDEX(ATS!$A:$AE,MATCH('2) Order Form'!$W10,ATS!$AD:$AD,0),7) -> Stock
A11: 1 | B11: =VLOOKUP(A11,Classification!$H$2:$I$11,2,FALSE) -> Helmets & Helmet Acc. | C11: =INDEX(ATS!$A:$AE,MATCH('2) Order Form'!$W11,ATS!$AD:$AD,0),1) -> 845073 | D11: =INDEX(ATS!$A:$AE,MATCH('2) Order Form'!$W11,ATS!$AD:$AD,0),2) -> Arbitrator Mips Helmet | E11: =INDEX(ATS!$A:$AE,MATCH('2) Order Form'!$W11,ATS!$AD:$AD,0),4) -> MBKNC-SM | F11: =INDEX(ATS!$A:$AE,MATCH('2) Order Form'!$W11,ATS!$AD:$AD,0),5) -> Matte Black/Natural Carbon | G11: =INDEX(ATS!$A:$AE,MATCH('2) Order Form'!$W11,ATS!$AD:$AD,0),6) -> SM | H11: 1 | I11: 0 | J11: =IFERROR(VLOOKUP(W11,ATS!$AD:$AF,2,FALSE),0) -> 0 | K11: 0 | L11: =IFERROR(VLOOKUP(W11,ATS!$AD:$AF,3,FALSE),0) -> 0 | M11: 0 | N11: 0% | O11: 0% | P11: =VLOOKUP($C11,Prices!$A$3:$R$1996,MATCH('2) Order Form'!P$8,Prices!$A$2:$R$2,0),FALSE) -> 175.00 | Q11: =VLOOKUP($C11,Prices!$A$3:$R$1996,MATCH('2) Order Form'!Q$8,Prices!$A$2:$R$2,0),FALSE) -> 349.95 | R11: 0 | S11: 0 | T11: 0 | U11: 0% | W11: 7048652273154 | Y11: 0 | Z11: 0 | AA11: 0 | AB11: 1 | AC11: 845073Matte Black/Natural Carbon | AD11: 845073 | AE11: =VLOOKUP($C11,Classification!$A:$F,5,FALSE) -> 1.000 | AF11: =VLOOKUP($C11,Classification!$A:$F,6,FALSE) -> 1 | AG11: =INDEX(ATS!$A:$AE,MATCH('2) Order Form'!$W11,ATS!$AD:$AD,0),7) -> Active
A12: 1 | B12: =VLOOKUP(A12,Classification!$H$2:$I$11,2,FALSE) -> Helmets & Helmet Acc. | C12: =INDEX(ATS!$A:$AE,MATCH('2) Order Form'!$W12,ATS!$AD:$AD,0),1) -> 845073 | D12: =INDEX(ATS!$A:$AE,MATCH('2) Order Form'!$W12,ATS!$AD:$AD,0),2) -> Arbitrator Mips Helmet | E12: =INDEX(ATS!$A:$AE,MATCH('2) Order Form'!$W12,ATS!$AD:$AD,0),4) -> MBKNC-ML | F12: =INDEX(ATS!$A:$AE,MATCH('2) Order Form'!$W12,ATS!$AD:$AD,0),5) -> Matte Black/Natural Carbon | G12: =INDEX(ATS!$A:$AE,MATCH('2) Order Form'!$W12,ATS!$AD:$AD,0),6) -> ML | H12: 1 | I12: 0 | J12: =IFERROR(VLOOKUP(W12,ATS!$AD:$AF,2,FALSE),0) -> 0 | K12: 0 | L12: =IFERROR(VLOOKUP(W12,ATS!$AD:$AF,3,FALSE),0) -> 0 | M12: 0 | N12: 0% | O12: 0% | P12: =VLOOKUP($C12,Prices!$A$3:$R$1996,MATCH('2) Order Form'!P$8,Prices!$A$2:$R$2,0),FALSE) -> 175.00 | Q12: =VLOOKUP($C12,Prices!$A$3:$R$1996,MATCH('2) Order Form'!Q$8,Prices!$A$2:$R$2,0),FALSE) -> 349.95 | R12: 0 | S12: 0 | T12: 0 | U12: 0% | W12: 7048652273147 | Y12: 0 | Z12: 0 | AA12: 0 | AB12: 0 | AC12: 845073Matte Black/Natural Carbon | AD12: 845073 | AE12: =VLOOKUP($C12,Classification!$A:$F,5,FALSE) -> 1.000 | AF12: =VLOOKUP($C12,Classification!$A:$F,6,FALSE) -> 1 | AG12: =INDEX(ATS!$A:$AE,MATCH('2) Order Form'!$W12,ATS!$AD:$AD,0),7) -> Active
A13: 1 | B13: =VLOOKUP(A13,Classification!$H$2:$I$11,2,FALSE) -> Helmets & Helmet Acc. | C13: =INDEX(ATS!$A:$AE,MATCH('2) Order Form'!$W13,ATS!$AD:$AD,0),1) -> 845073 | D13: =INDEX(ATS!$A:$AE,MATCH('2) Order Form'!$W13,ATS!$AD:$AD,0),2) -> Arbitrator Mips Helmet | E13: =INDEX(ATS!$A:$AE,MATCH('2) Order Form'!$W13,ATS!$AD:$AD,0),4) -> NGRNC-SM | F13: =INDEX(ATS!$A:$AE,MATCH('2) Order Form'!$W13,ATS!$AD:$AD,0),5) -> Nardo Gray / Natural Carbon | G13: =INDEX(ATS!$A:$AE,MATCH('2) Order Form'!$W13,ATS!$AD:$AD,0),6) -> SM | H13: 1 | I13: 0 | J13: =IFERROR(VLOOKUP(W13,ATS!$AD:$AF,2,FALSE),0) -> 0 | K13: 0 | L13: =IFERROR(VLOOKUP(W13,ATS!$AD:$AF,3,FALSE),0) -> 0 | M13: 0 | N13: 0% | O13: 0% | P13: =VLOOKUP($C13,Prices!$A$3:$R$1996,MATCH('2) Order Form'!P$8,Prices!$A$2:$R$2,0),FALSE) -> 175.00 | Q13: =VLOOKUP($C13,Prices!$A$3:$R$1996,MATCH('2) Order Form'!Q$8,Prices!$A$2:$R$2,0),FALSE) -> 349.95 | R13: 0 | S13: 0 | T13: 0 | U13: 0% | W13: 7048652660428 | Y13: 0 | Z13: 0 | AA13: 0 | AB13: 1 | AC13: 845073Nardo Gray / Natural Carbon | AD13: 845073 | AE13: =VLOOKUP($C13,Classification!$A:$F,5,FALSE) -> 1.000 | AF13: =VLOOKUP($C13,Classification!$A:$F,6,FALSE) -> 1 | AG13: =INDEX(ATS!$A:$AE,MATCH('2) Order Form'!$W13,ATS!$AD:$AD,0),7) -> Stock
A14: 1 | B14: =VLOOKUP(A14,Classification!$H$2:$I$11,2,FALSE) -> Helmets & Helmet Acc. | C14: =INDEX(ATS!$A:$AE,MATCH('2) Order Form'!$W14,ATS!$AD:$AD,0),1) -> 845073 | D14: =INDEX(ATS!$A:$AE,MATCH('2) Order Form'!$W14,ATS!$AD:$AD,0),2) -> Arbitrator Mips Helmet | E14: =INDEX(ATS!$A:$AE,MATCH('2) Order Form'!$W14,ATS!$AD:$AD,0),4) -> NGRNC-ML | F14: =INDEX(ATS!$A:$AE,MATCH('2) Order Form'!$W14,ATS!$AD:$AD,0),5) -> Nardo Gray / Natural Carbon | G14: =INDEX(ATS!$A:$AE,MATCH('2) Order Form'!$W14,ATS!$AD:$AD,0),6) -> ML | H14: 1 | I14: 0 | J14: =IFERROR(VLOOKUP(W14,ATS!$AD:$AF,2,FALSE),0) -> 0 | K14: 0 | L14: =IFERROR(VLOOKUP(W14,ATS!$AD:$AF,3,FALSE),0) -> 0 | M14: 0 | N14: 0% | O14: 0% | P14: =VLOOKUP($C14,Prices!$A$3:$R$1996,MATCH('2) Order Form'!P$8,Prices!$A$2:$R$2,0),FALSE) -> 175.00 | Q14: =VLOOKUP($C14,Prices!$A$3:$R$1996,MATCH('2) Order Form'!Q$8,Prices!$A$2:$R$2,0),FALSE) -> 349.95 | R14: 0 | S14: 0 | T14: 0 | U14: 0% | W14: 7048652660411 | Y14: 0 | Z14: 0 | AA14: 0 | AB14: 0 | AC14: 845073Nardo Gray / Natural Carbon | AD14: 845073 | AE14: =VLOOKUP($C14,Classification!$A:$F,5,FALSE) -> 1.000 | AF14: =VLOOKUP($C14,Classification!$A:$F,6,FALSE) -> 1 | AG14: =INDEX(ATS!$A:$AE,MATCH('2) Order Form'!$W14,ATS!$AD:$AD,0),7) -> Stock
A15: 1 | B15: =VLOOKUP(A15,Classification!$H$2:$I$11,2,FALSE) -> Helmets & Helmet Acc. | C15: =INDEX(ATS!$A:$AE,MATCH('2) Order Form'!$W15,ATS!$AD:$AD,0),1) -> 845066 | D15: =INDEX(ATS!$A:$AE,MATCH('2) Order Form'!$W15,ATS!$AD:$AD,0),2) -> Bushwhacker II Carbon Mips Helmet | E15: =INDEX(ATS!$A:$AE,MATCH('2) Order Form'!$W15,ATS!$AD:$AD,0),4) -> MBKME-SM | F15: =INDEX(ATS!$A:$AE,MATCH('2) Order Form'!$W15,ATS!$AD:$AD,0),5) -> Matte Black Metallic | G15: =INDEX(ATS!$A:$AE,MATCH('2) Order Form'!$W15,ATS!$AD:$AD,0),6) -> SM | H15: 1 | I15: 0 | J15: =IFERROR(VLOOKUP(W15,ATS!$AD:$AF,2,FALSE),0) -> 14 | K15: 14 | L15: =IFERROR(VLOOKUP(W15,ATS!$AD:$AF,3,FALSE),0) -> 14 | M15: 14 | N15: 0% | O15: 0% | P15: =VLOOKUP($C15,Prices!$A$3:$R$1996,MATCH('2) Order Form'!P$8,Prices!$A$2:$R$2,0),FALSE) -> 135.00 | Q15: =VLOOKUP($C15,Prices!$A$3:$R$1996,MATCH('2) Order Form'!Q$8,Prices!$A$2:$R$2,0),FALSE) -> 269.95 | R15: 0 | S15: 0 | T15: 0 | U15: 0% | W15: 7048652272690 | Y15: 0 | Z15: 0 | AA15: 1 | AB15: 1 | AC15: 845066Matte Black Metallic | AD15: 845066 | AE15: =VLOOKUP($C15,Classification!$A:$F,5,FALSE) -> 2.000 | AF15: =VLOOKUP($C15,Classification!$A:$F,6,FALSE) -> 1 | AG15: =INDEX(ATS!$A:$AE,MATCH('2) Order Form'!$W15,ATS!$AD:$AD,0),7) -> Active
A16: 1 | B16: =VLOOKUP(A16,Classification!$H$2:$I$11,2,FALSE) -> Helmets & Helmet Acc. | C16: =INDEX(ATS!$A:$AE,MATCH('2) Order Form'!$W16,ATS!$AD:$AD,0),1) -> 845066 | D16: =INDEX(ATS!$A:$AE,MATCH('2) Order Form'!$W16,ATS!$AD:$AD,0),2) -> Bushwhacker II Carbon Mips Helmet | E16: =INDEX(ATS!$A:$AE,MATCH('2) Order Form'!$W16,ATS!$AD:$AD,0),4) -> MBKME-ML | F16: =INDEX(ATS!$A:$AE,MATCH('2) Order Form'!$W16,ATS!$AD:$AD,0),5) -> Matte Black Metallic | G16: =INDEX(ATS!$A:$AE,MATCH('2) Order Form'!$W16,ATS!$AD:$AD,0),6) -> ML | H16: 1 | I16: 0 | J16: =IFERROR(VLOOKUP(W16,ATS!$AD:$AF,2,FALSE),0) -> 0 | K16: 0 | L16: =IFERROR(VLOOKUP(W16,ATS!$AD:$AF,3,FALSE),0) -> 0 | M16: 0 | N16: 0% | O16: 0% | P16: =VLOOKUP($C16,Prices!$A$3:$R$1996,MATCH('2) Order Form'!P$8,Prices!$A$2:$R$2,0),FALSE) -> 135.00 | Q16: =VLOOKUP($C16,Prices!$A$3:$R$1996,MATCH('2) Order Form'!Q$8,Prices!$A$2:$R$2,0),FALSE) -> 269.95 | R16: 0 | S16: 0 | T16: 0 | U16: 0% | W16: 7048652272683 | Y16: 0 | Z16: 0 | AA16: 0 | AB16: 0 | AC16: 845066Matte Black Metallic | AD16: 845066 | AE16: =VLOOKUP($C16,Classification!$A:$F,5,FALSE) -> 2.000 | AF16: =VLOOKUP($C16,Classification!$A:$F,6,FALSE) -> 1 | AG16: =INDEX(ATS!$A:$AE,MATCH('2) Order Form'!$W16,ATS!$AD:$AD,0),7) -> Active
A17: 1 | B17: =VLOOKUP(A17,Classification!$H$2:$I$11,2,FALSE) -> Helmets & Helmet Acc. | C17: =INDEX(ATS!$A:$AE,MATCH('2) Order Form'!$W17,ATS!$AD:$AD,0),1) -> 845066 | D17: =INDEX(ATS!$A:$AE,MATCH('2) Order Form'!$W17,ATS!$AD:$AD,0),2) -> Bushwhacker II Carbon Mips Helmet | E17: =INDEX(ATS!$A:$AE,MATCH('2) Order Form'!$W17,ATS!$AD:$AD,0),4) -> MBKME-LXL | F17: =INDEX(ATS!$A:$AE,MATCH('2) Order Form'!$W17,ATS!$AD:$AD,0),5) -> Matte Black Metallic | G17: =INDEX(ATS!$A:$AE,MATCH('2) Order Form'!$W17,ATS!$AD:$AD,0),6) -> LXL | H17: 1 | I17: 0 | J17: =IFERROR(VLOOKUP(W17,ATS!$AD:$AF,2,FALSE),0) -> 0 | K17: 0 | L17: =IFERROR(VLOOKUP(W17,ATS!$AD:$AF,3,FALSE),0) -> 0 | M17: 0 | N17: 0% | O17: 0% | P17: =VLOOKUP($C17,Prices!$A$3:$R$1996,MATCH('2) Order Form'!P$8,Prices!$A$2:$R$2,0),FALSE) -> 135.00 | Q17: =VLOOKUP($C17,Prices!$A$3:$R$1996,MATCH('2) Order Form'!Q$8,Prices!$A$2:$R$2,0),FALSE) -> 269.95 | R17: 0 | S17: 0 | T17: 0 | U17: 0% | W17: 7048652272676 | Y17: 0 | Z17: 0 | AA17: 0 | AB17: 0 | AC17: 845066Matte Black Metallic | AD17: 845066 | AE17: =VLOOKUP($C17,Classification!$A:$F,5,FALSE) -> 2.000 | AF17: =VLOOKUP($C17,Classification!$A:$F,6,FALSE) -> 1 | AG17: =INDEX(ATS!$A:$AE,MATCH('2) Order Form'!$W17,ATS!$AD:$AD,0),7) -> Active
A18: 1 | B18: =VLOOKUP(A18,Classification!$H$2:$I$11,2,FALSE) -> Helmets & Helmet Acc. | C18: =INDEX(ATS!$A:$AE,MATCH('2) Order Form'!$W18,ATS!$AD:$AD,0),1) -> 845066 | D18: =INDEX(ATS!$A:$AE,MATCH('2) Order Form'!$W18,ATS!$AD:$AD,0),2) -> Bushwhacker II Carbon Mips Helmet | E18: =INDEX(ATS!$A:$AE,MATCH('2) Order Form'!$W18,ATS!$AD:$AD,0),4) -> MWEMC-SM | F18: =INDEX(ATS!$A:$AE,MATCH('2) Order Form'!$W18,ATS!$AD:$AD,0),5) -> Matte White Metallic | G18: =INDEX(ATS!$A:$AE,MATCH('2) Order Form'!$W18,ATS!$AD:$AD,0),6) -> SM | H18: 1 | I18: 0 | J18: =IFERROR(VLOOKUP(W18,ATS!$AD:$AF,2,FALSE),0) -> 22 | K18: 22 | L18: =IFERROR(VLOOKUP(W18,ATS!$AD:$AF,3,FALSE),0) -> 22 | M18: 22 | N18: 0% | O18: 0% | P18: =VLOOKUP($C18,Prices!$A$3:$R$1996,MATCH('2) Order Form'!P$8,Prices!$A$2:$R$2,0),FALSE) -> 135.00 | Q18: =VLOOKUP($C18,Prices!$A$3:$R$1996,MATCH('2) Order Form'!Q$8,Prices!$A$2:$R$2,0),FALSE) -> 269.95 | R18: 0 | S18: 0 | T18: 0 | U18: 0% | W18: 7048652272720 | Y18: 0 | Z18: 0 | AA18: 0 | AB18: 1 | AC18: 845066Matte White Metallic | AD18: 845066 | AE18: =VLOOKUP($C18,Classification!$A:$F,5,FALSE) -> 2.000 | AF18: =VLOOKUP($C18,Classification!$A:$F,6,FALSE) -> 1 | AG18: =INDEX(ATS!$A:$AE,MATCH('2) Order Form'!$W18,ATS!$AD:$AD,0),7) -> Active
A19: 1 | B19: =VLOOKUP(A19,Classification!$H$2:$I$11,2,FALSE) -> Helmets & Helmet Acc. | C19: =INDEX(ATS!$A:$AE,MATCH('2) Order Form'!$W19,ATS!$AD:$AD,0),1) -> 845066 | D19: =INDEX(ATS!$A:$AE,MATCH('2) Order Form'!$W19,ATS!$AD:$AD,0),2) -> Bushwhacker II Carbon Mips Helmet | E19: =INDEX(ATS!$A:$AE,MATCH('2) Order Form'!$W19,ATS!$AD:$AD,0),4) -> MWEMC-ML | F19: =INDEX(ATS!$A:$AE,MATCH('2) Order Form'!$W19,ATS!$AD:$AD,0),5) -> Matte White Metallic | G19: =INDEX(ATS!$A:$AE,MATCH('2) Order Form'!$W19,ATS!$AD:$AD,0),6) -> ML | H19: 1 | I19: 0 | J19: =IFERROR(VLOOKUP(W19,ATS!$AD:$AF,2,FALSE),0) -> 0 | K19: 0 | L19: =IFERROR(VLOOKUP(W19,ATS!$AD:$AF,3,FALSE),0) -> 0 | M19: 0 | N19: 0% | O19: 0% | P19: =VLOOKUP($C19,Prices!$A$3:$R$1996,MATCH('2) Order Form'!P$8,Prices!$A$2:$R$2,0),FALSE) -> 135.00 | Q19: =VLOOKUP($C19,Prices!$A$3:$R$1996,MATCH('2) Order Form'!Q$8,Prices!$A$2:$R$2,0),FALSE) -> 269.95 | R19: 0 | S19: 0 | T19: 0 | U19: 0% | W19: 7048652272713 | Y19: 0 | Z19: 0 | AA19: 0 | AB19: 0 | AC19: 845066Matte White Metallic | AD19: 845066 | AE19: =VLOOKUP($C19,Classification!$A:$F,5,FALSE) -> 2.000 | AF19: =VLOOKUP($C19,Classification!$A:$F,6,FALSE) -> 1 | AG19: =INDEX(ATS!$A:$AE,MATCH('2) Order Form'!$W19,ATS!$AD:$AD,0),7) -> Active
A20: 1 | B20: =VLOOKUP(A20,Classification!$H$2:$I$11,2,FALSE) -> Helmets & Helmet Acc. | C20: =INDEX(ATS!$A:$AE,MATCH('2) Order Form'!$W20,ATS!$AD:$AD,0),1) -> 845066 | D20: =INDEX(ATS!$A:$AE,MATCH('2) Order Form'!$W20,ATS!$AD:$AD,0),2) -> Bushwhacker II Carbon Mips Helmet | E20: =INDEX(ATS!$A:$AE,MATCH('2) Order Form'!$W20,ATS!$AD:$AD,0),4) -> MWEMC-LXL | F20: =INDEX(ATS!$A:$AE,MATCH('2) Order Form'!$W20,ATS!$AD:$AD,0),5) -> Matte White Metallic | G20: =INDEX(ATS!$A:$AE,MATCH('2) Order Form'!$W20,ATS!$AD:$AD,0),6) -> LXL | H20: 1 | I20: 0 | J20: =IFERROR(VLOOKUP(W20,ATS!$AD:$AF,2,FALSE),0) -> 19 | K20: 19 | L20: =IFERROR(VLOOKUP(W20,ATS!$AD:$AF,3,FALSE),0) -> 19 | M20: 19 | N20: 0% | O20: 0% | P20: =VLOOKUP($C20,Prices!$A$3:$R$1996,MATCH('2) Order Form'!P$8,Prices!$A$2:$R$2,0),FALSE) -> 135.00 | Q20: =VLOOKUP($C20,Prices!$A$3:$R$1996,MATCH('2) Order Form'!Q$8,Prices!$A$2:$R$2,0),FALSE) -> 269.95 | R20: 0 | S20: 0 | T20: 0 | U20: 0% | W20: 7048652272706 | Y20: 0 | Z20: 0 | AA20: 0 | AB20: 0 | AC20: 845066Matte White Metallic | AD20: 845066 | AE20: =VLOOKUP($C20,Classification!$A:$F,5,FALSE) -> 2.000 | AF20: =VLOOKUP($C20,Classification!$A:$F,6,FALSE) -> 1 | AG20: =INDEX(ATS!$A:$AE,MATCH('2) Order Form'!$W20,ATS!$AD:$AD,0),7) -> Active
A21: 1 | B21: =VLOOKUP(A21,Classification!$H$2:$I$11,2,FALSE) -> Helmets & Helmet Acc. | C21: =INDEX(ATS!$A:$AE,MATCH('2) Order Form'!$W21,ATS!$AD:$AD,0),1) -> 845065 | D21: =INDEX(ATS!$A:$AE,MATCH('2) Order Form'!$W21,ATS!$AD:$AD,0),2) -> Bushwhacker II Mips Helmet | E21: =INDEX(ATS!$A:$AE,MATCH('2) Order Form'!$W21,ATS!$AD:$AD,0),4) -> MBLCK-SM | F21: =INDEX(ATS!$A:$AE,MATCH('2) Order Form'!$W21,ATS!$AD:$AD,0),5) -> Matte Black | G21: =INDEX(ATS!$A:$AE,MATCH('2) Order Form'!$W21,ATS!$AD:$AD,0),6) -> SM | H21: 1 | I21: 0 | J21: =IFERROR(VLOOKUP(W21,ATS!$AD:$AF,2,FALSE),0) -> 0 | K21: 0 | L21: =IFERROR(VLOOKUP(W21,ATS!$AD:$AF,3,FALSE),0) -> 0 | M21: 0 | N21: 0% | O21: 0% | P21: =VLOOKUP($C21,Prices!$A$3:$R$1996,MATCH('2) Order Form'!P$8,Prices!$A$2:$R$2,0),FALSE) -> 110.00 | Q21: =VLOOKUP($C21,Prices!$A$3:$R$1996,MATCH('2) Order Form'!Q$8,Prices!$A$2:$R$2,0),FALSE) -> 219.95 | R21: 0 | S21: 0 | T21: 0 | U21: 0% | W21: 7048652272546 | Y21: 0 | Z21: 0 | AA21: 1 | AB21: 1 | AC21: 845065Matte Black | AD21: 845065 | AE21: =VLOOKUP($C21,Classification!$A:$F,5,FALSE) -> 3.000 | AF21: =VLOOKUP($C21,Classification!$A:$F,6,FALSE) -> 1 | AG21: =INDEX(ATS!$A:$AE,MATCH('2) Order Form'!$W21,ATS!$AD:$AD,0),7) -> Active
A22: 1 | B22: =VLOOKUP(A22,Classification!$H$2:$I$11,2,FALSE) -> Helmets & Helmet Acc. | C22: =INDEX(ATS!$A:$AE,MATCH('2) Order Form'!$W22,ATS!$AD:$AD,0),1) -> 845065 | D22: =INDEX(ATS!$A:$AE,MATCH('2) Order Form'!$W22,ATS!$AD:$AD,0),2) -> Bushwhacker II Mips Helmet | E22: =INDEX(ATS!$A:$AE,MATCH('2) Order Form'!$W22,ATS!$AD:$AD,0),4) -> MBLCK-ML | F22: =INDEX(ATS!$A:$AE,MATCH('2) Order Form'!$W22,ATS!$AD:$AD,0),5) -> Matte Black | G22: =INDEX(ATS!$A:$AE,MATCH('2) Order Form'!$W22,ATS!$AD:$AD,0),6) -> ML | H22: 1 | I22: 0 | J22: =IFERROR(VLOOKUP(W22,ATS!$AD:$AF,2,FALSE),0) -> 0 | K22: 0 | L22: =IFERROR(VLOOKUP(W22,ATS!$AD:$AF,3,FALSE),0) -> 0 | M22: 0 | N22: 0% | O22: 0% | P22: =VLOOKUP($C22,Prices!$A$3:$R$1996,MATCH('2) Order Form'!P$8,Prices!$A$2:$R$2,0),FALSE) -> 110.00 | Q22: =VLOOKUP($C22,Prices!$A$3:$R$1996,MATCH('2) Order Form'!Q$8,Prices!$A$2:$R$2,0),FALSE) -> 219.95 | R22: 0 | S22: 0 | T22: 0 | U22: 0% | W22: 7048652272539 | Y22: 0 | Z22: 0 | AA22: 0 | AB22: 0 | AC22: 845065Matte Black | AD22: 845065 | AE22: =VLOOKUP($C22,Classification!$A:$F,5,FALSE) -> 3.000 | AF22: =VLOOKUP($C22,Classification!$A:$F,6,FALSE) -> 1 | AG22: =INDEX(ATS!$A:$AE,MATCH('2) Order Form'!$W22,ATS!$AD:$AD,0),7) -> Active
A23: 1 | B23: =VLOOKUP(A23,Classification!$H$2:$I$11,2,FALSE) -> Helmets & Helmet Acc. | C23: =INDEX(ATS!$A:$AE,MATCH('2) Order Form'!$W23,ATS!$AD:$AD,0),1) -> 845065 | D23: =INDEX(ATS!$A:$AE,MATCH('2) Order Form'!$W23,ATS!$AD:$AD,0),2) -> Bushwhacker II Mips Helmet | E23: =INDEX(ATS!$A:$AE,MATCH('2) Order Form'!$W23,ATS!$AD:$AD,0),4) -> MBLCK-LXL | F23: =INDEX(ATS!$A:$AE,MATCH('2) Order Form'!$W23,ATS!$AD:$AD,0),5) -> Matte Black | G23: =INDEX(ATS!$A:$AE,MATCH('2) Order Form'!$W23,ATS!$AD:$AD,0),6) -> LXL | H23: 1 | I23: 0 | J23: =IFERROR(VLOOKUP(W23,ATS!$AD:$AF,2,FALSE),0) -> 0 | K23: 0 | L23: =IFERROR(VLOOKUP(W23,ATS!$AD:$AF,3,FALSE),0) -> 0 | M23: 0 | N23: 0% | O23: 0% | P23: =VLOOKUP($C23,Prices!$A$3:$R$1996,MATCH('2) Order Form'!P$8,Prices!$A$2:$R$2,0),FALSE) -> 110.00 | Q23: =VLOOKUP($C23,Prices!$A$3:$R$1996,MATCH('2) Order Form'!Q$8,Prices!$A$2:$R$2,0),FALSE) -> 219.95 | R23: 0 | S23: 0 | T23: 0 | U23: 0% | W23: 7048652272522 | Y23: 0 | Z23: 0 | AA23: 0 | AB23: 0 | AC23: 845065Matte Black | AD23: 845065 | AE23: =VLOOKUP($C23,Classification!$A:$F,5,FALSE) -> 3.000 | AF23: =VLOOKUP($C23,Classification!$A:$F,6,FALSE) -> 1 | AG23: =INDEX(ATS!$A:$AE,MATCH('2) Order Form'!$W23,ATS!$AD:$AD,0),7) -> Active
A24: 1 | B24: =VLOOKUP(A24,Classification!$H$2:$I$11,2,FALSE) -> Helmets & Helmet Acc. | C24: =INDEX(ATS!$A:$AE,MATCH('2) Order Form'!$W24,ATS!$AD:$AD,0),1) -> 845065 | D24: =INDEX(ATS!$A:$AE,MATCH('2) Order Form'!$W24,ATS!$AD:$AD,0),2) -> Bushwhacker II Mips Helmet | E24: =INDEX(ATS!$A:$AE,MATCH('2) Order Form'!$W24,ATS!$AD:$AD,0),4) -> MWHTE-SM | F24: =INDEX(ATS!$A:$AE,MATCH('2) Order Form'!$W24,ATS!$AD:$AD,0),5) -> Matte White | G24: =INDEX(ATS!$A:$AE,MATCH('2) Order Form'!$W24,ATS!$AD:$AD,0),6) -> SM | H24: 1 | I24: 0 | J24: =IFERROR(VLOOKUP(W24,ATS!$AD:$AF,2,FALSE),0) -> 0 | K24: 0 | L24: =IFERROR(VLOOKUP(W24,ATS!$AD:$AF,3,FALSE),0) -> 0 | M24: 0 | N24: 0% | O24: 0% | P24: =VLOOKUP($C24,Prices!$A$3:$R$1996,MATCH('2) Order Form'!P$8,Prices!$A$2:$R$2,0),FALSE) -> 110.00 | Q24: =VLOOKUP($C24,Prices!$A$3:$R$1996,MATCH('2) Order Form'!Q$8,Prices!$A$2:$R$2,0),FALSE) -> 219.95 | R24: 0 | S24: 0 | T24: 0 | U24: 0% | W24: 7048652272669 | Y24: 0 | Z24: 0 | AA24: 0 | AB24: 1 | AC24: 845065Matte White | AD24: 845065 | AE24: =VLOOKUP($C24,Classification!$A:$F,5,FALSE) -> 3.000 | AF24: =VLOOKUP($C24,Classification!$A:$F,6,FALSE) -> 1 | AG24: =INDEX(ATS!$A:$AE,MATCH('2) Order Form'!$W24,ATS!$AD:$AD,0),7) -> Active
A25: 1 | B25: =VLOOKUP(A25,Classification!$H$2:$I$11,2,FALSE) -> Helmets & Helmet Acc. | C25: =INDEX(ATS!$A:$AE,MATCH('2) Order Form'!$W25,ATS!$AD:$AD,0),1) -> 845065 | D25: =INDEX(ATS!$A:$AE,MATCH('2) Order Form'!$W25,ATS!$AD:$AD,0),2) -> Bushwhacker II Mips Helmet | E25: =INDEX(ATS!$A:$AE,MATCH('2) Order Form'!$W25,ATS!$AD:$AD,0),4) -> MWHTE-ML | F25: =INDEX(ATS!$A:$AE,MATCH('2) Order Form'!$W25,ATS!$AD:$AD,0),5) -> Matte White | G25: =INDEX(ATS!$A:$AE,MATCH('2) Order Form'!$W25,ATS!$AD:$AD,0),6) -> ML | H25: 1 | I25: 0 | J25: =IFERROR(VLOOKUP(W25,ATS!$AD:$AF,2,FALSE),0) -> 0 | K25: 0 | L25: =IFERROR(VLOOKUP(W25,ATS!$AD:$AF,3,FALSE),0) -> 0 | M25: 0 | N25: 0% | O25: 0% | P25: =VLOOKUP($C25,Prices!$A$3:$R$1996,MATCH('2) Order Form'!P$8,Prices!$A$2:$R$2,0),FALSE) -> 110.00 | Q25: =VLOOKUP($C25,Prices!$A$3:$R$1996,MATCH('2) Order Form'!Q$8,Prices!$A$2:$R$2,0),FALSE) -> 219.95 | R25: 0 | S25: 0 | T25: 0 | U25: 0% | W25: 7048652272652 | Y25: 0 | Z25: 0 | AA25: 0 | AB25: 0 | AC25: 845065Matte White | AD25: 845065 | AE25: =VLOOKUP($C25,Classification!$A:$F,5,FALSE) -> 3.000 | AF25: =VLOOKUP($C25,Classification!$A:$F,6,FALSE) -> 1 | AG25: =INDEX(ATS!$A:$AE,MATCH('2) Order Form'!$W25,ATS!$AD:$AD,0),7) -> Active
A26: 1 | B26: =VLOOKUP(A26,Classification!$H$2:$I$11,2,FALSE) -> Helmets & Helmet Acc. | C26: =INDEX(ATS!$A:$AE,MATCH('2) Order Form'!$W26,ATS!$AD:$AD,0),1) -> 845065 | D26: =INDEX(ATS!$A:$AE,MATCH('2) Order Form'!$W26,ATS!$AD:$AD,0),2) -> Bushwhacker II Mips Helmet | E26: =INDEX(ATS!$A:$AE,MATCH('2) Order Form'!$W26,ATS!$AD:$AD,0),4) -> MWHTE-LXL | F26: =INDEX(ATS!$A:$AE,MATCH('2) Order Form'!$W26,ATS!$AD:$AD,0),5) -> Matte White | G26: =INDEX(ATS!$A:$AE,MATCH('2) Order Form'!$W26,ATS!$AD:$AD,0),6) -> LXL | H26: 1 | I26: 0 | J26: =IFERROR(VLOOKUP(W26,ATS!$AD:$AF,2,FALSE),0) -> 0 | K26: 0 | L26: =IFERROR(VLOOKUP(W26,ATS!$AD:$AF,3,FALSE),0) -> 0 | M26: 0 | N26: 0% | O26: 0% | P26: =VLOOKUP($C26,Prices!$A$3:$R$1996,MATCH('2) Order Form'!P$8,Prices!$A$2:$R$2,0),FALSE) -> 110.00 | Q26: =VLOOKUP($C26,Prices!$A$3:$R$1996,MATCH('2) Order Form'!Q$8,Prices!$A$2:$R$2,0),FALSE) -> 219.95 | R26: 0 | S26: 0 | T26: 0 | U26: 0% | W26: 7048652272645 | Y26: 0 | Z26: 0 | AA26: 0 | AB26: 0 | AC26: 845065Matte White | AD26: 845065 | AE26: =VLOOKUP($C26,Classification!$A:$F,5,FALSE) -> 3.000 | AF26: =VLOOKUP($C26,Classification!$A:$F,6,FALSE) -> 1 | AG26: =INDEX(ATS!$A:$AE,MATCH('2) Order Form'!$W26,ATS!$AD:$AD,0),7) -> Active
A27: 1 | B27: =VLOOKUP(A27,Classification!$H$2:$I$11,2,FALSE) -> Helmets & Helmet Acc. | C27: =INDEX(ATS!$A:$AE,MATCH('2) Order Form'!$W27,ATS!$AD:$AD,0),1) -> 845065 | D27: =INDEX(ATS!$A:$AE,MATCH('2) Order Form'!$W27,ATS!$AD:$AD,0),2) -> Bushwhacker II Mips Helmet | E27: =INDEX(ATS!$A:$AE,MATCH('2) Order Form'!$W27,ATS!$AD:$AD,0),4) -> SGRME-SM | F27: =INDEX(ATS!$A:$AE,MATCH('2) Order Form'!$W27,ATS!$AD:$AD,0),5) -> Slate Gray Metallic | G27: =INDEX(ATS!$A:$AE,MATCH('2) Order Form'!$W27,ATS!$AD:$AD,0),6) -> SM | H27: 1 | I27: 0 | J27: =IFERROR(VLOOKUP(W27,ATS!$AD:$AF,2,FALSE),0) -> 0 | K27: 0 | L27: =IFERROR(VLOOKUP(W27,ATS!$AD:$AF,3,FALSE),0) -> 0 | M27: 0 | N27: 0% | O27: 0% | P27: =VLOOKUP($C27,Prices!$A$3:$R$1996,MATCH('2) Order Form'!P$8,Prices!$A$2:$R$2,0),FALSE) -> 110.00 | Q27: =VLOOKUP($C27,Prices!$A$3:$R$1996,MATCH('2) Order Form'!Q$8,Prices!$A$2:$R$2,0),FALSE) -> 219.95 | R27: 0 | S27: 0 | T27: 0 | U27: 0% | W27: 7048652660268 | Y27: 0 | Z27: 0 | AA27: 0 | AB27: 1 | AC27: 845065Slate Gray Metallic | AD27: 845065 | AE27: =VLOOKUP($C27,Classification!$A:$F,5,FALSE) -> 3.000 | AF27: =VLOOKUP($C27,Classification!$A:$F,6,FALSE) -> 1 | AG27: =INDEX(ATS!$A:$AE,MATCH('2) Order Form'!$W27,ATS!$AD:$AD,0),7) -> Active
A28: 1 | B28: =VLOOKUP(A28,Classification!$H$2:$I$11,2,FALSE) -> Helmets & Helmet Acc. | C28: =INDEX(ATS!$A:$AE,MATCH('2) Order Form'!$W28,ATS!$AD:$AD,0),1) -> 845065 | D28: =INDEX(ATS!$A:$AE,MATCH('2) Order Form'!$W28,ATS!$AD:$AD,0),2) -> Bushwhacker II Mips Helmet | E28: =INDEX(ATS!$A:$AE,MATCH('2) Order Form'!$W28,ATS!$AD:$AD,0),4) -> SGRME-ML | F28: =INDEX(ATS!$A:$AE,MATCH('2) Order Form'!$W28,ATS!$AD:$AD,0),5) -> Slate Gray Metallic | G28: =INDEX(ATS!$A:$AE,MATCH('2) Order Form'!$W28,ATS!$AD:$AD,0),6) -> ML | H28: 1 | I28: 0 | J28: =IFERROR(VLOOKUP(W28,ATS!$AD:$AF,2,FALSE),0) -> 0 | K28: 0 | L28: =IFERROR(VLOOKUP(W28,ATS!$AD:$AF,3,FALSE),0) -> 0 | M28: 0 | N28: 0% | O28: 0% | P28: =VLOOKUP($C28,Prices!$A$3:$R$1996,MATCH('2) Order Form'!P$8,Prices!$A$2:$R$2,0),FALSE) -> 110.00 | Q28: =VLOOKUP($C28,Prices!$A$3:$R$1996,MATCH('2) Order Form'!Q$8,Prices!$A$2:$R$2,0),FALSE) -> 219.95 | R28: 0 | S28: 0 | T28: 0 | U28: 0% | W28: 7048652660251 | Y28: 0 | Z28: 0 | AA28: 0 | AB28: 0 | AC28: 845065Slate Gray Metallic | AD28: 845065 | AE28: =VLOOKUP($C28,Classification!$A:$F,5,FALSE) -> 3.000 | AF28: =VLOOKUP($C28,Classification!$A:$F,6,FALSE) -> 1 | AG28: =INDEX(ATS!$A:$AE,MATCH('2) Order Form'!$W28,ATS!$AD:$AD,0),7) -> Active
A29: 1 | B29: =VLOOKUP(A29,Classification!$H$2:$I$11,2,FALSE) -> Helmets & Helmet Acc. | C29: =INDEX(ATS!$A:$AE,MATCH('2) Order Form'!$W29,ATS!$AD:$AD,0),1) -> 845065 | D29: =INDEX(ATS!$A:$AE,MATCH('2) Order Form'!$W29,ATS!$AD:$AD,0),2) -> Bushwhacker II Mips Helmet | E29: =INDEX(ATS!$A:$AE,MATCH('2) Order Form'!$W29,ATS!$AD:$AD,0),4) -> SGRME-LXL | F29: =INDEX(ATS!$A:$AE,MATCH('2) Order Form'!$W29,ATS!$AD:$AD,0),5) -> Slate Gray Metallic | G29: =INDEX(ATS!$A:$AE,MATCH('2) Order Form'!$W29,ATS!$AD:$AD,0),6) -> LXL | H29: 1 | I29: 0 | J29: =IFERROR(VLOOKUP(W29,ATS!$AD:$AF,2,FALSE),0) -> 0 | K29: 0 | L29: =IFERROR(VLOOKUP(W29,ATS!$AD:$AF,3,FALSE),0) -> 0 | M29: 0 | N29: 0% | O29: 0% | P29: =VLOOKUP($C29,Prices!$A$3:$R$1996,MATCH('2) Order Form'!P$8,Prices!$A$2:$R$2,0),FALSE) -> 110.00 | Q29: =VLOOKUP($C29,Prices!$A$3:$R$1996,MATCH('2) Order Form'!Q$8,Prices!$A$2:$R$2,0),FALSE) -> 219.95 | R29: 0 | S29: 0 | T29: 0 | U29: 0% | W29: 7048652660244 | Y29: 0 | Z29: 0 | AA29: 0 | AB29: 0 | AC29: 845065Slate Gray Metallic | AD29: 845065 | AE29: =VLOOKUP($C29,Classification!$A:$F,5,FALSE) -> 3.000 | AF29: =VLOOKUP($C29,Classification!$A:$F,6,FALSE) -> 1 | AG29: =INDEX(ATS!$A:$AE,MATCH('2) Order Form'!$W29,ATS!$AD:$AD,0),7) -> Active
A30: 1 | B30: =VLOOKUP(A30,Classification!$H$2:$I$11,2,FALSE) -> Helmets & Helmet Acc. | C30: =INDEX(ATS!$A:$AE,MATCH('2) Order Form'!$W30,ATS!$AD:$AD,0),1) -> 845104 | D30: =INDEX(ATS!$A:$AE,MATCH('2) Order Form'!$W30,ATS!$AD:$AD,0),2) -> Trailblazer Mips Helmet | E30: =INDEX(ATS!$A:$AE,MATCH('2) Order Form'!$W30,ATS!$AD:$AD,0),4) -> MEAME-SM | F30: =INDEX(ATS!$A:$AE,MATCH('2) Order Form'!$W30,ATS!$AD:$AD,0),5) -> Matte Aquamarine | G30: =INDEX(ATS!$A:$AE,MATCH('2) Order Form'!$W30,ATS!$AD:$AD,0),6) -> SM | H30: 1 | I30: 0 | J30: =IFERROR(VLOOKUP(W30,ATS!$AD:$AF,2,FALSE),0) -> 41 | K30: 41 | L30: =IFERROR(VLOOKUP(W30,ATS!$AD:$AF,3,FALSE),0) -> 41 | M30: 41 | N30: 0% | O30: 0% | P30: =VLOOKUP($C30,Prices!$A$3:$R$1996,MATCH('2) Order Form'!P$8,Prices!$A$2:$R$2,0),FALSE) -> 90.00 | Q30: =VLOOKUP($C30,Prices!$A$3:$R$1996,MATCH('2) Order Form'!Q$8,Prices!$A$2:$R$2,0),FALSE) -> 179.95 | R30: 0 | S30: 0 | T30: 0 | U30: 0% | W30: 7048652661180 | Y30: 0 | Z30: 0 | AA30: 1 | AB30: 1 | AC30: 845104Matte Aquamarine | AD30: 845104 | AE30: =VLOOKUP($C30,Classification!$A:$F,5,FALSE) -> 4.000 | AF30: =VLOOKUP($C30,Classification!$A:$F,6,FALSE) -> 1 | AG30: =INDEX(ATS!$A:$AE,MATCH('2) Order Form'!$W30,ATS!$AD:$AD,0),7) -> Stock
A31: 1 | B31: =VLOOKUP(A31,Classification!$H$2:$I$11,2,FALSE) -> Helmets & Helmet Acc. | C31: =INDEX(ATS!$A:$AE,MATCH('2) Order Form'!$W31,ATS!$AD:$AD,0),1) -> 845104 | D31: =INDEX(ATS!$A:$AE,MATCH('2) Order Form'!$W31,ATS!$AD:$AD,0),2) -> Trailblazer Mips Helmet | E31: =INDEX(ATS!$A:$AE,MATCH('2) Order Form'!$W31,ATS!$AD:$AD,0),4) -> MEAME-ML | F31: =INDEX(ATS!$A:$AE,MATCH('2) Order Form'!$W31,ATS!$AD:$AD,0),5) -> Matte Aquamarine | G31: =INDEX(ATS!$A:$AE,MATCH('2) Order Form'!$W31,ATS!$AD:$AD,0),6) -> ML | H31: 1 | I31: 0 | J31: =IFERROR(VLOOKUP(W31,ATS!$AD:$AF,2,FALSE),0) -> 21 | K31: 21 | L31: =IFERROR(VLOOKUP(W31,ATS!$AD:$AF,3,FALSE),0) -> 21 | M31: 21 | N31: 0% | O31: 0% | P31: =VLOOKUP($C31,Prices!$A$3:$R$1996,MATCH('2) Order Form'!P$8,Prices!$A$2:$R$2,0),FALSE) -> 90.00 | Q31: =VLOOKUP($C31,Prices!$A$3:$R$1996,MATCH('2) Order Form'!Q$8,Prices!$A$2:$R$2,0),FALSE) -> 179.95 | R31: 0 | S31: 0 | T31: 0 | U31: 0% | W31: 7048652661173 | Y31: 0 | Z31: 0 | AA31: 0 | AB31: 0 | AC31: 845104Matte Aquamarine | AD31: 845104 | AE31: =VLOOKUP($C31,Classification!$A:$F,5,FALSE) -> 4.000 | AF31: =VLOOKUP($C31,Classification!$A:$F,6,FALSE) -> 1 | AG31: =INDEX(ATS!$A:$AE,MATCH('2) Order Form'!$W31,ATS!$AD:$AD,0),7) -> Stock
A32: 1 | B32: =VLOOKUP(A32,Classification!$H$2:$I$11,2,FALSE) -> Helmets & Helmet Acc. | C32: =INDEX(ATS!$A:$AE,MATCH('2) Order Form'!$W32,ATS!$AD:$AD,0),1) -> 845104 | D32: =INDEX(ATS!$A:$AE,MATCH('2) Order Form'!$W32,ATS!$AD:$AD,0),2) -> Trailblazer Mips Helmet | E32: =INDEX(ATS!$A:$AE,MATCH('2) Order Form'!$W32,ATS!$AD:$AD,0),4) -> MEAME-LXL | F32: =INDEX(ATS!$A:$AE,MATCH('2) Order Form'!$W32,ATS!$AD:$AD,0),5) -> Matte Aquamarine | G32: =INDEX(ATS!$A:$AE,MATCH('2) Order Form'!$W32,ATS!$AD:$AD,0),6) -> LXL | H32: 1 | I32: 0 | J32: =IFERROR(VLOOKUP(W32,ATS!$AD:$AF,2,FALSE),0) -> 0 | K32: 0 | L32: =IFERROR(VLOOKUP(W32,ATS!$AD:$AF,3,FALSE),0) -> 0 | M32: 0 | N32: 0% | O32: 0% | P32: =VLOOKUP($C32,Prices!$A$3:$R$1996,MATCH('2) Order Form'!P$8,Prices!$A$2:$R$2,0),FALSE) -> 90.00 | Q32: =VLOOKUP($C32,Prices!$A$3:$R$1996,MATCH('2) Order Form'!Q$8,Prices!$A$2:$R$2,0),FALSE) -> 179.95 | R32: 0 | S32: 0 | T32: 0 | U32: 0% | W32: 7048652661166 | Y32: 0 | Z32: 0 | AA32: 0 | AB32: 0 | AC32: 845104Matte Aquamarine | AD32: 845104 | AE32: =VLOOKUP($C32,Classification!$A:$F,5,FALSE) -> 4.000 | AF32: =VLOOKUP($C32,Classification!$A:$F,6,FALSE) -> 1 | AG32: =INDEX(ATS!$A:$AE,MATCH('2) Order Form'!$W32,ATS!$AD:$AD,0),7) -> Stock
A33: 1 | B33: =VLOOKUP(A33,Classification!$H$2:$I$11,2,FALSE) -> Helmets & Helmet Acc. | C33: =INDEX(ATS!$A:$AE,MATCH('2) Order Form'!$W33,ATS!$AD:$AD,0),1) -> 845104 | D33: =INDEX(ATS!$A:$AE,MATCH('2) Order Form'!$W33,ATS!$AD:$AD,0),2) -> Trailblazer Mips Helmet | E33: =INDEX(ATS!$A:$AE,MATCH('2) Order Form'!$W33,ATS!$AD:$AD,0),4) -> MBLCK-SM | F33: =INDEX(ATS!$A:$AE,MATCH('2) Order Form'!$W33,ATS!$AD:$AD,0),5) -> Matte Black | G33: =INDEX(ATS!$A:$AE,MATCH('2) Order Form'!$W33,ATS!$AD:$AD,0),6) -> SM | H33: 1 | I33: 0 | J33: =IFERROR(VLOOKUP(W33,ATS!$AD:$AF,2,FALSE),0) -> 0 | K33: 0 | L33: =IFERROR(VLOOKUP(W33,ATS!$AD:$AF,3,FALSE),0) -> 0 | M33: 0 | N33: 0% | O33: 0% | P33: =VLOOKUP($C33,Prices!$A$3:$R$1996,MATCH('2) Order Form'!P$8,Prices!$A$2:$R$2,0),FALSE) -> 90.00 | Q33: =VLOOKUP($C33,Prices!$A$3:$R$1996,MATCH('2) Order Form'!Q$8,Prices!$A$2:$R$2,0),FALSE) -> 179.95 | R33: 0 | S33: 0 | T33: 0 | U33: 0% | W33: 7048652540409 | Y33: 0 | Z33: 0 | AA33: 0 | AB33: 1 | AC33: 845104Matte Black | AD33: 845104 | AE33: =VLOOKUP($C33,Classification!$A:$F,5,FALSE) -> 4.000 | AF33: =VLOOKUP($C33,Classification!$A:$F,6,FALSE) -> 1 | AG33: =INDEX(ATS!$A:$AE,MATCH('2) Order Form'!$W33,ATS!$AD:$AD,0),7) -> Active
A34: 1 | B34: =VLOOKUP(A34,Classification!$H$2:$I$11,2,FALSE) -> Helmets & Helmet Acc. | C34: =INDEX(ATS!$A:$AE,MATCH('2) Order Form'!$W34,ATS!$AD:$AD,0),1) -> 845104 | D34: =INDEX(ATS!$A:$AE,MATCH('2) Order Form'!$W34,ATS!$AD:$AD,0),2) -> Trailblazer Mips Helmet | E34: =INDEX(ATS!$A:$AE,MATCH('2) Order Form'!$W34,ATS!$AD:$AD,0),4) -> MBLCK-ML | F34: =INDEX(ATS!$A:$AE,MATCH('2) Order Form'!$W34,ATS!$AD:$AD,0),5) -> Matte Black | G34: =INDEX(ATS!$A:$AE,MATCH('2) Order Form'!$W34,ATS!$AD:$AD,0),6) -> ML | H34: 1 | I34: 0 | J34: =IFERROR(VLOOKUP(W34,ATS!$AD:$AF,2,FALSE),0) -> 0 | K34: 0 | L34: =IFERROR(VLOOKUP(W34,ATS!$AD:$AF,3,FALSE),0) -> 0 | M34: 0 | N34: 0% | O34: 0% | P34: =VLOOKUP($C34,Prices!$A$3:$R$1996,MATCH('2) Order Form'!P$8,Prices!$A$2:$R$2,0),FALSE) -> 90.00 | Q34: =VLOOKUP($C34,Prices!$A$3:$R$1996,MATCH('2) Order Form'!Q$8,Prices!$A$2:$R$2,0),FALSE) -> 179.95 | R34: 0 | S34: 0 | T34: 0 | U34: 0% | W34: 7048652540393 | Y34: 0 | Z34: 0 | AA34: 0 | AB34: 0 | AC34: 845104Matte Black | AD34: 845104 | AE34: =VLOOKUP($C34,Classification!$A:$F,5,FALSE) -> 4.000 | AF34: =VLOOKUP($C34,Classification!$A:$F,6,FALSE) -> 1 | AG34: =INDEX(ATS!$A:$AE,MATCH('2) Order Form'!$W34,ATS!$AD:$AD,0),7) -> Active
A35: 1 | B35: =VLOOKUP(A35,Classification!$H$2:$I$11,2,FALSE) -> Helmets & Helmet Acc. | C35: =INDEX(ATS!$A:$AE,MATCH('2) Order Form'!$W35,ATS!$AD:$AD,0),1) -> 845104 | D35: =INDEX(ATS!$A:$AE,MATCH('2) Order Form'!$W35,ATS!$AD:$AD,0),2) -> Trailblazer Mips Helmet | E35: =INDEX(ATS!$A:$AE,MATCH('2) Order Form'!$W35,ATS!$AD:$AD,0),4) -> MBLCK-LXL | F35: =INDEX(ATS!$A:$AE,MATCH('2) Order Form'!$W35,ATS!$AD:$AD,0),5) -> Matte Black | G35: =INDEX(ATS!$A:$AE,MATCH('2) Order Form'!$W35,ATS!$AD:$AD,0),6) -> LXL | H35: 1 | I35: 0 | J35: =IFERROR(VLOOKUP(W35,ATS!$AD:$AF,2,FALSE),0) -> 0 | K35: 0 | L35: =IFERROR(VLOOKUP(W35,ATS!$AD:$AF,3,FALSE),0) -> 0 | M35: 0 | N35: 0% | O35: 0% | P35: =VLOOKUP($C35,Prices!$A$3:$R$1996,MATCH('2) Order Form'!P$8,Prices!$A$2:$R$2,0),FALSE) -> 90.00 | Q35: =VLOOKUP($C35,Prices!$A$3:$R$1996,MATCH('2) Order Form'!Q$8,Prices!$A$2:$R$2,0),FALSE) -> 179.95 | R35: 0 | S35: 0 | T35: 0 | U35: 0% | W35: 7048652540386 | Y35: 0 | Z35: 0 | AA35: 0 | AB35: 0 | AC35: 845104Matte Black | AD35: 845104 | AE35: =VLOOKUP($C35,Classification!$A:$F,5,FALSE) -> 4.000 | AF35: =VLOOKUP($C35,Classification!$A:$F,6,FALSE) -> 1 | AG35: =INDEX(ATS!$A:$AE,MATCH('2) Order Form'!$W35,ATS!$AD:$AD,0),7) -> Active
A36: 1 | B36: =VLOOKUP(A36,Classification!$H$2:$I$11,2,FALSE) -> Helmets & Helmet Acc. | C36: =INDEX(ATS!$A:$AE,MATCH('2) Order Form'!$W36,ATS!$AD:$AD,0),1) -> 845104 | D36: =INDEX(ATS!$A:$AE,MATCH('2) Order Form'!$W36,ATS!$AD:$AD,0),2) -> Trailblazer Mips Helmet | E36: =INDEX(ATS!$A:$AE,MATCH('2) Order Form'!$W36,ATS!$AD:$AD,0),4) -> MNGRY-SM | F36: =INDEX(ATS!$A:$AE,MATCH('2) Order Form'!$W36,ATS!$AD:$AD,0),5) -> Matte Nardo Gray | G36: =INDEX(ATS!$A:$AE,MATCH('2) Order Form'!$W36,ATS!$AD:$AD,0),6) -> SM | H36: 1 | I36: 0 | J36: =IFERROR(VLOOKUP(W36,ATS!$AD:$AF,2,FALSE),0) -> 14 | K36: 14 | L36: =IFERROR(VLOOKUP(W36,ATS!$AD:$AF,3,FALSE),0) -> 14 | M36: =IF(L36=99999,"OPEN",IF(L36>50,"50+",IF(L36<=0,"0",L36))) -> 14 | N36: 0% | O36: =IF(N36<>0,N36,$P$5) -> 0% | P36: =VLOOKUP($C36,Prices!$A$3:$R$1996,MATCH('2) Order Form'!P$8,Prices!$A$2:$R$2,0),FALSE) -> 90.00 | Q36: =VLOOKUP($C36,Prices!$A$3:$R$1996,MATCH('2) Order Form'!Q$8,Prices!$A$2:$R$2,0),FALSE) -> 179.95 | R36: =I36*P36 -> 0 | S36: =R36*O36 -> 0 | T36: =R36-S36 -> 0 | U36: 0% | W36: 7048652661210 | Y36: 0 | Z36: =IF(A36=OFFSET(A36,-1,0),0,1) -> 0 | AA36: =IF(C36=OFFSET(C36,-1,0),0,1) -> 0 | AB36: =IF(F36=OFFSET(F36,-1,0),0,1) -> 1 | AC36: =CONCATENATE(C36,F36) -> 845104Matte Nardo Gray | AD36: =IFERROR(IF(B36="EYEWEAR",CONCATENATE(C36,"-",G36),C36),C36) -> 845104 | AE36: =VLOOKUP($C36,Classification!$A:$F,5,FALSE) -> 4.000 | AF36: =VLOOKUP($C36,Classification!$A:$F,6,FALSE) -> 1 | AG36: =INDEX(ATS!$A:$AE,MATCH('2) Order Form'!$W36,ATS!$AD:$AD,0),7) -> Stock
A37: 1 | B37: =VLOOKUP(A37,Classification!$H$2:$I$11,2,FALSE) -> Helmets & Helmet Acc. | C37: =INDEX(ATS!$A:$AE,MATCH('2) Order Form'!$W37,ATS!$AD:$AD,0),1) -> 845104 | D37: =INDEX(ATS!$A:$AE,MATCH('2) Order Form'!$W37,ATS!$AD:$AD,0),2) -> Trailblazer Mips Helmet | E37: =INDEX(ATS!$A:$AE,MATCH('2) Order Form'!$W37,ATS!$AD:$AD,0),4) -> MNGRY-ML | F37: =INDEX(ATS!$A:$AE,MATCH('2) Order Form'!$W37,ATS!$AD:$AD,0),5) -> Matte Nardo Gray | G37: =INDEX(ATS!$A:$AE,MATCH('2) Order Form'!$W37,ATS!$AD:$AD,0),6) -> ML | H37: 1 | I37: 0 | J37: =IFERROR(VLOOKUP(W37,ATS!$AD:$AF,2,FALSE),0) -> 2 | K37: 2 | L37: =IFERROR(VLOOKUP(W37,ATS!$AD:$AF,3,FALSE),0) -> 2 | M37: 2 | N37: 0% | O37: 0% | P37: =VLOOKUP($C37,Prices!$A$3:$R$1996,MATCH('2) Order Form'!P$8,Prices!$A$2:$R$2,0),FALSE) -> 90.00 | Q37: =VLOOKUP($C37,Prices!$A$3:$R$1996,MATCH('2) Order Form'!Q$8,Prices!$A$2:$R$2,0),FALSE) -> 179.95 | R37: 0 | S37: 0 | T37: 0 | U37: 0% | W37: 7048652661203 | Y37: 0 | Z37: 0 | AA37: 0 | AB37: 0 | AC37: 845104Matte Nardo Gray | AD37: 845104 | AE37: =VLOOKUP($C37,Classification!$A:$F,5,FALSE) -> 4.000 | AF37: =VLOOKUP($C37,Classification!$A:$F,6,FALSE) -> 1 | AG37: =INDEX(ATS!$A:$AE,MATCH('2) Order Form'!$W37,ATS!$AD:$AD,0),7) -> Stock
A38: 1 | B38: =VLOOKUP(A38,Classification!$H$2:$I$11,2,FALSE) -> Helmets & Helmet Acc. | C38: =INDEX(ATS!$A:$AE,MATCH('2) Order Form'!$W38,ATS!$AD:$AD,0),1) -> 845104 | D38: =INDEX(ATS!$A:$AE,MATCH('2) Order Form'!$W38,ATS!$AD:$AD,0),2) -> Trailblazer Mips Helmet | E38: =INDEX(ATS!$A:$AE,MATCH('2) Order Form'!$W38,ATS!$AD:$AD,0),4) -> MNGRY-LXL | F38: =INDEX(ATS!$A:$AE,MATCH('2) Order Form'!$W38,ATS!$AD:$AD,0),5) -> Matte Nardo Gray | G38: =INDEX(ATS!$A:$AE,MATCH('2) Order Form'!$W38,ATS!$AD:$AD,0),6) -> LXL | H38: 1 | I38: 0 | J38: =IFERROR(VLOOKUP(W38,ATS!$AD:$AF,2,FALSE),0) -> 4 | K38: 4 | L38: =IFERROR(VLOOKUP(W38,ATS!$AD:$AF,3,FALSE),0) -> 4 | M38: 4 | N38: 0% | O38: 0% | P38: =VLOOKUP($C38,Prices!$A$3:$R$1996,MATCH('2) Order Form'!P$8,Prices!$A$2:$R$2,0),FALSE) -> 90.00 | Q38: =VLOOKUP($C38,Prices!$A$3:$R$1996,MATCH('2) Order Form'!Q$8,Prices!$A$2:$R$2,0),FALSE) -> 179.95 | R38: 0 | S38: 0 | T38: 0 | U38: 0% | W38: 7048652661197 | Y38: 0 | Z38: 0 | AA38: 0 | AB38: 0 | AC38: 845104Matte Nardo Gray | AD38: 845104 | AE38: =VLOOKUP($C38,Classification!$A:$F,5,FALSE) -> 4.000 | AF38: =VLOOKUP($C38,Classification!$A:$F,6,FALSE) -> 1 | AG38: =INDEX(ATS!$A:$AE,MATCH('2) Order Form'!$W38,ATS!$AD:$AD,0),7) -> Stock
A39: 1 | B39: =VLOOKUP(A39,Classification!$H$2:$I$11,2,FALSE) -> Helmets & Helmet Acc. | C39: =INDEX(ATS!$A:$AE,MATCH('2) Order Form'!$W39,ATS!$AD:$AD,0),1) -> 845104 | D39: =INDEX(ATS!$A:$AE,MATCH('2) Order Form'!$W39,ATS!$AD:$AD,0),2) -> Trailblazer Mips Helmet | E39: =INDEX(ATS!$A:$AE,MATCH('2) Order Form'!$W39,ATS!$AD:$AD,0),4) -> MWHTE-SM | F39: =INDEX(ATS!$A:$AE,MATCH('2) Order Form'!$W39,ATS!$AD:$AD,0),5) -> Matte White | G39: =INDEX(ATS!$A:$AE,MATCH('2) Order Form'!$W39,ATS!$AD:$AD,0),6) -> SM | H39: 1 | I39: 0 | J39: =IFERROR(VLOOKUP(W39,ATS!$AD:$AF,2,FALSE),0) -> 1 | K39: 1 | L39: =IFERROR(VLOOKUP(W39,ATS!$AD:$AF,3,FALSE),0) -> 1 | M39: 1 | N39: 0% | O39: 0% | P39: =VLOOKUP($C39,Prices!$A$3:$R$1996,MATCH('2) Order Form'!P$8,Prices!$A$2:$R$2,0),FALSE) -> 90.00 | Q39: =VLOOKUP($C39,Prices!$A$3:$R$1996,MATCH('2) Order Form'!Q$8,Prices!$A$2:$R$2,0),FALSE) -> 179.95 | R39: 0 | S39: 0 | T39: 0 | U39: 0% | W39: 7048652540522 | Y39: 0 | Z39: 0 | AA39: 0 | AB39: 1 | AC39: 845104Matte White | AD39: 845104 | AE39: =VLOOKUP($C39,Classification!$A:$F,5,FALSE) -> 4.000 | AF39: =VLOOKUP($C39,Classification!$A:$F,6,FALSE) -> 1 | AG39: =INDEX(ATS!$A:$AE,MATCH('2) Order Form'!$W39,ATS!$AD:$AD,0),7) -> Active
A40: 1 | B40: =VLOOKUP(A40,Classification!$H$2:$I$11,2,FALSE) -> Helmets & Helmet Acc. | C40: =INDEX(ATS!$A:$AE,MATCH('2) Order Form'!$W40,ATS!$AD:$AD,0),1) -> 845104 | D40: =INDEX(ATS!$A:$AE,MATCH('2) Order Form'!$W40,ATS!$AD:$AD,0),2) -> Trailblazer Mips Helmet | E40: =INDEX(ATS!$A:$AE,MATCH('2) Order Form'!$W40,ATS!$AD:$AD,0),4) -> MWHTE-ML | F40: =INDEX(ATS!$A:$AE,MATCH('2) Order Form'!$W40,ATS!$AD:$AD,0),5) -> Matte White | G40: =INDEX(ATS!$A:$AE,MATCH('2) Order Form'!$W40,ATS!$AD:$AD,0),6) -> ML | H40: 1 | I40: 0 | J40: =IFERROR(VLOOKUP(W40,ATS!$AD:$AF,2,FALSE),0) -> 3 | K40: 3 | L40: =IFERROR(VLOOKUP(W40,ATS!$AD:$AF,3,FALSE),0) -> 3 | M40: 3 | N40: 0% | O40: 0% | P40: =VLOOKUP($C40,Prices!$A$3:$R$1996,MATCH('2) Order Form'!P$8,Prices!$A$2:$R$2,0),FALSE) -> 90.00 | Q40: =VLOOKUP($C40,Prices!$A$3:$R$1996,MATCH('2) Order Form'!Q$8,Prices!$A$2:$R$2,0),FALSE) -> 179.95 | R40: 0 | S40: 0 | T40: 0 | U40: 0% | W40: 7048652540515 | Y40: 0 | Z40: 0 | AA40: 0 | AB40: 0 | AC40: 845104Matte White | AD40: 845104 | AE40: =VLOOKUP($C40,Classification!$A:$F,5,FALSE) -> 4.000 | AF40: =VLOOKUP($C40,Classification!$A:$F,6,FALSE) -> 1 | AG40: =INDEX(ATS!$A:$AE,MATCH('2) Order Form'!$W40,ATS!$AD:$AD,0),7) -> Active
A41: 1 | B41: =VLOOKUP(A41,Classification!$H$2:$I$11,2,FALSE) -> Helmets & Helmet Acc. | C41: =INDEX(ATS!$A:$AE,MATCH('2) Order Form'!$W41,ATS!$AD:$AD,0),1) -> 845104 | D41: =INDEX(ATS!$A:$AE,MATCH('2) Order Form'!$W41,ATS!$AD:$AD,0),2) -> Trailblazer Mips Helmet | E41: =INDEX(ATS!$A:$AE,MATCH('2) Order Form'!$W41,ATS!$AD:$AD,0),4) -> MWHTE-LXL | F41: =INDEX(ATS!$A:$AE,MATCH('2) Order Form'!$W41,ATS!$AD:$AD,0),5) -> Matte White | G41: =INDEX(ATS!$A:$AE,MATCH('2) Order Form'!$W41,ATS!$AD:$AD,0),6) -> LXL | H41: 1 | I41: 0 | J41: =IFERROR(VLOOKUP(W41,ATS!$AD:$AF,2,FALSE),0) -> 26 | K41: 26 | L41: =IFERROR(VLOOKUP(W41,ATS!$AD:$AF,3,FALSE),0) -> 26 | M41: 26 | N41: 0% | O41: 0% | P41: =VLOOKUP($C41,Prices!$A$3:$R$1996,MATCH('2) Order Form'!P$8,Prices!$A$2:$R$2,0),FALSE) -> 90.00 | Q41: =VLOOKUP($C41,Prices!$A$3:$R$1996,MATCH('2) Order Form'!Q$8,Prices!$A$2:$R$2,0),FALSE) -> 179.95 | R41: 0 | S41: 0 | T41: 0 | U41: 0% | W41: 7048652540508 | Y41: 0 | Z41: 0 | AA41: 0 | AB41: 0 | AC41: 845104Matte White | AD41: 845104 | AE41: =VLOOKUP($C41,Classification!$A:$F,5,FALSE) -> 4.000 | AF41: =VLOOKUP($C41,Classification!$A:$F,6,FALSE) -> 1 | AG41: =INDEX(ATS!$A:$AE,MATCH('2) Order Form'!$W41,ATS!$AD:$AD,0),7) -> Active
A42: 1 | B42: =VLOOKUP(A42,Classification!$H$2:$I$11,2,FALSE) -> Helmets & Helmet Acc. | C42: =INDEX(ATS!$A:$AE,MATCH('2) Order Form'!$W42,ATS!$AD:$AD,0),1) -> 845104 | D42: =INDEX(ATS!$A:$AE,MATCH('2) Order Form'!$W42,ATS!$AD:$AD,0),2) -> Trailblazer Mips Helmet | E42: =INDEX(ATS!$A:$AE,MATCH('2) Order Form'!$W42,ATS!$AD:$AD,0),4) -> SGRME-SM | F42: =INDEX(ATS!$A:$AE,MATCH('2) Order Form'!$W42,ATS!$AD:$AD,0),5) -> Slate Gray Metallic | G42: =INDEX(ATS!$A:$AE,MATCH('2) Order Form'!$W42,ATS!$AD:$AD,0),6) -> SM | H42: 1 | I42: 0 | J42: =IFERROR(VLOOKUP(W42,ATS!$AD:$AF,2,FALSE),0) -> 32 | K42: 32 | L42: =IFERROR(VLOOKUP(W42,ATS!$AD:$AF,3,FALSE),0) -> 32 | M42: 32 | N42: 0% | O42: 0% | P42: =VLOOKUP($C42,Prices!$A$3:$R$1996,MATCH('2) Order Form'!P$8,Prices!$A$2:$R$2,0),FALSE) -> 90.00 | Q42: =VLOOKUP($C42,Prices!$A$3:$R$1996,MATCH('2) Order Form'!Q$8,Prices!$A$2:$R$2,0),FALSE) -> 179.95 | R42: 0 | S42: 0 | T42: 0 | U42: 0% | W42: 7048652661241 | Y42: 0 | Z42: 0 | AA42: 0 | AB42: 1 | AC42: 845104Slate Gray Metallic | AD42: 845104 | AE42: =VLOOKUP($C42,Classification!$A:$F,5,FALSE) -> 4.000 | AF42: =VLOOKUP($C42,Classification!$A:$F,6,FALSE) -> 1 | AG42: =INDEX(ATS!$A:$AE,MATCH('2) Order Form'!$W42,ATS!$AD:$AD,0),7) -> Stock
A43: 1 | B43: =VLOOKUP(A43,Classification!$H$2:$I$11,2,FALSE) -> Helmets & Helmet Acc. | C43: =INDEX(ATS!$A:$AE,MATCH('2) Order Form'!$W43,ATS!$AD:$AD,0),1) -> 845104 | D43: =INDEX(ATS!$A:$AE,MATCH('2) Order Form'!$W43,ATS!$AD:$AD,0),2) -> Trailblazer Mips Helmet | E43: =INDEX(ATS!$A:$AE,MATCH('2) Order Form'!$W43,ATS!$AD:$AD,0),4) -> SGRME-ML | F43: =INDEX(ATS!$A:$AE,MATCH('2) Order Form'!$W43,ATS!$AD:$AD,0),5) -> Slate Gray Metallic | G43: =INDEX(ATS!$A:$AE,MATCH('2) Order Form'!$W43,ATS!$AD:$AD,0),6) -> ML | H43: 1 | I43: 0 | J43: =IFERROR(VLOOKUP(W43,ATS!$AD:$AF,2,FALSE),0) -> 0 | K43: 0 | L43: =IFERROR(VLOOKUP(W43,ATS!$AD:$AF,3,FALSE),0) -> 0 | M43: 0 | N43: 0% | O43: 0% | P43: =VLOOKUP($C43,Prices!$A$3:$R$1996,MATCH('2) Order Form'!P$8,Prices!$A$2:$R$2,0),FALSE) -> 90.00 | Q43: =VLOOKUP($C43,Prices!$A$3:$R$1996,MATCH('2) Order Form'!Q$8,Prices!$A$2:$R$2,0),FALSE) -> 179.95 | R43: 0 | S43: 0 | T43: 0 | U43: 0% | W43: 7048652661234 | Y43: 0 | Z43: 0 | AA43: 0 | AB43: 0 | AC43: 845104Slate Gray Metallic | AD43: 845104 | AE43: =VLOOKUP($C43,Classification!$A:$F,5,FALSE) -> 4.000 | AF43: =VLOOKUP($C43,Classification!$A:$F,6,FALSE) -> 1 | AG43: =INDEX(ATS!$A:$AE,MATCH('2) Order Form'!$W43,ATS!$AD:$AD,0),7) -> Stock
A44: 1 | B44: =VLOOKUP(A44,Classification!$H$2:$I$11,2,FALSE) -> Helmets & Helmet Acc. | C44: =INDEX(ATS!$A:$AE,MATCH('2) Order Form'!$W44,ATS!$AD:$AD,0),1) -> 845104 | D44: =INDEX(ATS!$A:$AE,MATCH('2) Order Form'!$W44,ATS!$AD:$AD,0),2) -> Trailblazer Mips Helmet | E44: =INDEX(ATS!$A:$AE,MATCH('2) Order Form'!$W44,ATS!$AD:$AD,0),4) -> SGRME-LXL | F44: =INDEX(ATS!$A:$AE,MATCH('2) Order Form'!$W44,ATS!$AD:$AD,0),5) -> Slate Gray Metallic | G44: =INDEX(ATS!$A:$AE,MATCH('2) Order Form'!$W44,ATS!$AD:$AD,0),6) -> LXL | H44: 1 | I44: 0 | J44: =IFERROR(VLOOKUP(W44,ATS!$AD:$AF,2,FALSE),0) -> 2 | K44: 2 | L44: =IFERROR(VLOOKUP(W44,ATS!$AD:$AF,3,FALSE),0) -> 2 | M44: 2 | N44: 0% | O44: 0% | P44: =VLOOKUP($C44,Prices!$A$3:$R$1996,MATCH('2) Order Form'!P$8,Prices!$A$2:$R$2,0),FALSE) -> 90.00 | Q44: =VLOOKUP($C44,Prices!$A$3:$R$1996,MATCH('2) Order Form'!Q$8,Prices!$A$2:$R$2,0),FALSE) -> 179.95 | R44: 0 | S44: 0 | T44: 0 | U44: 0% | W44: 7048652661227 | Y44: 0 | Z44: 0 | AA44: 0 | AB44: 0 | AC44: 845104Slate Gray Metallic | AD44: 845104 | AE44: =VLOOKUP($C44,Classification!$A:$F,5,FALSE) -> 4.000 | AF44: =VLOOKUP($C44,Classification!$A:$F,6,FALSE) -> 1 | AG44: =INDEX(ATS!$A:$AE,MATCH('2) Order Form'!$W44,ATS!$AD:$AD,0),7) -> Stock
A45: 1 | B45: =VLOOKUP(A45,Classification!$H$2:$I$11,2,FALSE) -> Helmets & Helmet Acc. | C45: =INDEX(ATS!$A:$AE,MATCH('2) Order Form'!$W45,ATS!$AD:$AD,0),1) -> 845103 | D45: =INDEX(ATS!$A:$AE,MATCH('2) Order Form'!$W45,ATS!$AD:$AD,0),2) -> Trailblazer Helmet | E45: =INDEX(ATS!$A:$AE,MATCH('2) Order Form'!$W45,ATS!$AD:$AD,0),4) -> MEAME-SM | F45: =INDEX(ATS!$A:$AE,MATCH('2) Order Form'!$W45,ATS!$AD:$AD,0),5) -> Matte Aquamarine | G45: =INDEX(ATS!$A:$AE,MATCH('2) Order Form'!$W45,ATS!$AD:$AD,0),6) -> SM | H45: 1 | I45: 0 | J45: =IFERROR(VLOOKUP(W45,ATS!$AD:$AF,2,FALSE),0) -> 2 | K45: 2 | L45: =IFERROR(VLOOKUP(W45,ATS!$AD:$AF,3,FALSE),0) -> 2 | M45: 2 | N45: 0% | O45: 0% | P45: =VLOOKUP($C45,Prices!$A$3:$R$1996,MATCH('2) Order Form'!P$8,Prices!$A$2:$R$2,0),FALSE) -> 75.00 | Q45: =VLOOKUP($C45,Prices!$A$3:$R$1996,MATCH('2) Order Form'!Q$8,Prices!$A$2:$R$2,0),FALSE) -> 149.95 | R45: 0 | S45: 0 | T45: 0 | U45: 0% | W45: 7048652661098 | Y45: 0 | Z45: 0 | AA45: 1 | AB45: 1 | AC45: 845103Matte Aquamarine | AD45: 845103 | AE45: =VLOOKUP($C45,Classification!$A:$F,5,FALSE) -> 5.000 | AF45: =VLOOKUP($C45,Classification!$A:$F,6,FALSE) -> 1 | AG45: =INDEX(ATS!$A:$AE,MATCH('2) Order Form'!$W45,ATS!$AD:$AD,0),7) -> Stock
A46: 1 | B46: =VLOOKUP(A46,Classification!$H$2:$I$11,2,FALSE) -> Helmets & Helmet Acc. | C46: =INDEX(ATS!$A:$AE,MATCH('2) Order Form'!$W46,ATS!$AD:$AD,0),1) -> 845103 | D46: =INDEX(ATS!$A:$AE,MATCH('2) Order Form'!$W46,ATS!$AD:$AD,0),2) -> Trailblazer Helmet | E46: =INDEX(ATS!$A:$AE,MATCH('2) Order Form'!$W46,ATS!$AD:$AD,0),4) -> MEAME-ML | F46: =INDEX(ATS!$A:$AE,MATCH('2) Order Form'!$W46,ATS!$AD:$AD,0),5) -> Matte Aquamarine | G46: =INDEX(ATS!$A:$AE,MATCH('2) Order Form'!$W46,ATS!$AD:$AD,0),6) -> ML | H46: 1 | I46: 0 | J46: =IFERROR(VLOOKUP(W46,ATS!$AD:$AF,2,FALSE),0) -> 0 | K46: 0 | L46: =IFERROR(VLOOKUP(W46,ATS!$AD:$AF,3,FALSE),0) -> 0 | M46: 0 | N46: 0% | O46: 0% | P46: =VLOOKUP($C46,Prices!$A$3:$R$1996,MATCH('2) Order Form'!P$8,Prices!$A$2:$R$2,0),FALSE) -> 75.00 | Q46: =VLOOKUP($C46,Prices!$A$3:$R$1996,MATCH('2) Order Form'!Q$8,Prices!$A$2:$R$2,0),FALSE) -> 149.95 | R46: 0 | S46: 0 | T46: 0 | U46: 0% | W46: 7048652661081 | Y46: 0 | Z46: 0 | AA46: 0 | AB46: 0 | AC46: 845103Matte Aquamarine | AD46: 845103 | AE46: =VLOOKUP($C46,Classification!$A:$F,5,FALSE) -> 5.000 | AF46: =VLOOKUP($C46,Classification!$A:$F,6,FALSE) -> 1 | AG46: =INDEX(ATS!$A:$AE,MATCH('2) Order Form'!$W46,ATS!$AD:$AD,0),7) -> Stock
A47: 1 | B47: =VLOOKUP(A47,Classification!$H$2:$I$11,2,FALSE) -> Helmets & Helmet Acc. | C47: =INDEX(ATS!$A:$AE,MATCH('2) Order Form'!$W47,ATS!$AD:$AD,0),1) -> 845103 | D47: =INDEX(ATS!$A:$AE,MATCH('2) Order Form'!$W47,ATS!$AD:$AD,0),2) -> Trailblazer Helmet | E47: =INDEX(ATS!$A:$AE,MATCH('2) Order Form'!$W47,ATS!$AD:$AD,0),4) -> MEAME-LXL | F47: =INDEX(ATS!$A:$AE,MATCH('2) Order Form'!$W47,ATS!$AD:$AD,0),5) -> Matte Aquamarine | G47: =INDEX(ATS!$A:$AE,MATCH('2) Order Form'!$W47,ATS!$AD:$AD,0),6) -> LXL | H47: 1 | I47: 0 | J47: =IFERROR(VLOOKUP(W47,ATS!$AD:$AF,2,FALSE),0) -> 5 | K47: 5 | L47: =IFERROR(VLOOKUP(W47,ATS!$AD:$AF,3,FALSE),0) -> 5 | M47: 5 | N47: 0% | O47: 0% | P47: =VLOOKUP($C47,Prices!$A$3:$R$1996,MATCH('2) Order Form'!P$8,Prices!$A$2:$R$2,0),FALSE) -> 75.00 | Q47: =VLOOKUP($C47,Prices!$A$3:$R$1996,MATCH('2) Order Form'!Q$8,Prices!$A$2:$R$2,0),FALSE) -> 149.95 | R47: 0 | S47: 0 | T47: 0 | U47: 0% | W47: 7048652661074 | Y47: 0 | Z47: 0 | AA47: 0 | AB47: 0 | AC47: 845103Matte Aquamarine | AD47: 845103 | AE47: =VLOOKUP($C47,Classification!$A:$F,5,FALSE) -> 5.000 | AF47: =VLOOKUP($C47,Classification!$A:$F,6,FALSE) -> 1 | AG47: =INDEX(ATS!$A:$AE,MATCH('2) Order Form'!$W47,ATS!$AD:$AD,0),7) -> Stock
A48: 1 | B48: =VLOOKUP(A48,Classification!$H$2:$I$11,2,FALSE) -> Helmets & Helmet Acc. | C48: =INDEX(ATS!$A:$AE,MATCH('2) Order Form'!$W48,ATS!$AD:$AD,0),1) -> 845103 | D48: =INDEX(ATS!$A:$AE,MATCH('2) Order Form'!$W48,ATS!$AD:$AD,0),2) -> Trailblazer Helmet | E48: =INDEX(ATS!$A:$AE,MATCH('2) Order Form'!$W48,ATS!$AD:$AD,0),4) -> MBLCK-SM | F48: =INDEX(ATS!$A:$AE,MATCH('2) Order Form'!$W48,ATS!$AD:$AD,0),5) -> Matte Black | G48: =INDEX(ATS!$A:$AE,MATCH('2) Order Form'!$W48,ATS!$AD:$AD,0),6) -> SM | H48: 1 | I48: 0 | J48: =IFERROR(VLOOKUP(W48,ATS!$AD:$AF,2,FALSE),0) -> 0 | K48: 0 | L48: =IFERROR(VLOOKUP(W48,ATS!$AD:$AF,3,FALSE),0) -> 0 | M48: 0 | N48: 0% | O48: 0% | P48: =VLOOKUP($C48,Prices!$A$3:$R$1996,MATCH('2) Order Form'!P$8,Prices!$A$2:$R$2,0),FALSE) -> 75.00 | Q48: =VLOOKUP($C48,Prices!$A$3:$R$1996,MATCH('2) Order Form'!Q$8,Prices!$A$2:$R$2,0),FALSE) -> 149.95 | R48: 0 | S48: 0 | T48: 0 | U48: 0% | W48: 7048652540225 | Y48: 0 | Z48: 0 | AA48: 0 | AB48: 1 | AC48: 845103Matte Black | AD48: 845103 | AE48: =VLOOKUP($C48,Classification!$A:$F,5,FALSE) -> 5.000 | AF48: =VLOOKUP($C48,Classification!$A:$F,6,FALSE) -> 1 | AG48: =INDEX(ATS!$A:$AE,MATCH('2) Order Form'!$W48,ATS!$AD:$AD,0),7) -> Active
A49: 1 | B49: =VLOOKUP(A49,Classification!$H$2:$I$11,2,FALSE) -> Helmets & Helmet Acc. | C49: =INDEX(ATS!$A:$AE,MATCH('2) Order Form'!$W49,ATS!$AD:$AD,0),1) -> 845103 | D49: =INDEX(ATS!$A:$AE,MATCH('2) Order Form'!$W49,ATS!$AD:$AD,0),2) -> Trailblazer Helmet | E49: =INDEX(ATS!$A:$AE,MATCH('2) Order Form'!$W49,ATS!$AD:$AD,0),4) -> MBLCK-ML | F49: =INDEX(ATS!$A:$AE,MATCH('2) Order Form'!$W49,ATS!$AD:$AD,0),5) -> Matte Black | G49: =INDEX(ATS!$A:$AE,MATCH('2) Order Form'!$W49,ATS!$AD:$AD,0),6) -> ML | H49: 1 | I49: 0 | J49: =IFERROR(VLOOKUP(W49,ATS!$AD:$AF,2,FALSE),0) -> -16 | K49: 0 | L49: =IFERROR(VLOOKUP(W49,ATS!$AD:$AF,3,FALSE),0) -> -16 | M49: 0 | N49: 0% | O49: 0% | P49: =VLOOKUP($C49,Prices!$A$3:$R$1996,MATCH('2) Order Form'!P$8,Prices!$A$2:$R$2,0),FALSE) -> 75.00 | Q49: =VLOOKUP($C49,Prices!$A$3:$R$1996,MATCH('2) Order Form'!Q$8,Prices!$A$2:$R$2,0),FALSE) -> 149.95 | R49: 0 | S49: 0 | T49: 0 | U49: 0% | W49: 7048652540218 | Y49: 0 | Z49: 0 | AA49: 0 | AB49: 0 | AC49: 845103Matte Black | AD49: 845103 | AE49: =VLOOKUP($C49,Classification!$A:$F,5,FALSE) -> 5.000 | AF49: =VLOOKUP($C49,Classification!$A:$F,6,FALSE) -> 1 | AG49: =INDEX(ATS!$A:$AE,MATCH('2) Order Form'!$W49,ATS!$AD:$AD,0),7) -> Active
A50: 1 | B50: =VLOOKUP(A50,Classification!$H$2:$I$11,2,FALSE) -> Helmets & Helmet Acc. | C50: =INDEX(ATS!$A:$AE,MATCH('2) Order Form'!$W50,ATS!$AD:$AD,0),1) -> 845103 | D50: =INDEX(ATS!$A:$AE,MATCH('2) Order Form'!$W50,ATS!$AD:$AD,0),2) -> Trailblazer Helmet | E50: =INDEX(ATS!$A:$AE,MATCH('2) Order Form'!$W50,ATS!$AD:$AD,0),4) -> MBLCK-LXL | F50: =INDEX(ATS!$A:$AE,MATCH('2) Order Form'!$W50,ATS!$AD:$AD,0),5) -> Matte Black | G50: =INDEX(ATS!$A:$AE,MATCH('2) Order Form'!$W50,ATS!$AD:$AD,0),6) -> LXL | H50: 1 | I50: 0 | J50: =IFERROR(VLOOKUP(W50,ATS!$AD:$AF,2,FALSE),0) -> -49 | K50: 0 | L50: =IFERROR(VLOOKUP(W50,ATS!$AD:$AF,3,FALSE),0) -> -49 | M50: 0 | N50: 0% | O50: 0% | P50: =VLOOKUP($C50,Prices!$A$3:$R$1996,MATCH('2) Order Form'!P$8,Prices!$A$2:$R$2,0),FALSE) -> 75.00 | Q50: =VLOOKUP($C50,Prices!$A$3:$R$1996,MATCH('2) Order Form'!Q$8,Prices!$A$2:$R$2,0),FALSE) -> 149.95 | R50: 0 | S50: 0 | T50: 0 | U50: 0% | W50: 7048652540201 | Y50: 0 | Z50: 0 | AA50: 0 | AB50: 0 | AC50: 845103Matte Black | AD50: 845103 | AE50: =VLOOKUP($C50,Classification!$A:$F,5,FALSE) -> 5.000 | AF50: =VLOOKUP($C50,Classification!$A:$F,6,FALSE) -> 1 | AG50: =INDEX(ATS!$A:$AE,MATCH('2) Order Form'!$W50,ATS!$AD:$AD,0),7) -> Active
A51: 1 | B51: =VLOOKUP(A51,Classification!$H$2:$I$11,2,FALSE) -> Helmets & Helmet Acc. | C51: =INDEX(ATS!$A:$AE,MATCH('2) Order Form'!$W51,ATS!$AD:$AD,0),1) -> 845103 | D51: =INDEX(ATS!$A:$AE,MATCH('2) Order Form'!$W51,ATS!$AD:$AD,0),2) -> Trailblazer Helmet | E51: =INDEX(ATS!$A:$AE,MATCH('2) Order Form'!$W51,ATS!$AD:$AD,0),4) -> MNGRY-SM | F51: =INDEX(ATS!$A:$AE,MATCH('2) Order Form'!$W51,ATS!$AD:$AD,0),5) -> Matte Nardo Gray | G51: =INDEX(ATS!$A:$AE,MATCH('2) Order Form'!$W51,ATS!$AD:$AD,0),6) -> SM | H51: 1 | I51: 0 | J51: =IFERROR(VLOOKUP(W51,ATS!$AD:$AF,2,FALSE),0) -> 0 | K51: 0 | L51: =IFERROR(VLOOKUP(W51,ATS!$AD:$AF,3,FALSE),0) -> 0 | M51: 0 | N51: 0% | O51: 0% | P51: =VLOOKUP($C51,Prices!$A$3:$R$1996,MATCH('2) Order Form'!P$8,Prices!$A$2:$R$2,0),FALSE) -> 75.00 | Q51: =VLOOKUP($C51,Prices!$A$3:$R$1996,MATCH('2) Order Form'!Q$8,Prices!$A$2:$R$2,0),FALSE) -> 149.95 | R51: 0 | S51: 0 | T51: 0 | U51: 0% | W51: 7048652661128 | Y51: 0 | Z51: 0 | AA51: 0 | AB51: 1 | AC51: 845103Matte Nardo Gray | AD51: 845103 | AE51: =VLOOKUP($C51,Classification!$A:$F,5,FALSE) -> 5.000 | AF51: =VLOOKUP($C51,Classification!$A:$F,6,FALSE) -> 1 | AG51: =INDEX(ATS!$A:$AE,MATCH('2) Order Form'!$W51,ATS!$AD:$AD,0),7) -> Stock
A52: 1 | B52: =VLOOKUP(A52,Classification!$H$2:$I$11,2,FALSE) -> Helmets & Helmet Acc. | C52: =INDEX(ATS!$A:$AE,MATCH('2) Order Form'!$W52,ATS!$AD:$AD,0),1) -> 845103 | D52: =INDEX(ATS!$A:$AE,MATCH('2) Order Form'!$W52,ATS!$AD:$AD,0),2) -> Trailblazer Helmet | E52: =INDEX(ATS!$A:$AE,MATCH('2) Order Form'!$W52,ATS!$AD:$AD,0),4) -> MNGRY-ML | F52: =INDEX(ATS!$A:$AE,MATCH('2) Order Form'!$W52,ATS!$AD:$AD,0),5) -> Matte Nardo Gray | G52: =INDEX(ATS!$A:$AE,MATCH('2) Order Form'!$W52,ATS!$AD:$AD,0),6) -> ML | H52: 1 | I52: 0 | J52: =IFERROR(VLOOKUP(W52,ATS!$AD:$AF,2,FALSE),0) -> 0 | K52: 0 | L52: =IFERROR(VLOOKUP(W52,ATS!$AD:$AF,3,FALSE),0) -> 0 | M52: 0 | N52: 0% | O52: 0% | P52: =VLOOKUP($C52,Prices!$A$3:$R$1996,MATCH('2) Order Form'!P$8,Prices!$A$2:$R$2,0),FALSE) -> 75.00 | Q52: =VLOOKUP($C52,Prices!$A$3:$R$1996,MATCH('2) Order Form'!Q$8,Prices!$A$2:$R$2,0),FALSE) -> 149.95 | R52: 0 | S52: 0 | T52: 0 | U52: 0% | W52: 7048652661111 | Y52: 0 | Z52: 0 | AA52: 0 | AB52: 0 | AC52: 845103Matte Nardo Gray | AD52: 845103 | AE52: =VLOOKUP($C52,Classification!$A:$F,5,FALSE) -> 5.000 | AF52: =VLOOKUP($C52,Classification!$A:$F,6,FALSE) -> 1 | AG52: =INDEX(ATS!$A:$AE,MATCH('2) Order Form'!$W52,ATS!$AD:$AD,0),7) -> Stock
A53: 1 | B53: =VLOOKUP(A53,Classification!$H$2:$I$11,2,FALSE) -> Helmets & Helmet Acc. | C53: =INDEX(ATS!$A:$AE,MATCH('2) Order Form'!$W53,ATS!$AD:$AD,0),1) -> 845103 | D53: =INDEX(ATS!$A:$AE,MATCH('2) Order Form'!$W53,ATS!$AD:$AD,0),2) -> Trailblazer Helmet | E53: =INDEX(ATS!$A:$AE,MATCH('2) Order Form'!$W53,ATS!$AD:$AD,0),4) -> MNGRY-LXL | F53: =INDEX(ATS!$A:$AE,MATCH('2) Order Form'!$W53,ATS!$AD:$AD,0),5) -> Matte Nardo Gray | G53: =INDEX(ATS!$A:$AE,MATCH('2) Order Form'!$W53,ATS!$AD:$AD,0),6) -> LXL | H53: 1 | I53: 0 | J53: =IFERROR(VLOOKUP(W53,ATS!$AD:$AF,2,FALSE),0) -> 0 | K53: 0 | L53: =IFERROR(VLOOKUP(W53,ATS!$AD:$AF,3,FALSE),0) -> 0 | M53: 0 | N53: 0% | O53: 0% | P53: =VLOOKUP($C53,Prices!$A$3:$R$1996,MATCH('2) Order Form'!P$8,Prices!$A$2:$R$2,0),FALSE) -> 75.00 | Q53: =VLOOKUP($C53,Prices!$A$3:$R$1996,MATCH('2) Order Form'!Q$8,Prices!$A$2:$R$2,0),FALSE) -> 149.95 | R53: 0 | S53: 0 | T53: 0 | U53: 0% | W53: 7048652661104 | Y53: 0 | Z53: 0 | AA53: 0 | AB53: 0 | AC53: 845103Matte Nardo Gray | AD53: 845103 | AE53: =VLOOKUP($C53,Classification!$A:$F,5,FALSE) -> 5.000 | AF53: =VLOOKUP($C53,Classification!$A:$F,6,FALSE) -> 1 | AG53: =INDEX(ATS!$A:$AE,MATCH('2) Order Form'!$W53,ATS!$AD:$AD,0),7) -> Stock
A54: 1 | B54: =VLOOKUP(A54,Classification!$H$2:$I$11,2,FALSE) -> Helmets & Helmet Acc. | C54: =INDEX(ATS!$A:$AE,MATCH('2) Order Form'!$W54,ATS!$AD:$AD,0),1) -> 845103 | D54: =INDEX(ATS!$A:$AE,MATCH('2) Order Form'!$W54,ATS!$AD:$AD,0),2) -> Trailblazer Helmet | E54: =INDEX(ATS!$A:$AE,MATCH('2) Order Form'!$W54,ATS!$AD:$AD,0),4) -> MWHTE-SM | F54: =INDEX(ATS!$A:$AE,MATCH('2) Order Form'!$W54,ATS!$AD:$AD,0),5) -> Matte White | G54: =INDEX(ATS!$A:$AE,MATCH('2) Order Form'!$W54,ATS!$AD:$AD,0),6) -> SM | H54: 1 | I54: 0 | J54: =IFERROR(VLOOKUP(W54,ATS!$AD:$AF,2,FALSE),0) -> 0 | K54: 0 | L54: =IFERROR(VLOOKUP(W54,ATS!$AD:$AF,3,FALSE),0) -> 0 | M54: 0 | N54: 0% | O54: 0% | P54: =VLOOKUP($C54,Prices!$A$3:$R$1996,MATCH('2) Order Form'!P$8,Prices!$A$2:$R$2,0),FALSE) -> 75.00 | Q54: =VLOOKUP($C54,Prices!$A$3:$R$1996,MATCH('2) Order Form'!Q$8,Prices!$A$2:$R$2,0),FALSE) -> 149.95 | R54: 0 | S54: 0 | T54: 0 | U54: 0% | W54: 7048652540348 | Y54: 0 | Z54: 0 | AA54: 0 | AB54: 1 | AC54: 845103Matte White | AD54: 845103 | AE54: =VLOOKUP($C54,Classification!$A:$F,5,FALSE) -> 5.000 | AF54: =VLOOKUP($C54,Classification!$A:$F,6,FALSE) -> 1 | AG54: =INDEX(ATS!$A:$AE,MATCH('2) Order Form'!$W54,ATS!$AD:$AD,0),7) -> Active
A55: 1 | B55: =VLOOKUP(A55,Classification!$H$2:$I$11,2,FALSE) -> Helmets & Helmet Acc. | C55: =INDEX(ATS!$A:$AE,MATCH('2) Order Form'!$W55,ATS!$AD:$AD,0),1) -> 845103 | D55: =INDEX(ATS!$A:$AE,MATCH('2) Order Form'!$W55,ATS!$AD:$AD,0),2) -> Trailblazer Helmet | E55: =INDEX(ATS!$A:$AE,MATCH('2) Order Form'!$W55,ATS!$AD:$AD,0),4) -> MWHTE-ML | F55: =INDEX(ATS!$A:$AE,MATCH('2) Order Form'!$W55,ATS!$AD:$AD,0),5) -> Matte White | G55: =INDEX(ATS!$A:$AE,MATCH('2) Order Form'!$W55,ATS!$AD:$AD,0),6) -> ML | H55: 1 | I55: 0 | J55: =IFERROR(VLOOKUP(W55,ATS!$AD:$AF,2,FALSE),0) -> 0 | K55: 0 | L55: =IFERROR(VLOOKUP(W55,ATS!$AD:$AF,3,FALSE),0) -> 0 | M55: 0 | N55: 0% | O55: 0% | P55: =VLOOKUP($C55,Prices!$A$3:$R$1996,MATCH('2) Order Form'!P$8,Prices!$A$2:$R$2,0),FALSE) -> 75.00 | Q55: =VLOOKUP($C55,Prices!$A$3:$R$1996,MATCH('2) Order Form'!Q$8,Prices!$A$2:$R$2,0),FALSE) -> 149.95 | R55: 0 | S55: 0 | T55: 0 | U55: 0% | W55: 7048652540331 | Y55: 0 | Z55: 0 | AA55: 0 | AB55: 0 | AC55: 845103Matte White | AD55: 845103 | AE55: =VLOOKUP($C55,Classification!$A:$F,5,FALSE) -> 5.000 | AF55: =VLOOKUP($C55,Classification!$A:$F,6,FALSE) -> 1 | AG55: =INDEX(ATS!$A:$AE,MATCH('2) Order Form'!$W55,ATS!$AD:$AD,0),7) -> Active
A56: 1 | B56: =VLOOKUP(A56,Classification!$H$2:$I$11,2,FALSE) -> Helmets & Helmet Acc. | C56: =INDEX(ATS!$A:$AE,MATCH('2) Order Form'!$W56,ATS!$AD:$AD,0),1) -> 845103 | D56: =INDEX(ATS!$A:$AE,MATCH('2) Order Form'!$W56,ATS!$AD:$AD,0),2) -> Trailblazer Helmet | E56: =INDEX(ATS!$A:$AE,MATCH('2) Order Form'!$W56,ATS!$AD:$AD,0),4) -> MWHTE-LXL | F56: =INDEX(ATS!$A:$AE,MATCH('2) Order Form'!$W56,ATS!$AD:$AD,0),5) -> Matte White | G56: =INDEX(ATS!$A:$AE,MATCH('2) Order Form'!$W56,ATS!$AD:$AD,0),6) -> LXL | H56: 1 | I56: 0 | J56: =IFERROR(VLOOKUP(W56,ATS!$AD:$AF,2,FALSE),0) -> 3 | K56: 3 | L56: =IFERROR(VLOOKUP(W56,ATS!$AD:$AF,3,FALSE),0) -> 3 | M56: 3 | N56: 0% | O56: 0% | P56: =VLOOKUP($C56,Prices!$A$3:$R$1996,MATCH('2) Order Form'!P$8,Prices!$A$2:$R$2,0),FALSE) -> 75.00 | Q56: =VLOOKUP($C56,Prices!$A$3:$R$1996,MATCH('2) Order Form'!Q$8,Prices!$A$2:$R$2,0),FALSE) -> 149.95 | R56: 0 | S56: 0 | T56: 0 | U56: 0% | W56: 7048652540324 | Y56: 0 | Z56: 0 | AA56: 0 | AB56: 0 | AC56: 845103Matte White | AD56: 845103 | AE56: =VLOOKUP($C56,Classification!$A:$F,5,FALSE) -> 5.000 | AF56: =VLOOKUP($C56,Classification!$A:$F,6,FALSE) -> 1 | AG56: =INDEX(ATS!$A:$AE,MATCH('2) Order Form'!$W56,ATS!$AD:$AD,0),7) -> Active
A57: 1 | B57: =VLOOKUP(A57,Classification!$H$2:$I$11,2,FALSE) -> Helmets & Helmet Acc. | C57: =INDEX(ATS!$A:$AE,MATCH('2) Order Form'!$W57,ATS!$AD:$AD,0),1) -> 845103 | D57: =INDEX(ATS!$A:$AE,MATCH('2) Order Form'!$W57,ATS!$AD:$AD,0),2) -> Trailblazer Helmet | E57: =INDEX(ATS!$A:$AE,MATCH('2) Order Form'!$W57,ATS!$AD:$AD,0),4) -> SGRME-SM | F57: =INDEX(ATS!$A:$AE,MATCH('2) Order Form'!$W57,ATS!$AD:$AD,0),5) -> Slate Gray Metallic | G57: =INDEX(ATS!$A:$AE,MATCH('2) Order Form'!$W57,ATS!$AD:$AD,0),6) -> SM | H57: 1 | I57: 0 | J57: =IFERROR(VLOOKUP(W57,ATS!$AD:$AF,2,FALSE),0) -> 4 | K57: 4 | L57: =IFERROR(VLOOKUP(W57,ATS!$AD:$AF,3,FALSE),0) -> 4 | M57: 4 | N57: 0% | O57: 0% | P57: =VLOOKUP($C57,Prices!$A$3:$R$1996,MATCH('2) Order Form'!P$8,Prices!$A$2:$R$2,0),FALSE) -> 75.00 | Q57: =VLOOKUP($C57,Prices!$A$3:$R$1996,MATCH('2) Order Form'!Q$8,Prices!$A$2:$R$2,0),FALSE) -> 149.95 | R57: 0 | S57: 0 | T57: 0 | U57: 0% | W57: 7048652661159 | Y57: 0 | Z57: 0 | AA57: 0 | AB57: 1 | AC57: 845103Slate Gray Metallic | AD57: 845103 | AE57: =VLOOKUP($C57,Classification!$A:$F,5,FALSE) -> 5.000 | AF57: =VLOOKUP($C57,Classification!$A:$F,6,FALSE) -> 1 | AG57: =INDEX(ATS!$A:$AE,MATCH('2) Order Form'!$W57,ATS!$AD:$AD,0),7) -> Stock
A58: 1 | B58: =VLOOKUP(A58,Classification!$H$2:$I$11,2,FALSE) -> Helmets & Helmet Acc. | C58: =INDEX(ATS!$A:$AE,MATCH('2) Order Form'!$W58,ATS!$AD:$AD,0),1) -> 845103 | D58: =INDEX(ATS!$A:$AE,MATCH('2) Order Form'!$W58,ATS!$AD:$AD,0),2) -> Trailblazer Helmet | E58: =INDEX(ATS!$A:$AE,MATCH('2) Order Form'!$W58,ATS!$AD:$AD,0),4) -> SGRME-ML | F58: =INDEX(ATS!$A:$AE,MATCH('2) Order Form'!$W58,ATS!$AD:$AD,0),5) -> Slate Gray Metallic | G58: =INDEX(ATS!$A:$AE,MATCH('2) Order Form'!$W58,ATS!$AD:$AD,0),6) -> ML | H58: 1 | I58: 0 | J58: =IFERROR(VLOOKUP(W58,ATS!$AD:$AF,2,FALSE),0) -> 0 | K58: 0 | L58: =IFERROR(VLOOKUP(W58,ATS!$AD:$AF,3,FALSE),0) -> 0 | M58: 0 | N58: 0% | O58: 0% | P58: =VLOOKUP($C58,Prices!$A$3:$R$1996,MATCH('2) Order Form'!P$8,Prices!$A$2:$R$2,0),FALSE) -> 75.00 | Q58: =VLOOKUP($C58,Prices!$A$3:$R$1996,MATCH('2) Order Form'!Q$8,Prices!$A$2:$R$2,0),FALSE) -> 149.95 | R58: 0 | S58: 0 | T58: 0 | U58: 0% | W58: 7048652661142 | Y58: 0 | Z58: 0 | AA58: 0 | AB58: 0 | AC58: 845103Slate Gray Metallic | AD58: 845103 | AE58: =VLOOKUP($C58,Classification!$A:$F,5,FALSE) -> 5.000 | AF58: =VLOOKUP($C58,Classification!$A:$F,6,FALSE) -> 1 | AG58: =INDEX(ATS!$A:$AE,MATCH('2) Order Form'!$W58,ATS!$AD:$AD,0),7) -> Stock
A59: 1 | B59: =VLOOKUP(A59,Classification!$H$2:$I$11,2,FALSE) -> Helmets & Helmet Acc. | C59: =INDEX(ATS!$A:$AE,MATCH('2) Order Form'!$W59,ATS!$AD:$AD,0),1) -> 845103 | D59: =INDEX(ATS!$A:$AE,MATCH('2) Order Form'!$W59,ATS!$AD:$AD,0),2) -> Trailblazer Helmet | E59: =INDEX(ATS!$A:$AE,MATCH('2) Order Form'!$W59,ATS!$AD:$AD,0),4) -> SGRME-LXL | F59: =INDEX(ATS!$A:$AE,MATCH('2) Order Form'!$W59,ATS!$AD:$AD,0),5) -> Slate Gray Metallic | G59: =INDEX(ATS!$A:$AE,MATCH('2) Order Form'!$W59,ATS!$AD:$AD,0),6) -> LXL | H59: 1 | I59: 0 | J59: =IFERROR(VLOOKUP(W59,ATS!$AD:$AF,2,FALSE),0) -> 0 | K59: 0 | L59: =IFERROR(VLOOKUP(W59,ATS!$AD:$AF,3,FALSE),0) -> 0 | M59: 0 | N59: 0% | O59: 0% | P59: =VLOOKUP($C59,Prices!$A$3:$R$1996,MATCH('2) Order Form'!P$8,Prices!$A$2:$R$2,0),FALSE) -> 75.00 | Q59: =VLOOKUP($C59,Prices!$A$3:$R$1996,MATCH('2) Order Form'!Q$8,Prices!$A$2:$R$2,0),FALSE) -> 149.95 | R59: 0 | S59: 0 | T59: 0 | U59: 0% | W59: 7048652661135 | Y59: 0 | Z59: 0 | AA59: 0 | AB59: 0 | AC59: 845103Slate Gray Metallic | AD59: 845103 | AE59: =VLOOKUP($C59,Classification!$A:$F,5,FALSE) -> 5.000 | AF59: =VLOOKUP($C59,Classification!$A:$F,6,FALSE) -> 1 | AG59: =INDEX(ATS!$A:$AE,MATCH('2) Order Form'!$W59,ATS!$AD:$AD,0),7) -> Stock
A60: 1 | B60: =VLOOKUP(A60,Classification!$H$2:$I$11,2,FALSE) -> Helmets & Helmet Acc. | C60: =INDEX(ATS!$A:$AE,MATCH('2) Order Form'!$W60,ATS!$AD:$AD,0),1) -> 845070 | D60: =INDEX(ATS!$A:$AE,MATCH('2) Order Form'!$W60,ATS!$AD:$AD,0),2) -> Dissenter Mips Helmet | E60: =INDEX(ATS!$A:$AE,MATCH('2) Order Form'!$W60,ATS!$AD:$AD,0),4) -> MEAME-SM | F60: =INDEX(ATS!$A:$AE,MATCH('2) Order Form'!$W60,ATS!$AD:$AD,0),5) -> Matte Aquamarine | G60: =INDEX(ATS!$A:$AE,MATCH('2) Order Form'!$W60,ATS!$AD:$AD,0),6) -> SM | H60: 1 | I60: 0 | J60: =IFERROR(VLOOKUP(W60,ATS!$AD:$AF,2,FALSE),0) -> 0 | K60: 0 | L60: =IFERROR(VLOOKUP(W60,ATS!$AD:$AF,3,FALSE),0) -> 0 | M60: 0 | N60: 0% | O60: 0% | P60: =VLOOKUP($C60,Prices!$A$3:$R$1996,MATCH('2) Order Form'!P$8,Prices!$A$2:$R$2,0),FALSE) -> 75.00 | Q60: =VLOOKUP($C60,Prices!$A$3:$R$1996,MATCH('2) Order Form'!Q$8,Prices!$A$2:$R$2,0),FALSE) -> 149.95 | R60: 0 | S60: 0 | T60: 0 | U60: 0% | W60: 7048652660350 | Y60: 0 | Z60: 0 | AA60: 1 | AB60: 1 | AC60: 845070Matte Aquamarine | AD60: 845070 | AE60: =VLOOKUP($C60,Classification!$A:$F,5,FALSE) -> 6.000 | AF60: =VLOOKUP($C60,Classification!$A:$F,6,FALSE) -> 1 | AG60: =INDEX(ATS!$A:$AE,MATCH('2) Order Form'!$W60,ATS!$AD:$AD,0),7) -> Stock
A61: 1 | B61: =VLOOKUP(A61,Classification!$H$2:$I$11,2,FALSE) -> Helmets & Helmet Acc. | C61: =INDEX(ATS!$A:$AE,MATCH('2) Order Form'!$W61,ATS!$AD:$AD,0),1) -> 845070 | D61: =INDEX(ATS!$A:$AE,MATCH('2) Order Form'!$W61,ATS!$AD:$AD,0),2) -> Dissenter Mips Helmet | E61: =INDEX(ATS!$A:$AE,MATCH('2) Order Form'!$W61,ATS!$AD:$AD,0),4) -> MEAME-ML | F61: =INDEX(ATS!$A:$AE,MATCH('2) Order Form'!$W61,ATS!$AD:$AD,0),5) -> Matte Aquamarine | G61: =INDEX(ATS!$A:$AE,MATCH('2) Order Form'!$W61,ATS!$AD:$AD,0),6) -> ML | H61: 1 | I61: 0 | J61: =IFERROR(VLOOKUP(W61,ATS!$AD:$AF,2,FALSE),0) -> 147 | K61: 50+ | L61: =IFERROR(VLOOKUP(W61,ATS!$AD:$AF,3,FALSE),0) -> 147 | M61: 50+ | N61: 0% | O61: 0% | P61: =VLOOKUP($C61,Prices!$A$3:$R$1996,MATCH('2) Order Form'!P$8,Prices!$A$2:$R$2,0),FALSE) -> 75.00 | Q61: =VLOOKUP($C61,Prices!$A$3:$R$1996,MATCH('2) Order Form'!Q$8,Prices!$A$2:$R$2,0),FALSE) -> 149.95 | R61: 0 | S61: 0 | T61: 0 | U61: 0% | W61: 7048652660343 | Y61: 0 | Z61: 0 | AA61: 0 | AB61: 0 | AC61: 845070Matte Aquamarine | AD61: 845070 | AE61: =VLOOKUP($C61,Classification!$A:$F,5,FALSE) -> 6.000 | AF61: =VLOOKUP($C61,Classification!$A:$F,6,FALSE) -> 1 | AG61: =INDEX(ATS!$A:$AE,MATCH('2) Order Form'!$W61,ATS!$AD:$AD,0),7) -> Stock
A62: 1 | B62: =VLOOKUP(A62,Classification!$H$2:$I$11,2,FALSE) -> Helmets & Helmet Acc. | C62: =INDEX(ATS!$A:$AE,MATCH('2) Order Form'!$W62,ATS!$AD:$AD,0),1) -> 845070 | D62: =INDEX(ATS!$A:$AE,MATCH('2) Order Form'!$W62,ATS!$AD:$AD,0),2) -> Dissenter Mips Helmet | E62: =INDEX(ATS!$A:$AE,MATCH('2) Order Form'!$W62,ATS!$AD:$AD,0),4) -> MEAME-LXL | F62: =INDEX(ATS!$A:$AE,MATCH('2) Order Form'!$W62,ATS!$AD:$AD,0),5) -> Matte Aquamarine | G62: =INDEX(ATS!$A:$AE,MATCH('2) Order Form'!$W62,ATS!$AD:$AD,0),6) -> LXL | H62: 1 | I62: 0 | J62: =IFERROR(VLOOKUP(W62,ATS!$AD:$AF,2,FALSE),0) -> 82 | K62: 50+ | L62: =IFERROR(VLOOKUP(W62,ATS!$AD:$AF,3,FALSE),0) -> 82 | M62: 50+ | N62: 0% | O62: 0% | P62: =VLOOKUP($C62,Prices!$A$3:$R$1996,MATCH('2) Order Form'!P$8,Prices!$A$2:$R$2,0),FALSE) -> 75.00 | Q62: =VLOOKUP($C62,Prices!$A$3:$R$1996,MATCH('2) Order Form'!Q$8,Prices!$A$2:$R$2,0),FALSE) -> 149.95 | R62: 0 | S62: 0 | T62: 0 | U62: 0% | W62: 7048652660336 | Y62: 0 | Z62: 0 | AA62: 0 | AB62: 0 | AC62: 845070Matte Aquamarine | AD62: 845070 | AE62: =VLOOKUP($C62,Classification!$A:$F,5,FALSE) -> 6.000 | AF62: =VLOOKUP($C62,Classification!$A:$F,6,FALSE) -> 1 | AG62: =INDEX(ATS!$A:$AE,MATCH('2) Order Form'!$W62,ATS!$AD:$AD,0),7) -> Stock
A63: 1 | B63: =VLOOKUP(A63,Classification!$H$2:$I$11,2,FALSE) -> Helmets & Helmet Acc. | C63: =INDEX(ATS!$A:$AE,MATCH('2) Order Form'!$W63,ATS!$AD:$AD,0),1) -> 845070 | D63: =INDEX(ATS!$A:$AE,MATCH('2) Order Form'!$W63,ATS!$AD:$AD,0),2) -> Dissenter Mips Helmet | E63: =INDEX(ATS!$A:$AE,MATCH('2) Order Form'!$W63,ATS!$AD:$AD,0),4) -> MBLCK-SM | F63: =INDEX(ATS!$A:$AE,MATCH('2) Order Form'!$W63,ATS!$AD:$AD,0),5) -> Matte Black | G63: =INDEX(ATS!$A:$AE,MATCH('2) Order Form'!$W63,ATS!$AD:$AD,0),6) -> SM | H63: 1 | I63: 0 | J63: =IFERROR(VLOOKUP(W63,ATS!$AD:$AF,2,FALSE),0) -> 0 | K63: 0 | L63: =IFERROR(VLOOKUP(W63,ATS!$AD:$AF,3,FALSE),0) -> 0 | M63: 0 | N63: 0% | O63: 0% | P63: =VLOOKUP($C63,Prices!$A$3:$R$1996,MATCH('2) Order Form'!P$8,Prices!$A$2:$R$2,0),FALSE) -> 75.00 | Q63: =VLOOKUP($C63,Prices!$A$3:$R$1996,MATCH('2) Order Form'!Q$8,Prices!$A$2:$R$2,0),FALSE) -> 149.95 | R63: 0 | S63: 0 | T63: 0 | U63: 0% | W63: 7048652272966 | Y63: 0 | Z63: 0 | AA63: 0 | AB63: 1 | AC63: 845070Matte Black | AD63: 845070 | AE63: =VLOOKUP($C63,Classification!$A:$F,5,FALSE) -> 6.000 | AF63: =VLOOKUP($C63,Classification!$A:$F,6,FALSE) -> 1 | AG63: =INDEX(ATS!$A:$AE,MATCH('2) Order Form'!$W63,ATS!$AD:$AD,0),7) -> Active
A64: 1 | B64: =VLOOKUP(A64,Classification!$H$2:$I$11,2,FALSE) -> Helmets & Helmet Acc. | C64: =INDEX(ATS!$A:$AE,MATCH('2) Order Form'!$W64,ATS!$AD:$AD,0),1) -> 845070 | D64: =INDEX(ATS!$A:$AE,MATCH('2) Order Form'!$W64,ATS!$AD:$AD,0),2) -> Dissenter Mips Helmet | E64: =INDEX(ATS!$A:$AE,MATCH('2) Order Form'!$W64,ATS!$AD:$AD,0),4) -> MBLCK-ML | F64: =INDEX(ATS!$A:$AE,MATCH('2) Order Form'!$W64,ATS!$AD:$AD,0),5) -> Matte Black | G64: =INDEX(ATS!$A:$AE,MATCH('2) Order Form'!$W64,ATS!$AD:$AD,0),6) -> ML | H64: 1 | I64: 0 | J64: =IFERROR(VLOOKUP(W64,ATS!$AD:$AF,2,FALSE),0) -> 0 | K64: 0 | L64: =IFERROR(VLOOKUP(W64,ATS!$AD:$AF,3,FALSE),0) -> 0 | M64: 0 | N64: 0% | O64: 0% | P64: =VLOOKUP($C64,Prices!$A$3:$R$1996,MATCH('2) Order Form'!P$8,Prices!$A$2:$R$2,0),FALSE) -> 75.00 | Q64: =VLOOKUP($C64,Prices!$A$3:$R$1996,MATCH('2) Order Form'!Q$8,Prices!$A$2:$R$2,0),FALSE) -> 149.95 | R64: 0 | S64: 0 | T64: 0 | U64: 0% | W64: 7048652272959 | Y64: 0 | Z64: 0 | AA64: 0 | AB64: 0 | AC64: 845070Matte Black | AD64: 845070 | AE64: =VLOOKUP($C64,Classification!$A:$F,5,FALSE) -> 6.000 | AF64: =VLOOKUP($C64,Classification!$A:$F,6,FALSE) -> 1 | AG64: =INDEX(ATS!$A:$AE,MATCH('2) Order Form'!$W64,ATS!$AD:$AD,0),7) -> Active
A65: 1 | B65: =VLOOKUP(A65,Classification!$H$2:$I$11,2,FALSE) -> Helmets & Helmet Acc. | C65: =INDEX(ATS!$A:$AE,MATCH('2) Order Form'!$W65,ATS!$AD:$AD,0),1) -> 845070 | D65: =INDEX(ATS!$A:$AE,MATCH('2) Order Form'!$W65,ATS!$AD:$AD,0),2) -> Dissenter Mips Helmet | E65: =INDEX(ATS!$A:$AE,MATCH('2) Order Form'!$W65,ATS!$AD:$AD,0),4) -> MBLCK-LXL | F65: =INDEX(ATS!$A:$AE,MATCH('2) Order Form'!$W65,ATS!$AD:$AD,0),5) -> Matte Black | G65: =INDEX(ATS!$A:$AE,MATCH('2) Order Form'!$W65,ATS!$AD:$AD,0),6) -> LXL | H65: 1 | I65: 0 | J65: =IFERROR(VLOOKUP(W65,ATS!$AD:$AF,2,FALSE),0) -> 0 | K65: 0 | L65: =IFERROR(VLOOKUP(W65,ATS!$AD:$AF,3,FALSE),0) -> 0 | M65: 0 | N65: 0% | O65: 0% | P65: =VLOOKUP($C65,Prices!$A$3:$R$1996,MATCH('2) Order Form'!P$8,Prices!$A$2:$R$2,0),FALSE) -> 75.00 | Q65: =VLOOKUP($C65,Prices!$A$3:$R$1996,MATCH('2) Order Form'!Q$8,Prices!$A$2:$R$2,0),FALSE) -> 149.95 | R65: 0 | S65: 0 | T65: 0 | U65: 0% | W65: 7048652272942 | Y65: 0 | Z65: 0 | AA65: 0 | AB65: 0 | AC65: 845070Matte Black | AD65: 845070 | AE65: =VLOOKUP($C65,Classification!$A:$F,5,FALSE) -> 6.000 | AF65: =VLOOKUP($C65,Classification!$A:$F,6,FALSE) -> 1 | AG65: =INDEX(ATS!$A:$AE,MATCH('2) Order Form'!$W65,ATS!$AD:$AD,0),7) -> Active
A66: 1 | B66: =VLOOKUP(A66,Classification!$H$2:$I$11,2,FALSE) -> Helmets & Helmet Acc. | C66: =INDEX(ATS!$A:$AE,MATCH('2) Order Form'!$W66,ATS!$AD:$AD,0),1) -> 845070 | D66: =INDEX(ATS!$A:$AE,MATCH('2) Order Form'!$W66,ATS!$AD:$AD,0),2) -> Dissenter Mips Helmet | E66: =INDEX(ATS!$A:$AE,MATCH('2) Order Form'!$W66,ATS!$AD:$AD,0),4) -> MWHTE-SM | F66: =INDEX(ATS!$A:$AE,MATCH('2) Order Form'!$W66,ATS!$AD:$AD,0),5) -> Matte White | G66: =INDEX(ATS!$A:$AE,MATCH('2) Order Form'!$W66,ATS!$AD:$AD,0),6) -> SM | H66: 1 | I66: 0 | J66: =IFERROR(VLOOKUP(W66,ATS!$AD:$AF,2,FALSE),0) -> 0 | K66: 0 | L66: =IFERROR(VLOOKUP(W66,ATS!$AD:$AF,3,FALSE),0) -> 0 | M66: 0 | N66: 0% | O66: 0% | P66: =VLOOKUP($C66,Prices!$A$3:$R$1996,MATCH('2) Order Form'!P$8,Prices!$A$2:$R$2,0),FALSE) -> 75.00 | Q66: =VLOOKUP($C66,Prices!$A$3:$R$1996,MATCH('2) Order Form'!Q$8,Prices!$A$2:$R$2,0),FALSE) -> 149.95 | R66: 0 | S66: 0 | T66: 0 | U66: 0% | W66: 7048652273086 | Y66: 0 | Z66: 0 | AA66: 0 | AB66: 1 | AC66: 845070Matte White | AD66: 845070 | AE66: =VLOOKUP($C66,Classification!$A:$F,5,FALSE) -> 6.000 | AF66: =VLOOKUP($C66,Classification!$A:$F,6,FALSE) -> 1 | AG66: =INDEX(ATS!$A:$AE,MATCH('2) Order Form'!$W66,ATS!$AD:$AD,0),7) -> Active
A67: 1 | B67: =VLOOKUP(A67,Classification!$H$2:$I$11,2,FALSE) -> Helmets & Helmet Acc. | C67: =INDEX(ATS!$A:$AE,MATCH('2) Order Form'!$W67,ATS!$AD:$AD,0),1) -> 845070 | D67: =INDEX(ATS!$A:$AE,MATCH('2) Order Form'!$W67,ATS!$AD:$AD,0),2) -> Dissenter Mips Helmet | E67: =INDEX(ATS!$A:$AE,MATCH('2) Order Form'!$W67,ATS!$AD:$AD,0),4) -> MWHTE-ML | F67: =INDEX(ATS!$A:$AE,MATCH('2) Order Form'!$W67,ATS!$AD:$AD,0),5) -> Matte White | G67: =INDEX(ATS!$A:$AE,MATCH('2) Order Form'!$W67,ATS!$AD:$AD,0),6) -> ML | H67: 1 | I67: 0 | J67: =IFERROR(VLOOKUP(W67,ATS!$AD:$AF,2,FALSE),0) -> 121 | K67: 50+ | L67: =IFERROR(VLOOKUP(W67,ATS!$AD:$AF,3,FALSE),0) -> 121 | M67: 50+ | N67: 0% | O67: 0% | P67: =VLOOKUP($C67,Prices!$A$3:$R$1996,MATCH('2) Order Form'!P$8,Prices!$A$2:$R$2,0),FALSE) -> 75.00 | Q67: =VLOOKUP($C67,Prices!$A$3:$R$1996,MATCH('2) Order Form'!Q$8,Prices!$A$2:$R$2,0),FALSE) -> 149.95 | R67: 0 | S67: 0 | T67: 0 | U67: 0% | W67: 7048652273079 | Y67: 0 | Z67: 0 | AA67: 0 | AB67: 0 | AC67: 845070Matte White | AD67: 845070 | AE67: =VLOOKUP($C67,Classification!$A:$F,5,FALSE) -> 6.000 | AF67: =VLOOKUP($C67,Classification!$A:$F,6,FALSE) -> 1 | AG67: =INDEX(ATS!$A:$AE,MATCH('2) Order Form'!$W67,ATS!$AD:$AD,0),7) -> Active
A68: 1 | B68: =VLOOKUP(A68,Classification!$H$2:$I$11,2,FALSE) -> Helmets & Helmet Acc. | C68: =INDEX(ATS!$A:$AE,MATCH('2) Order Form'!$W68,ATS!$AD:$AD,0),1) -> 845070 | D68: =INDEX(ATS!$A:$AE,MATCH('2) Order Form'!$W68,ATS!$AD:$AD,0),2) -> Dissenter Mips Helmet | E68: =INDEX(ATS!$A:$AE,MATCH('2) Order Form'!$W68,ATS!$AD:$AD,0),4) -> MWHTE-LXL | F68: =INDEX(ATS!$A:$AE,MATCH('2) Order Form'!$W68,ATS!$AD:$AD,0),5) -> Matte White | G68: =INDEX(ATS!$A:$AE,MATCH('2) Order Form'!$W68,ATS!$AD:$AD,0),6) -> LXL | H68: 1 | I68: 0 | J68: =IFERROR(VLOOKUP(W68,ATS!$AD:$AF,2,FALSE),0) -> 62 | K68: 50+ | L68: =IFERROR(VLOOKUP(W68,ATS!$AD:$AF,3,FALSE),0) -> 62 | M68: =IF(L68=99999,"OPEN",IF(L68>50,"50+",IF(L68<=0,"0",L68))) -> 50+ | N68: 0% | O68: =IF(N68<>0,N68,$P$5) -> 0% | P68: =VLOOKUP($C68,Prices!$A$3:$R$1996,MATCH('2) Order Form'!P$8,Prices!$A$2:$R$2,0),FALSE) -> 75.00 | Q68: =VLOOKUP($C68,Prices!$A$3:$R$1996,MATCH('2) Order Form'!Q$8,Prices!$A$2:$R$2,0),FALSE) -> 149.95 | R68: =I68*P68 -> 0 | S68: =R68*O68 -> 0 | T68: =R68-S68 -> 0 | U68: 0% | W68: 7048652273062 | Y68: 0 | Z68: =IF(A68=OFFSET(A68,-1,0),0,1) -> 0 | AA68: =IF(C68=OFFSET(C68,-1,0),0,1) -> 0 | AB68: =IF(F68=OFFSET(F68,-1,0),0,1) -> 0 | AC68: =CONCATENATE(C68,F68) -> 845070Matte White | AD68: =IFERROR(IF(B68="EYEWEAR",CONCATENATE(C68,"-",G68),C68),C68) -> 845070 | AE68: =VLOOKUP($C68,Classification!$A:$F,5,FALSE) -> 6.000 | AF68: =VLOOKUP($C68,Classification!$A:$F,6,FALSE) -> 1 | AG68: =INDEX(ATS!$A:$AE,MATCH('2) Order Form'!$W68,ATS!$AD:$AD,0),7) -> Active
A69: 1 | B69: =VLOOKUP(A69,Classification!$H$2:$I$11,2,FALSE) -> Helmets & Helmet Acc. | C69: =INDEX(ATS!$A:$AE,MATCH('2) Order Form'!$W69,ATS!$AD:$AD,0),1) -> 845070 | D69: =INDEX(ATS!$A:$AE,MATCH('2) Order Form'!$W69,ATS!$AD:$AD,0),2) -> Dissenter Mips Helmet | E69: =INDEX(ATS!$A:$AE,MATCH('2) Order Form'!$W69,ATS!$AD:$AD,0),4) -> SGRME-SM | F69: =INDEX(ATS!$A:$AE,MATCH('2) Order Form'!$W69,ATS!$AD:$AD,0),5) -> Slate Gray Metallic | G69: =INDEX(ATS!$A:$AE,MATCH('2) Order Form'!$W69,ATS!$AD:$AD,0),6) -> SM | H69: 1 | I69: 0 | J69: =IFERROR(VLOOKUP(W69,ATS!$AD:$AF,2,FALSE),0) -> 5 | K69: 5 | L69: =IFERROR(VLOOKUP(W69,ATS!$AD:$AF,3,FALSE),0) -> 5 | M69: 5 | N69: 0% | O69: 0% | P69: =VLOOKUP($C69,Prices!$A$3:$R$1996,MATCH('2) Order Form'!P$8,Prices!$A$2:$R$2,0),FALSE) -> 75.00 | Q69: =VLOOKUP($C69,Prices!$A$3:$R$1996,MATCH('2) Order Form'!Q$8,Prices!$A$2:$R$2,0),FALSE) -> 149.95 | R69: 0 | S69: 0 | T69: 0 | U69: 0% | W69: 7048652660381 | Y69: =I69*Q69 -> 0 | Z69: 0 | AA69: 0 | AB69: 1 | AC69: 845070Slate Gray Metallic | AD69: 845070 | AE69: =VLOOKUP($C69,Classification!$A:$F,5,FALSE) -> 6.000 | AF69: =VLOOKUP($C69,Classification!$A:$F,6,FALSE) -> 1 | AG69: =INDEX(ATS!$A:$AE,MATCH('2) Order Form'!$W69,ATS!$AD:$AD,0),7) -> Stock
A70: 1 | B70: =VLOOKUP(A70,Classification!$H$2:$I$11,2,FALSE) -> Helmets & Helmet Acc. | C70: =INDEX(ATS!$A:$AE,MATCH('2) Order Form'!$W70,ATS!$AD:$AD,0),1) -> 845070 | D70: =INDEX(ATS!$A:$AE,MATCH('2) Order Form'!$W70,ATS!$AD:$AD,0),2) -> Dissenter Mips Helmet | E70: =INDEX(ATS!$A:$AE,MATCH('2) Order Form'!$W70,ATS!$AD:$AD,0),4) -> SGRME-ML | F70: =INDEX(ATS!$A:$AE,MATCH('2) Order Form'!$W70,ATS!$AD:$AD,0),5) -> Slate Gray Metallic | G70: =INDEX(ATS!$A:$AE,MATCH('2) Order Form'!$W70,ATS!$AD:$AD,0),6) -> ML | H70: 1 | I70: 0 | J70: =IFERROR(VLOOKUP(W70,ATS!$AD:$AF,2,FALSE),0) -> 0 | K70: 0 | L70: =IFERROR(VLOOKUP(W70,ATS!$AD:$AF,3,FALSE),0) -> 0 | M70: 0 | N70: 0% | O70: 0% | P70: =VLOOKUP($C70,Prices!$A$3:$R$1996,MATCH('2) Order Form'!P$8,Prices!$A$2:$R$2,0),FALSE) -> 75.00 | Q70: =VLOOKUP($C70,Prices!$A$3:$R$1996,MATCH('2) Order Form'!Q$8,Prices!$A$2:$R$2,0),FALSE) -> 149.95 | R70: 0 | S70: 0 | T70: 0 | U70: 0% | W70: 7048652660374 | Y70: 0 | Z70: 0 | AA70: 0 | AB70: 0 | AC70: 845070Slate Gray Metallic | AD70: 845070 | AE70: =VLOOKUP($C70,Classification!$A:$F,5,FALSE) -> 6.000 | AF70: =VLOOKUP($C70,Classification!$A:$F,6,FALSE) -> 1 | AG70: =INDEX(ATS!$A:$AE,MATCH('2) Order Form'!$W70,ATS!$AD:$AD,0),7) -> Stock
A71: 1 | B71: =VLOOKUP(A71,Classification!$H$2:$I$11,2,FALSE) -> Helmets & Helmet Acc. | C71: =INDEX(ATS!$A:$AE,MATCH('2) Order Form'!$W71,ATS!$AD:$AD,0),1) -> 845070 | D71: =INDEX(ATS!$A:$AE,MATCH('2) Order Form'!$W71,ATS!$AD:$AD,0),2) -> Dissenter Mips Helmet | E71: =INDEX(ATS!$A:$AE,MATCH('2) Order Form'!$W71,ATS!$AD:$AD,0),4) -> SGRME-LXL | F71: =INDEX(ATS!$A:$AE,MATCH('2) Order Form'!$W71,ATS!$AD:$AD,0),5) -> Slate Gray Metallic | G71: =INDEX(ATS!$A:$AE,MATCH('2) Order Form'!$W71,ATS!$AD:$AD,0),6) -> LXL | H71: 1 | I71: 0 | J71: =IFERROR(VLOOKUP(W71,ATS!$AD:$AF,2,FALSE),0) -> 0 | K71: 0 | L71: =IFERROR(VLOOKUP(W71,ATS!$AD:$AF,3,FALSE),0) -> 0 | M71: 0 | N71: 0% | O71: 0% | P71: =VLOOKUP($C71,Prices!$A$3:$R$1996,MATCH('2) Order Form'!P$8,Prices!$A$2:$R$2,0),FALSE) -> 75.00 | Q71: =VLOOKUP($C71,Prices!$A$3:$R$1996,MATCH('2) Order Form'!Q$8,Prices!$A$2:$R$2,0),FALSE) -> 149.95 | R71: 0 | S71: 0 | T71: 0 | U71: 0% | W71: 7048652660367 | Y71: 0 | Z71: 0 | AA71: 0 | AB71: 0 | AC71: 845070Slate Gray Metallic | AD71: 845070 | AE71: =VLOOKUP($C71,Classification!$A:$F,5,FALSE) -> 6.000 | AF71: =VLOOKUP($C71,Classification!$A:$F,6,FALSE) -> 1 | AG71: =INDEX(ATS!$A:$AE,MATCH('2) Order Form'!$W71,ATS!$AD:$AD,0),7) -> Stock
A72: 1 | B72: =VLOOKUP(A72,Classification!$H$2:$I$11,2,FALSE) -> Helmets & Helmet Acc. | C72: =INDEX(ATS!$A:$AE,MATCH('2) Order Form'!$W72,ATS!$AD:$AD,0),1) -> 845069 | D72: =INDEX(ATS!$A:$AE,MATCH('2) Order Form'!$W72,ATS!$AD:$AD,0),2) -> Dissenter Helmet | E72: =INDEX(ATS!$A:$AE,MATCH('2) Order Form'!$W72,ATS!$AD:$AD,0),4) -> MEAME-SM | F72: =INDEX(ATS!$A:$AE,MATCH('2) Order Form'!$W72,ATS!$AD:$AD,0),5) -> Matte Aquamarine | G72: =INDEX(ATS!$A:$AE,MATCH('2) Order Form'!$W72,ATS!$AD:$AD,0),6) -> SM | H72: 1 | I72: 0 | J72: =IFERROR(VLOOKUP(W72,ATS!$AD:$AF,2,FALSE),0) -> 0 | K72: 0 | L72: =IFERROR(VLOOKUP(W72,ATS!$AD:$AF,3,FALSE),0) -> 0 | M72: 0 | N72: 0% | O72: 0% | P72: =VLOOKUP($C72,Prices!$A$3:$R$1996,MATCH('2) Order Form'!P$8,Prices!$A$2:$R$2,0),FALSE) -> 60.00 | Q72: =VLOOKUP($C72,Prices!$A$3:$R$1996,MATCH('2) Order Form'!Q$8,Prices!$A$2:$R$2,0),FALSE) -> 119.95 | R72: 0 | S72: 0 | T72: 0 | U72: 0% | W72: 7048652660329 | Y72: 0 | Z72: 0 | AA72: 1 | AB72: 1 | AC72: 845069Matte Aquamarine | AD72: 845069 | AE72: =VLOOKUP($C72,Classification!$A:$F,5,FALSE) -> 7.000 | AF72: =VLOOKUP($C72,Classification!$A:$F,6,FALSE) -> 1 | AG72: =INDEX(ATS!$A:$AE,MATCH('2) Order Form'!$W72,ATS!$AD:$AD,0),7) -> Stock
A73: 1 | B73: =VLOOKUP(A73,Classification!$H$2:$I$11,2,FALSE) -> Helmets & Helmet Acc. | C73: =INDEX(ATS!$A:$AE,MATCH('2) Order Form'!$W73,ATS!$AD:$AD,0),1) -> 845069 | D73: =INDEX(ATS!$A:$AE,MATCH('2) Order Form'!$W73,ATS!$AD:$AD,0),2) -> Dissenter Helmet | E73: =INDEX(ATS!$A:$AE,MATCH('2) Order Form'!$W73,ATS!$AD:$AD,0),4) -> MEAME-ML | F73: =INDEX(ATS!$A:$AE,MATCH('2) Order Form'!$W73,ATS!$AD:$AD,0),5) -> Matte Aquamarine | G73: =INDEX(ATS!$A:$AE,MATCH('2) Order Form'!$W73,ATS!$AD:$AD,0),6) -> ML | H73: 1 | I73: 0 | J73: =IFERROR(VLOOKUP(W73,ATS!$AD:$AF,2,FALSE),0) -> 0 | K73: =IF(J73=99999,"OPEN",IF(J73>50,"50+",IF(J73<=0,"0",J73))) -> 0 | L73: =IFERROR(VLOOKUP(W73,ATS!$AD:$AF,3,FALSE),0) -> 0 | M73: 0 | N73: 0% | O73: 0% | P73: =VLOOKUP($C73,Prices!$A$3:$R$1996,MATCH('2) Order Form'!P$8,Prices!$A$2:$R$2,0),FALSE) -> 60.00 | Q73: =VLOOKUP($C73,Prices!$A$3:$R$1996,MATCH('2) Order Form'!Q$8,Prices!$A$2:$R$2,0),FALSE) -> 119.95 | R73: 0 | S73: 0 | T73: 0 | U73: =IFERROR(I73/SUMIF($AC$9:$AC$684,AC73,$I$9:$I$684),0) -> 0% | W73: 7048652660312 | Y73: 0 | Z73: 0 | AA73: 0 | AB73: 0 | AC73: 845069Matte Aquamarine | AD73: 845069 | AE73: =VLOOKUP($C73,Classification!$A:$F,5,FALSE) -> 7.000 | AF73: =VLOOKUP($C73,Classification!$A:$F,6,FALSE) -> 1 | AG73: =INDEX(ATS!$A:$AE,MATCH('2) Order Form'!$W73,ATS!$AD:$AD,0),7) -> Stock
A74: 1 | B74: =VLOOKUP(A74,Classification!$H$2:$I$11,2,FALSE) -> Helmets & Helmet Acc. | C74: =INDEX(ATS!$A:$AE,MATCH('2) Order Form'!$W74,ATS!$AD:$AD,0),1) -> 845069 | D74: =INDEX(ATS!$A:$AE,MATCH('2) Order Form'!$W74,ATS!$AD:$AD,0),2) -> Dissenter Helmet | E74: =INDEX(ATS!$A:$AE,MATCH('2) Order Form'!$W74,ATS!$AD:$AD,0),4) -> MEAME-LXL | F74: =INDEX(ATS!$A:$AE,MATCH('2) Order Form'!$W74,ATS!$AD:$AD,0),5) -> Matte Aquamarine | G74: =INDEX(ATS!$A:$AE,MATCH('2) Order Form'!$W74,ATS!$AD:$AD,0),6) -> LXL | H74: 1 | I74: 0 | J74: =IFERROR(VLOOKUP(W74,ATS!$AD:$AF,2,FALSE),0) -> 28 | K74: 28 | L74: =IFERROR(VLOOKUP(W74,ATS!$AD:$AF,3,FALSE),0) -> 28 | M74: 28 | N74: 0% | O74: 0% | P74: =VLOOKUP($C74,Prices!$A$3:$R$1996,MATCH('2) Order Form'!P$8,Prices!$A$2:$R$2,0),FALSE) -> 60.00 | Q74: =VLOOKUP($C74,Prices!$A$3:$R$1996,MATCH('2) Order Form'!Q$8,Prices!$A$2:$R$2,0),FALSE) -> 119.95 | R74: 0 | S74: 0 | T74: 0 | U74: 0% | W74: 7048652660305 | Y74: 0 | Z74: 0 | AA74: 0 | AB74: 0 | AC74: 845069Matte Aquamarine | AD74: 845069 | AE74: =VLOOKUP($C74,Classification!$A:$F,5,FALSE) -> 7.000 | AF74: =VLOOKUP($C74,Classification!$A:$F,6,FALSE) -> 1 | AG74: =INDEX(ATS!$A:$AE,MATCH('2) Order Form'!$W74,ATS!$AD:$AD,0),7) -> Stock
A75: 1 | B75: =VLOOKUP(A75,Classification!$H$2:$I$11,2,FALSE) -> Helmets & Helmet Acc. | C75: =INDEX(ATS!$A:$AE,MATCH('2) Order Form'!$W75,ATS!$AD:$AD,0),1) -> 845069 | D75: =INDEX(ATS!$A:$AE,MATCH('2) Order Form'!$W75,ATS!$AD:$AD,0),2) -> Dissenter Helmet | E75: =INDEX(ATS!$A:$AE,MATCH('2) Order Form'!$W75,ATS!$AD:$AD,0),4) -> MBL21-SM | F75: =INDEX(ATS!$A:$AE,MATCH('2) Order Form'!$W75,ATS!$AD:$AD,0),5) -> Matte Black | G75: =INDEX(ATS!$A:$AE,MATCH('2) Order Form'!$W75,ATS!$AD:$AD,0),6) -> SM | H75: 1 | I75: 0 | J75: =IFERROR(VLOOKUP(W75,ATS!$AD:$AF,2,FALSE),0) -> 0 | K75: 0 | L75: =IFERROR(VLOOKUP(W75,ATS!$AD:$AF,3,FALSE),0) -> 0 | M75: 0 | N75: 0% | O75: 0% | P75: =VLOOKUP($C75,Prices!$A$3:$R$1996,MATCH('2) Order Form'!P$8,Prices!$A$2:$R$2,0),FALSE) -> 60.00 | Q75: =VLOOKUP($C75,Prices!$A$3:$R$1996,MATCH('2) Order Form'!Q$8,Prices!$A$2:$R$2,0),FALSE) -> 119.95 | R75: 0 | S75: 0 | T75: 0 | U75: 0% | W75: 7048652666413 | Y75: 0 | Z75: 0 | AA75: 0 | AB75: 1 | AC75: 845069Matte Black | AD75: 845069 | AE75: =VLOOKUP($C75,Classification!$A:$F,5,FALSE) -> 7.000 | AF75: =VLOOKUP($C75,Classification!$A:$F,6,FALSE) -> 1 | AG75: =INDEX(ATS!$A:$AE,MATCH('2) Order Form'!$W75,ATS!$AD:$AD,0),7) -> Active
A76: 1 | B76: =VLOOKUP(A76,Classification!$H$2:$I$11,2,FALSE) -> Helmets & Helmet Acc. | C76: =INDEX(ATS!$A:$AE,MATCH('2) Order Form'!$W76,ATS!$AD:$AD,0),1) -> 845069 | D76: =INDEX(ATS!$A:$AE,MATCH('2) Order Form'!$W76,ATS!$AD:$AD,0),2) -> Dissenter Helmet | E76: =INDEX(ATS!$A:$AE,MATCH('2) Order Form'!$W76,ATS!$AD:$AD,0),4) -> MBL21-ML | F76: =INDEX(ATS!$A:$AE,MATCH('2) Order Form'!$W76,ATS!$AD:$AD,0),5) -> Matte Black | G76: =INDEX(ATS!$A:$AE,MATCH('2) Order Form'!$W76,ATS!$AD:$AD,0),6) -> ML | H76: 1 | I76: 0 | J76: =IFERROR(VLOOKUP(W76,ATS!$AD:$AF,2,FALSE),0) -> 0 | K76: 0 | L76: =IFERROR(VLOOKUP(W76,ATS!$AD:$AF,3,FALSE),0) -> 0 | M76: 0 | N76: 0% | O76: 0% | P76: =VLOOKUP($C76,Prices!$A$3:$R$1996,MATCH('2) Order Form'!P$8,Prices!$A$2:$R$2,0),FALSE) -> 60.00 | Q76: =VLOOKUP($C76,Prices!$A$3:$R$1996,MATCH('2) Order Form'!Q$8,Prices!$A$2:$R$2,0),FALSE) -> 119.95 | R76: 0 | S76: 0 | T76: 0 | U76: 0% | W76: 7048652666406 | Y76: 0 | Z76: 0 | AA76: 0 | AB76: 0 | AC76: 845069Matte Black | AD76: 845069 | AE76: =VLOOKUP($C76,Classification!$A:$F,5,FALSE) -> 7.000 | AF76: =VLOOKUP($C76,Classification!$A:$F,6,FALSE) -> 1 | AG76: =INDEX(ATS!$A:$AE,MATCH('2) Order Form'!$W76,ATS!$AD:$AD,0),7) -> Active
A77: 1 | B77: =VLOOKUP(A77,Classification!$H$2:$I$11,2,FALSE) -> Helmets & Helmet Acc. | C77: =INDEX(ATS!$A:$AE,MATCH('2) Order Form'!$W77,ATS!$AD:$AD,0),1) -> 845069 | D77: =INDEX(ATS!$A:$AE,MATCH('2) Order Form'!$W77,ATS!$AD:$AD,0),2) -> Dissenter Helmet | E77: =INDEX(ATS!$A:$AE,MATCH('2) Order Form'!$W77,ATS!$AD:$AD,0),4) -> MBL21-LXL | F77: =INDEX(ATS!$A:$AE,MATCH('2) Order Form'!$W77,ATS!$AD:$AD,0),5) -> Matte Black | G77: =INDEX(ATS!$A:$AE,MATCH('2) Order Form'!$W77,ATS!$AD:$AD,0),6) -> LXL | H77: 1 | I77: 0 | J77: =IFERROR(VLOOKUP(W77,ATS!$AD:$AF,2,FALSE),0) -> 0 | K77: 0 | L77: =IFERROR(VLOOKUP(W77,ATS!$AD:$AF,3,FALSE),0) -> 0 | M77: 0 | N77: 0% | O77: 0% | P77: =VLOOKUP($C77,Prices!$A$3:$R$1996,MATCH('2) Order Form'!P$8,Prices!$A$2:$R$2,0),FALSE) -> 60.00 | Q77: =VLOOKUP($C77,Prices!$A$3:$R$1996,MATCH('2) Order Form'!Q$8,Prices!$A$2:$R$2,0),FALSE) -> 119.95 | R77: 0 | S77: 0 | T77: 0 | U77: 0% | W77: 7048652666390 | Y77: 0 | Z77: 0 | AA77: 0 | AB77: 0 | AC77: 845069Matte Black | AD77: 845069 | AE77: =VLOOKUP($C77,Classification!$A:$F,5,FALSE) -> 7.000 | AF77: =VLOOKUP($C77,Classification!$A:$F,6,FALSE) -> 1 | AG77: =INDEX(ATS!$A:$AE,MATCH('2) Order Form'!$W77,ATS!$AD:$AD,0),7) -> Active
A78: 1 | B78: =VLOOKUP(A78,Classification!$H$2:$I$11,2,FALSE) -> Helmets & Helmet Acc. | C78: =INDEX(ATS!$A:$AE,MATCH('2) Order Form'!$W78,ATS!$AD:$AD,0),1) -> 845069 | D78: =INDEX(ATS!$A:$AE,MATCH('2) Order Form'!$W78,ATS!$AD:$AD,0),2) -> Dissenter Helmet | E78: =INDEX(ATS!$A:$AE,MATCH('2) Order Form'!$W78,ATS!$AD:$AD,0),4) -> MWH21-SM | F78: =INDEX(ATS!$A:$AE,MATCH('2) Order Form'!$W78,ATS!$AD:$AD,0),5) -> Matte White | G78: =INDEX(ATS!$A:$AE,MATCH('2) Order Form'!$W78,ATS!$AD:$AD,0),6) -> SM | H78: 1 | I78: 0 | J78: =IFERROR(VLOOKUP(W78,ATS!$AD:$AF,2,FALSE),0) -> 6 | K78: 6 | L78: =IFERROR(VLOOKUP(W78,ATS!$AD:$AF,3,FALSE),0) -> 6 | M78: 6 | N78: 0% | O78: 0% | P78: =VLOOKUP($C78,Prices!$A$3:$R$1996,MATCH('2) Order Form'!P$8,Prices!$A$2:$R$2,0),FALSE) -> 60.00 | Q78: =VLOOKUP($C78,Prices!$A$3:$R$1996,MATCH('2) Order Form'!Q$8,Prices!$A$2:$R$2,0),FALSE) -> 119.95 | R78: 0 | S78: 0 | T78: 0 | U78: 0% | W78: 7048652666444 | Y78: 0 | Z78: 0 | AA78: 0 | AB78: 1 | AC78: 845069Matte White | AD78: 845069 | AE78: =VLOOKUP($C78,Classification!$A:$F,5,FALSE) -> 7.000 | AF78: =VLOOKUP($C78,Classification!$A:$F,6,FALSE) -> 1 | AG78: =INDEX(ATS!$A:$AE,MATCH('2) Order Form'!$W78,ATS!$AD:$AD,0),7) -> Active
A79: 1 | B79: =VLOOKUP(A79,Classification!$H$2:$I$11,2,FALSE) -> Helmets & Helmet Acc. | C79: =INDEX(ATS!$A:$AE,MATCH('2) Order Form'!$W79,ATS!$AD:$AD,0),1) -> 845069 | D79: =INDEX(ATS!$A:$AE,MATCH('2) Order Form'!$W79,ATS!$AD:$AD,0),2) -> Dissenter Helmet | E79: =INDEX(ATS!$A:$AE,MATCH('2) Order Form'!$W79,ATS!$AD:$AD,0),4) -> MWH21-ML | F79: =INDEX(ATS!$A:$AE,MATCH('2) Order Form'!$W79,ATS!$AD:$AD,0),5) -> Matte White | G79: =INDEX(ATS!$A:$AE,MATCH('2) Order Form'!$W79,ATS!$AD:$AD,0),6) -> ML | H79: 1 | I79: 0 | J79: =IFERROR(VLOOKUP(W79,ATS!$AD:$AF,2,FALSE),0) -> 0 | K79: 0 | L79: =IFERROR(VLOOKUP(W79,ATS!$AD:$AF,3,FALSE),0) -> 0 | M79: 0 | N79: 0% | O79: 0% | P79: =VLOOKUP($C79,Prices!$A$3:$R$1996,MATCH('2) Order Form'!P$8,Prices!$A$2:$R$2,0),FALSE) -> 60.00 | Q79: =VLOOKUP($C79,Prices!$A$3:$R$1996,MATCH('2) Order Form'!Q$8,Prices!$A$2:$R$2,0),FALSE) -> 119.95 | R79: 0 | S79: 0 | T79: 0 | U79: 0% | W79: 7048652666437 | Y79: 0 | Z79: 0 | AA79: 0 | AB79: 0 | AC79: 845069Matte White | AD79: 845069 | AE79: =VLOOKUP($C79,Classification!$A:$F,5,FALSE) -> 7.000 | AF79: =VLOOKUP($C79,Classification!$A:$F,6,FALSE) -> 1 | AG79: =INDEX(ATS!$A:$AE,MATCH('2) Order Form'!$W79,ATS!$AD:$AD,0),7) -> Active
A80: 1 | B80: =VLOOKUP(A80,Classification!$H$2:$I$11,2,FALSE) -> Helmets & Helmet Acc. | C80: =INDEX(ATS!$A:$AE,MATCH('2) Order Form'!$W80,ATS!$AD:$AD,0),1) -> 845069 | D80: =INDEX(ATS!$A:$AE,MATCH('2) Order Form'!$W80,ATS!$AD:$AD,0),2) -> Dissenter Helmet | E80: =INDEX(ATS!$A:$AE,MATCH('2) Order Form'!$W80,ATS!$AD:$AD,0),4) -> MWH21-LXL | F80: =INDEX(ATS!$A:$AE,MATCH('2) Order Form'!$W80,ATS!$AD:$AD,0),5) -> Matte White | G80: =INDEX(ATS!$A:$AE,MATCH('2) Order Form'!$W80,ATS!$AD:$AD,0),6) -> LXL | H80: 1 | I80: 0 | J80: =IFERROR(VLOOKUP(W80,ATS!$AD:$AF,2,FALSE),0) -> 31 | K80: 31 | L80: =IFERROR(VLOOKUP(W80,ATS!$AD:$AF,3,FALSE),0) -> 31 | M80: 31 | N80: 0% | O80: 0% | P80: =VLOOKUP($C80,Prices!$A$3:$R$1996,MATCH('2) Order Form'!P$8,Prices!$A$2:$R$2,0),FALSE) -> 60.00 | Q80: =VLOOKUP($C80,Prices!$A$3:$R$1996,MATCH('2) Order Form'!Q$8,Prices!$A$2:$R$2,0),FALSE) -> 119.95 | R80: 0 | S80: 0 | T80: 0 | U80: 0% | W80: 7048652666420 | Y80: 0 | Z80: 0 | AA80: 0 | AB80: 0 | AC80: 845069Matte White | AD80: 845069 | AE80: =VLOOKUP($C80,Classification!$A:$F,5,FALSE) -> 7.000 | AF80: =VLOOKUP($C80,Classification!$A:$F,6,FALSE) -> 1 | AG80: =INDEX(ATS!$A:$AE,MATCH('2) Order Form'!$W80,ATS!$AD:$AD,0),7) -> Active
A81: 1 | B81: =VLOOKUP(A81,Classification!$H$2:$I$11,2,FALSE) -> Helmets & Helmet Acc. | C81: =INDEX(ATS!$A:$AE,MATCH('2) Order Form'!$W81,ATS!$AD:$AD,0),1) -> 845069 | D81: =INDEX(ATS!$A:$AE,MATCH('2) Order Form'!$W81,ATS!$AD:$AD,0),2) -> Dissenter Helmet | E81: =INDEX(ATS!$A:$AE,MATCH('2) Order Form'!$W81,ATS!$AD:$AD,0),4) -> SGRME-SM | F81: =INDEX(ATS!$A:$AE,MATCH('2) Order Form'!$W81,ATS!$AD:$AD,0),5) -> Slate Gray Metallic | G81: =INDEX(ATS!$A:$AE,MATCH('2) Order Form'!$W81,ATS!$AD:$AD,0),6) -> SM | H81: 1 | I81: 0 | J81: =IFERROR(VLOOKUP(W81,ATS!$AD:$AF,2,FALSE),0) -> 0 | K81: 0 | L81: =IFERROR(VLOOKUP(W81,ATS!$AD:$AF,3,FALSE),0) -> 0 | M81: 0 | N81: 0% | O81: 0% | P81: =VLOOKUP($C81,Prices!$A$3:$R$1996,MATCH('2) Order Form'!P$8,Prices!$A$2:$R$2,0),FALSE) -> 60.00 | Q81: =VLOOKUP($C81,Prices!$A$3:$R$1996,MATCH('2) Order Form'!Q$8,Prices!$A$2:$R$2,0),FALSE) -> 119.95 | R81: 0 | S81: 0 | T81: 0 | U81: 0% | W81: 7048652660299 | Y81: 0 | Z81: 0 | AA81: 0 | AB81: 1 | AC81: 845069Slate Gray Metallic | AD81: 845069 | AE81: =VLOOKUP($C81,Classification!$A:$F,5,FALSE) -> 7.000 | AF81: =VLOOKUP($C81,Classification!$A:$F,6,FALSE) -> 1 | AG81: =INDEX(ATS!$A:$AE,MATCH('2) Order Form'!$W81,ATS!$AD:$AD,0),7) -> Stock
A82: 1 | B82: =VLOOKUP(A82,Classification!$H$2:$I$11,2,FALSE) -> Helmets & Helmet Acc. | C82: =INDEX(ATS!$A:$AE,MATCH('2) Order Form'!$W82,ATS!$AD:$AD,0),1) -> 845069 | D82: =INDEX(ATS!$A:$AE,MATCH('2) Order Form'!$W82,ATS!$AD:$AD,0),2) -> Dissenter Helmet | E82: =INDEX(ATS!$A:$AE,MATCH('2) Order Form'!$W82,ATS!$AD:$AD,0),4) -> SGRME-ML | F82: =INDEX(ATS!$A:$AE,MATCH('2) Order Form'!$W82,ATS!$AD:$AD,0),5) -> Slate Gray Metallic | G82: =INDEX(ATS!$A:$AE,MATCH('2) Order Form'!$W82,ATS!$AD:$AD,0),6) -> ML | H82: 1 | I82: 0 | J82: =IFERROR(VLOOKUP(W82,ATS!$AD:$AF,2,FALSE),0) -> 0 | K82: 0 | L82: =IFERROR(VLOOKUP(W82,ATS!$AD:$AF,3,FALSE),0) -> 0 | M82: 0 | N82: 0% | O82: 0% | P82: =VLOOKUP($C82,Prices!$A$3:$R$1996,MATCH('2) Order Form'!P$8,Prices!$A$2:$R$2,0),FALSE) -> 60.00 | Q82: =VLOOKUP($C82,Prices!$A$3:$R$1996,MATCH('2) Order Form'!Q$8,Prices!$A$2:$R$2,0),FALSE) -> 119.95 | R82: 0 | S82: 0 | T82: 0 | U82: 0% | W82: 7048652660282 | Y82: 0 | Z82: 0 | AA82: 0 | AB82: 0 | AC82: 845069Slate Gray Metallic | AD82: 845069 | AE82: =VLOOKUP($C82,Classification!$A:$F,5,FALSE) -> 7.000 | AF82: =VLOOKUP($C82,Classification!$A:$F,6,FALSE) -> 1 | AG82: =INDEX(ATS!$A:$AE,MATCH('2) Order Form'!$W82,ATS!$AD:$AD,0),7) -> Stock
A83: 1 | B83: =VLOOKUP(A83,Classification!$H$2:$I$11,2,FALSE) -> Helmets & Helmet Acc. | C83: =INDEX(ATS!$A:$AE,MATCH('2) Order Form'!$W83,ATS!$AD:$AD,0),1) -> 845069 | D83: =INDEX(ATS!$A:$AE,MATCH('2) Order Form'!$W83,ATS!$AD:$AD,0),2) -> Dissenter Helmet | E83: =INDEX(ATS!$A:$AE,MATCH('2) Order Form'!$W83,ATS!$AD:$AD,0),4) -> SGRME-LXL | F83: =INDEX(ATS!$A:$AE,MATCH('2) Order Form'!$W83,ATS!$AD:$AD,0),5) -> Slate Gray Metallic | G83: =INDEX(ATS!$A:$AE,MATCH('2) Order Form'!$W83,ATS!$AD:$AD,0),6) -> LXL | H83: 1 | I83: 0 | J83: =IFERROR(VLOOKUP(W83,ATS!$AD:$AF,2,FALSE),0) -> 0 | K83: 0 | L83: =IFERROR(VLOOKUP(W83,ATS!$AD:$AF,3,FALSE),0) -> 0 | M83: 0 | N83: 0% | O83: 0% | P83: =VLOOKUP($C83,Prices!$A$3:$R$1996,MATCH('2) Order Form'!P$8,Prices!$A$2:$R$2,0),FALSE) -> 60.00 | Q83: =VLOOKUP($C83,Prices!$A$3:$R$1996,MATCH('2) Order Form'!Q$8,Prices!$A$2:$R$2,0),FALSE) -> 119.95 | R83: 0 | S83: 0 | T83: 0 | U83: 0% | W83: 7048652660275 | Y83: 0 | Z83: 0 | AA83: 0 | AB83: 0 | AC83: 845069Slate Gray Metallic | AD83: 845069 | AE83: =VLOOKUP($C83,Classification!$A:$F,5,FALSE) -> 7.000 | AF83: =VLOOKUP($C83,Classification!$A:$F,6,FALSE) -> 1 | AG83: =INDEX(ATS!$A:$AE,MATCH('2) Order Form'!$W83,ATS!$AD:$AD,0),7) -> Stock
A84: 1 | B84: =VLOOKUP(A84,Classification!$H$2:$I$11,2,FALSE) -> Helmets & Helmet Acc. | C84: =INDEX(ATS!$A:$AE,MATCH('2) Order Form'!$W84,ATS!$AD:$AD,0),1) -> 845106 | D84: =INDEX(ATS!$A:$AE,MATCH('2) Order Form'!$W84,ATS!$AD:$AD,0),2) -> Ripper Mips Helmet | E84: =INDEX(ATS!$A:$AE,MATCH('2) Order Form'!$W84,ATS!$AD:$AD,0),4) -> MAQM-53/61 | F84: =INDEX(ATS!$A:$AE,MATCH('2) Order Form'!$W84,ATS!$AD:$AD,0),5) -> Matte Aquamarine | G84: =INDEX(ATS!$A:$AE,MATCH('2) Order Form'!$W84,ATS!$AD:$AD,0),6) -> 53/61 | H84: 1 | I84: 0 | J84: =IFERROR(VLOOKUP(W84,ATS!$AD:$AF,2,FALSE),0) -> 2 | K84: 2 | L84: =IFERROR(VLOOKUP(W84,ATS!$AD:$AF,3,FALSE),0) -> 2 | M84: 2 | N84: 0% | O84: 0% | P84: =VLOOKUP($C84,Prices!$A$3:$R$1996,MATCH('2) Order Form'!P$8,Prices!$A$2:$R$2,0),FALSE) -> 50.00 | Q84: =VLOOKUP($C84,Prices!$A$3:$R$1996,MATCH('2) Order Form'!Q$8,Prices!$A$2:$R$2,0),FALSE) -> 99.95 | R84: 0 | S84: 0 | T84: 0 | U84: 0% | W84: 7048652661746 | Y84: 0 | Z84: 0 | AA84: 1 | AB84: 1 | AC84: 845106Matte Aquamarine | AD84: 845106 | AE84: =VLOOKUP($C84,Classification!$A:$F,5,FALSE) -> 8.000 | AF84: =VLOOKUP($C84,Classification!$A:$F,6,FALSE) -> 1 | AG84: =INDEX(ATS!$A:$AE,MATCH('2) Order Form'!$W84,ATS!$AD:$AD,0),7) -> Stock
A85: 1 | B85: =VLOOKUP(A85,Classification!$H$2:$I$11,2,FALSE) -> Helmets & Helmet Acc. | C85: =INDEX(ATS!$A:$AE,MATCH('2) Order Form'!$W85,ATS!$AD:$AD,0),1) -> 845106 | D85: =INDEX(ATS!$A:$AE,MATCH('2) Order Form'!$W85,ATS!$AD:$AD,0),2) -> Ripper Mips Helmet | E85: =INDEX(ATS!$A:$AE,MATCH('2) Order Form'!$W85,ATS!$AD:$AD,0),4) -> MBLK-53/61 | F85: =INDEX(ATS!$A:$AE,MATCH('2) Order Form'!$W85,ATS!$AD:$AD,0),5) -> Matte Black | G85: =INDEX(ATS!$A:$AE,MATCH('2) Order Form'!$W85,ATS!$AD:$AD,0),6) -> 53/61 | H85: 1 | I85: 0 | J85: =IFERROR(VLOOKUP(W85,ATS!$AD:$AF,2,FALSE),0) -> 0 | K85: 0 | L85: =IFERROR(VLOOKUP(W85,ATS!$AD:$AF,3,FALSE),0) -> 0 | M85: 0 | N85: 0% | O85: 0% | P85: =VLOOKUP($C85,Prices!$A$3:$R$1996,MATCH('2) Order Form'!P$8,Prices!$A$2:$R$2,0),FALSE) -> 50.00 | Q85: =VLOOKUP($C85,Prices!$A$3:$R$1996,MATCH('2) Order Form'!Q$8,Prices!$A$2:$R$2,0),FALSE) -> 99.95 | R85: 0 | S85: 0 | T85: 0 | U85: 0% | W85: 7048652540980 | Y85: 0 | Z85: 0 | AA85: 0 | AB85: 1 | AC85: 845106Matte Black | AD85: 845106 | AE85: =VLOOKUP($C85,Classification!$A:$F,5,FALSE) -> 8.000 | AF85: =VLOOKUP($C85,Classification!$A:$F,6,FALSE) -> 1 | AG85: =INDEX(ATS!$A:$AE,MATCH('2) Order Form'!$W85,ATS!$AD:$AD,0),7) -> Active
A86: 1 | B86: =VLOOKUP(A86,Classification!$H$2:$I$11,2,FALSE) -> Helmets & Helmet Acc. | C86: =INDEX(ATS!$A:$AE,MATCH('2) Order Form'!$W86,ATS!$AD:$AD,0),1) -> 845106 | D86: =INDEX(ATS!$A:$AE,MATCH('2) Order Form'!$W86,ATS!$AD:$AD,0),2) -> Ripper Mips Helmet | E86: =INDEX(ATS!$A:$AE,MATCH('2) Order Form'!$W86,ATS!$AD:$AD,0),4) -> MWHT-53/61 | F86: =INDEX(ATS!$A:$AE,MATCH('2) Order Form'!$W86,ATS!$AD:$AD,0),5) -> Matte White | G86: =INDEX(ATS!$A:$AE,MATCH('2) Order Form'!$W86,ATS!$AD:$AD,0),6) -> 53/61 | H86: 1 | I86: 0 | J86: =IFERROR(VLOOKUP(W86,ATS!$AD:$AF,2,FALSE),0) -> 351 | K86: 50+ | L86: =IFERROR(VLOOKUP(W86,ATS!$AD:$AF,3,FALSE),0) -> 351 | M86: 50+ | N86: 0% | O86: 0% | P86: =VLOOKUP($C86,Prices!$A$3:$R$1996,MATCH('2) Order Form'!P$8,Prices!$A$2:$R$2,0),FALSE) -> 50.00 | Q86: =VLOOKUP($C86,Prices!$A$3:$R$1996,MATCH('2) Order Form'!Q$8,Prices!$A$2:$R$2,0),FALSE) -> 99.95 | R86: 0 | S86: 0 | T86: 0 | U86: 0% | W86: 7048652541024 | Y86: 0 | Z86: 0 | AA86: 0 | AB86: 1 | AC86: 845106Matte White | AD86: 845106 | AE86: =VLOOKUP($C86,Classification!$A:$F,5,FALSE) -> 8.000 | AF86: =VLOOKUP($C86,Classification!$A:$F,6,FALSE) -> 1 | AG86: =INDEX(ATS!$A:$AE,MATCH('2) Order Form'!$W86,ATS!$AD:$AD,0),7) -> Active
A87: 1 | B87: =VLOOKUP(A87,Classification!$H$2:$I$11,2,FALSE) -> Helmets & Helmet Acc. | C87: =INDEX(ATS!$A:$AE,MATCH('2) Order Form'!$W87,ATS!$AD:$AD,0),1) -> 845106 | D87: =INDEX(ATS!$A:$AE,MATCH('2) Order Form'!$W87,ATS!$AD:$AD,0),2) -> Ripper Mips Helmet | E87: =INDEX(ATS!$A:$AE,MATCH('2) Order Form'!$W87,ATS!$AD:$AD,0),4) -> SGRM-53/61 | F87: =INDEX(ATS!$A:$AE,MATCH('2) Order Form'!$W87,ATS!$AD:$AD,0),5) -> Slate Gray Metallic | G87: =INDEX(ATS!$A:$AE,MATCH('2) Order Form'!$W87,ATS!$AD:$AD,0),6) -> 53/61 | H87: 1 | I87: 0 | J87: =IFERROR(VLOOKUP(W87,ATS!$AD:$AF,2,FALSE),0) -> 0 | K87: 0 | L87: =IFERROR(VLOOKUP(W87,ATS!$AD:$AF,3,FALSE),0) -> 0 | M87: 0 | N87: 0% | O87: 0% | P87: =VLOOKUP($C87,Prices!$A$3:$R$1996,MATCH('2) Order Form'!P$8,Prices!$A$2:$R$2,0),FALSE) -> 50.00 | Q87: =VLOOKUP($C87,Prices!$A$3:$R$1996,MATCH('2) Order Form'!Q$8,Prices!$A$2:$R$2,0),FALSE) -> 99.95 | R87: 0 | S87: 0 | T87: 0 | U87: 0% | W87: 7048652661753 | Y87: 0 | Z87: 0 | AA87: 0 | AB87: 1 | AC87: 845106Slate Gray Metallic | AD87: 845106 | AE87: =VLOOKUP($C87,Classification!$A:$F,5,FALSE) -> 8.000 | AF87: =VLOOKUP($C87,Classification!$A:$F,6,FALSE) -> 1 | AG87: =INDEX(ATS!$A:$AE,MATCH('2) Order Form'!$W87,ATS!$AD:$AD,0),7) -> Active
A88: 1 | B88: =VLOOKUP(A88,Classification!$H$2:$I$11,2,FALSE) -> Helmets & Helmet Acc. | C88: =INDEX(ATS!$A:$AE,MATCH('2) Order Form'!$W88,ATS!$AD:$AD,0),1) -> 845105 | D88: =INDEX(ATS!$A:$AE,MATCH('2) Order Form'!$W88,ATS!$AD:$AD,0),2) -> Ripper Helmet | E88: =INDEX(ATS!$A:$AE,MATCH('2) Order Form'!$W88,ATS!$AD:$AD,0),4) -> MAQM-53/61 | F88: =INDEX(ATS!$A:$AE,MATCH('2) Order Form'!$W88,ATS!$AD:$AD,0),5) -> Matte Aquamarine | G88: =INDEX(ATS!$A:$AE,MATCH('2) Order Form'!$W88,ATS!$AD:$AD,0),6) -> 53/61 | H88: 1 | I88: 0 | J88: =IFERROR(VLOOKUP(W88,ATS!$AD:$AF,2,FALSE),0) -> 1 | K88: 1 | L88: =IFERROR(VLOOKUP(W88,ATS!$AD:$AF,3,FALSE),0) -> 1 | M88: 1 | N88: 0% | O88: 0% | P88: =VLOOKUP($C88,Prices!$A$3:$R$1996,MATCH('2) Order Form'!P$8,Prices!$A$2:$R$2,0),FALSE) -> 35.00 | Q88: =VLOOKUP($C88,Prices!$A$3:$R$1996,MATCH('2) Order Form'!Q$8,Prices!$A$2:$R$2,0),FALSE) -> 69.95 | R88: 0 | S88: 0 | T88: 0 | U88: 0% | W88: 7048652661722 | Y88: 0 | Z88: 0 | AA88: 1 | AB88: 1 | AC88: 845105Matte Aquamarine | AD88: 845105 | AE88: =VLOOKUP($C88,Classification!$A:$F,5,FALSE) -> 9.000 | AF88: =VLOOKUP($C88,Classification!$A:$F,6,FALSE) -> 1 | AG88: =INDEX(ATS!$A:$AE,MATCH('2) Order Form'!$W88,ATS!$AD:$AD,0),7) -> Stock
A89: 1 | B89: =VLOOKUP(A89,Classification!$H$2:$I$11,2,FALSE) -> Helmets & Helmet Acc. | C89: =INDEX(ATS!$A:$AE,MATCH('2) Order Form'!$W89,ATS!$AD:$AD,0),1) -> 845105 | D89: =INDEX(ATS!$A:$AE,MATCH('2) Order Form'!$W89,ATS!$AD:$AD,0),2) -> Ripper Helmet | E89: =INDEX(ATS!$A:$AE,MATCH('2) Order Form'!$W89,ATS!$AD:$AD,0),4) -> MBLK-53/61 | F89: =INDEX(ATS!$A:$AE,MATCH('2) Order Form'!$W89,ATS!$AD:$AD,0),5) -> Matte Black | G89: =INDEX(ATS!$A:$AE,MATCH('2) Order Form'!$W89,ATS!$AD:$AD,0),6) -> 53/61 | H89: 1 | I89: 0 | J89: =IFERROR(VLOOKUP(W89,ATS!$AD:$AF,2,FALSE),0) -> 0 | K89: 0 | L89: =IFERROR(VLOOKUP(W89,ATS!$AD:$AF,3,FALSE),0) -> 0 | M89: 0 | N89: 0% | O89: 0% | P89: =VLOOKUP($C89,Prices!$A$3:$R$1996,MATCH('2) Order Form'!P$8,Prices!$A$2:$R$2,0),FALSE) -> 35.00 | Q89: =VLOOKUP($C89,Prices!$A$3:$R$1996,MATCH('2) Order Form'!Q$8,Prices!$A$2:$R$2,0),FALSE) -> 69.95 | R89: 0 | S89: 0 | T89: 0 | U89: 0% | W89: 7048652540935 | Y89: 0 | Z89: 0 | AA89: 0 | AB89: 1 | AC89: 845105Matte Black | AD89: 845105 | AE89: =VLOOKUP($C89,Classification!$A:$F,5,FALSE) -> 9.000 | AF89: =VLOOKUP($C89,Classification!$A:$F,6,FALSE) -> 1 | AG89: =INDEX(ATS!$A:$AE,MATCH('2) Order Form'!$W89,ATS!$AD:$AD,0),7) -> Active
A90: 1 | B90: =VLOOKUP(A90,Classification!$H$2:$I$11,2,FALSE) -> Helmets & Helmet Acc. | C90: =INDEX(ATS!$A:$AE,MATCH('2) Order Form'!$W90,ATS!$AD:$AD,0),1) -> 845105 | D90: =INDEX(ATS!$A:$AE,MATCH('2) Order Form'!$W90,ATS!$AD:$AD,0),2) -> Ripper Helmet | E90: =INDEX(ATS!$A:$AE,MATCH('2) Order Form'!$W90,ATS!$AD:$AD,0),4) -> MWHT-53/61 | F90: =INDEX(ATS!$A:$AE,MATCH('2) Order Form'!$W90,ATS!$AD:$AD,0),5) -> Matte White | G90: =INDEX(ATS!$A:$AE,MATCH('2) Order Form'!$W90,ATS!$AD:$AD,0),6) -> 53/61 | H90: 1 | I90: 0 | J90: =IFERROR(VLOOKUP(W90,ATS!$AD:$AF,2,FALSE),0) -> 0 | K90: 0 | L90: =IFERROR(VLOOKUP(W90,ATS!$AD:$AF,3,FALSE),0) -> 0 | M90: 0 | N90: 0% | O90: 0% | P90: =VLOOKUP($C90,Prices!$A$3:$R$1996,MATCH('2) Order Form'!P$8,Prices!$A$2:$R$2,0),FALSE) -> 35.00 | Q90: =VLOOKUP($C90,Prices!$A$3:$R$1996,MATCH('2) Order Form'!Q$8,Prices!$A$2:$R$2,0),FALSE) -> 69.95 | R90: 0 | S90: 0 | T90: 0 | U90: 0% | W90: 7048652540973 | Y90: 0 | Z90: 0 | AA90: 0 | AB90: 1 | AC90: 845105Matte White | AD90: 845105 | AE90: =VLOOKUP($C90,Classification!$A:$F,5,FALSE) -> 9.000 | AF90: =VLOOKUP($C90,Classification!$A:$F,6,FALSE) -> 1 | AG90: =INDEX(ATS!$A:$AE,MATCH('2) Order Form'!$W90,ATS!$AD:$AD,0),7) -> Active
A91: 1 | B91: =VLOOKUP(A91,Classification!$H$2:$I$11,2,FALSE) -> Helmets & Helmet Acc. | C91: =INDEX(ATS!$A:$AE,MATCH('2) Order Form'!$W91,ATS!$AD:$AD,0),1) -> 845105 | D91: =INDEX(ATS!$A:$AE,MATCH('2) Order Form'!$W91,ATS!$AD:$AD,0),2) -> Ripper Helmet | E91: =INDEX(ATS!$A:$AE,MATCH('2) Order Form'!$W91,ATS!$AD:$AD,0),4) -> SGRM-53/61 | F91: =INDEX(ATS!$A:$AE,MATCH('2) Order Form'!$W91,ATS!$AD:$AD,0),5) -> Slate Gray Metallic | G91: =INDEX(ATS!$A:$AE,MATCH('2) Order Form'!$W91,ATS!$AD:$AD,0),6) -> 53/61 | H91: 1 | I91: 0 | J91: =IFERROR(VLOOKUP(W91,ATS!$AD:$AF,2,FALSE),0) -> 0 | K91: 0 | L91: =IFERROR(VLOOKUP(W91,ATS!$AD:$AF,3,FALSE),0) -> 0 | M91: 0 | N91: 0% | O91: 0% | P91: =VLOOKUP($C91,Prices!$A$3:$R$1996,MATCH('2) Order Form'!P$8,Prices!$A$2:$R$2,0),FALSE) -> 35.00 | Q91: =VLOOKUP($C91,Prices!$A$3:$R$1996,MATCH('2) Order Form'!Q$8,Prices!$A$2:$R$2,0),FALSE) -> 69.95 | R91: 0 | S91: 0 | T91: 0 | U91: 0% | W91: 7048652661739 | Y91: 0 | Z91: 0 | AA91: 0 | AB91: 1 | AC91: 845105Slate Gray Metallic | AD91: 845105 | AE91: =VLOOKUP($C91,Classification!$A:$F,5,FALSE) -> 9.000 | AF91: =VLOOKUP($C91,Classification!$A:$F,6,FALSE) -> 1 | AG91: =INDEX(ATS!$A:$AE,MATCH('2) Order Form'!$W91,ATS!$AD:$AD,0),7) -> Active
A92: 1 | B92: =VLOOKUP(A92,Classification!$H$2:$I$11,2,FALSE) -> Helmets & Helmet Acc. | C92: =INDEX(ATS!$A:$AE,MATCH('2) Order Form'!$W92,ATS!$AD:$AD,0),1) -> 845074 | D92: =INDEX(ATS!$A:$AE,MATCH('2) Order Form'!$W92,ATS!$AD:$AD,0),2) -> Dissenter Helmet JR | E92: =INDEX(ATS!$A:$AE,MATCH('2) Order Form'!$W92,ATS!$AD:$AD,0),4) -> MOPRE-XSS | F92: =INDEX(ATS!$A:$AE,MATCH('2) Order Form'!$W92,ATS!$AD:$AD,0),5) -> Matte Opal Purple | G92: =INDEX(ATS!$A:$AE,MATCH('2) Order Form'!$W92,ATS!$AD:$AD,0),6) -> XSS | H92: 1 | I92: 0 | J92: =IFERROR(VLOOKUP(W92,ATS!$AD:$AF,2,FALSE),0) -> 0 | K92: 0 | L92: =IFERROR(VLOOKUP(W92,ATS!$AD:$AF,3,FALSE),0) -> 0 | M92: 0 | N92: 0% | O92: 0% | P92: =VLOOKUP($C92,Prices!$A$3:$R$1996,MATCH('2) Order Form'!P$8,Prices!$A$2:$R$2,0),FALSE) -> 45.00 | Q92: =VLOOKUP($C92,Prices!$A$3:$R$1996,MATCH('2) Order Form'!Q$8,Prices!$A$2:$R$2,0),FALSE) -> 89.95 | R92: 0 | S92: 0 | T92: 0 | U92: 0% | W92: 7048652327420 | Y92: 0 | Z92: 0 | AA92: 1 | AB92: 1 | AC92: 845074Matte Opal Purple | AD92: 845074 | AE92: =VLOOKUP($C92,Classification!$A:$F,5,FALSE) -> 10.000 | AF92: =VLOOKUP($C92,Classification!$A:$F,6,FALSE) -> 1 | AG92: =INDEX(ATS!$A:$AE,MATCH('2) Order Form'!$W92,ATS!$AD:$AD,0),7) -> Stock
A93: 1 | B93: =VLOOKUP(A93,Classification!$H$2:$I$11,2,FALSE) -> Helmets & Helmet Acc. | C93: =INDEX(ATS!$A:$AE,MATCH('2) Order Form'!$W93,ATS!$AD:$AD,0),1) -> 845074 | D93: =INDEX(ATS!$A:$AE,MATCH('2) Order Form'!$W93,ATS!$AD:$AD,0),2) -> Dissenter Helmet JR | E93: =INDEX(ATS!$A:$AE,MATCH('2) Order Form'!$W93,ATS!$AD:$AD,0),4) -> MOPRE-SM | F93: =INDEX(ATS!$A:$AE,MATCH('2) Order Form'!$W93,ATS!$AD:$AD,0),5) -> Matte Opal Purple | G93: =INDEX(ATS!$A:$AE,MATCH('2) Order Form'!$W93,ATS!$AD:$AD,0),6) -> SM | H93: 1 | I93: 0 | J93: =IFERROR(VLOOKUP(W93,ATS!$AD:$AF,2,FALSE),0) -> 23 | K93: 23 | L93: =IFERROR(VLOOKUP(W93,ATS!$AD:$AF,3,FALSE),0) -> 23 | M93: 23 | N93: 0% | O93: 0% | P93: =VLOOKUP($C93,Prices!$A$3:$R$1996,MATCH('2) Order Form'!P$8,Prices!$A$2:$R$2,0),FALSE) -> 45.00 | Q93: =VLOOKUP($C93,Prices!$A$3:$R$1996,MATCH('2) Order Form'!Q$8,Prices!$A$2:$R$2,0),FALSE) -> 89.95 | R93: 0 | S93: 0 | T93: 0 | U93: 0% | W93: 7048652327413 | Y93: 0 | Z93: 0 | AA93: 0 | AB93: 0 | AC93: 845074Matte Opal Purple | AD93: 845074 | AE93: =VLOOKUP($C93,Classification!$A:$F,5,FALSE) -> 10.000 | AF93: =VLOOKUP($C93,Classification!$A:$F,6,FALSE) -> 1 | AG93: =INDEX(ATS!$A:$AE,MATCH('2) Order Form'!$W93,ATS!$AD:$AD,0),7) -> Stock
A94: 1 | B94: =VLOOKUP(A94,Classification!$H$2:$I$11,2,FALSE) -> Helmets & Helmet Acc. | C94: =INDEX(ATS!$A:$AE,MATCH('2) Order Form'!$W94,ATS!$AD:$AD,0),1) -> 845074 | D94: =INDEX(ATS!$A:$AE,MATCH('2) Order Form'!$W94,ATS!$AD:$AD,0),2) -> Dissenter Helmet JR | E94: =INDEX(ATS!$A:$AE,MATCH('2) Order Form'!$W94,ATS!$AD:$AD,0),4) -> MRBCO-XSS | F94: =INDEX(ATS!$A:$AE,MATCH('2) Order Form'!$W94,ATS!$AD:$AD,0),5) -> Matte Race Blue/Cody Orange | G94: =INDEX(ATS!$A:$AE,MATCH('2) Order Form'!$W94,ATS!$AD:$AD,0),6) -> XSS | H94: 1 | I94: 0 | J94: =IFERROR(VLOOKUP(W94,ATS!$AD:$AF,2,FALSE),0) -> 7 | K94: 7 | L94: =IFERROR(VLOOKUP(W94,ATS!$AD:$AF,3,FALSE),0) -> 7 | M94: 7 | N94: 0% | O94: 0% | P94: =VLOOKUP($C94,Prices!$A$3:$R$1996,MATCH('2) Order Form'!P$8,Prices!$A$2:$R$2,0),FALSE) -> 45.00 | Q94: =VLOOKUP($C94,Prices!$A$3:$R$1996,MATCH('2) Order Form'!Q$8,Prices!$A$2:$R$2,0),FALSE) -> 89.95 | R94: 0 | S94: 0 | T94: 0 | U94: 0% | W94: 7048652327444 | Y94: 0 | Z94: 0 | AA94: 0 | AB94: 1 | AC94: 845074Matte Race Blue/Cody Orange | AD94: 845074 | AE94: =VLOOKUP($C94,Classification!$A:$F,5,FALSE) -> 10.000 | AF94: =VLOOKUP($C94,Classification!$A:$F,6,FALSE) -> 1 | AG94: =INDEX(ATS!$A:$AE,MATCH('2) Order Form'!$W94,ATS!$AD:$AD,0),7) -> Stock
A95: 1 | B95: =VLOOKUP(A95,Classification!$H$2:$I$11,2,FALSE) -> Helmets & Helmet Acc. | C95: =INDEX(ATS!$A:$AE,MATCH('2) Order Form'!$W95,ATS!$AD:$AD,0),1) -> 845074 | D95: =INDEX(ATS!$A:$AE,MATCH('2) Order Form'!$W95,ATS!$AD:$AD,0),2) -> Dissenter Helmet JR | E95: =INDEX(ATS!$A:$AE,MATCH('2) Order Form'!$W95,ATS!$AD:$AD,0),4) -> MRBCO-SM | F95: =INDEX(ATS!$A:$AE,MATCH('2) Order Form'!$W95,ATS!$AD:$AD,0),5) -> Matte Race Blue/Cody Orange | G95: =INDEX(ATS!$A:$AE,MATCH('2) Order Form'!$W95,ATS!$AD:$AD,0),6) -> SM | H95: 1 | I95: 0 | J95: =IFERROR(VLOOKUP(W95,ATS!$AD:$AF,2,FALSE),0) -> 71 | K95: 50+ | L95: =IFERROR(VLOOKUP(W95,ATS!$AD:$AF,3,FALSE),0) -> 71 | M95: 50+ | N95: 0% | O95: 0% | P95: =VLOOKUP($C95,Prices!$A$3:$R$1996,MATCH('2) Order Form'!P$8,Prices!$A$2:$R$2,0),FALSE) -> 45.00 | Q95: =VLOOKUP($C95,Prices!$A$3:$R$1996,MATCH('2) Order Form'!Q$8,Prices!$A$2:$R$2,0),FALSE) -> 89.95 | R95: 0 | S95: 0 | T95: 0 | U95: 0% | W95: 7048652327437 | Y95: 0 | Z95: 0 | AA95: 0 | AB95: 0 | AC95: 845074Matte Race Blue/Cody Orange | AD95: 845074 | AE95: =VLOOKUP($C95,Classification!$A:$F,5,FALSE) -> 10.000 | AF95: =VLOOKUP($C95,Classification!$A:$F,6,FALSE) -> 1 | AG95: =INDEX(ATS!$A:$AE,MATCH('2) Order Form'!$W95,ATS!$AD:$AD,0),7) -> Stock
A96: 1 | B96: =VLOOKUP(A96,Classification!$H$2:$I$11,2,FALSE) -> Helmets & Helmet Acc. | C96: =INDEX(ATS!$A:$AE,MATCH('2) Order Form'!$W96,ATS!$AD:$AD,0),1) -> 845108 | D96: =INDEX(ATS!$A:$AE,MATCH('2) Order Form'!$W96,ATS!$AD:$AD,0),2) -> Ripper Mips Helmet JR | E96: =INDEX(ATS!$A:$AE,MATCH('2) Order Form'!$W96,ATS!$AD:$AD,0),4) -> MBLK-48/53 | F96: =INDEX(ATS!$A:$AE,MATCH('2) Order Form'!$W96,ATS!$AD:$AD,0),5) -> Matte Black | G96: =INDEX(ATS!$A:$AE,MATCH('2) Order Form'!$W96,ATS!$AD:$AD,0),6) -> 48/53 | H96: 1 | I96: 0 | J96: =IFERROR(VLOOKUP(W96,ATS!$AD:$AF,2,FALSE),0) -> 0 | K96: 0 | L96: =IFERROR(VLOOKUP(W96,ATS!$AD:$AF,3,FALSE),0) -> 0 | M96: 0 | N96: 0% | O96: 0% | P96: =VLOOKUP($C96,Prices!$A$3:$R$1996,MATCH('2) Order Form'!P$8,Prices!$A$2:$R$2,0),FALSE) -> 45.00 | Q96: =VLOOKUP($C96,Prices!$A$3:$R$1996,MATCH('2) Order Form'!Q$8,Prices!$A$2:$R$2,0),FALSE) -> 89.95 | R96: 0 | S96: 0 | T96: 0 | U96: 0% | W96: 7048652540881 | Y96: 0 | Z96: 0 | AA96: 1 | AB96: 1 | AC96: 845108Matte Black | AD96: 845108 | AE96: =VLOOKUP($C96,Classification!$A:$F,5,FALSE) -> 11.000 | AF96: =VLOOKUP($C96,Classification!$A:$F,6,FALSE) -> 1 | AG96: =INDEX(ATS!$A:$AE,MATCH('2) Order Form'!$W96,ATS!$AD:$AD,0),7) -> Active
A97: 1 | B97: =VLOOKUP(A97,Classification!$H$2:$I$11,2,FALSE) -> Helmets & Helmet Acc. | C97: =INDEX(ATS!$A:$AE,MATCH('2) Order Form'!$W97,ATS!$AD:$AD,0),1) -> 845108 | D97: =INDEX(ATS!$A:$AE,MATCH('2) Order Form'!$W97,ATS!$AD:$AD,0),2) -> Ripper Mips Helmet JR | E97: =INDEX(ATS!$A:$AE,MATCH('2) Order Form'!$W97,ATS!$AD:$AD,0),4) -> MROP-48/53 | F97: =INDEX(ATS!$A:$AE,MATCH('2) Order Form'!$W97,ATS!$AD:$AD,0),5) -> Matte Opal Purple | G97: =INDEX(ATS!$A:$AE,MATCH('2) Order Form'!$W97,ATS!$AD:$AD,0),6) -> 48/53 | H97: 1 | I97: 0 | J97: =IFERROR(VLOOKUP(W97,ATS!$AD:$AF,2,FALSE),0) -> 65 | K97: 50+ | L97: =IFERROR(VLOOKUP(W97,ATS!$AD:$AF,3,FALSE),0) -> 65 | M97: 50+ | N97: 0% | O97: 0% | P97: =VLOOKUP($C97,Prices!$A$3:$R$1996,MATCH('2) Order Form'!P$8,Prices!$A$2:$R$2,0),FALSE) -> 45.00 | Q97: =VLOOKUP($C97,Prices!$A$3:$R$1996,MATCH('2) Order Form'!Q$8,Prices!$A$2:$R$2,0),FALSE) -> 89.95 | R97: 0 | S97: 0 | T97: 0 | U97: 0% | W97: 7048652552549 | Y97: 0 | Z97: 0 | AA97: 0 | AB97: 1 | AC97: 845108Matte Opal Purple | AD97: 845108 | AE97: =VLOOKUP($C97,Classification!$A:$F,5,FALSE) -> 11.000 | AF97: =VLOOKUP($C97,Classification!$A:$F,6,FALSE) -> 1 | AG97: =INDEX(ATS!$A:$AE,MATCH('2) Order Form'!$W97,ATS!$AD:$AD,0),7) -> Stock
A98: 1 | B98: =VLOOKUP(A98,Classification!$H$2:$I$11,2,FALSE) -> Helmets & Helmet Acc. | C98: =INDEX(ATS!$A:$AE,MATCH('2) Order Form'!$W98,ATS!$AD:$AD,0),1) -> 845108 | D98: =INDEX(ATS!$A:$AE,MATCH('2) Order Form'!$W98,ATS!$AD:$AD,0),2) -> Ripper Mips Helmet JR | E98: =INDEX(ATS!$A:$AE,MATCH('2) Order Form'!$W98,ATS!$AD:$AD,0),4) -> MRBE-48/53 | F98: =INDEX(ATS!$A:$AE,MATCH('2) Order Form'!$W98,ATS!$AD:$AD,0),5) -> Matte Race Blue | G98: =INDEX(ATS!$A:$AE,MATCH('2) Order Form'!$W98,ATS!$AD:$AD,0),6) -> 48/53 | H98: 1 | I98: 0 | J98: =IFERROR(VLOOKUP(W98,ATS!$AD:$AF,2,FALSE),0) -> 641 | K98: 50+ | L98: =IFERROR(VLOOKUP(W98,ATS!$AD:$AF,3,FALSE),0) -> 641 | M98: 50+ | N98: 0% | O98: 0% | P98: =VLOOKUP($C98,Prices!$A$3:$R$1996,MATCH('2) Order Form'!P$8,Prices!$A$2:$R$2,0),FALSE) -> 45.00 | Q98: =VLOOKUP($C98,Prices!$A$3:$R$1996,MATCH('2) Order Form'!Q$8,Prices!$A$2:$R$2,0),FALSE) -> 89.95 | R98: 0 | S98: 0 | T98: 0 | U98: 0% | W98: 7048652552532 | Y98: 0 | Z98: 0 | AA98: 0 | AB98: 1 | AC98: 845108Matte Race Blue | AD98: 845108 | AE98: =VLOOKUP($C98,Classification!$A:$F,5,FALSE) -> 11.000 | AF98: =VLOOKUP($C98,Classification!$A:$F,6,FALSE) -> 1 | AG98: =INDEX(ATS!$A:$AE,MATCH('2) Order Form'!$W98,ATS!$AD:$AD,0),7) -> Stock
A99: 1 | B99: =VLOOKUP(A99,Classification!$H$2:$I$11,2,FALSE) -> Helmets & Helmet Acc. | C99: =INDEX(ATS!$A:$AE,MATCH('2) Order Form'!$W99,ATS!$AD:$AD,0),1) -> 845108 | D99: =INDEX(ATS!$A:$AE,MATCH('2) Order Form'!$W99,ATS!$AD:$AD,0),2) -> Ripper Mips Helmet JR | E99: =INDEX(ATS!$A:$AE,MATCH('2) Order Form'!$W99,ATS!$AD:$AD,0),4) -> MWHT-48/53 | F99: =INDEX(ATS!$A:$AE,MATCH('2) Order Form'!$W99,ATS!$AD:$AD,0),5) -> Matte White | G99: =INDEX(ATS!$A:$AE,MATCH('2) Order Form'!$W99,ATS!$AD:$AD,0),6) -> 48/53 | H99: 1 | I99: 0 | J99: =IFERROR(VLOOKUP(W99,ATS!$AD:$AF,2,FALSE),0) -> 0 | K99: 0 | L99: =IFERROR(VLOOKUP(W99,ATS!$AD:$AF,3,FALSE),0) -> 0 | M99: 0 | N99: 0% | O99: 0% | P99: =VLOOKUP($C99,Prices!$A$3:$R$1996,MATCH('2) Order Form'!P$8,Prices!$A$2:$R$2,0),FALSE) -> 45.00 | Q99: =VLOOKUP($C99,Prices!$A$3:$R$1996,MATCH('2) Order Form'!Q$8,Prices!$A$2:$R$2,0),FALSE) -> 89.95 | R99: 0 | S99: 0 | T99: 0 | U99: 0% | W99: 7048652540928 | Y99: 0 | Z99: 0 | AA99: 0 | AB99: 1 | AC99: 845108Matte White | AD99: 845108 | AE99: =VLOOKUP($C99,Classification!$A:$F,5,FALSE) -> 11.000 | AF99: =VLOOKUP($C99,Classification!$A:$F,6,FALSE) -> 1 | AG99: =INDEX(ATS!$A:$AE,MATCH('2) Order Form'!$W99,ATS!$AD:$AD,0),7) -> Active
A100: 1 | B100: =VLOOKUP(A100,Classification!$H$2:$I$11,2,FALSE) -> Helmets & Helmet Acc. | C100: =INDEX(ATS!$A:$AE,MATCH('2) Order Form'!$W100,ATS!$AD:$AD,0),1) -> 845108 | D100: =INDEX(ATS!$A:$AE,MATCH('2) Order Form'!$W100,ATS!$AD:$AD,0),2) -> Ripper Mips Helmet JR | E100: =INDEX(ATS!$A:$AE,MATCH('2) Order Form'!$W100,ATS!$AD:$AD,0),4) -> SGRM-48/53 | F100: =INDEX(ATS!$A:$AE,MATCH('2) Order Form'!$W100,ATS!$AD:$AD,0),5) -> Slate Gray Metallic | G100: =INDEX(ATS!$A:$AE,MATCH('2) Order Form'!$W100,ATS!$AD:$AD,0),6) -> 48/53 | H100: 1 | I100: 0 | J100: =IFERROR(VLOOKUP(W100,ATS!$AD:$AF,2,FALSE),0) -> 0 | K100: 0 | L100: =IFERROR(VLOOKUP(W100,ATS!$AD:$AF,3,FALSE),0) -> 0 | M100: =IF(L100=99999,"OPEN",IF(L100>50,"50+",IF(L100<=0,"0",L100))) -> 0 | N100: 0% | O100: =IF(N100<>0,N100,$P$5) -> 0% | P100: =VLOOKUP($C100,Prices!$A$3:$R$1996,MATCH('2) Order Form'!P$8,Prices!$A$2:$R$2,0),FALSE) -> 45.00 | Q100: =VLOOKUP($C100,Prices!$A$3:$R$1996,MATCH('2) Order Form'!Q$8,Prices!$A$2:$R$2,0),FALSE) -> 89.95 | R100: =I100*P100 -> 0 | S100: =R100*O100 -> 0 | T100: =R100-S100 -> 0 | U100: 0% | W100: 7048652661708 | Y100: 0 | Z100: =IF(A100=OFFSET(A100,-1,0),0,1) -> 0 | AA100: =IF(C100=OFFSET(C100,-1,0),0,1) -> 0 | AB100: =IF(F100=OFFSET(F100,-1,0),0,1) -> 1 | AC100: =CONCATENATE(C100,F100) -> 845108Slate Gray Metallic | AD100: =IFERROR(IF(B100="EYEWEAR",CONCATENATE(C100,"-",G100),C100),C100) -> 845108 | AE100: =VLOOKUP($C100,Classification!$A:$F,5,FALSE) -> 11.000 | AF100: =VLOOKUP($C100,Classification!$A:$F,6,FALSE) -> 1 | AG100: =INDEX(ATS!$A:$AE,MATCH('2) Order Form'!$W100,ATS!$AD:$AD,0),7) -> Active
A101: 1 | B101: =VLOOKUP(A101,Classification!$H$2:$I$11,2,FALSE) -> Helmets & Helmet Acc. | C101: =INDEX(ATS!$A:$AE,MATCH('2) Order Form'!$W101,ATS!$AD:$AD,0),1) -> 845107 | D101: =INDEX(ATS!$A:$AE,MATCH('2) Order Form'!$W101,ATS!$AD:$AD,0),2) -> Ripper Helmet JR | E101: =INDEX(ATS!$A:$AE,MATCH('2) Order Form'!$W101,ATS!$AD:$AD,0),4) -> MBLK-48/53 | F101: =INDEX(ATS!$A:$AE,MATCH('2) Order Form'!$W101,ATS!$AD:$AD,0),5) -> Matte Black | G101: =INDEX(ATS!$A:$AE,MATCH('2) Order Form'!$W101,ATS!$AD:$AD,0),6) -> 48/53 | H101: 1 | I101: 0 | J101: =IFERROR(VLOOKUP(W101,ATS!$AD:$AF,2,FALSE),0) -> 0 | K101: 0 | L101: =IFERROR(VLOOKUP(W101,ATS!$AD:$AF,3,FALSE),0) -> 0 | M101: 0 | N101: 0% | O101: 0% | P101: =VLOOKUP($C101,Prices!$A$3:$R$1996,MATCH('2) Order Form'!P$8,Prices!$A$2:$R$2,0),FALSE) -> 30.00 | Q101: =VLOOKUP($C101,Prices!$A$3:$R$1996,MATCH('2) Order Form'!Q$8,Prices!$A$2:$R$2,0),FALSE) -> 59.95 | R101: 0 | S101: 0 | T101: 0 | U101: 0% | W101: 7048652540836 | Y101: 0 | Z101: 0 | AA101: 1 | AB101: 1 | AC101: 845107Matte Black | AD101: 845107 | AE101: =VLOOKUP($C101,Classification!$A:$F,5,FALSE) -> 12.000 | AF101: =VLOOKUP($C101,Classification!$A:$F,6,FALSE) -> 1 | AG101: =INDEX(ATS!$A:$AE,MATCH('2) Order Form'!$W101,ATS!$AD:$AD,0),7) -> Active
A102: 1 | B102: =VLOOKUP(A102,Classification!$H$2:$I$11,2,FALSE) -> Helmets & Helmet Acc. | C102: =INDEX(ATS!$A:$AE,MATCH('2) Order Form'!$W102,ATS!$AD:$AD,0),1) -> 845107 | D102: =INDEX(ATS!$A:$AE,MATCH('2) Order Form'!$W102,ATS!$AD:$AD,0),2) -> Ripper Helmet JR | E102: =INDEX(ATS!$A:$AE,MATCH('2) Order Form'!$W102,ATS!$AD:$AD,0),4) -> MROP-48/53 | F102: =INDEX(ATS!$A:$AE,MATCH('2) Order Form'!$W102,ATS!$AD:$AD,0),5) -> Matte Opal Purple | G102: =INDEX(ATS!$A:$AE,MATCH('2) Order Form'!$W102,ATS!$AD:$AD,0),6) -> 48/53 | H102: 1 | I102: 0 | J102: =IFERROR(VLOOKUP(W102,ATS!$AD:$AF,2,FALSE),0) -> 0 | K102: 0 | L102: =IFERROR(VLOOKUP(W102,ATS!$AD:$AF,3,FALSE),0) -> 0 | M102: 0 | N102: 0% | O102: 0% | P102: =VLOOKUP($C102,Prices!$A$3:$R$1996,MATCH('2) Order Form'!P$8,Prices!$A$2:$R$2,0),FALSE) -> 30.00 | Q102: =VLOOKUP($C102,Prices!$A$3:$R$1996,MATCH('2) Order Form'!Q$8,Prices!$A$2:$R$2,0),FALSE) -> 59.95 | R102: 0 | S102: 0 | T102: 0 | U102: 0% | W102: 7048652552525 | Y102: 0 | Z102: 0 | AA102: 0 | AB102: 1 | AC102: 845107Matte Opal Purple | AD102: 845107 | AE102: =VLOOKUP($C102,Classification!$A:$F,5,FALSE) -> 12.000 | AF102: =VLOOKUP($C102,Classification!$A:$F,6,FALSE) -> 1 | AG102: =INDEX(ATS!$A:$AE,MATCH('2) Order Form'!$W102,ATS!$AD:$AD,0),7) -> Stock
A103: 1 | B103: =VLOOKUP(A103,Classification!$H$2:$I$11,2,FALSE) -> Helmets & Helmet Acc. | C103: =INDEX(ATS!$A:$AE,MATCH('2) Order Form'!$W103,ATS!$AD:$AD,0),1) -> 845107 | D103: =INDEX(ATS!$A:$AE,MATCH('2) Order Form'!$W103,ATS!$AD:$AD,0),2) -> Ripper Helmet JR | E103: =INDEX(ATS!$A:$AE,MATCH('2) Order Form'!$W103,ATS!$AD:$AD,0),4) -> MRBE-48/53 | F103: =INDEX(ATS!$A:$AE,MATCH('2) Order Form'!$W103,ATS!$AD:$AD,0),5) -> Matte Race Blue | G103: =INDEX(ATS!$A:$AE,MATCH('2) Order Form'!$W103,ATS!$AD:$AD,0),6) -> 48/53 | H103: 1 | I103: 0 | J103: =IFERROR(VLOOKUP(W103,ATS!$AD:$AF,2,FALSE),0) -> 0 | K103: 0 | L103: =IFERROR(VLOOKUP(W103,ATS!$AD:$AF,3,FALSE),0) -> 0 | M103: 0 | N103: 0% | O103: 0% | P103: =VLOOKUP($C103,Prices!$A$3:$R$1996,MATCH('2) Order Form'!P$8,Prices!$A$2:$R$2,0),FALSE) -> 30.00 | Q103: =VLOOKUP($C103,Prices!$A$3:$R$1996,MATCH('2) Order Form'!Q$8,Prices!$A$2:$R$2,0),FALSE) -> 59.95 | R103: 0 | S103: 0 | T103: 0 | U103: 0% | W103: 7048652552518 | Y103: 0 | Z103: 0 | AA103: 0 | AB103: 1 | AC103: 845107Matte Race Blue | AD103: 845107 | AE103: =VLOOKUP($C103,Classification!$A:$F,5,FALSE) -> 12.000 | AF103: =VLOOKUP($C103,Classification!$A:$F,6,FALSE) -> 1 | AG103: =INDEX(ATS!$A:$AE,MATCH('2) Order Form'!$W103,ATS!$AD:$AD,0),7) -> Stock
A104: 1 | B104: =VLOOKUP(A104,Classification!$H$2:$I$11,2,FALSE) -> Helmets & Helmet Acc. | C104: =INDEX(ATS!$A:$AE,MATCH('2) Order Form'!$W104,ATS!$AD:$AD,0),1) -> 845107 | D104: =INDEX(ATS!$A:$AE,MATCH('2) Order Form'!$W104,ATS!$AD:$AD,0),2) -> Ripper Helmet JR | E104: =INDEX(ATS!$A:$AE,MATCH('2) Order Form'!$W104,ATS!$AD:$AD,0),4) -> MWHT-48/53 | F104: =INDEX(ATS!$A:$AE,MATCH('2) Order Form'!$W104,ATS!$AD:$AD,0),5) -> Matte White | G104: =INDEX(ATS!$A:$AE,MATCH('2) Order Form'!$W104,ATS!$AD:$AD,0),6) -> 48/53 | H104: 1 | I104: 0 | J104: =IFERROR(VLOOKUP(W104,ATS!$AD:$AF,2,FALSE),0) -> 2 | K104: 2 | L104: =IFERROR(VLOOKUP(W104,ATS!$AD:$AF,3,FALSE),0) -> 2 | M104: 2 | N104: 0% | O104: 0% | P104: =VLOOKUP($C104,Prices!$A$3:$R$1996,MATCH('2) Order Form'!P$8,Prices!$A$2:$R$2,0),FALSE) -> 30.00 | Q104: =VLOOKUP($C104,Prices!$A$3:$R$1996,MATCH('2) Order Form'!Q$8,Prices!$A$2:$R$2,0),FALSE) -> 59.95 | R104: 0 | S104: 0 | T104: 0 | U104: 0% | W104: 7048652540874 | Y104: 0 | Z104: 0 | AA104: 0 | AB104: 1 | AC104: 845107Matte White | AD104: 845107 | AE104: =VLOOKUP($C104,Classification!$A:$F,5,FALSE) -> 12.000 | AF104: =VLOOKUP($C104,Classification!$A:$F,6,FALSE) -> 1 | AG104: =INDEX(ATS!$A:$AE,MATCH('2) Order Form'!$W104,ATS!$AD:$AD,0),7) -> Active
A105: 1 | B105: =VLOOKUP(A105,Classification!$H$2:$I$11,2,FALSE) -> Helmets & Helmet Acc. | C105: =INDEX(ATS!$A:$AE,MATCH('2) Order Form'!$W105,ATS!$AD:$AD,0),1) -> 845107 | D105: =INDEX(ATS!$A:$AE,MATCH('2) Order Form'!$W105,ATS!$AD:$AD,0),2) -> Ripper Helmet JR | E105: =INDEX(ATS!$A:$AE,MATCH('2) Order Form'!$W105,ATS!$AD:$AD,0),4) -> SGRM-48/53 | F105: =INDEX(ATS!$A:$AE,MATCH('2) Order Form'!$W105,ATS!$AD:$AD,0),5) -> Slate Gray Metallic | G105: =INDEX(ATS!$A:$AE,MATCH('2) Order Form'!$W105,ATS!$AD:$AD,0),6) -> 48/53 | H105: 1 | I105: 0 | J105: =IFERROR(VLOOKUP(W105,ATS!$AD:$AF,2,FALSE),0) -> 0 | K105: 0 | L105: =IFERROR(VLOOKUP(W105,ATS!$AD:$AF,3,FALSE),0) -> 0 | M105: 0 | N105: 0% | O105: 0% | P105: =VLOOKUP($C105,Prices!$A$3:$R$1996,MATCH('2) Order Form'!P$8,Prices!$A$2:$R$2,0),FALSE) -> 30.00 | Q105: =VLOOKUP($C105,Prices!$A$3:$R$1996,MATCH('2) Order Form'!Q$8,Prices!$A$2:$R$2,0),FALSE) -> 59.95 | R105: 0 | S105: 0 | T105: 0 | U105: 0% | W105: 7048652661715 | Y105: 0 | Z105: 0 | AA105: 0 | AB105: 1 | AC105: 845107Slate Gray Metallic | AD105: 845107 | AE105: =VLOOKUP($C105,Classification!$A:$F,5,FALSE) -> 12.000 | AF105: =VLOOKUP($C105,Classification!$A:$F,6,FALSE) -> 1 | AG105: =INDEX(ATS!$A:$AE,MATCH('2) Order Form'!$W105,ATS!$AD:$AD,0),7) -> Active
A106: 1 | B106: =VLOOKUP(A106,Classification!$H$2:$I$11,2,FALSE) -> Helmets & Helmet Acc. | C106: =INDEX(ATS!$A:$AE,MATCH('2) Order Form'!$W106,ATS!$AD:$AD,0),1) -> 845086 | D106: =INDEX(ATS!$A:$AE,MATCH('2) Order Form'!$W106,ATS!$AD:$AD,0),2) -> Tucker Mips Helmet | E106: =INDEX(ATS!$A:$AE,MATCH('2) Order Form'!$W106,ATS!$AD:$AD,0),4) -> MBLCK-M | F106: =INDEX(ATS!$A:$AE,MATCH('2) Order Form'!$W106,ATS!$AD:$AD,0),5) -> Matte Black | G106: =INDEX(ATS!$A:$AE,MATCH('2) Order Form'!$W106,ATS!$AD:$AD,0),6) -> M | H106: 1 | I106: 0 | J106: =IFERROR(VLOOKUP(W106,ATS!$AD:$AF,2,FALSE),0) -> 17 | K106: 17 | L106: =IFERROR(VLOOKUP(W106,ATS!$AD:$AF,3,FALSE),0) -> 17 | M106: 17 | N106: 0% | O106: 0% | P106: =VLOOKUP($C106,Prices!$A$3:$R$1996,MATCH('2) Order Form'!P$8,Prices!$A$2:$R$2,0),FALSE) -> 150.00 | Q106: =VLOOKUP($C106,Prices!$A$3:$R$1996,MATCH('2) Order Form'!Q$8,Prices!$A$2:$R$2,0),FALSE) -> 299.95 | R106: 0 | S106: 0 | T106: 0 | U106: 0% | W106: 7048652274564 | Y106: 0 | Z106: 0 | AA106: 1 | AB106: 1 | AC106: 845086Matte Black | AD106: 845086 | AE106: =VLOOKUP($C106,Classification!$A:$F,5,FALSE) -> 13.000 | AF106: =VLOOKUP($C106,Classification!$A:$F,6,FALSE) -> 1 | AG106: =INDEX(ATS!$A:$AE,MATCH('2) Order Form'!$W106,ATS!$AD:$AD,0),7) -> Active
A107: 1 | B107: =VLOOKUP(A107,Classification!$H$2:$I$11,2,FALSE) -> Helmets & Helmet Acc. | C107: =INDEX(ATS!$A:$AE,MATCH('2) Order Form'!$W107,ATS!$AD:$AD,0),1) -> 845086 | D107: =INDEX(ATS!$A:$AE,MATCH('2) Order Form'!$W107,ATS!$AD:$AD,0),2) -> Tucker Mips Helmet | E107: =INDEX(ATS!$A:$AE,MATCH('2) Order Form'!$W107,ATS!$AD:$AD,0),4) -> MBLCK-L | F107: =INDEX(ATS!$A:$AE,MATCH('2) Order Form'!$W107,ATS!$AD:$AD,0),5) -> Matte Black | G107: =INDEX(ATS!$A:$AE,MATCH('2) Order Form'!$W107,ATS!$AD:$AD,0),6) -> L | H107: 1 | I107: 0 | J107: =IFERROR(VLOOKUP(W107,ATS!$AD:$AF,2,FALSE),0) -> 27 | K107: 27 | L107: =IFERROR(VLOOKUP(W107,ATS!$AD:$AF,3,FALSE),0) -> 27 | M107: 27 | N107: 0% | O107: 0% | P107: =VLOOKUP($C107,Prices!$A$3:$R$1996,MATCH('2) Order Form'!P$8,Prices!$A$2:$R$2,0),FALSE) -> 150.00 | Q107: =VLOOKUP($C107,Prices!$A$3:$R$1996,MATCH('2) Order Form'!Q$8,Prices!$A$2:$R$2,0),FALSE) -> 299.95 | R107: 0 | S107: 0 | T107: 0 | U107: 0% | W107: 7048652274557 | Y107: 0 | Z107: 0 | AA107: 0 | AB107: 0 | AC107: 845086Matte Black | AD107: 845086 | AE107: =VLOOKUP($C107,Classification!$A:$F,5,FALSE) -> 13.000 | AF107: =VLOOKUP($C107,Classification!$A:$F,6,FALSE) -> 1 | AG107: =INDEX(ATS!$A:$AE,MATCH('2) Order Form'!$W107,ATS!$AD:$AD,0),7) -> Active
A108: 1 | B108: =VLOOKUP(A108,Classification!$H$2:$I$11,2,FALSE) -> Helmets & Helmet Acc. | C108: =INDEX(ATS!$A:$AE,MATCH('2) Order Form'!$W108,ATS!$AD:$AD,0),1) -> 845086 | D108: =INDEX(ATS!$A:$AE,MATCH('2) Order Form'!$W108,ATS!$AD:$AD,0),2) -> Tucker Mips Helmet | E108: =INDEX(ATS!$A:$AE,MATCH('2) Order Form'!$W108,ATS!$AD:$AD,0),4) -> MWHTE-M | F108: =INDEX(ATS!$A:$AE,MATCH('2) Order Form'!$W108,ATS!$AD:$AD,0),5) -> Matte White | G108: =INDEX(ATS!$A:$AE,MATCH('2) Order Form'!$W108,ATS!$AD:$AD,0),6) -> M | H108: 1 | I108: 0 | J108: =IFERROR(VLOOKUP(W108,ATS!$AD:$AF,2,FALSE),0) -> 8 | K108: 8 | L108: =IFERROR(VLOOKUP(W108,ATS!$AD:$AF,3,FALSE),0) -> 8 | M108: 8 | N108: 0% | O108: 0% | P108: =VLOOKUP($C108,Prices!$A$3:$R$1996,MATCH('2) Order Form'!P$8,Prices!$A$2:$R$2,0),FALSE) -> 150.00 | Q108: =VLOOKUP($C108,Prices!$A$3:$R$1996,MATCH('2) Order Form'!Q$8,Prices!$A$2:$R$2,0),FALSE) -> 299.95 | R108: 0 | S108: 0 | T108: 0 | U108: 0% | W108: 7048652274601 | Y108: 0 | Z108: 0 | AA108: 0 | AB108: 1 | AC108: 845086Matte White | AD108: 845086 | AE108: =VLOOKUP($C108,Classification!$A:$F,5,FALSE) -> 13.000 | AF108: =VLOOKUP($C108,Classification!$A:$F,6,FALSE) -> 1 | AG108: =INDEX(ATS!$A:$AE,MATCH('2) Order Form'!$W108,ATS!$AD:$AD,0),7) -> Active
A109: 1 | B109: =VLOOKUP(A109,Classification!$H$2:$I$11,2,FALSE) -> Helmets & Helmet Acc. | C109: =INDEX(ATS!$A:$AE,MATCH('2) Order Form'!$W109,ATS!$AD:$AD,0),1) -> 845086 | D109: =INDEX(ATS!$A:$AE,MATCH('2) Order Form'!$W109,ATS!$AD:$AD,0),2) -> Tucker Mips Helmet | E109: =INDEX(ATS!$A:$AE,MATCH('2) Order Form'!$W109,ATS!$AD:$AD,0),4) -> MWHTE-L | F109: =INDEX(ATS!$A:$AE,MATCH('2) Order Form'!$W109,ATS!$AD:$AD,0),5) -> Matte White | G109: =INDEX(ATS!$A:$AE,MATCH('2) Order Form'!$W109,ATS!$AD:$AD,0),6) -> L | H109: 1 | I109: 0 | J109: =IFERROR(VLOOKUP(W109,ATS!$AD:$AF,2,FALSE),0) -> 18 | K109: 18 | L109: =IFERROR(VLOOKUP(W109,ATS!$AD:$AF,3,FALSE),0) -> 18 | M109: 18 | N109: 0% | O109: 0% | P109: =VLOOKUP($C109,Prices!$A$3:$R$1996,MATCH('2) Order Form'!P$8,Prices!$A$2:$R$2,0),FALSE) -> 150.00 | Q109: =VLOOKUP($C109,Prices!$A$3:$R$1996,MATCH('2) Order Form'!Q$8,Prices!$A$2:$R$2,0),FALSE) -> 299.95 | R109: 0 | S109: 0 | T109: 0 | U109: 0% | W109: 7048652274595 | Y109: 0 | Z109: 0 | AA109: 0 | AB109: 0 | AC109: 845086Matte White | AD109: 845086 | AE109: =VLOOKUP($C109,Classification!$A:$F,5,FALSE) -> 13.000 | AF109: =VLOOKUP($C109,Classification!$A:$F,6,FALSE) -> 1 | AG109: =INDEX(ATS!$A:$AE,MATCH('2) Order Form'!$W109,ATS!$AD:$AD,0),7) -> Active
A110: 1 | B110: =VLOOKUP(A110,Classification!$H$2:$I$11,2,FALSE) -> Helmets & Helmet Acc. | C110: =INDEX(ATS!$A:$AE,MATCH('2) Order Form'!$W110,ATS!$AD:$AD,0),1) -> 845111 | D110: =INDEX(ATS!$A:$AE,MATCH('2) Order Form'!$W110,ATS!$AD:$AD,0),2) -> Falconer II Aero MIPS Helmet | E110: =INDEX(ATS!$A:$AE,MATCH('2) Order Form'!$W110,ATS!$AD:$AD,0),4) -> ABLCK-M | F110: =INDEX(ATS!$A:$AE,MATCH('2) Order Form'!$W110,ATS!$AD:$AD,0),5) -> All Black | G110: =INDEX(ATS!$A:$AE,MATCH('2) Order Form'!$W110,ATS!$AD:$AD,0),6) -> M | H110: 1 | I110: 0 | J110: =IFERROR(VLOOKUP(W110,ATS!$AD:$AF,2,FALSE),0) -> 70 | K110: 50+ | L110: =IFERROR(VLOOKUP(W110,ATS!$AD:$AF,3,FALSE),0) -> 70 | M110: 50+ | N110: 0% | O110: 0% | P110: =VLOOKUP($C110,Prices!$A$3:$R$1996,MATCH('2) Order Form'!P$8,Prices!$A$2:$R$2,0),FALSE) -> 145.00 | Q110: =VLOOKUP($C110,Prices!$A$3:$R$1996,MATCH('2) Order Form'!Q$8,Prices!$A$2:$R$2,0),FALSE) -> 289.95 | R110: 0 | S110: 0 | T110: 0 | U110: 0% | W110: 7048652660602 | Y110: 0 | Z110: 0 | AA110: 1 | AB110: 1 | AC110: 845111All Black | AD110: 845111 | AE110: =VLOOKUP($C110,Classification!$A:$F,5,FALSE) -> 14.000 | AF110: =VLOOKUP($C110,Classification!$A:$F,6,FALSE) -> 1 | AG110: =INDEX(ATS!$A:$AE,MATCH('2) Order Form'!$W110,ATS!$AD:$AD,0),7) -> Active
A111: 1 | B111: =VLOOKUP(A111,Classification!$H$2:$I$11,2,FALSE) -> Helmets & Helmet Acc. | C111: =INDEX(ATS!$A:$AE,MATCH('2) Order Form'!$W111,ATS!$AD:$AD,0),1) -> 845111 | D111: =INDEX(ATS!$A:$AE,MATCH('2) Order Form'!$W111,ATS!$AD:$AD,0),2) -> Falconer II Aero MIPS Helmet | E111: =INDEX(ATS!$A:$AE,MATCH('2) Order Form'!$W111,ATS!$AD:$AD,0),4) -> ABLCK-L | F111: =INDEX(ATS!$A:$AE,MATCH('2) Order Form'!$W111,ATS!$AD:$AD,0),5) -> All Black | G111: =INDEX(ATS!$A:$AE,MATCH('2) Order Form'!$W111,ATS!$AD:$AD,0),6) -> L | H111: 1 | I111: 0 | J111: =IFERROR(VLOOKUP(W111,ATS!$AD:$AF,2,FALSE),0) -> 52 | K111: 50+ | L111: =IFERROR(VLOOKUP(W111,ATS!$AD:$AF,3,FALSE),0) -> 52 | M111: 50+ | N111: 0% | O111: 0% | P111: =VLOOKUP($C111,Prices!$A$3:$R$1996,MATCH('2) Order Form'!P$8,Prices!$A$2:$R$2,0),FALSE) -> 145.00 | Q111: =VLOOKUP($C111,Prices!$A$3:$R$1996,MATCH('2) Order Form'!Q$8,Prices!$A$2:$R$2,0),FALSE) -> 289.95 | R111: 0 | S111: 0 | T111: 0 | U111: 0% | W111: 7048652660596 | Y111: 0 | Z111: 0 | AA111: 0 | AB111: 0 | AC111: 845111All Black | AD111: 845111 | AE111: =VLOOKUP($C111,Classification!$A:$F,5,FALSE) -> 14.000 | AF111: =VLOOKUP($C111,Classification!$A:$F,6,FALSE) -> 1 | AG111: =INDEX(ATS!$A:$AE,MATCH('2) Order Form'!$W111,ATS!$AD:$AD,0),7) -> Active
A112: 1 | B112: =VLOOKUP(A112,Classification!$H$2:$I$11,2,FALSE) -> Helmets & Helmet Acc. | C112: =INDEX(ATS!$A:$AE,MATCH('2) Order Form'!$W112,ATS!$AD:$AD,0),1) -> 845111 | D112: =INDEX(ATS!$A:$AE,MATCH('2) Order Form'!$W112,ATS!$AD:$AD,0),2) -> Falconer II Aero MIPS Helmet | E112: =INDEX(ATS!$A:$AE,MATCH('2) Order Form'!$W112,ATS!$AD:$AD,0),4) -> MCHOR-M | F112: =INDEX(ATS!$A:$AE,MATCH('2) Order Form'!$W112,ATS!$AD:$AD,0),5) -> Matte Chopper Orange | G112: =INDEX(ATS!$A:$AE,MATCH('2) Order Form'!$W112,ATS!$AD:$AD,0),6) -> M | H112: 1 | I112: 0 | J112: =IFERROR(VLOOKUP(W112,ATS!$AD:$AF,2,FALSE),0) -> 15 | K112: 15 | L112: =IFERROR(VLOOKUP(W112,ATS!$AD:$AF,3,FALSE),0) -> 15 | M112: 15 | N112: 0% | O112: 0% | P112: =VLOOKUP($C112,Prices!$A$3:$R$1996,MATCH('2) Order Form'!P$8,Prices!$A$2:$R$2,0),FALSE) -> 145.00 | Q112: =VLOOKUP($C112,Prices!$A$3:$R$1996,MATCH('2) Order Form'!Q$8,Prices!$A$2:$R$2,0),FALSE) -> 289.95 | R112: 0 | S112: 0 | T112: 0 | U112: 0% | W112: 7048652660640 | Y112: 0 | Z112: 0 | AA112: 0 | AB112: 1 | AC112: 845111Matte Chopper Orange | AD112: 845111 | AE112: =VLOOKUP($C112,Classification!$A:$F,5,FALSE) -> 14.000 | AF112: =VLOOKUP($C112,Classification!$A:$F,6,FALSE) -> 1 | AG112: =INDEX(ATS!$A:$AE,MATCH('2) Order Form'!$W112,ATS!$AD:$AD,0),7) -> Stock
A113: 1 | B113: =VLOOKUP(A113,Classification!$H$2:$I$11,2,FALSE) -> Helmets & Helmet Acc. | C113: =INDEX(ATS!$A:$AE,MATCH('2) Order Form'!$W113,ATS!$AD:$AD,0),1) -> 845111 | D113: =INDEX(ATS!$A:$AE,MATCH('2) Order Form'!$W113,ATS!$AD:$AD,0),2) -> Falconer II Aero MIPS Helmet | E113: =INDEX(ATS!$A:$AE,MATCH('2) Order Form'!$W113,ATS!$AD:$AD,0),4) -> MCHOR-L | F113: =INDEX(ATS!$A:$AE,MATCH('2) Order Form'!$W113,ATS!$AD:$AD,0),5) -> Matte Chopper Orange | G113: =INDEX(ATS!$A:$AE,MATCH('2) Order Form'!$W113,ATS!$AD:$AD,0),6) -> L | H113: 1 | I113: 0 | J113: =IFERROR(VLOOKUP(W113,ATS!$AD:$AF,2,FALSE),0) -> 14 | K113: 14 | L113: =IFERROR(VLOOKUP(W113,ATS!$AD:$AF,3,FALSE),0) -> 14 | M113: 14 | N113: 0% | O113: 0% | P113: =VLOOKUP($C113,Prices!$A$3:$R$1996,MATCH('2) Order Form'!P$8,Prices!$A$2:$R$2,0),FALSE) -> 145.00 | Q113: =VLOOKUP($C113,Prices!$A$3:$R$1996,MATCH('2) Order Form'!Q$8,Prices!$A$2:$R$2,0),FALSE) -> 289.95 | R113: 0 | S113: 0 | T113: 0 | U113: 0% | W113: 7048652660633 | Y113: 0 | Z113: 0 | AA113: 0 | AB113: 0 | AC113: 845111Matte Chopper Orange | AD113: 845111 | AE113: =VLOOKUP($C113,Classification!$A:$F,5,FALSE) -> 14.000 | AF113: =VLOOKUP($C113,Classification!$A:$F,6,FALSE) -> 1 | AG113: =INDEX(ATS!$A:$AE,MATCH('2) Order Form'!$W113,ATS!$AD:$AD,0),7) -> Stock
A114: 1 | B114: =VLOOKUP(A114,Classification!$H$2:$I$11,2,FALSE) -> Helmets & Helmet Acc. | C114: =INDEX(ATS!$A:$AE,MATCH('2) Order Form'!$W114,ATS!$AD:$AD,0),1) -> 845111 | D114: =INDEX(ATS!$A:$AE,MATCH('2) Order Form'!$W114,ATS!$AD:$AD,0),2) -> Falconer II Aero MIPS Helmet | E114: =INDEX(ATS!$A:$AE,MATCH('2) Order Form'!$W114,ATS!$AD:$AD,0),4) -> MCDGY-M | F114: =INDEX(ATS!$A:$AE,MATCH('2) Order Form'!$W114,ATS!$AD:$AD,0),5) -> Matte Cloud Gray | G114: =INDEX(ATS!$A:$AE,MATCH('2) Order Form'!$W114,ATS!$AD:$AD,0),6) -> M | H114: 1 | I114: 0 | J114: =IFERROR(VLOOKUP(W114,ATS!$AD:$AF,2,FALSE),0) -> 12 | K114: 12 | L114: =IFERROR(VLOOKUP(W114,ATS!$AD:$AF,3,FALSE),0) -> 12 | M114: 12 | N114: 0% | O114: 0% | P114: =VLOOKUP($C114,Prices!$A$3:$R$1996,MATCH('2) Order Form'!P$8,Prices!$A$2:$R$2,0),FALSE) -> 145.00 | Q114: =VLOOKUP($C114,Prices!$A$3:$R$1996,MATCH('2) Order Form'!Q$8,Prices!$A$2:$R$2,0),FALSE) -> 289.95 | R114: 0 | S114: 0 | T114: 0 | U114: 0% | W114: 7048652660626 | Y114: 0 | Z114: 0 | AA114: 0 | AB114: 1 | AC114: 845111Matte Cloud Gray | AD114: 845111 | AE114: =VLOOKUP($C114,Classification!$A:$F,5,FALSE) -> 14.000 | AF114: =VLOOKUP($C114,Classification!$A:$F,6,FALSE) -> 1 | AG114: =INDEX(ATS!$A:$AE,MATCH('2) Order Form'!$W114,ATS!$AD:$AD,0),7) -> Active
A115: 1 | B115: =VLOOKUP(A115,Classification!$H$2:$I$11,2,FALSE) -> Helmets & Helmet Acc. | C115: =INDEX(ATS!$A:$AE,MATCH('2) Order Form'!$W115,ATS!$AD:$AD,0),1) -> 845111 | D115: =INDEX(ATS!$A:$AE,MATCH('2) Order Form'!$W115,ATS!$AD:$AD,0),2) -> Falconer II Aero MIPS Helmet | E115: =INDEX(ATS!$A:$AE,MATCH('2) Order Form'!$W115,ATS!$AD:$AD,0),4) -> MCDGY-L | F115: =INDEX(ATS!$A:$AE,MATCH('2) Order Form'!$W115,ATS!$AD:$AD,0),5) -> Matte Cloud Gray | G115: =INDEX(ATS!$A:$AE,MATCH('2) Order Form'!$W115,ATS!$AD:$AD,0),6) -> L | H115: 1 | I115: 0 | J115: =IFERROR(VLOOKUP(W115,ATS!$AD:$AF,2,FALSE),0) -> 0 | K115: 0 | L115: =IFERROR(VLOOKUP(W115,ATS!$AD:$AF,3,FALSE),0) -> 0 | M115: 0 | N115: 0% | O115: 0% | P115: =VLOOKUP($C115,Prices!$A$3:$R$1996,MATCH('2) Order Form'!P$8,Prices!$A$2:$R$2,0),FALSE) -> 145.00 | Q115: =VLOOKUP($C115,Prices!$A$3:$R$1996,MATCH('2) Order Form'!Q$8,Prices!$A$2:$R$2,0),FALSE) -> 289.95 | R115: 0 | S115: 0 | T115: 0 | U115: 0% | W115: 7048652660619 | Y115: 0 | Z115: 0 | AA115: 0 | AB115: 0 | AC115: 845111Matte Cloud Gray | AD115: 845111 | AE115: =VLOOKUP($C115,Classification!$A:$F,5,FALSE) -> 14.000 | AF115: =VLOOKUP($C115,Classification!$A:$F,6,FALSE) -> 1 | AG115: =INDEX(ATS!$A:$AE,MATCH('2) Order Form'!$W115,ATS!$AD:$AD,0),7) -> Active
A116: 1 | B116: =VLOOKUP(A116,Classification!$H$2:$I$11,2,FALSE) -> Helmets & Helmet Acc. | C116: =INDEX(ATS!$A:$AE,MATCH('2) Order Form'!$W116,ATS!$AD:$AD,0),1) -> 845111 | D116: =INDEX(ATS!$A:$AE,MATCH('2) Order Form'!$W116,ATS!$AD:$AD,0),2) -> Falconer II Aero MIPS Helmet | E116: =INDEX(ATS!$A:$AE,MATCH('2) Order Form'!$W116,ATS!$AD:$AD,0),4) -> MNGRY-M | F116: =INDEX(ATS!$A:$AE,MATCH('2) Order Form'!$W116,ATS!$AD:$AD,0),5) -> Matte Nardo Gray | G116: =INDEX(ATS!$A:$AE,MATCH('2) Order Form'!$W116,ATS!$AD:$AD,0),6) -> M | H116: 1 | I116: 0 | J116: =IFERROR(VLOOKUP(W116,ATS!$AD:$AF,2,FALSE),0) -> 0 | K116: 0 | L116: =IFERROR(VLOOKUP(W116,ATS!$AD:$AF,3,FALSE),0) -> 0 | M116: 0 | N116: 0% | O116: 0% | P116: =VLOOKUP($C116,Prices!$A$3:$R$1996,MATCH('2) Order Form'!P$8,Prices!$A$2:$R$2,0),FALSE) -> 145.00 | Q116: =VLOOKUP($C116,Prices!$A$3:$R$1996,MATCH('2) Order Form'!Q$8,Prices!$A$2:$R$2,0),FALSE) -> 289.95 | R116: 0 | S116: 0 | T116: 0 | U116: 0% | W116: 7048652660664 | Y116: 0 | Z116: 0 | AA116: 0 | AB116: 1 | AC116: 845111Matte Nardo Gray | AD116: 845111 | AE116: =VLOOKUP($C116,Classification!$A:$F,5,FALSE) -> 14.000 | AF116: =VLOOKUP($C116,Classification!$A:$F,6,FALSE) -> 1 | AG116: =INDEX(ATS!$A:$AE,MATCH('2) Order Form'!$W116,ATS!$AD:$AD,0),7) -> Stock
A117: 1 | B117: =VLOOKUP(A117,Classification!$H$2:$I$11,2,FALSE) -> Helmets & Helmet Acc. | C117: =INDEX(ATS!$A:$AE,MATCH('2) Order Form'!$W117,ATS!$AD:$AD,0),1) -> 845111 | D117: =INDEX(ATS!$A:$AE,MATCH('2) Order Form'!$W117,ATS!$AD:$AD,0),2) -> Falconer II Aero MIPS Helmet | E117: =INDEX(ATS!$A:$AE,MATCH('2) Order Form'!$W117,ATS!$AD:$AD,0),4) -> MNGRY-L | F117: =INDEX(ATS!$A:$AE,MATCH('2) Order Form'!$W117,ATS!$AD:$AD,0),5) -> Matte Nardo Gray | G117: =INDEX(ATS!$A:$AE,MATCH('2) Order Form'!$W117,ATS!$AD:$AD,0),6) -> L | H117: 1 | I117: 0 | J117: =IFERROR(VLOOKUP(W117,ATS!$AD:$AF,2,FALSE),0) -> 0 | K117: 0 | L117: =IFERROR(VLOOKUP(W117,ATS!$AD:$AF,3,FALSE),0) -> 0 | M117: 0 | N117: 0% | O117: 0% | P117: =VLOOKUP($C117,Prices!$A$3:$R$1996,MATCH('2) Order Form'!P$8,Prices!$A$2:$R$2,0),FALSE) -> 145.00 | Q117: =VLOOKUP($C117,Prices!$A$3:$R$1996,MATCH('2) Order Form'!Q$8,Prices!$A$2:$R$2,0),FALSE) -> 289.95 | R117: 0 | S117: 0 | T117: 0 | U117: 0% | W117: 7048652660657 | Y117: 0 | Z117: 0 | AA117: 0 | AB117: 0 | AC117: 845111Matte Nardo Gray | AD117: 845111 | AE117: =VLOOKUP($C117,Classification!$A:$F,5,FALSE) -> 14.000 | AF117: =VLOOKUP($C117,Classification!$A:$F,6,FALSE) -> 1 | AG117: =INDEX(ATS!$A:$AE,MATCH('2) Order Form'!$W117,ATS!$AD:$AD,0),7) -> Stock
A118: 1 | B118: =VLOOKUP(A118,Classification!$H$2:$I$11,2,FALSE) -> Helmets & Helmet Acc. | C118: =INDEX(ATS!$A:$AE,MATCH('2) Order Form'!$W118,ATS!$AD:$AD,0),1) -> 845077 | D118: =INDEX(ATS!$A:$AE,MATCH('2) Order Form'!$W118,ATS!$AD:$AD,0),2) -> Falconer II Aero Helmet | E118: =INDEX(ATS!$A:$AE,MATCH('2) Order Form'!$W118,ATS!$AD:$AD,0),4) -> ABLCK-M | F118: =INDEX(ATS!$A:$AE,MATCH('2) Order Form'!$W118,ATS!$AD:$AD,0),5) -> All Black | G118: =INDEX(ATS!$A:$AE,MATCH('2) Order Form'!$W118,ATS!$AD:$AD,0),6) -> M | H118: 1 | I118: 0 | J118: =IFERROR(VLOOKUP(W118,ATS!$AD:$AF,2,FALSE),0) -> 210 | K118: 50+ | L118: =IFERROR(VLOOKUP(W118,ATS!$AD:$AF,3,FALSE),0) -> 210 | M118: 50+ | N118: 0% | O118: 0% | P118: =VLOOKUP($C118,Prices!$A$3:$R$1996,MATCH('2) Order Form'!P$8,Prices!$A$2:$R$2,0),FALSE) -> 130.00 | Q118: =VLOOKUP($C118,Prices!$A$3:$R$1996,MATCH('2) Order Form'!Q$8,Prices!$A$2:$R$2,0),FALSE) -> 259.95 | R118: 0 | S118: 0 | T118: 0 | U118: 0% | W118: 7048652660527 | Y118: 0 | Z118: 0 | AA118: 1 | AB118: 1 | AC118: 845077All Black | AD118: 845077 | AE118: =VLOOKUP($C118,Classification!$A:$F,5,FALSE) -> 15.000 | AF118: =VLOOKUP($C118,Classification!$A:$F,6,FALSE) -> 1 | AG118: =INDEX(ATS!$A:$AE,MATCH('2) Order Form'!$W118,ATS!$AD:$AD,0),7) -> Active
A119: 1 | B119: =VLOOKUP(A119,Classification!$H$2:$I$11,2,FALSE) -> Helmets & Helmet Acc. | C119: =INDEX(ATS!$A:$AE,MATCH('2) Order Form'!$W119,ATS!$AD:$AD,0),1) -> 845077 | D119: =INDEX(ATS!$A:$AE,MATCH('2) Order Form'!$W119,ATS!$AD:$AD,0),2) -> Falconer II Aero Helmet | E119: =INDEX(ATS!$A:$AE,MATCH('2) Order Form'!$W119,ATS!$AD:$AD,0),4) -> ABLCK-L | F119: =INDEX(ATS!$A:$AE,MATCH('2) Order Form'!$W119,ATS!$AD:$AD,0),5) -> All Black | G119: =INDEX(ATS!$A:$AE,MATCH('2) Order Form'!$W119,ATS!$AD:$AD,0),6) -> L | H119: 1 | I119: 0 | J119: =IFERROR(VLOOKUP(W119,ATS!$AD:$AF,2,FALSE),0) -> 43 | K119: 43 | L119: =IFERROR(VLOOKUP(W119,ATS!$AD:$AF,3,FALSE),0) -> 43 | M119: 43 | N119: 0% | O119: 0% | P119: =VLOOKUP($C119,Prices!$A$3:$R$1996,MATCH('2) Order Form'!P$8,Prices!$A$2:$R$2,0),FALSE) -> 130.00 | Q119: =VLOOKUP($C119,Prices!$A$3:$R$1996,MATCH('2) Order Form'!Q$8,Prices!$A$2:$R$2,0),FALSE) -> 259.95 | R119: 0 | S119: 0 | T119: 0 | U119: 0% | W119: 7048652660510 | Y119: 0 | Z119: 0 | AA119: 0 | AB119: 0 | AC119: 845077All Black | AD119: 845077 | AE119: =VLOOKUP($C119,Classification!$A:$F,5,FALSE) -> 15.000 | AF119: =VLOOKUP($C119,Classification!$A:$F,6,FALSE) -> 1 | AG119: =INDEX(ATS!$A:$AE,MATCH('2) Order Form'!$W119,ATS!$AD:$AD,0),7) -> Active
A120: 1 | B120: =VLOOKUP(A120,Classification!$H$2:$I$11,2,FALSE) -> Helmets & Helmet Acc. | C120: =INDEX(ATS!$A:$AE,MATCH('2) Order Form'!$W120,ATS!$AD:$AD,0),1) -> 845077 | D120: =INDEX(ATS!$A:$AE,MATCH('2) Order Form'!$W120,ATS!$AD:$AD,0),2) -> Falconer II Aero Helmet | E120: =INDEX(ATS!$A:$AE,MATCH('2) Order Form'!$W120,ATS!$AD:$AD,0),4) -> MCHOR-M | F120: =INDEX(ATS!$A:$AE,MATCH('2) Order Form'!$W120,ATS!$AD:$AD,0),5) -> Matte Chopper Orange | G120: =INDEX(ATS!$A:$AE,MATCH('2) Order Form'!$W120,ATS!$AD:$AD,0),6) -> M | H120: 1 | I120: 0 | J120: =IFERROR(VLOOKUP(W120,ATS!$AD:$AF,2,FALSE),0) -> 38 | K120: 38 | L120: =IFERROR(VLOOKUP(W120,ATS!$AD:$AF,3,FALSE),0) -> 38 | M120: 38 | N120: 0% | O120: 0% | P120: =VLOOKUP($C120,Prices!$A$3:$R$1996,MATCH('2) Order Form'!P$8,Prices!$A$2:$R$2,0),FALSE) -> 130.00 | Q120: =VLOOKUP($C120,Prices!$A$3:$R$1996,MATCH('2) Order Form'!Q$8,Prices!$A$2:$R$2,0),FALSE) -> 259.95 | R120: 0 | S120: 0 | T120: 0 | U120: 0% | W120: 7048652660565 | Y120: 0 | Z120: 0 | AA120: 0 | AB120: 1 | AC120: 845077Matte Chopper Orange | AD120: 845077 | AE120: =VLOOKUP($C120,Classification!$A:$F,5,FALSE) -> 15.000 | AF120: =VLOOKUP($C120,Classification!$A:$F,6,FALSE) -> 1 | AG120: =INDEX(ATS!$A:$AE,MATCH('2) Order Form'!$W120,ATS!$AD:$AD,0),7) -> Stock
A121: 1 | B121: =VLOOKUP(A121,Classification!$H$2:$I$11,2,FALSE) -> Helmets & Helmet Acc. | C121: =INDEX(ATS!$A:$AE,MATCH('2) Order Form'!$W121,ATS!$AD:$AD,0),1) -> 845077 | D121: =INDEX(ATS!$A:$AE,MATCH('2) Order Form'!$W121,ATS!$AD:$AD,0),2) -> Falconer II Aero Helmet | E121: =INDEX(ATS!$A:$AE,MATCH('2) Order Form'!$W121,ATS!$AD:$AD,0),4) -> MCHOR-L | F121: =INDEX(ATS!$A:$AE,MATCH('2) Order Form'!$W121,ATS!$AD:$AD,0),5) -> Matte Chopper Orange | G121: =INDEX(ATS!$A:$AE,MATCH('2) Order Form'!$W121,ATS!$AD:$AD,0),6) -> L | H121: 1 | I121: 0 | J121: =IFERROR(VLOOKUP(W121,ATS!$AD:$AF,2,FALSE),0) -> 33 | K121: 33 | L121: =IFERROR(VLOOKUP(W121,ATS!$AD:$AF,3,FALSE),0) -> 33 | M121: 33 | N121: 0% | O121: 0% | P121: =VLOOKUP($C121,Prices!$A$3:$R$1996,MATCH('2) Order Form'!P$8,Prices!$A$2:$R$2,0),FALSE) -> 130.00 | Q121: =VLOOKUP($C121,Prices!$A$3:$R$1996,MATCH('2) Order Form'!Q$8,Prices!$A$2:$R$2,0),FALSE) -> 259.95 | R121: 0 | S121: 0 | T121: 0 | U121: 0% | W121: 7048652660558 | Y121: 0 | Z121: 0 | AA121: 0 | AB121: 0 | AC121: 845077Matte Chopper Orange | AD121: 845077 | AE121: =VLOOKUP($C121,Classification!$A:$F,5,FALSE) -> 15.000 | AF121: =VLOOKUP($C121,Classification!$A:$F,6,FALSE) -> 1 | AG121: =INDEX(ATS!$A:$AE,MATCH('2) Order Form'!$W121,ATS!$AD:$AD,0),7) -> Stock
A122: 1 | B122: =VLOOKUP(A122,Classification!$H$2:$I$11,2,FALSE) -> Helmets & Helmet Acc. | C122: =INDEX(ATS!$A:$AE,MATCH('2) Order Form'!$W122,ATS!$AD:$AD,0),1) -> 845077 | D122: =INDEX(ATS!$A:$AE,MATCH('2) Order Form'!$W122,ATS!$AD:$AD,0),2) -> Falconer II Aero Helmet | E122: =INDEX(ATS!$A:$AE,MATCH('2) Order Form'!$W122,ATS!$AD:$AD,0),4) -> MCDGY-M | F122: =INDEX(ATS!$A:$AE,MATCH('2) Order Form'!$W122,ATS!$AD:$AD,0),5) -> Matte Cloud Gray | G122: =INDEX(ATS!$A:$AE,MATCH('2) Order Form'!$W122,ATS!$AD:$AD,0),6) -> M | H122: 1 | I122: 0 | J122: =IFERROR(VLOOKUP(W122,ATS!$AD:$AF,2,FALSE),0) -> 0 | K122: 0 | L122: =IFERROR(VLOOKUP(W122,ATS!$AD:$AF,3,FALSE),0) -> 0 | M122: 0 | N122: 0% | O122: 0% | P122: =VLOOKUP($C122,Prices!$A$3:$R$1996,MATCH('2) Order Form'!P$8,Prices!$A$2:$R$2,0),FALSE) -> 130.00 | Q122: =VLOOKUP($C122,Prices!$A$3:$R$1996,MATCH('2) Order Form'!Q$8,Prices!$A$2:$R$2,0),FALSE) -> 259.95 | R122: 0 | S122: 0 | T122: 0 | U122: 0% | W122: 7048652660541 | Y122: 0 | Z122: 0 | AA122: 0 | AB122: 1 | AC122: 845077Matte Cloud Gray | AD122: 845077 | AE122: =VLOOKUP($C122,Classification!$A:$F,5,FALSE) -> 15.000 | AF122: =VLOOKUP($C122,Classification!$A:$F,6,FALSE) -> 1 | AG122: =INDEX(ATS!$A:$AE,MATCH('2) Order Form'!$W122,ATS!$AD:$AD,0),7) -> Active
A123: 1 | B123: =VLOOKUP(A123,Classification!$H$2:$I$11,2,FALSE) -> Helmets & Helmet Acc. | C123: =INDEX(ATS!$A:$AE,MATCH('2) Order Form'!$W123,ATS!$AD:$AD,0),1) -> 845077 | D123: =INDEX(ATS!$A:$AE,MATCH('2) Order Form'!$W123,ATS!$AD:$AD,0),2) -> Falconer II Aero Helmet | E123: =INDEX(ATS!$A:$AE,MATCH('2) Order Form'!$W123,ATS!$AD:$AD,0),4) -> MCDGY-L | F123: =INDEX(ATS!$A:$AE,MATCH('2) Order Form'!$W123,ATS!$AD:$AD,0),5) -> Matte Cloud Gray | G123: =INDEX(ATS!$A:$AE,MATCH('2) Order Form'!$W123,ATS!$AD:$AD,0),6) -> L | H123: 1 | I123: 0 | J123: =IFERROR(VLOOKUP(W123,ATS!$AD:$AF,2,FALSE),0) -> 16 | K123: 16 | L123: =IFERROR(VLOOKUP(W123,ATS!$AD:$AF,3,FALSE),0) -> 16 | M123: 16 | N123: 0% | O123: 0% | P123: =VLOOKUP($C123,Prices!$A$3:$R$1996,MATCH('2) Order Form'!P$8,Prices!$A$2:$R$2,0),FALSE) -> 130.00 | Q123: =VLOOKUP($C123,Prices!$A$3:$R$1996,MATCH('2) Order Form'!Q$8,Prices!$A$2:$R$2,0),FALSE) -> 259.95 | R123: 0 | S123: 0 | T123: 0 | U123: 0% | W123: 7048652660534 | Y123: 0 | Z123: 0 | AA123: 0 | AB123: 0 | AC123: 845077Matte Cloud Gray | AD123: 845077 | AE123: =VLOOKUP($C123,Classification!$A:$F,5,FALSE) -> 15.000 | AF123: =VLOOKUP($C123,Classification!$A:$F,6,FALSE) -> 1 | AG123: =INDEX(ATS!$A:$AE,MATCH('2) Order Form'!$W123,ATS!$AD:$AD,0),7) -> Active
A124: 1 | B124: =VLOOKUP(A124,Classification!$H$2:$I$11,2,FALSE) -> Helmets & Helmet Acc. | C124: =INDEX(ATS!$A:$AE,MATCH('2) Order Form'!$W124,ATS!$AD:$AD,0),1) -> 845077 | D124: =INDEX(ATS!$A:$AE,MATCH('2) Order Form'!$W124,ATS!$AD:$AD,0),2) -> Falconer II Aero Helmet | E124: =INDEX(ATS!$A:$AE,MATCH('2) Order Form'!$W124,ATS!$AD:$AD,0),4) -> MNGRY-M | F124: =INDEX(ATS!$A:$AE,MATCH('2) Order Form'!$W124,ATS!$AD:$AD,0),5) -> Matte Nardo Gray | G124: =INDEX(ATS!$A:$AE,MATCH('2) Order Form'!$W124,ATS!$AD:$AD,0),6) -> M | H124: 1 | I124: 0 | J124: =IFERROR(VLOOKUP(W124,ATS!$AD:$AF,2,FALSE),0) -> 6 | K124: 6 | L124: =IFERROR(VLOOKUP(W124,ATS!$AD:$AF,3,FALSE),0) -> 6 | M124: =IF(L124=99999,"OPEN",IF(L124>50,"50+",IF(L124<=0,"0",L124))) -> 6 | N124: 0% | O124: =IF(N124<>0,N124,$P$5) -> 0% | P124: =VLOOKUP($C124,Prices!$A$3:$R$1996,MATCH('2) Order Form'!P$8,Prices!$A$2:$R$2,0),FALSE) -> 130.00 | Q124: =VLOOKUP($C124,Prices!$A$3:$R$1996,MATCH('2) Order Form'!Q$8,Prices!$A$2:$R$2,0),FALSE) -> 259.95 | R124: =I124*P124 -> 0 | S124: =R124*O124 -> 0 | T124: =R124-S124 -> 0 | U124: 0% | W124: 7048652660589 | Y124: 0 | Z124: =IF(A124=OFFSET(A124,-1,0),0,1) -> 0 | AA124: =IF(C124=OFFSET(C124,-1,0),0,1) -> 0 | AB124: =IF(F124=OFFSET(F124,-1,0),0,1) -> 1 | AC124: =CONCATENATE(C124,F124) -> 845077Matte Nardo Gray | AD124: =IFERROR(IF(B124="EYEWEAR",CONCATENATE(C124,"-",G124),C124),C124) -> 845077 | AE124: =VLOOKUP($C124,Classification!$A:$F,5,FALSE) -> 15.000 | AF124: =VLOOKUP($C124,Classification!$A:$F,6,FALSE) -> 1 | AG124: =INDEX(ATS!$A:$AE,MATCH('2) Order Form'!$W124,ATS!$AD:$AD,0),7) -> Stock
A125: 1 | B125: =VLOOKUP(A125,Classification!$H$2:$I$11,2,FALSE) -> Helmets & Helmet Acc. | C125: =INDEX(ATS!$A:$AE,MATCH('2) Order Form'!$W125,ATS!$AD:$AD,0),1) -> 845077 | D125: =INDEX(ATS!$A:$AE,MATCH('2) Order Form'!$W125,ATS!$AD:$AD,0),2) -> Falconer II Aero Helmet | E125: =INDEX(ATS!$A:$AE,MATCH('2) Order Form'!$W125,ATS!$AD:$AD,0),4) -> MNGRY-L | F125: =INDEX(ATS!$A:$AE,MATCH('2) Order Form'!$W125,ATS!$AD:$AD,0),5) -> Matte Nardo Gray | G125: =INDEX(ATS!$A:$AE,MATCH('2) Order Form'!$W125,ATS!$AD:$AD,0),6) -> L | H125: 1 | I125: 0 | J125: =IFERROR(VLOOKUP(W125,ATS!$AD:$AF,2,FALSE),0) -> 14 | K125: 14 | L125: =IFERROR(VLOOKUP(W125,ATS!$AD:$AF,3,FALSE),0) -> 14 | M125: 14 | N125: 0% | O125: 0% | P125: =VLOOKUP($C125,Prices!$A$3:$R$1996,MATCH('2) Order Form'!P$8,Prices!$A$2:$R$2,0),FALSE) -> 130.00 | Q125: =VLOOKUP($C125,Prices!$A$3:$R$1996,MATCH('2) Order Form'!Q$8,Prices!$A$2:$R$2,0),FALSE) -> 259.95 | R125: 0 | S125: 0 | T125: 0 | U125: 0% | W125: 7048652660572 | Y125: 0 | Z125: 0 | AA125: 0 | AB125: 0 | AC125: 845077Matte Nardo Gray | AD125: 845077 | AE125: =VLOOKUP($C125,Classification!$A:$F,5,FALSE) -> 15.000 | AF125: =VLOOKUP($C125,Classification!$A:$F,6,FALSE) -> 1 | AG125: =INDEX(ATS!$A:$AE,MATCH('2) Order Form'!$W125,ATS!$AD:$AD,0),7) -> Stock
A126: 1 | B126: =VLOOKUP(A126,Classification!$H$2:$I$11,2,FALSE) -> Helmets & Helmet Acc. | C126: =INDEX(ATS!$A:$AE,MATCH('2) Order Form'!$W126,ATS!$AD:$AD,0),1) -> 845076 | D126: =INDEX(ATS!$A:$AE,MATCH('2) Order Form'!$W126,ATS!$AD:$AD,0),2) -> Falconer II Mips Helmet | E126: =INDEX(ATS!$A:$AE,MATCH('2) Order Form'!$W126,ATS!$AD:$AD,0),4) -> MBLCK-M | F126: =INDEX(ATS!$A:$AE,MATCH('2) Order Form'!$W126,ATS!$AD:$AD,0),5) -> Matte Black | G126: =INDEX(ATS!$A:$AE,MATCH('2) Order Form'!$W126,ATS!$AD:$AD,0),6) -> M | H126: 1 | I126: 0 | J126: =IFERROR(VLOOKUP(W126,ATS!$AD:$AF,2,FALSE),0) -> 19 | K126: 19 | L126: =IFERROR(VLOOKUP(W126,ATS!$AD:$AF,3,FALSE),0) -> 19 | M126: 19 | N126: 0% | O126: 0% | P126: =VLOOKUP($C126,Prices!$A$3:$R$1996,MATCH('2) Order Form'!P$8,Prices!$A$2:$R$2,0),FALSE) -> 115.00 | Q126: =VLOOKUP($C126,Prices!$A$3:$R$1996,MATCH('2) Order Form'!Q$8,Prices!$A$2:$R$2,0),FALSE) -> 229.95 | R126: 0 | S126: 0 | T126: 0 | U126: 0% | W126: 7048652539847 | Y126: 0 | Z126: 0 | AA126: 1 | AB126: 1 | AC126: 845076Matte Black | AD126: 845076 | AE126: =VLOOKUP($C126,Classification!$A:$F,5,FALSE) -> 16.000 | AF126: =VLOOKUP($C126,Classification!$A:$F,6,FALSE) -> 1 | AG126: =INDEX(ATS!$A:$AE,MATCH('2) Order Form'!$W126,ATS!$AD:$AD,0),7) -> Active
A127: 1 | B127: =VLOOKUP(A127,Classification!$H$2:$I$11,2,FALSE) -> Helmets & Helmet Acc. | C127: =INDEX(ATS!$A:$AE,MATCH('2) Order Form'!$W127,ATS!$AD:$AD,0),1) -> 845076 | D127: =INDEX(ATS!$A:$AE,MATCH('2) Order Form'!$W127,ATS!$AD:$AD,0),2) -> Falconer II Mips Helmet | E127: =INDEX(ATS!$A:$AE,MATCH('2) Order Form'!$W127,ATS!$AD:$AD,0),4) -> MBLCK-L | F127: =INDEX(ATS!$A:$AE,MATCH('2) Order Form'!$W127,ATS!$AD:$AD,0),5) -> Matte Black | G127: =INDEX(ATS!$A:$AE,MATCH('2) Order Form'!$W127,ATS!$AD:$AD,0),6) -> L | H127: 1 | I127: 0 | J127: =IFERROR(VLOOKUP(W127,ATS!$AD:$AF,2,FALSE),0) -> 28 | K127: 28 | L127: =IFERROR(VLOOKUP(W127,ATS!$AD:$AF,3,FALSE),0) -> 28 | M127: 28 | N127: 0% | O127: 0% | P127: =VLOOKUP($C127,Prices!$A$3:$R$1996,MATCH('2) Order Form'!P$8,Prices!$A$2:$R$2,0),FALSE) -> 115.00 | Q127: =VLOOKUP($C127,Prices!$A$3:$R$1996,MATCH('2) Order Form'!Q$8,Prices!$A$2:$R$2,0),FALSE) -> 229.95 | R127: 0 | S127: 0 | T127: 0 | U127: 0% | W127: 7048652539830 | Y127: 0 | Z127: 0 | AA127: 0 | AB127: 0 | AC127: 845076Matte Black | AD127: 845076 | AE127: =VLOOKUP($C127,Classification!$A:$F,5,FALSE) -> 16.000 | AF127: =VLOOKUP($C127,Classification!$A:$F,6,FALSE) -> 1 | AG127: =INDEX(ATS!$A:$AE,MATCH('2) Order Form'!$W127,ATS!$AD:$AD,0),7) -> Active
A128: 1 | B128: =VLOOKUP(A128,Classification!$H$2:$I$11,2,FALSE) -> Helmets & Helmet Acc. | C128: =INDEX(ATS!$A:$AE,MATCH('2) Order Form'!$W128,ATS!$AD:$AD,0),1) -> 845076 | D128: =INDEX(ATS!$A:$AE,MATCH('2) Order Form'!$W128,ATS!$AD:$AD,0),2) -> Falconer II Mips Helmet | E128: =INDEX(ATS!$A:$AE,MATCH('2) Order Form'!$W128,ATS!$AD:$AD,0),4) -> MCHOR-M | F128: =INDEX(ATS!$A:$AE,MATCH('2) Order Form'!$W128,ATS!$AD:$AD,0),5) -> Matte Chopper Orange | G128: =INDEX(ATS!$A:$AE,MATCH('2) Order Form'!$W128,ATS!$AD:$AD,0),6) -> M | H128: 1 | I128: 0 | J128: =IFERROR(VLOOKUP(W128,ATS!$AD:$AF,2,FALSE),0) -> 14 | K128: 14 | L128: =IFERROR(VLOOKUP(W128,ATS!$AD:$AF,3,FALSE),0) -> 14 | M128: 14 | N128: 0% | O128: 0% | P128: =VLOOKUP($C128,Prices!$A$3:$R$1996,MATCH('2) Order Form'!P$8,Prices!$A$2:$R$2,0),FALSE) -> 115.00 | Q128: =VLOOKUP($C128,Prices!$A$3:$R$1996,MATCH('2) Order Form'!Q$8,Prices!$A$2:$R$2,0),FALSE) -> 229.95 | R128: 0 | S128: 0 | T128: 0 | U128: 0% | W128: 7048652660480 | Y128: 0 | Z128: 0 | AA128: 0 | AB128: 1 | AC128: 845076Matte Chopper Orange | AD128: 845076 | AE128: =VLOOKUP($C128,Classification!$A:$F,5,FALSE) -> 16.000 | AF128: =VLOOKUP($C128,Classification!$A:$F,6,FALSE) -> 1 | AG128: =INDEX(ATS!$A:$AE,MATCH('2) Order Form'!$W128,ATS!$AD:$AD,0),7) -> Stock
A129: 1 | B129: =VLOOKUP(A129,Classification!$H$2:$I$11,2,FALSE) -> Helmets & Helmet Acc. | C129: =INDEX(ATS!$A:$AE,MATCH('2) Order Form'!$W129,ATS!$AD:$AD,0),1) -> 845076 | D129: =INDEX(ATS!$A:$AE,MATCH('2) Order Form'!$W129,ATS!$AD:$AD,0),2) -> Falconer II Mips Helmet | E129: =INDEX(ATS!$A:$AE,MATCH('2) Order Form'!$W129,ATS!$AD:$AD,0),4) -> MCHOR-L | F129: =INDEX(ATS!$A:$AE,MATCH('2) Order Form'!$W129,ATS!$AD:$AD,0),5) -> Matte Chopper Orange | G129: =INDEX(ATS!$A:$AE,MATCH('2) Order Form'!$W129,ATS!$AD:$AD,0),6) -> L | H129: 1 | I129: 0 | J129: =IFERROR(VLOOKUP(W129,ATS!$AD:$AF,2,FALSE),0) -> 6 | K129: 6 | L129: =IFERROR(VLOOKUP(W129,ATS!$AD:$AF,3,FALSE),0) -> 6 | M129: 6 | N129: 0% | O129: 0% | P129: =VLOOKUP($C129,Prices!$A$3:$R$1996,MATCH('2) Order Form'!P$8,Prices!$A$2:$R$2,0),FALSE) -> 115.00 | Q129: =VLOOKUP($C129,Prices!$A$3:$R$1996,MATCH('2) Order Form'!Q$8,Prices!$A$2:$R$2,0),FALSE) -> 229.95 | R129: 0 | S129: 0 | T129: 0 | U129: 0% | W129: 7048652660473 | Y129: 0 | Z129: 0 | AA129: 0 | AB129: 0 | AC129: 845076Matte Chopper Orange | AD129: 845076 | AE129: =VLOOKUP($C129,Classification!$A:$F,5,FALSE) -> 16.000 | AF129: =VLOOKUP($C129,Classification!$A:$F,6,FALSE) -> 1 | AG129: =INDEX(ATS!$A:$AE,MATCH('2) Order Form'!$W129,ATS!$AD:$AD,0),7) -> Stock
A130: 1 | B130: =VLOOKUP(A130,Classification!$H$2:$I$11,2,FALSE) -> Helmets & Helmet Acc. | C130: =INDEX(ATS!$A:$AE,MATCH('2) Order Form'!$W130,ATS!$AD:$AD,0),1) -> 845076 | D130: =INDEX(ATS!$A:$AE,MATCH('2) Order Form'!$W130,ATS!$AD:$AD,0),2) -> Falconer II Mips Helmet | E130: =INDEX(ATS!$A:$AE,MATCH('2) Order Form'!$W130,ATS!$AD:$AD,0),4) -> MNGRY-M | F130: =INDEX(ATS!$A:$AE,MATCH('2) Order Form'!$W130,ATS!$AD:$AD,0),5) -> Matte Nardo Gray | G130: =INDEX(ATS!$A:$AE,MATCH('2) Order Form'!$W130,ATS!$AD:$AD,0),6) -> M | H130: 1 | I130: 0 | J130: =IFERROR(VLOOKUP(W130,ATS!$AD:$AF,2,FALSE),0) -> 18 | K130: 18 | L130: =IFERROR(VLOOKUP(W130,ATS!$AD:$AF,3,FALSE),0) -> 18 | M130: 18 | N130: 0% | O130: 0% | P130: =VLOOKUP($C130,Prices!$A$3:$R$1996,MATCH('2) Order Form'!P$8,Prices!$A$2:$R$2,0),FALSE) -> 115.00 | Q130: =VLOOKUP($C130,Prices!$A$3:$R$1996,MATCH('2) Order Form'!Q$8,Prices!$A$2:$R$2,0),FALSE) -> 229.95 | R130: 0 | S130: 0 | T130: 0 | U130: 0% | W130: 7048652660503 | Y130: 0 | Z130: 0 | AA130: 0 | AB130: 1 | AC130: 845076Matte Nardo Gray | AD130: 845076 | AE130: =VLOOKUP($C130,Classification!$A:$F,5,FALSE) -> 16.000 | AF130: =VLOOKUP($C130,Classification!$A:$F,6,FALSE) -> 1 | AG130: =INDEX(ATS!$A:$AE,MATCH('2) Order Form'!$W130,ATS!$AD:$AD,0),7) -> Stock
A131: 1 | B131: =VLOOKUP(A131,Classification!$H$2:$I$11,2,FALSE) -> Helmets & Helmet Acc. | C131: =INDEX(ATS!$A:$AE,MATCH('2) Order Form'!$W131,ATS!$AD:$AD,0),1) -> 845076 | D131: =INDEX(ATS!$A:$AE,MATCH('2) Order Form'!$W131,ATS!$AD:$AD,0),2) -> Falconer II Mips Helmet | E131: =INDEX(ATS!$A:$AE,MATCH('2) Order Form'!$W131,ATS!$AD:$AD,0),4) -> MNGRY-L | F131: =INDEX(ATS!$A:$AE,MATCH('2) Order Form'!$W131,ATS!$AD:$AD,0),5) -> Matte Nardo Gray | G131: =INDEX(ATS!$A:$AE,MATCH('2) Order Form'!$W131,ATS!$AD:$AD,0),6) -> L | H131: 1 | I131: 0 | J131: =IFERROR(VLOOKUP(W131,ATS!$AD:$AF,2,FALSE),0) -> 19 | K131: 19 | L131: =IFERROR(VLOOKUP(W131,ATS!$AD:$AF,3,FALSE),0) -> 19 | M131: 19 | N131: 0% | O131: 0% | P131: =VLOOKUP($C131,Prices!$A$3:$R$1996,MATCH('2) Order Form'!P$8,Prices!$A$2:$R$2,0),FALSE) -> 115.00 | Q131: =VLOOKUP($C131,Prices!$A$3:$R$1996,MATCH('2) Order Form'!Q$8,Prices!$A$2:$R$2,0),FALSE) -> 229.95 | R131: 0 | S131: 0 | T131: 0 | U131: 0% | W131: 7048652660497 | Y131: 0 | Z131: 0 | AA131: 0 | AB131: 0 | AC131: 845076Matte Nardo Gray | AD131: 845076 | AE131: =VLOOKUP($C131,Classification!$A:$F,5,FALSE) -> 16.000 | AF131: =VLOOKUP($C131,Classification!$A:$F,6,FALSE) -> 1 | AG131: =INDEX(ATS!$A:$AE,MATCH('2) Order Form'!$W131,ATS!$AD:$AD,0),7) -> Stock
A132: 1 | B132: =VLOOKUP(A132,Classification!$H$2:$I$11,2,FALSE) -> Helmets & Helmet Acc. | C132: =INDEX(ATS!$A:$AE,MATCH('2) Order Form'!$W132,ATS!$AD:$AD,0),1) -> 845076 | D132: =INDEX(ATS!$A:$AE,MATCH('2) Order Form'!$W132,ATS!$AD:$AD,0),2) -> Falconer II Mips Helmet | E132: =INDEX(ATS!$A:$AE,MATCH('2) Order Form'!$W132,ATS!$AD:$AD,0),4) -> MWHTE-M | F132: =INDEX(ATS!$A:$AE,MATCH('2) Order Form'!$W132,ATS!$AD:$AD,0),5) -> Matte White | G132: =INDEX(ATS!$A:$AE,MATCH('2) Order Form'!$W132,ATS!$AD:$AD,0),6) -> M | H132: 1 | I132: 0 | J132: =IFERROR(VLOOKUP(W132,ATS!$AD:$AF,2,FALSE),0) -> 0 | K132: 0 | L132: =IFERROR(VLOOKUP(W132,ATS!$AD:$AF,3,FALSE),0) -> 0 | M132: 0 | N132: 0% | O132: 0% | P132: =VLOOKUP($C132,Prices!$A$3:$R$1996,MATCH('2) Order Form'!P$8,Prices!$A$2:$R$2,0),FALSE) -> 115.00 | Q132: =VLOOKUP($C132,Prices!$A$3:$R$1996,MATCH('2) Order Form'!Q$8,Prices!$A$2:$R$2,0),FALSE) -> 229.95 | R132: 0 | S132: 0 | T132: 0 | U132: 0% | W132: 7048652273949 | Y132: 0 | Z132: 0 | AA132: 0 | AB132: 1 | AC132: 845076Matte White | AD132: 845076 | AE132: =VLOOKUP($C132,Classification!$A:$F,5,FALSE) -> 16.000 | AF132: =VLOOKUP($C132,Classification!$A:$F,6,FALSE) -> 1 | AG132: =INDEX(ATS!$A:$AE,MATCH('2) Order Form'!$W132,ATS!$AD:$AD,0),7) -> Active
A133: 1 | B133: =VLOOKUP(A133,Classification!$H$2:$I$11,2,FALSE) -> Helmets & Helmet Acc. | C133: =INDEX(ATS!$A:$AE,MATCH('2) Order Form'!$W133,ATS!$AD:$AD,0),1) -> 845076 | D133: =INDEX(ATS!$A:$AE,MATCH('2) Order Form'!$W133,ATS!$AD:$AD,0),2) -> Falconer II Mips Helmet | E133: =INDEX(ATS!$A:$AE,MATCH('2) Order Form'!$W133,ATS!$AD:$AD,0),4) -> MWHTE-L | F133: =INDEX(ATS!$A:$AE,MATCH('2) Order Form'!$W133,ATS!$AD:$AD,0),5) -> Matte White | G133: =INDEX(ATS!$A:$AE,MATCH('2) Order Form'!$W133,ATS!$AD:$AD,0),6) -> L | H133: 1 | I133: 0 | J133: =IFERROR(VLOOKUP(W133,ATS!$AD:$AF,2,FALSE),0) -> 0 | K133: 0 | L133: =IFERROR(VLOOKUP(W133,ATS!$AD:$AF,3,FALSE),0) -> 0 | M133: 0 | N133: 0% | O133: 0% | P133: =VLOOKUP($C133,Prices!$A$3:$R$1996,MATCH('2) Order Form'!P$8,Prices!$A$2:$R$2,0),FALSE) -> 115.00 | Q133: =VLOOKUP($C133,Prices!$A$3:$R$1996,MATCH('2) Order Form'!Q$8,Prices!$A$2:$R$2,0),FALSE) -> 229.95 | R133: 0 | S133: 0 | T133: 0 | U133: 0% | W133: 7048652273932 | Y133: =I133*Q133 -> 0 | Z133: 0 | AA133: 0 | AB133: 0 | AC133: 845076Matte White | AD133: 845076 | AE133: =VLOOKUP($C133,Classification!$A:$F,5,FALSE) -> 16.000 | AF133: =VLOOKUP($C133,Classification!$A:$F,6,FALSE) -> 1 | AG133: =INDEX(ATS!$A:$AE,MATCH('2) Order Form'!$W133,ATS!$AD:$AD,0),7) -> Active
A134: 1 | B134: =VLOOKUP(A134,Classification!$H$2:$I$11,2,FALSE) -> Helmets & Helmet Acc. | C134: =INDEX(ATS!$A:$AE,MATCH('2) Order Form'!$W134,ATS!$AD:$AD,0),1) -> 845075 | D134: =INDEX(ATS!$A:$AE,MATCH('2) Order Form'!$W134,ATS!$AD:$AD,0),2) -> Falconer II Helmet | E134: =INDEX(ATS!$A:$AE,MATCH('2) Order Form'!$W134,ATS!$AD:$AD,0),4) -> MBLCK-M | F134: =INDEX(ATS!$A:$AE,MATCH('2) Order Form'!$W134,ATS!$AD:$AD,0),5) -> Matte Black | G134: =INDEX(ATS!$A:$AE,MATCH('2) Order Form'!$W134,ATS!$AD:$AD,0),6) -> M | H134: 1 | I134: 0 | J134: =IFERROR(VLOOKUP(W134,ATS!$AD:$AF,2,FALSE),0) -> 50 | K134: 50 | L134: =IFERROR(VLOOKUP(W134,ATS!$AD:$AF,3,FALSE),0) -> 50 | M134: 50 | N134: 0% | O134: 0% | P134: =VLOOKUP($C134,Prices!$A$3:$R$1996,MATCH('2) Order Form'!P$8,Prices!$A$2:$R$2,0),FALSE) -> 100.00 | Q134: =VLOOKUP($C134,Prices!$A$3:$R$1996,MATCH('2) Order Form'!Q$8,Prices!$A$2:$R$2,0),FALSE) -> 199.95 | R134: 0 | S134: 0 | T134: 0 | U134: 0% | W134: 7048652329257 | Y134: 0 | Z134: 0 | AA134: 1 | AB134: 1 | AC134: 845075Matte Black | AD134: 845075 | AE134: =VLOOKUP($C134,Classification!$A:$F,5,FALSE) -> 17.000 | AF134: =VLOOKUP($C134,Classification!$A:$F,6,FALSE) -> 1 | AG134: =INDEX(ATS!$A:$AE,MATCH('2) Order Form'!$W134,ATS!$AD:$AD,0),7) -> Active
A135: 1 | B135: =VLOOKUP(A135,Classification!$H$2:$I$11,2,FALSE) -> Helmets & Helmet Acc. | C135: =INDEX(ATS!$A:$AE,MATCH('2) Order Form'!$W135,ATS!$AD:$AD,0),1) -> 845075 | D135: =INDEX(ATS!$A:$AE,MATCH('2) Order Form'!$W135,ATS!$AD:$AD,0),2) -> Falconer II Helmet | E135: =INDEX(ATS!$A:$AE,MATCH('2) Order Form'!$W135,ATS!$AD:$AD,0),4) -> MBLCK-L | F135: =INDEX(ATS!$A:$AE,MATCH('2) Order Form'!$W135,ATS!$AD:$AD,0),5) -> Matte Black | G135: =INDEX(ATS!$A:$AE,MATCH('2) Order Form'!$W135,ATS!$AD:$AD,0),6) -> L | H135: 1 | I135: 0 | J135: =IFERROR(VLOOKUP(W135,ATS!$AD:$AF,2,FALSE),0) -> 13 | K135: 13 | L135: =IFERROR(VLOOKUP(W135,ATS!$AD:$AF,3,FALSE),0) -> 13 | M135: 13 | N135: 0% | O135: 0% | P135: =VLOOKUP($C135,Prices!$A$3:$R$1996,MATCH('2) Order Form'!P$8,Prices!$A$2:$R$2,0),FALSE) -> 100.00 | Q135: =VLOOKUP($C135,Prices!$A$3:$R$1996,MATCH('2) Order Form'!Q$8,Prices!$A$2:$R$2,0),FALSE) -> 199.95 | R135: 0 | S135: 0 | T135: 0 | U135: 0% | W135: 7048652329240 | Y135: 0 | Z135: 0 | AA135: 0 | AB135: 0 | AC135: 845075Matte Black | AD135: 845075 | AE135: =VLOOKUP($C135,Classification!$A:$F,5,FALSE) -> 17.000 | AF135: =VLOOKUP($C135,Classification!$A:$F,6,FALSE) -> 1 | AG135: =INDEX(ATS!$A:$AE,MATCH('2) Order Form'!$W135,ATS!$AD:$AD,0),7) -> Active
A136: 1 | B136: =VLOOKUP(A136,Classification!$H$2:$I$11,2,FALSE) -> Helmets & Helmet Acc. | C136: =INDEX(ATS!$A:$AE,MATCH('2) Order Form'!$W136,ATS!$AD:$AD,0),1) -> 845075 | D136: =INDEX(ATS!$A:$AE,MATCH('2) Order Form'!$W136,ATS!$AD:$AD,0),2) -> Falconer II Helmet | E136: =INDEX(ATS!$A:$AE,MATCH('2) Order Form'!$W136,ATS!$AD:$AD,0),4) -> MCHOR-M | F136: =INDEX(ATS!$A:$AE,MATCH('2) Order Form'!$W136,ATS!$AD:$AD,0),5) -> Matte Chopper Orange | G136: =INDEX(ATS!$A:$AE,MATCH('2) Order Form'!$W136,ATS!$AD:$AD,0),6) -> M | H136: 1 | I136: 0 | J136: =IFERROR(VLOOKUP(W136,ATS!$AD:$AF,2,FALSE),0) -> 24 | K136: 24 | L136: =IFERROR(VLOOKUP(W136,ATS!$AD:$AF,3,FALSE),0) -> 24 | M136: 24 | N136: 0% | O136: 0% | P136: =VLOOKUP($C136,Prices!$A$3:$R$1996,MATCH('2) Order Form'!P$8,Prices!$A$2:$R$2,0),FALSE) -> 100.00 | Q136: =VLOOKUP($C136,Prices!$A$3:$R$1996,MATCH('2) Order Form'!Q$8,Prices!$A$2:$R$2,0),FALSE) -> 199.95 | R136: 0 | S136: 0 | T136: 0 | U136: 0% | W136: 7048652660435 | Y136: 0 | Z136: 0 | AA136: 0 | AB136: 1 | AC136: 845075Matte Chopper Orange | AD136: 845075 | AE136: =VLOOKUP($C136,Classification!$A:$F,5,FALSE) -> 17.000 | AF136: =VLOOKUP($C136,Classification!$A:$F,6,FALSE) -> 1 | AG136: =INDEX(ATS!$A:$AE,MATCH('2) Order Form'!$W136,ATS!$AD:$AD,0),7) -> Stock
A137: 1 | B137: =VLOOKUP(A137,Classification!$H$2:$I$11,2,FALSE) -> Helmets & Helmet Acc. | C137: =INDEX(ATS!$A:$AE,MATCH('2) Order Form'!$W137,ATS!$AD:$AD,0),1) -> 845075 | D137: =INDEX(ATS!$A:$AE,MATCH('2) Order Form'!$W137,ATS!$AD:$AD,0),2) -> Falconer II Helmet | E137: =INDEX(ATS!$A:$AE,MATCH('2) Order Form'!$W137,ATS!$AD:$AD,0),4) -> MCHOR-L | F137: =INDEX(ATS!$A:$AE,MATCH('2) Order Form'!$W137,ATS!$AD:$AD,0),5) -> Matte Chopper Orange | G137: =INDEX(ATS!$A:$AE,MATCH('2) Order Form'!$W137,ATS!$AD:$AD,0),6) -> L | H137: 1 | I137: 0 | J137: =IFERROR(VLOOKUP(W137,ATS!$AD:$AF,2,FALSE),0) -> 22 | K137: =IF(J137=99999,"OPEN",IF(J137>50,"50+",IF(J137<=0,"0",J137))) -> 22 | L137: =IFERROR(VLOOKUP(W137,ATS!$AD:$AF,3,FALSE),0) -> 22 | M137: 22 | N137: 0% | O137: 0% | P137: =VLOOKUP($C137,Prices!$A$3:$R$1996,MATCH('2) Order Form'!P$8,Prices!$A$2:$R$2,0),FALSE) -> 100.00 | Q137: =VLOOKUP($C137,Prices!$A$3:$R$1996,MATCH('2) Order Form'!Q$8,Prices!$A$2:$R$2,0),FALSE) -> 199.95 | R137: 0 | S137: 0 | T137: 0 | U137: =IFERROR(I137/SUMIF($AC$9:$AC$684,AC137,$I$9:$I$684),0) -> 0% | W137: 7048652660459 | Y137: 0 | Z137: 0 | AA137: 0 | AB137: 0 | AC137: 845075Matte Chopper Orange | AD137: 845075 | AE137: =VLOOKUP($C137,Classification!$A:$F,5,FALSE) -> 17.000 | AF137: =VLOOKUP($C137,Classification!$A:$F,6,FALSE) -> 1 | AG137: =INDEX(ATS!$A:$AE,MATCH('2) Order Form'!$W137,ATS!$AD:$AD,0),7) -> Stock
A138: 1 | B138: =VLOOKUP(A138,Classification!$H$2:$I$11,2,FALSE) -> Helmets & Helmet Acc. | C138: =INDEX(ATS!$A:$AE,MATCH('2) Order Form'!$W138,ATS!$AD:$AD,0),1) -> 845075 | D138: =INDEX(ATS!$A:$AE,MATCH('2) Order Form'!$W138,ATS!$AD:$AD,0),2) -> Falconer II Helmet | E138: =INDEX(ATS!$A:$AE,MATCH('2) Order Form'!$W138,ATS!$AD:$AD,0),4) -> MNGRY-M | F138: =INDEX(ATS!$A:$AE,MATCH('2) Order Form'!$W138,ATS!$AD:$AD,0),5) -> Matte Nardo Gray | G138: =INDEX(ATS!$A:$AE,MATCH('2) Order Form'!$W138,ATS!$AD:$AD,0),6) -> M | H138: 1 | I138: 0 | J138: =IFERROR(VLOOKUP(W138,ATS!$AD:$AF,2,FALSE),0) -> 8 | K138: 8 | L138: =IFERROR(VLOOKUP(W138,ATS!$AD:$AF,3,FALSE),0) -> 8 | M138: 8 | N138: 0% | O138: 0% | P138: =VLOOKUP($C138,Prices!$A$3:$R$1996,MATCH('2) Order Form'!P$8,Prices!$A$2:$R$2,0),FALSE) -> 100.00 | Q138: =VLOOKUP($C138,Prices!$A$3:$R$1996,MATCH('2) Order Form'!Q$8,Prices!$A$2:$R$2,0),FALSE) -> 199.95 | R138: 0 | S138: 0 | T138: 0 | U138: 0% | W138: 7048652660442 | Y138: 0 | Z138: 0 | AA138: 0 | AB138: 1 | AC138: 845075Matte Nardo Gray | AD138: 845075 | AE138: =VLOOKUP($C138,Classification!$A:$F,5,FALSE) -> 17.000 | AF138: =VLOOKUP($C138,Classification!$A:$F,6,FALSE) -> 1 | AG138: =INDEX(ATS!$A:$AE,MATCH('2) Order Form'!$W138,ATS!$AD:$AD,0),7) -> Stock
A139: 1 | B139: =VLOOKUP(A139,Classification!$H$2:$I$11,2,FALSE) -> Helmets & Helmet Acc. | C139: =INDEX(ATS!$A:$AE,MATCH('2) Order Form'!$W139,ATS!$AD:$AD,0),1) -> 845075 | D139: =INDEX(ATS!$A:$AE,MATCH('2) Order Form'!$W139,ATS!$AD:$AD,0),2) -> Falconer II Helmet | E139: =INDEX(ATS!$A:$AE,MATCH('2) Order Form'!$W139,ATS!$AD:$AD,0),4) -> MNGRY-L | F139: =INDEX(ATS!$A:$AE,MATCH('2) Order Form'!$W139,ATS!$AD:$AD,0),5) -> Matte Nardo Gray | G139: =INDEX(ATS!$A:$AE,MATCH('2) Order Form'!$W139,ATS!$AD:$AD,0),6) -> L | H139: 1 | I139: 0 | J139: =IFERROR(VLOOKUP(W139,ATS!$AD:$AF,2,FALSE),0) -> 5 | K139: 5 | L139: =IFERROR(VLOOKUP(W139,ATS!$AD:$AF,3,FALSE),0) -> 5 | M139: 5 | N139: 0% | O139: 0% | P139: =VLOOKUP($C139,Prices!$A$3:$R$1996,MATCH('2) Order Form'!P$8,Prices!$A$2:$R$2,0),FALSE) -> 100.00 | Q139: =VLOOKUP($C139,Prices!$A$3:$R$1996,MATCH('2) Order Form'!Q$8,Prices!$A$2:$R$2,0),FALSE) -> 199.95 | R139: 0 | S139: 0 | T139: 0 | U139: 0% | W139: 7048652660466 | Y139: 0 | Z139: 0 | AA139: 0 | AB139: 0 | AC139: 845075Matte Nardo Gray | AD139: 845075 | AE139: =VLOOKUP($C139,Classification!$A:$F,5,FALSE) -> 17.000 | AF139: =VLOOKUP($C139,Classification!$A:$F,6,FALSE) -> 1 | AG139: =INDEX(ATS!$A:$AE,MATCH('2) Order Form'!$W139,ATS!$AD:$AD,0),7) -> Stock
A140: 1 | B140: =VLOOKUP(A140,Classification!$H$2:$I$11,2,FALSE) -> Helmets & Helmet Acc. | C140: =INDEX(ATS!$A:$AE,MATCH('2) Order Form'!$W140,ATS!$AD:$AD,0),1) -> 845075 | D140: =INDEX(ATS!$A:$AE,MATCH('2) Order Form'!$W140,ATS!$AD:$AD,0),2) -> Falconer II Helmet | E140: =INDEX(ATS!$A:$AE,MATCH('2) Order Form'!$W140,ATS!$AD:$AD,0),4) -> MWH20-M | F140: =INDEX(ATS!$A:$AE,MATCH('2) Order Form'!$W140,ATS!$AD:$AD,0),5) -> Matte White | G140: =INDEX(ATS!$A:$AE,MATCH('2) Order Form'!$W140,ATS!$AD:$AD,0),6) -> M | H140: 1 | I140: 0 | J140: =IFERROR(VLOOKUP(W140,ATS!$AD:$AF,2,FALSE),0) -> 13 | K140: 13 | L140: =IFERROR(VLOOKUP(W140,ATS!$AD:$AF,3,FALSE),0) -> 13 | M140: 13 | N140: 0% | O140: 0% | P140: =VLOOKUP($C140,Prices!$A$3:$R$1996,MATCH('2) Order Form'!P$8,Prices!$A$2:$R$2,0),FALSE) -> 100.00 | Q140: =VLOOKUP($C140,Prices!$A$3:$R$1996,MATCH('2) Order Form'!Q$8,Prices!$A$2:$R$2,0),FALSE) -> 199.95 | R140: 0 | S140: 0 | T140: 0 | U140: 0% | W140: 7048652555540 | Y140: 0 | Z140: 0 | AA140: 0 | AB140: 1 | AC140: 845075Matte White | AD140: 845075 | AE140: =VLOOKUP($C140,Classification!$A:$F,5,FALSE) -> 17.000 | AF140: =VLOOKUP($C140,Classification!$A:$F,6,FALSE) -> 1 | AG140: =INDEX(ATS!$A:$AE,MATCH('2) Order Form'!$W140,ATS!$AD:$AD,0),7) -> Active
A141: 1 | B141: =VLOOKUP(A141,Classification!$H$2:$I$11,2,FALSE) -> Helmets & Helmet Acc. | C141: =INDEX(ATS!$A:$AE,MATCH('2) Order Form'!$W141,ATS!$AD:$AD,0),1) -> 845075 | D141: =INDEX(ATS!$A:$AE,MATCH('2) Order Form'!$W141,ATS!$AD:$AD,0),2) -> Falconer II Helmet | E141: =INDEX(ATS!$A:$AE,MATCH('2) Order Form'!$W141,ATS!$AD:$AD,0),4) -> MWH20-L | F141: =INDEX(ATS!$A:$AE,MATCH('2) Order Form'!$W141,ATS!$AD:$AD,0),5) -> Matte White | G141: =INDEX(ATS!$A:$AE,MATCH('2) Order Form'!$W141,ATS!$AD:$AD,0),6) -> L | H141: 1 | I141: 0 | J141: =IFERROR(VLOOKUP(W141,ATS!$AD:$AF,2,FALSE),0) -> 23 | K141: 23 | L141: =IFERROR(VLOOKUP(W141,ATS!$AD:$AF,3,FALSE),0) -> 23 | M141: 23 | N141: 0% | O141: 0% | P141: =VLOOKUP($C141,Prices!$A$3:$R$1996,MATCH('2) Order Form'!P$8,Prices!$A$2:$R$2,0),FALSE) -> 100.00 | Q141: =VLOOKUP($C141,Prices!$A$3:$R$1996,MATCH('2) Order Form'!Q$8,Prices!$A$2:$R$2,0),FALSE) -> 199.95 | R141: 0 | S141: 0 | T141: 0 | U141: 0% | W141: 7048652555533 | Y141: 0 | Z141: 0 | AA141: 0 | AB141: 0 | AC141: 845075Matte White | AD141: 845075 | AE141: =VLOOKUP($C141,Classification!$A:$F,5,FALSE) -> 17.000 | AF141: =VLOOKUP($C141,Classification!$A:$F,6,FALSE) -> 1 | AG141: =INDEX(ATS!$A:$AE,MATCH('2) Order Form'!$W141,ATS!$AD:$AD,0),7) -> Active
A142: 1 | B142: =VLOOKUP(A142,Classification!$H$2:$I$11,2,FALSE) -> Helmets & Helmet Acc. | C142: =INDEX(ATS!$A:$AE,MATCH('2) Order Form'!$W142,ATS!$AD:$AD,0),1) -> 845082 | D142: =INDEX(ATS!$A:$AE,MATCH('2) Order Form'!$W142,ATS!$AD:$AD,0),2) -> Outrider Mips Helmet | E142: =INDEX(ATS!$A:$AE,MATCH('2) Order Form'!$W142,ATS!$AD:$AD,0),4) -> MEAME-S | F142: =INDEX(ATS!$A:$AE,MATCH('2) Order Form'!$W142,ATS!$AD:$AD,0),5) -> Matte Aquamarine | G142: =INDEX(ATS!$A:$AE,MATCH('2) Order Form'!$W142,ATS!$AD:$AD,0),6) -> S | H142: 1 | I142: 0 | J142: =IFERROR(VLOOKUP(W142,ATS!$AD:$AF,2,FALSE),0) -> 7 | K142: 7 | L142: =IFERROR(VLOOKUP(W142,ATS!$AD:$AF,3,FALSE),0) -> 7 | M142: =IF(L142=99999,"OPEN",IF(L142>50,"50+",IF(L142<=0,"0",L142))) -> 7 | N142: 0% | O142: =IF(N142<>0,N142,$P$5) -> 0% | P142: =VLOOKUP($C142,Prices!$A$3:$R$1996,MATCH('2) Order Form'!P$8,Prices!$A$2:$R$2,0),FALSE) -> 75.00 | Q142: =VLOOKUP($C142,Prices!$A$3:$R$1996,MATCH('2) Order Form'!Q$8,Prices!$A$2:$R$2,0),FALSE) -> 149.95 | R142: =I142*P142 -> 0 | S142: =R142*O142 -> 0 | T142: =R142-S142 -> 0 | U142: 0% | W142: 7048652660978 | Y142: 0 | Z142: =IF(A142=OFFSET(A142,-1,0),0,1) -> 0 | AA142: =IF(C142=OFFSET(C142,-1,0),0,1) -> 1 | AB142: =IF(F142=OFFSET(F142,-1,0),0,1) -> 1 | AC142: =CONCATENATE(C142,F142) -> 845082Matte Aquamarine | AD142: =IFERROR(IF(B142="EYEWEAR",CONCATENATE(C142,"-",G142),C142),C142) -> 845082 | AE142: =VLOOKUP($C142,Classification!$A:$F,5,FALSE) -> 21.000 | AF142: =VLOOKUP($C142,Classification!$A:$F,6,FALSE) -> 1 | AG142: =INDEX(ATS!$A:$AE,MATCH('2) Order Form'!$W142,ATS!$AD:$AD,0),7) -> Stock
A143: 1 | B143: =VLOOKUP(A143,Classification!$H$2:$I$11,2,FALSE) -> Helmets & Helmet Acc. | C143: =INDEX(ATS!$A:$AE,MATCH('2) Order Form'!$W143,ATS!$AD:$AD,0),1) -> 845082 | D143: =INDEX(ATS!$A:$AE,MATCH('2) Order Form'!$W143,ATS!$AD:$AD,0),2) -> Outrider Mips Helmet | E143: =INDEX(ATS!$A:$AE,MATCH('2) Order Form'!$W143,ATS!$AD:$AD,0),4) -> MEAME-M | F143: =INDEX(ATS!$A:$AE,MATCH('2) Order Form'!$W143,ATS!$AD:$AD,0),5) -> Matte Aquamarine | G143: =INDEX(ATS!$A:$AE,MATCH('2) Order Form'!$W143,ATS!$AD:$AD,0),6) -> M | H143: 1 | I143: 0 | J143: =IFERROR(VLOOKUP(W143,ATS!$AD:$AF,2,FALSE),0) -> 0 | K143: 0 | L143: =IFERROR(VLOOKUP(W143,ATS!$AD:$AF,3,FALSE),0) -> 0 | M143: 0 | N143: 0% | O143: 0% | P143: =VLOOKUP($C143,Prices!$A$3:$R$1996,MATCH('2) Order Form'!P$8,Prices!$A$2:$R$2,0),FALSE) -> 75.00 | Q143: =VLOOKUP($C143,Prices!$A$3:$R$1996,MATCH('2) Order Form'!Q$8,Prices!$A$2:$R$2,0),FALSE) -> 149.95 | R143: 0 | S143: 0 | T143: 0 | U143: 0% | W143: 7048652660961 | Y143: 0 | Z143: 0 | AA143: 0 | AB143: 0 | AC143: 845082Matte Aquamarine | AD143: 845082 | AE143: =VLOOKUP($C143,Classification!$A:$F,5,FALSE) -> 21.000 | AF143: =VLOOKUP($C143,Classification!$A:$F,6,FALSE) -> 1 | AG143: =INDEX(ATS!$A:$AE,MATCH('2) Order Form'!$W143,ATS!$AD:$AD,0),7) -> Stock
A144: 1 | B144: =VLOOKUP(A144,Classification!$H$2:$I$11,2,FALSE) -> Helmets & Helmet Acc. | C144: =INDEX(ATS!$A:$AE,MATCH('2) Order Form'!$W144,ATS!$AD:$AD,0),1) -> 845082 | D144: =INDEX(ATS!$A:$AE,MATCH('2) Order Form'!$W144,ATS!$AD:$AD,0),2) -> Outrider Mips Helmet | E144: =INDEX(ATS!$A:$AE,MATCH('2) Order Form'!$W144,ATS!$AD:$AD,0),4) -> MEAME-L | F144: =INDEX(ATS!$A:$AE,MATCH('2) Order Form'!$W144,ATS!$AD:$AD,0),5) -> Matte Aquamarine | G144: =INDEX(ATS!$A:$AE,MATCH('2) Order Form'!$W144,ATS!$AD:$AD,0),6) -> L | H144: 1 | I144: 0 | J144: =IFERROR(VLOOKUP(W144,ATS!$AD:$AF,2,FALSE),0) -> 0 | K144: 0 | L144: =IFERROR(VLOOKUP(W144,ATS!$AD:$AF,3,FALSE),0) -> 0 | M144: 0 | N144: 0% | O144: 0% | P144: =VLOOKUP($C144,Prices!$A$3:$R$1996,MATCH('2) Order Form'!P$8,Prices!$A$2:$R$2,0),FALSE) -> 75.00 | Q144: =VLOOKUP($C144,Prices!$A$3:$R$1996,MATCH('2) Order Form'!Q$8,Prices!$A$2:$R$2,0),FALSE) -> 149.95 | R144: 0 | S144: 0 | T144: 0 | U144: 0% | W144: 7048652660954 | Y144: 0 | Z144: 0 | AA144: 0 | AB144: 0 | AC144: 845082Matte Aquamarine | AD144: 845082 | AE144: =VLOOKUP($C144,Classification!$A:$F,5,FALSE) -> 21.000 | AF144: =VLOOKUP($C144,Classification!$A:$F,6,FALSE) -> 1 | AG144: =INDEX(ATS!$A:$AE,MATCH('2) Order Form'!$W144,ATS!$AD:$AD,0),7) -> Stock
A145: 1 | B145: =VLOOKUP(A145,Classification!$H$2:$I$11,2,FALSE) -> Helmets & Helmet Acc. | C145: =INDEX(ATS!$A:$AE,MATCH('2) Order Form'!$W145,ATS!$AD:$AD,0),1) -> 845082 | D145: =INDEX(ATS!$A:$AE,MATCH('2) Order Form'!$W145,ATS!$AD:$AD,0),2) -> Outrider Mips Helmet | E145: =INDEX(ATS!$A:$AE,MATCH('2) Order Form'!$W145,ATS!$AD:$AD,0),4) -> MBL20-S | F145: =INDEX(ATS!$A:$AE,MATCH('2) Order Form'!$W145,ATS!$AD:$AD,0),5) -> Matte Black | G145: =INDEX(ATS!$A:$AE,MATCH('2) Order Form'!$W145,ATS!$AD:$AD,0),6) -> S | H145: 1 | I145: 0 | J145: =IFERROR(VLOOKUP(W145,ATS!$AD:$AF,2,FALSE),0) -> 1 | K145: 1 | L145: =IFERROR(VLOOKUP(W145,ATS!$AD:$AF,3,FALSE),0) -> 1 | M145: 1 | N145: 0% | O145: 0% | P145: =VLOOKUP($C145,Prices!$A$3:$R$1996,MATCH('2) Order Form'!P$8,Prices!$A$2:$R$2,0),FALSE) -> 75.00 | Q145: =VLOOKUP($C145,Prices!$A$3:$R$1996,MATCH('2) Order Form'!Q$8,Prices!$A$2:$R$2,0),FALSE) -> 149.95 | R145: 0 | S145: 0 | T145: 0 | U145: 0% | W145: 7048652555526 | Y145: 0 | Z145: 0 | AA145: 0 | AB145: 1 | AC145: 845082Matte Black | AD145: 845082 | AE145: =VLOOKUP($C145,Classification!$A:$F,5,FALSE) -> 21.000 | AF145: =VLOOKUP($C145,Classification!$A:$F,6,FALSE) -> 1 | AG145: =INDEX(ATS!$A:$AE,MATCH('2) Order Form'!$W145,ATS!$AD:$AD,0),7) -> Active
A146: 1 | B146: =VLOOKUP(A146,Classification!$H$2:$I$11,2,FALSE) -> Helmets & Helmet Acc. | C146: =INDEX(ATS!$A:$AE,MATCH('2) Order Form'!$W146,ATS!$AD:$AD,0),1) -> 845082 | D146: =INDEX(ATS!$A:$AE,MATCH('2) Order Form'!$W146,ATS!$AD:$AD,0),2) -> Outrider Mips Helmet | E146: =INDEX(ATS!$A:$AE,MATCH('2) Order Form'!$W146,ATS!$AD:$AD,0),4) -> MBL20-M | F146: =INDEX(ATS!$A:$AE,MATCH('2) Order Form'!$W146,ATS!$AD:$AD,0),5) -> Matte Black | G146: =INDEX(ATS!$A:$AE,MATCH('2) Order Form'!$W146,ATS!$AD:$AD,0),6) -> M | H146: 1 | I146: 0 | J146: =IFERROR(VLOOKUP(W146,ATS!$AD:$AF,2,FALSE),0) -> 62 | K146: 50+ | L146: =IFERROR(VLOOKUP(W146,ATS!$AD:$AF,3,FALSE),0) -> 62 | M146: 50+ | N146: 0% | O146: 0% | P146: =VLOOKUP($C146,Prices!$A$3:$R$1996,MATCH('2) Order Form'!P$8,Prices!$A$2:$R$2,0),FALSE) -> 75.00 | Q146: =VLOOKUP($C146,Prices!$A$3:$R$1996,MATCH('2) Order Form'!Q$8,Prices!$A$2:$R$2,0),FALSE) -> 149.95 | R146: 0 | S146: 0 | T146: 0 | U146: 0% | W146: 7048652555519 | Y146: 0 | Z146: 0 | AA146: 0 | AB146: 0 | AC146: 845082Matte Black | AD146: 845082 | AE146: =VLOOKUP($C146,Classification!$A:$F,5,FALSE) -> 21.000 | AF146: =VLOOKUP($C146,Classification!$A:$F,6,FALSE) -> 1 | AG146: =INDEX(ATS!$A:$AE,MATCH('2) Order Form'!$W146,ATS!$AD:$AD,0),7) -> Active
A147: 1 | B147: =VLOOKUP(A147,Classification!$H$2:$I$11,2,FALSE) -> Helmets & Helmet Acc. | C147: =INDEX(ATS!$A:$AE,MATCH('2) Order Form'!$W147,ATS!$AD:$AD,0),1) -> 845082 | D147: =INDEX(ATS!$A:$AE,MATCH('2) Order Form'!$W147,ATS!$AD:$AD,0),2) -> Outrider Mips Helmet | E147: =INDEX(ATS!$A:$AE,MATCH('2) Order Form'!$W147,ATS!$AD:$AD,0),4) -> MBL20-L | F147: =INDEX(ATS!$A:$AE,MATCH('2) Order Form'!$W147,ATS!$AD:$AD,0),5) -> Matte Black | G147: =INDEX(ATS!$A:$AE,MATCH('2) Order Form'!$W147,ATS!$AD:$AD,0),6) -> L | H147: 1 | I147: 0 | J147: =IFERROR(VLOOKUP(W147,ATS!$AD:$AF,2,FALSE),0) -> 23 | K147: 23 | L147: =IFERROR(VLOOKUP(W147,ATS!$AD:$AF,3,FALSE),0) -> 23 | M147: 23 | N147: 0% | O147: 0% | P147: =VLOOKUP($C147,Prices!$A$3:$R$1996,MATCH('2) Order Form'!P$8,Prices!$A$2:$R$2,0),FALSE) -> 75.00 | Q147: =VLOOKUP($C147,Prices!$A$3:$R$1996,MATCH('2) Order Form'!Q$8,Prices!$A$2:$R$2,0),FALSE) -> 149.95 | R147: 0 | S147: 0 | T147: 0 | U147: 0% | W147: 7048652555502 | Y147: 0 | Z147: 0 | AA147: 0 | AB147: 0 | AC147: 845082Matte Black | AD147: 845082 | AE147: =VLOOKUP($C147,Classification!$A:$F,5,FALSE) -> 21.000 | AF147: =VLOOKUP($C147,Classification!$A:$F,6,FALSE) -> 1 | AG147: =INDEX(ATS!$A:$AE,MATCH('2) Order Form'!$W147,ATS!$AD:$AD,0),7) -> Active
A148: 1 | B148: =VLOOKUP(A148,Classification!$H$2:$I$11,2,FALSE) -> Helmets & Helmet Acc. | C148: =INDEX(ATS!$A:$AE,MATCH('2) Order Form'!$W148,ATS!$AD:$AD,0),1) -> 845082 | D148: =INDEX(ATS!$A:$AE,MATCH('2) Order Form'!$W148,ATS!$AD:$AD,0),2) -> Outrider Mips Helmet | E148: =INDEX(ATS!$A:$AE,MATCH('2) Order Form'!$W148,ATS!$AD:$AD,0),4) -> MCHOR-S | F148: =INDEX(ATS!$A:$AE,MATCH('2) Order Form'!$W148,ATS!$AD:$AD,0),5) -> Matte Chopper Orange | G148: =INDEX(ATS!$A:$AE,MATCH('2) Order Form'!$W148,ATS!$AD:$AD,0),6) -> S | H148: 1 | I148: 0 | J148: =IFERROR(VLOOKUP(W148,ATS!$AD:$AF,2,FALSE),0) -> 8 | K148: 8 | L148: =IFERROR(VLOOKUP(W148,ATS!$AD:$AF,3,FALSE),0) -> 8 | M148: 8 | N148: 0% | O148: 0% | P148: =VLOOKUP($C148,Prices!$A$3:$R$1996,MATCH('2) Order Form'!P$8,Prices!$A$2:$R$2,0),FALSE) -> 75.00 | Q148: =VLOOKUP($C148,Prices!$A$3:$R$1996,MATCH('2) Order Form'!Q$8,Prices!$A$2:$R$2,0),FALSE) -> 149.95 | R148: 0 | S148: 0 | T148: 0 | U148: 0% | W148: 7048652660947 | Y148: 0 | Z148: 0 | AA148: 0 | AB148: 1 | AC148: 845082Matte Chopper Orange | AD148: 845082 | AE148: =VLOOKUP($C148,Classification!$A:$F,5,FALSE) -> 21.000 | AF148: =VLOOKUP($C148,Classification!$A:$F,6,FALSE) -> 1 | AG148: =INDEX(ATS!$A:$AE,MATCH('2) Order Form'!$W148,ATS!$AD:$AD,0),7) -> Stock
A149: 1 | B149: =VLOOKUP(A149,Classification!$H$2:$I$11,2,FALSE) -> Helmets & Helmet Acc. | C149: =INDEX(ATS!$A:$AE,MATCH('2) Order Form'!$W149,ATS!$AD:$AD,0),1) -> 845082 | D149: =INDEX(ATS!$A:$AE,MATCH('2) Order Form'!$W149,ATS!$AD:$AD,0),2) -> Outrider Mips Helmet | E149: =INDEX(ATS!$A:$AE,MATCH('2) Order Form'!$W149,ATS!$AD:$AD,0),4) -> MCHOR-M | F149: =INDEX(ATS!$A:$AE,MATCH('2) Order Form'!$W149,ATS!$AD:$AD,0),5) -> Matte Chopper Orange | G149: =INDEX(ATS!$A:$AE,MATCH('2) Order Form'!$W149,ATS!$AD:$AD,0),6) -> M | H149: 1 | I149: 0 | J149: =IFERROR(VLOOKUP(W149,ATS!$AD:$AF,2,FALSE),0) -> 0 | K149: 0 | L149: =IFERROR(VLOOKUP(W149,ATS!$AD:$AF,3,FALSE),0) -> 0 | M149: 0 | N149: 0% | O149: 0% | P149: =VLOOKUP($C149,Prices!$A$3:$R$1996,MATCH('2) Order Form'!P$8,Prices!$A$2:$R$2,0),FALSE) -> 75.00 | Q149: =VLOOKUP($C149,Prices!$A$3:$R$1996,MATCH('2) Order Form'!Q$8,Prices!$A$2:$R$2,0),FALSE) -> 149.95 | R149: 0 | S149: 0 | T149: 0 | U149: 0% | W149: 7048652660930 | Y149: 0 | Z149: 0 | AA149: 0 | AB149: 0 | AC149: 845082Matte Chopper Orange | AD149: 845082 | AE149: =VLOOKUP($C149,Classification!$A:$F,5,FALSE) -> 21.000 | AF149: =VLOOKUP($C149,Classification!$A:$F,6,FALSE) -> 1 | AG149: =INDEX(ATS!$A:$AE,MATCH('2) Order Form'!$W149,ATS!$AD:$AD,0),7) -> Stock
A150: 1 | B150: =VLOOKUP(A150,Classification!$H$2:$I$11,2,FALSE) -> Helmets & Helmet Acc. | C150: =INDEX(ATS!$A:$AE,MATCH('2) Order Form'!$W150,ATS!$AD:$AD,0),1) -> 845082 | D150: =INDEX(ATS!$A:$AE,MATCH('2) Order Form'!$W150,ATS!$AD:$AD,0),2) -> Outrider Mips Helmet | E150: =INDEX(ATS!$A:$AE,MATCH('2) Order Form'!$W150,ATS!$AD:$AD,0),4) -> MCHOR-L | F150: =INDEX(ATS!$A:$AE,MATCH('2) Order Form'!$W150,ATS!$AD:$AD,0),5) -> Matte Chopper Orange | G150: =INDEX(ATS!$A:$AE,MATCH('2) Order Form'!$W150,ATS!$AD:$AD,0),6) -> L | H150: 1 | I150: 0 | J150: =IFERROR(VLOOKUP(W150,ATS!$AD:$AF,2,FALSE),0) -> 0 | K150: 0 | L150: =IFERROR(VLOOKUP(W150,ATS!$AD:$AF,3,FALSE),0) -> 0 | M150: 0 | N150: 0% | O150: 0% | P150: =VLOOKUP($C150,Prices!$A$3:$R$1996,MATCH('2) Order Form'!P$8,Prices!$A$2:$R$2,0),FALSE) -> 75.00 | Q150: =VLOOKUP($C150,Prices!$A$3:$R$1996,MATCH('2) Order Form'!Q$8,Prices!$A$2:$R$2,0),FALSE) -> 149.95 | R150: 0 | S150: 0 | T150: 0 | U150: 0% | W150: 7048652660923 | Y150: 0 | Z150: 0 | AA150: 0 | AB150: 0 | AC150: 845082Matte Chopper Orange | AD150: 845082 | AE150: =VLOOKUP($C150,Classification!$A:$F,5,FALSE) -> 21.000 | AF150: =VLOOKUP($C150,Classification!$A:$F,6,FALSE) -> 1 | AG150: =INDEX(ATS!$A:$AE,MATCH('2) Order Form'!$W150,ATS!$AD:$AD,0),7) -> Stock
A151: 1 | B151: =VLOOKUP(A151,Classification!$H$2:$I$11,2,FALSE) -> Helmets & Helmet Acc. | C151: =INDEX(ATS!$A:$AE,MATCH('2) Order Form'!$W151,ATS!$AD:$AD,0),1) -> 845082 | D151: =INDEX(ATS!$A:$AE,MATCH('2) Order Form'!$W151,ATS!$AD:$AD,0),2) -> Outrider Mips Helmet | E151: =INDEX(ATS!$A:$AE,MATCH('2) Order Form'!$W151,ATS!$AD:$AD,0),4) -> MNGRY-S | F151: =INDEX(ATS!$A:$AE,MATCH('2) Order Form'!$W151,ATS!$AD:$AD,0),5) -> Matte Nardo Gray | G151: =INDEX(ATS!$A:$AE,MATCH('2) Order Form'!$W151,ATS!$AD:$AD,0),6) -> S | H151: 1 | I151: 0 | J151: =IFERROR(VLOOKUP(W151,ATS!$AD:$AF,2,FALSE),0) -> 21 | K151: 21 | L151: =IFERROR(VLOOKUP(W151,ATS!$AD:$AF,3,FALSE),0) -> 21 | M151: 21 | N151: 0% | O151: 0% | P151: =VLOOKUP($C151,Prices!$A$3:$R$1996,MATCH('2) Order Form'!P$8,Prices!$A$2:$R$2,0),FALSE) -> 75.00 | Q151: =VLOOKUP($C151,Prices!$A$3:$R$1996,MATCH('2) Order Form'!Q$8,Prices!$A$2:$R$2,0),FALSE) -> 149.95 | R151: 0 | S151: 0 | T151: 0 | U151: 0% | W151: 7048652661005 | Y151: 0 | Z151: 0 | AA151: 0 | AB151: 1 | AC151: 845082Matte Nardo Gray | AD151: 845082 | AE151: =VLOOKUP($C151,Classification!$A:$F,5,FALSE) -> 21.000 | AF151: =VLOOKUP($C151,Classification!$A:$F,6,FALSE) -> 1 | AG151: =INDEX(ATS!$A:$AE,MATCH('2) Order Form'!$W151,ATS!$AD:$AD,0),7) -> Stock
A152: 1 | B152: =VLOOKUP(A152,Classification!$H$2:$I$11,2,FALSE) -> Helmets & Helmet Acc. | C152: =INDEX(ATS!$A:$AE,MATCH('2) Order Form'!$W152,ATS!$AD:$AD,0),1) -> 845082 | D152: =INDEX(ATS!$A:$AE,MATCH('2) Order Form'!$W152,ATS!$AD:$AD,0),2) -> Outrider Mips Helmet | E152: =INDEX(ATS!$A:$AE,MATCH('2) Order Form'!$W152,ATS!$AD:$AD,0),4) -> MNGRY-M | F152: =INDEX(ATS!$A:$AE,MATCH('2) Order Form'!$W152,ATS!$AD:$AD,0),5) -> Matte Nardo Gray | G152: =INDEX(ATS!$A:$AE,MATCH('2) Order Form'!$W152,ATS!$AD:$AD,0),6) -> M | H152: 1 | I152: 0 | J152: =IFERROR(VLOOKUP(W152,ATS!$AD:$AF,2,FALSE),0) -> 30 | K152: 30 | L152: =IFERROR(VLOOKUP(W152,ATS!$AD:$AF,3,FALSE),0) -> 30 | M152: 30 | N152: 0% | O152: 0% | P152: =VLOOKUP($C152,Prices!$A$3:$R$1996,MATCH('2) Order Form'!P$8,Prices!$A$2:$R$2,0),FALSE) -> 75.00 | Q152: =VLOOKUP($C152,Prices!$A$3:$R$1996,MATCH('2) Order Form'!Q$8,Prices!$A$2:$R$2,0),FALSE) -> 149.95 | R152: 0 | S152: 0 | T152: 0 | U152: 0% | W152: 7048652660992 | Y152: 0 | Z152: 0 | AA152: 0 | AB152: 0 | AC152: 845082Matte Nardo Gray | AD152: 845082 | AE152: =VLOOKUP($C152,Classification!$A:$F,5,FALSE) -> 21.000 | AF152: =VLOOKUP($C152,Classification!$A:$F,6,FALSE) -> 1 | AG152: =INDEX(ATS!$A:$AE,MATCH('2) Order Form'!$W152,ATS!$AD:$AD,0),7) -> Stock
A153: 1 | B153: =VLOOKUP(A153,Classification!$H$2:$I$11,2,FALSE) -> Helmets & Helmet Acc. | C153: =INDEX(ATS!$A:$AE,MATCH('2) Order Form'!$W153,ATS!$AD:$AD,0),1) -> 845082 | D153: =INDEX(ATS!$A:$AE,MATCH('2) Order Form'!$W153,ATS!$AD:$AD,0),2) -> Outrider Mips Helmet | E153: =INDEX(ATS!$A:$AE,MATCH('2) Order Form'!$W153,ATS!$AD:$AD,0),4) -> MNGRY-L | F153: =INDEX(ATS!$A:$AE,MATCH('2) Order Form'!$W153,ATS!$AD:$AD,0),5) -> Matte Nardo Gray | G153: =INDEX(ATS!$A:$AE,MATCH('2) Order Form'!$W153,ATS!$AD:$AD,0),6) -> L | H153: 1 | I153: 0 | J153: =IFERROR(VLOOKUP(W153,ATS!$AD:$AF,2,FALSE),0) -> 24 | K153: 24 | L153: =IFERROR(VLOOKUP(W153,ATS!$AD:$AF,3,FALSE),0) -> 24 | M153: 24 | N153: 0% | O153: 0% | P153: =VLOOKUP($C153,Prices!$A$3:$R$1996,MATCH('2) Order Form'!P$8,Prices!$A$2:$R$2,0),FALSE) -> 75.00 | Q153: =VLOOKUP($C153,Prices!$A$3:$R$1996,MATCH('2) Order Form'!Q$8,Prices!$A$2:$R$2,0),FALSE) -> 149.95 | R153: 0 | S153: 0 | T153: 0 | U153: 0% | W153: 7048652660985 | Y153: 0 | Z153: 0 | AA153: 0 | AB153: 0 | AC153: 845082Matte Nardo Gray | AD153: 845082 | AE153: =VLOOKUP($C153,Classification!$A:$F,5,FALSE) -> 21.000 | AF153: =VLOOKUP($C153,Classification!$A:$F,6,FALSE) -> 1 | AG153: =INDEX(ATS!$A:$AE,MATCH('2) Order Form'!$W153,ATS!$AD:$AD,0),7) -> Stock
A154: 1 | B154: =VLOOKUP(A154,Classification!$H$2:$I$11,2,FALSE) -> Helmets & Helmet Acc. | C154: =INDEX(ATS!$A:$AE,MATCH('2) Order Form'!$W154,ATS!$AD:$AD,0),1) -> 845082 | D154: =INDEX(ATS!$A:$AE,MATCH('2) Order Form'!$W154,ATS!$AD:$AD,0),2) -> Outrider Mips Helmet | E154: =INDEX(ATS!$A:$AE,MATCH('2) Order Form'!$W154,ATS!$AD:$AD,0),4) -> MWHTE-S | F154: =INDEX(ATS!$A:$AE,MATCH('2) Order Form'!$W154,ATS!$AD:$AD,0),5) -> Matte White | G154: =INDEX(ATS!$A:$AE,MATCH('2) Order Form'!$W154,ATS!$AD:$AD,0),6) -> S | H154: 1 | I154: 0 | J154: =IFERROR(VLOOKUP(W154,ATS!$AD:$AF,2,FALSE),0) -> 13 | K154: 13 | L154: =IFERROR(VLOOKUP(W154,ATS!$AD:$AF,3,FALSE),0) -> 13 | M154: 13 | N154: 0% | O154: 0% | P154: =VLOOKUP($C154,Prices!$A$3:$R$1996,MATCH('2) Order Form'!P$8,Prices!$A$2:$R$2,0),FALSE) -> 75.00 | Q154: =VLOOKUP($C154,Prices!$A$3:$R$1996,MATCH('2) Order Form'!Q$8,Prices!$A$2:$R$2,0),FALSE) -> 149.95 | R154: 0 | S154: 0 | T154: 0 | U154: 0% | W154: 7048652274502 | Y154: 0 | Z154: 0 | AA154: 0 | AB154: 1 | AC154: 845082Matte White | AD154: 845082 | AE154: =VLOOKUP($C154,Classification!$A:$F,5,FALSE) -> 21.000 | AF154: =VLOOKUP($C154,Classification!$A:$F,6,FALSE) -> 1 | AG154: =INDEX(ATS!$A:$AE,MATCH('2) Order Form'!$W154,ATS!$AD:$AD,0),7) -> Active
A155: 1 | B155: =VLOOKUP(A155,Classification!$H$2:$I$11,2,FALSE) -> Helmets & Helmet Acc. | C155: =INDEX(ATS!$A:$AE,MATCH('2) Order Form'!$W155,ATS!$AD:$AD,0),1) -> 845082 | D155: =INDEX(ATS!$A:$AE,MATCH('2) Order Form'!$W155,ATS!$AD:$AD,0),2) -> Outrider Mips Helmet | E155: =INDEX(ATS!$A:$AE,MATCH('2) Order Form'!$W155,ATS!$AD:$AD,0),4) -> MWHTE-M | F155: =INDEX(ATS!$A:$AE,MATCH('2) Order Form'!$W155,ATS!$AD:$AD,0),5) -> Matte White | G155: =INDEX(ATS!$A:$AE,MATCH('2) Order Form'!$W155,ATS!$AD:$AD,0),6) -> M | H155: 1 | I155: 0 | J155: =IFERROR(VLOOKUP(W155,ATS!$AD:$AF,2,FALSE),0) -> 70 | K155: 50+ | L155: =IFERROR(VLOOKUP(W155,ATS!$AD:$AF,3,FALSE),0) -> 70 | M155: 50+ | N155: 0% | O155: 0% | P155: =VLOOKUP($C155,Prices!$A$3:$R$1996,MATCH('2) Order Form'!P$8,Prices!$A$2:$R$2,0),FALSE) -> 75.00 | Q155: =VLOOKUP($C155,Prices!$A$3:$R$1996,MATCH('2) Order Form'!Q$8,Prices!$A$2:$R$2,0),FALSE) -> 149.95 | R155: 0 | S155: 0 | T155: 0 | U155: 0% | W155: 7048652274496 | Y155: 0 | Z155: 0 | AA155: 0 | AB155: 0 | AC155: 845082Matte White | AD155: 845082 | AE155: =VLOOKUP($C155,Classification!$A:$F,5,FALSE) -> 21.000 | AF155: =VLOOKUP($C155,Classification!$A:$F,6,FALSE) -> 1 | AG155: =INDEX(ATS!$A:$AE,MATCH('2) Order Form'!$W155,ATS!$AD:$AD,0),7) -> Active
A156: 1 | B156: =VLOOKUP(A156,Classification!$H$2:$I$11,2,FALSE) -> Helmets & Helmet Acc. | C156: =INDEX(ATS!$A:$AE,MATCH('2) Order Form'!$W156,ATS!$AD:$AD,0),1) -> 845082 | D156: =INDEX(ATS!$A:$AE,MATCH('2) Order Form'!$W156,ATS!$AD:$AD,0),2) -> Outrider Mips Helmet | E156: =INDEX(ATS!$A:$AE,MATCH('2) Order Form'!$W156,ATS!$AD:$AD,0),4) -> MWHTE-L | F156: =INDEX(ATS!$A:$AE,MATCH('2) Order Form'!$W156,ATS!$AD:$AD,0),5) -> Matte White | G156: =INDEX(ATS!$A:$AE,MATCH('2) Order Form'!$W156,ATS!$AD:$AD,0),6) -> L | H156: 1 | I156: 0 | J156: =IFERROR(VLOOKUP(W156,ATS!$AD:$AF,2,FALSE),0) -> 42 | K156: 42 | L156: =IFERROR(VLOOKUP(W156,ATS!$AD:$AF,3,FALSE),0) -> 42 | M156: 42 | N156: 0% | O156: 0% | P156: =VLOOKUP($C156,Prices!$A$3:$R$1996,MATCH('2) Order Form'!P$8,Prices!$A$2:$R$2,0),FALSE) -> 75.00 | Q156: =VLOOKUP($C156,Prices!$A$3:$R$1996,MATCH('2) Order Form'!Q$8,Prices!$A$2:$R$2,0),FALSE) -> 149.95 | R156: 0 | S156: 0 | T156: 0 | U156: 0% | W156: 7048652274489 | Y156: 0 | Z156: 0 | AA156: 0 | AB156: 0 | AC156: 845082Matte White | AD156: 845082 | AE156: =VLOOKUP($C156,Classification!$A:$F,5,FALSE) -> 21.000 | AF156: =VLOOKUP($C156,Classification!$A:$F,6,FALSE) -> 1 | AG156: =INDEX(ATS!$A:$AE,MATCH('2) Order Form'!$W156,ATS!$AD:$AD,0),7) -> Active
A157: 1 | B157: =VLOOKUP(A157,Classification!$H$2:$I$11,2,FALSE) -> Helmets & Helmet Acc. | C157: =INDEX(ATS!$A:$AE,MATCH('2) Order Form'!$W157,ATS!$AD:$AD,0),1) -> 845081 | D157: =INDEX(ATS!$A:$AE,MATCH('2) Order Form'!$W157,ATS!$AD:$AD,0),2) -> Outrider Helmet | E157: =INDEX(ATS!$A:$AE,MATCH('2) Order Form'!$W157,ATS!$AD:$AD,0),4) -> MAQM-S | F157: =INDEX(ATS!$A:$AE,MATCH('2) Order Form'!$W157,ATS!$AD:$AD,0),5) -> Matte Aquamarine | G157: =INDEX(ATS!$A:$AE,MATCH('2) Order Form'!$W157,ATS!$AD:$AD,0),6) -> S | H157: 1 | I157: 0 | J157: =IFERROR(VLOOKUP(W157,ATS!$AD:$AF,2,FALSE),0) -> 31 | K157: 31 | L157: =IFERROR(VLOOKUP(W157,ATS!$AD:$AF,3,FALSE),0) -> 31 | M157: 31 | N157: 0% | O157: 0% | P157: =VLOOKUP($C157,Prices!$A$3:$R$1996,MATCH('2) Order Form'!P$8,Prices!$A$2:$R$2,0),FALSE) -> 60.00 | Q157: =VLOOKUP($C157,Prices!$A$3:$R$1996,MATCH('2) Order Form'!Q$8,Prices!$A$2:$R$2,0),FALSE) -> 119.95 | R157: 0 | S157: 0 | T157: 0 | U157: 0% | W157: 7048652662446 | Y157: 0 | Z157: 0 | AA157: 1 | AB157: 1 | AC157: 845081Matte Aquamarine | AD157: 845081 | AE157: =VLOOKUP($C157,Classification!$A:$F,5,FALSE) -> 22.000 | AF157: =VLOOKUP($C157,Classification!$A:$F,6,FALSE) -> 1 | AG157: =INDEX(ATS!$A:$AE,MATCH('2) Order Form'!$W157,ATS!$AD:$AD,0),7) -> Stock
A158: 1 | B158: =VLOOKUP(A158,Classification!$H$2:$I$11,2,FALSE) -> Helmets & Helmet Acc. | C158: =INDEX(ATS!$A:$AE,MATCH('2) Order Form'!$W158,ATS!$AD:$AD,0),1) -> 845081 | D158: =INDEX(ATS!$A:$AE,MATCH('2) Order Form'!$W158,ATS!$AD:$AD,0),2) -> Outrider Helmet | E158: =INDEX(ATS!$A:$AE,MATCH('2) Order Form'!$W158,ATS!$AD:$AD,0),4) -> MAQM-M | F158: =INDEX(ATS!$A:$AE,MATCH('2) Order Form'!$W158,ATS!$AD:$AD,0),5) -> Matte Aquamarine | G158: =INDEX(ATS!$A:$AE,MATCH('2) Order Form'!$W158,ATS!$AD:$AD,0),6) -> M | H158: 1 | I158: 0 | J158: =IFERROR(VLOOKUP(W158,ATS!$AD:$AF,2,FALSE),0) -> 0 | K158: 0 | L158: =IFERROR(VLOOKUP(W158,ATS!$AD:$AF,3,FALSE),0) -> 0 | M158: 0 | N158: 0% | O158: 0% | P158: =VLOOKUP($C158,Prices!$A$3:$R$1996,MATCH('2) Order Form'!P$8,Prices!$A$2:$R$2,0),FALSE) -> 60.00 | Q158: =VLOOKUP($C158,Prices!$A$3:$R$1996,MATCH('2) Order Form'!Q$8,Prices!$A$2:$R$2,0),FALSE) -> 119.95 | R158: 0 | S158: 0 | T158: 0 | U158: 0% | W158: 7048652662439 | Y158: 0 | Z158: 0 | AA158: 0 | AB158: 0 | AC158: 845081Matte Aquamarine | AD158: 845081 | AE158: =VLOOKUP($C158,Classification!$A:$F,5,FALSE) -> 22.000 | AF158: =VLOOKUP($C158,Classification!$A:$F,6,FALSE) -> 1 | AG158: =INDEX(ATS!$A:$AE,MATCH('2) Order Form'!$W158,ATS!$AD:$AD,0),7) -> Stock
A159: 1 | B159: =VLOOKUP(A159,Classification!$H$2:$I$11,2,FALSE) -> Helmets & Helmet Acc. | C159: =INDEX(ATS!$A:$AE,MATCH('2) Order Form'!$W159,ATS!$AD:$AD,0),1) -> 845081 | D159: =INDEX(ATS!$A:$AE,MATCH('2) Order Form'!$W159,ATS!$AD:$AD,0),2) -> Outrider Helmet | E159: =INDEX(ATS!$A:$AE,MATCH('2) Order Form'!$W159,ATS!$AD:$AD,0),4) -> MAQM-L | F159: =INDEX(ATS!$A:$AE,MATCH('2) Order Form'!$W159,ATS!$AD:$AD,0),5) -> Matte Aquamarine | G159: =INDEX(ATS!$A:$AE,MATCH('2) Order Form'!$W159,ATS!$AD:$AD,0),6) -> L | H159: 1 | I159: 0 | J159: =IFERROR(VLOOKUP(W159,ATS!$AD:$AF,2,FALSE),0) -> 0 | K159: 0 | L159: =IFERROR(VLOOKUP(W159,ATS!$AD:$AF,3,FALSE),0) -> 0 | M159: 0 | N159: 0% | O159: 0% | P159: =VLOOKUP($C159,Prices!$A$3:$R$1996,MATCH('2) Order Form'!P$8,Prices!$A$2:$R$2,0),FALSE) -> 60.00 | Q159: =VLOOKUP($C159,Prices!$A$3:$R$1996,MATCH('2) Order Form'!Q$8,Prices!$A$2:$R$2,0),FALSE) -> 119.95 | R159: 0 | S159: 0 | T159: 0 | U159: 0% | W159: 7048652662422 | Y159: 0 | Z159: 0 | AA159: 0 | AB159: 0 | AC159: 845081Matte Aquamarine | AD159: 845081 | AE159: =VLOOKUP($C159,Classification!$A:$F,5,FALSE) -> 22.000 | AF159: =VLOOKUP($C159,Classification!$A:$F,6,FALSE) -> 1 | AG159: =INDEX(ATS!$A:$AE,MATCH('2) Order Form'!$W159,ATS!$AD:$AD,0),7) -> Stock
A160: 1 | B160: =VLOOKUP(A160,Classification!$H$2:$I$11,2,FALSE) -> Helmets & Helmet Acc. | C160: =INDEX(ATS!$A:$AE,MATCH('2) Order Form'!$W160,ATS!$AD:$AD,0),1) -> 845081 | D160: =INDEX(ATS!$A:$AE,MATCH('2) Order Form'!$W160,ATS!$AD:$AD,0),2) -> Outrider Helmet | E160: =INDEX(ATS!$A:$AE,MATCH('2) Order Form'!$W160,ATS!$AD:$AD,0),4) -> MBLCK-S | F160: =INDEX(ATS!$A:$AE,MATCH('2) Order Form'!$W160,ATS!$AD:$AD,0),5) -> Matte Black | G160: =INDEX(ATS!$A:$AE,MATCH('2) Order Form'!$W160,ATS!$AD:$AD,0),6) -> S | H160: 1 | I160: 0 | J160: =IFERROR(VLOOKUP(W160,ATS!$AD:$AF,2,FALSE),0) -> -29 | K160: 0 | L160: =IFERROR(VLOOKUP(W160,ATS!$AD:$AF,3,FALSE),0) -> -29 | M160: =IF(L160=99999,"OPEN",IF(L160>50,"50+",IF(L160<=0,"0",L160))) -> 0 | N160: 0% | O160: =IF(N160<>0,N160,$P$5) -> 0% | P160: =VLOOKUP($C160,Prices!$A$3:$R$1996,MATCH('2) Order Form'!P$8,Prices!$A$2:$R$2,0),FALSE) -> 60.00 | Q160: =VLOOKUP($C160,Prices!$A$3:$R$1996,MATCH('2) Order Form'!Q$8,Prices!$A$2:$R$2,0),FALSE) -> 119.95 | R160: =I160*P160 -> 0 | S160: =R160*O160 -> 0 | T160: =R160-S160 -> 0 | U160: 0% | W160: 7048652274236 | Y160: 0 | Z160: =IF(A160=OFFSET(A160,-1,0),0,1) -> 0 | AA160: =IF(C160=OFFSET(C160,-1,0),0,1) -> 0 | AB160: =IF(F160=OFFSET(F160,-1,0),0,1) -> 1 | AC160: =CONCATENATE(C160,F160) -> 845081Matte Black | AD160: =IFERROR(IF(B160="EYEWEAR",CONCATENATE(C160,"-",G160),C160),C160) -> 845081 | AE160: =VLOOKUP($C160,Classification!$A:$F,5,FALSE) -> 22.000 | AF160: =VLOOKUP($C160,Classification!$A:$F,6,FALSE) -> 1 | AG160: =INDEX(ATS!$A:$AE,MATCH('2) Order Form'!$W160,ATS!$AD:$AD,0),7) -> Active
A161: 1 | B161: =VLOOKUP(A161,Classification!$H$2:$I$11,2,FALSE) -> Helmets & Helmet Acc. | C161: =INDEX(ATS!$A:$AE,MATCH('2) Order Form'!$W161,ATS!$AD:$AD,0),1) -> 845081 | D161: =INDEX(ATS!$A:$AE,MATCH('2) Order Form'!$W161,ATS!$AD:$AD,0),2) -> Outrider Helmet | E161: =INDEX(ATS!$A:$AE,MATCH('2) Order Form'!$W161,ATS!$AD:$AD,0),4) -> MBLCK-M | F161: =INDEX(ATS!$A:$AE,MATCH('2) Order Form'!$W161,ATS!$AD:$AD,0),5) -> Matte Black | G161: =INDEX(ATS!$A:$AE,MATCH('2) Order Form'!$W161,ATS!$AD:$AD,0),6) -> M | H161: 1 | I161: 0 | J161: =IFERROR(VLOOKUP(W161,ATS!$AD:$AF,2,FALSE),0) -> 0 | K161: 0 | L161: =IFERROR(VLOOKUP(W161,ATS!$AD:$AF,3,FALSE),0) -> 0 | M161: 0 | N161: 0% | O161: 0% | P161: =VLOOKUP($C161,Prices!$A$3:$R$1996,MATCH('2) Order Form'!P$8,Prices!$A$2:$R$2,0),FALSE) -> 60.00 | Q161: =VLOOKUP($C161,Prices!$A$3:$R$1996,MATCH('2) Order Form'!Q$8,Prices!$A$2:$R$2,0),FALSE) -> 119.95 | R161: 0 | S161: 0 | T161: 0 | U161: 0% | W161: 7048652274229 | Y161: 0 | Z161: 0 | AA161: 0 | AB161: 0 | AC161: 845081Matte Black | AD161: 845081 | AE161: =VLOOKUP($C161,Classification!$A:$F,5,FALSE) -> 22.000 | AF161: =VLOOKUP($C161,Classification!$A:$F,6,FALSE) -> 1 | AG161: =INDEX(ATS!$A:$AE,MATCH('2) Order Form'!$W161,ATS!$AD:$AD,0),7) -> Active
A162: 1 | B162: =VLOOKUP(A162,Classification!$H$2:$I$11,2,FALSE) -> Helmets & Helmet Acc. | C162: =INDEX(ATS!$A:$AE,MATCH('2) Order Form'!$W162,ATS!$AD:$AD,0),1) -> 845081 | D162: =INDEX(ATS!$A:$AE,MATCH('2) Order Form'!$W162,ATS!$AD:$AD,0),2) -> Outrider Helmet | E162: =INDEX(ATS!$A:$AE,MATCH('2) Order Form'!$W162,ATS!$AD:$AD,0),4) -> MBLCK-L | F162: =INDEX(ATS!$A:$AE,MATCH('2) Order Form'!$W162,ATS!$AD:$AD,0),5) -> Matte Black | G162: =INDEX(ATS!$A:$AE,MATCH('2) Order Form'!$W162,ATS!$AD:$AD,0),6) -> L | H162: 1 | I162: 0 | J162: =IFERROR(VLOOKUP(W162,ATS!$AD:$AF,2,FALSE),0) -> 0 | K162: 0 | L162: =IFERROR(VLOOKUP(W162,ATS!$AD:$AF,3,FALSE),0) -> 0 | M162: 0 | N162: 0% | O162: 0% | P162: =VLOOKUP($C162,Prices!$A$3:$R$1996,MATCH('2) Order Form'!P$8,Prices!$A$2:$R$2,0),FALSE) -> 60.00 | Q162: =VLOOKUP($C162,Prices!$A$3:$R$1996,MATCH('2) Order Form'!Q$8,Prices!$A$2:$R$2,0),FALSE) -> 119.95 | R162: 0 | S162: 0 | T162: 0 | U162: 0% | W162: 7048652274212 | Y162: 0 | Z162: 0 | AA162: 0 | AB162: 0 | AC162: 845081Matte Black | AD162: 845081 | AE162: =VLOOKUP($C162,Classification!$A:$F,5,FALSE) -> 22.000 | AF162: =VLOOKUP($C162,Classification!$A:$F,6,FALSE) -> 1 | AG162: =INDEX(ATS!$A:$AE,MATCH('2) Order Form'!$W162,ATS!$AD:$AD,0),7) -> Active
A163: 1 | B163: =VLOOKUP(A163,Classification!$H$2:$I$11,2,FALSE) -> Helmets & Helmet Acc. | C163: =INDEX(ATS!$A:$AE,MATCH('2) Order Form'!$W163,ATS!$AD:$AD,0),1) -> 845081 | D163: =INDEX(ATS!$A:$AE,MATCH('2) Order Form'!$W163,ATS!$AD:$AD,0),2) -> Outrider Helmet | E163: =INDEX(ATS!$A:$AE,MATCH('2) Order Form'!$W163,ATS!$AD:$AD,0),4) -> MCHOR-S | F163: =INDEX(ATS!$A:$AE,MATCH('2) Order Form'!$W163,ATS!$AD:$AD,0),5) -> Matte Chopper Orange | G163: =INDEX(ATS!$A:$AE,MATCH('2) Order Form'!$W163,ATS!$AD:$AD,0),6) -> S | H163: 1 | I163: 0 | J163: =IFERROR(VLOOKUP(W163,ATS!$AD:$AF,2,FALSE),0) -> 0 | K163: 0 | L163: =IFERROR(VLOOKUP(W163,ATS!$AD:$AF,3,FALSE),0) -> 0 | M163: 0 | N163: 0% | O163: 0% | P163: =VLOOKUP($C163,Prices!$A$3:$R$1996,MATCH('2) Order Form'!P$8,Prices!$A$2:$R$2,0),FALSE) -> 60.00 | Q163: =VLOOKUP($C163,Prices!$A$3:$R$1996,MATCH('2) Order Form'!Q$8,Prices!$A$2:$R$2,0),FALSE) -> 119.95 | R163: 0 | S163: 0 | T163: 0 | U163: 0% | W163: 7048652660886 | Y163: 0 | Z163: 0 | AA163: 0 | AB163: 1 | AC163: 845081Matte Chopper Orange | AD163: 845081 | AE163: =VLOOKUP($C163,Classification!$A:$F,5,FALSE) -> 22.000 | AF163: =VLOOKUP($C163,Classification!$A:$F,6,FALSE) -> 1 | AG163: =INDEX(ATS!$A:$AE,MATCH('2) Order Form'!$W163,ATS!$AD:$AD,0),7) -> Stock
A164: 1 | B164: =VLOOKUP(A164,Classification!$H$2:$I$11,2,FALSE) -> Helmets & Helmet Acc. | C164: =INDEX(ATS!$A:$AE,MATCH('2) Order Form'!$W164,ATS!$AD:$AD,0),1) -> 845081 | D164: =INDEX(ATS!$A:$AE,MATCH('2) Order Form'!$W164,ATS!$AD:$AD,0),2) -> Outrider Helmet | E164: =INDEX(ATS!$A:$AE,MATCH('2) Order Form'!$W164,ATS!$AD:$AD,0),4) -> MCHOR-M | F164: =INDEX(ATS!$A:$AE,MATCH('2) Order Form'!$W164,ATS!$AD:$AD,0),5) -> Matte Chopper Orange | G164: =INDEX(ATS!$A:$AE,MATCH('2) Order Form'!$W164,ATS!$AD:$AD,0),6) -> M | H164: 1 | I164: 0 | J164: =IFERROR(VLOOKUP(W164,ATS!$AD:$AF,2,FALSE),0) -> 0 | K164: 0 | L164: =IFERROR(VLOOKUP(W164,ATS!$AD:$AF,3,FALSE),0) -> 0 | M164: 0 | N164: 0% | O164: 0% | P164: =VLOOKUP($C164,Prices!$A$3:$R$1996,MATCH('2) Order Form'!P$8,Prices!$A$2:$R$2,0),FALSE) -> 60.00 | Q164: =VLOOKUP($C164,Prices!$A$3:$R$1996,MATCH('2) Order Form'!Q$8,Prices!$A$2:$R$2,0),FALSE) -> 119.95 | R164: 0 | S164: 0 | T164: 0 | U164: 0% | W164: 7048652660879 | Y164: 0 | Z164: 0 | AA164: 0 | AB164: 0 | AC164: 845081Matte Chopper Orange | AD164: 845081 | AE164: =VLOOKUP($C164,Classification!$A:$F,5,FALSE) -> 22.000 | AF164: =VLOOKUP($C164,Classification!$A:$F,6,FALSE) -> 1 | AG164: =INDEX(ATS!$A:$AE,MATCH('2) Order Form'!$W164,ATS!$AD:$AD,0),7) -> Stock
A165: 1 | B165: =VLOOKUP(A165,Classification!$H$2:$I$11,2,FALSE) -> Helmets & Helmet Acc. | C165: =INDEX(ATS!$A:$AE,MATCH('2) Order Form'!$W165,ATS!$AD:$AD,0),1) -> 845081 | D165: =INDEX(ATS!$A:$AE,MATCH('2) Order Form'!$W165,ATS!$AD:$AD,0),2) -> Outrider Helmet | E165: =INDEX(ATS!$A:$AE,MATCH('2) Order Form'!$W165,ATS!$AD:$AD,0),4) -> MCHOR-L | F165: =INDEX(ATS!$A:$AE,MATCH('2) Order Form'!$W165,ATS!$AD:$AD,0),5) -> Matte Chopper Orange | G165: =INDEX(ATS!$A:$AE,MATCH('2) Order Form'!$W165,ATS!$AD:$AD,0),6) -> L | H165: 1 | I165: 0 | J165: =IFERROR(VLOOKUP(W165,ATS!$AD:$AF,2,FALSE),0) -> 1 | K165: 1 | L165: =IFERROR(VLOOKUP(W165,ATS!$AD:$AF,3,FALSE),0) -> 1 | M165: 1 | N165: 0% | O165: 0% | P165: =VLOOKUP($C165,Prices!$A$3:$R$1996,MATCH('2) Order Form'!P$8,Prices!$A$2:$R$2,0),FALSE) -> 60.00 | Q165: =VLOOKUP($C165,Prices!$A$3:$R$1996,MATCH('2) Order Form'!Q$8,Prices!$A$2:$R$2,0),FALSE) -> 119.95 | R165: 0 | S165: 0 | T165: 0 | U165: 0% | W165: 7048652660862 | Y165: 0 | Z165: 0 | AA165: 0 | AB165: 0 | AC165: 845081Matte Chopper Orange | AD165: 845081 | AE165: =VLOOKUP($C165,Classification!$A:$F,5,FALSE) -> 22.000 | AF165: =VLOOKUP($C165,Classification!$A:$F,6,FALSE) -> 1 | AG165: =INDEX(ATS!$A:$AE,MATCH('2) Order Form'!$W165,ATS!$AD:$AD,0),7) -> Stock
A166: 1 | B166: =VLOOKUP(A166,Classification!$H$2:$I$11,2,FALSE) -> Helmets & Helmet Acc. | C166: =INDEX(ATS!$A:$AE,MATCH('2) Order Form'!$W166,ATS!$AD:$AD,0),1) -> 845081 | D166: =INDEX(ATS!$A:$AE,MATCH('2) Order Form'!$W166,ATS!$AD:$AD,0),2) -> Outrider Helmet | E166: =INDEX(ATS!$A:$AE,MATCH('2) Order Form'!$W166,ATS!$AD:$AD,0),4) -> MNGRY-S | F166: =INDEX(ATS!$A:$AE,MATCH('2) Order Form'!$W166,ATS!$AD:$AD,0),5) -> Matte Nardo Gray | G166: =INDEX(ATS!$A:$AE,MATCH('2) Order Form'!$W166,ATS!$AD:$AD,0),6) -> S | H166: 1 | I166: 0 | J166: =IFERROR(VLOOKUP(W166,ATS!$AD:$AF,2,FALSE),0) -> 0 | K166: 0 | L166: =IFERROR(VLOOKUP(W166,ATS!$AD:$AF,3,FALSE),0) -> 0 | M166: 0 | N166: 0% | O166: 0% | P166: =VLOOKUP($C166,Prices!$A$3:$R$1996,MATCH('2) Order Form'!P$8,Prices!$A$2:$R$2,0),FALSE) -> 60.00 | Q166: =VLOOKUP($C166,Prices!$A$3:$R$1996,MATCH('2) Order Form'!Q$8,Prices!$A$2:$R$2,0),FALSE) -> 119.95 | R166: 0 | S166: 0 | T166: 0 | U166: 0% | W166: 7048652660916 | Y166: 0 | Z166: 0 | AA166: 0 | AB166: 1 | AC166: 845081Matte Nardo Gray | AD166: 845081 | AE166: =VLOOKUP($C166,Classification!$A:$F,5,FALSE) -> 22.000 | AF166: =VLOOKUP($C166,Classification!$A:$F,6,FALSE) -> 1 | AG166: =INDEX(ATS!$A:$AE,MATCH('2) Order Form'!$W166,ATS!$AD:$AD,0),7) -> Stock
A167: 1 | B167: =VLOOKUP(A167,Classification!$H$2:$I$11,2,FALSE) -> Helmets & Helmet Acc. | C167: =INDEX(ATS!$A:$AE,MATCH('2) Order Form'!$W167,ATS!$AD:$AD,0),1) -> 845081 | D167: =INDEX(ATS!$A:$AE,MATCH('2) Order Form'!$W167,ATS!$AD:$AD,0),2) -> Outrider Helmet | E167: =INDEX(ATS!$A:$AE,MATCH('2) Order Form'!$W167,ATS!$AD:$AD,0),4) -> MNGRY-M | F167: =INDEX(ATS!$A:$AE,MATCH('2) Order Form'!$W167,ATS!$AD:$AD,0),5) -> Matte Nardo Gray | G167: =INDEX(ATS!$A:$AE,MATCH('2) Order Form'!$W167,ATS!$AD:$AD,0),6) -> M | H167: 1 | I167: 0 | J167: =IFERROR(VLOOKUP(W167,ATS!$AD:$AF,2,FALSE),0) -> 0 | K167: 0 | L167: =IFERROR(VLOOKUP(W167,ATS!$AD:$AF,3,FALSE),0) -> 0 | M167: 0 | N167: 0% | O167: 0% | P167: =VLOOKUP($C167,Prices!$A$3:$R$1996,MATCH('2) Order Form'!P$8,Prices!$A$2:$R$2,0),FALSE) -> 60.00 | Q167: =VLOOKUP($C167,Prices!$A$3:$R$1996,MATCH('2) Order Form'!Q$8,Prices!$A$2:$R$2,0),FALSE) -> 119.95 | R167: 0 | S167: 0 | T167: 0 | U167: 0% | W167: 7048652660909 | Y167: 0 | Z167: 0 | AA167: 0 | AB167: 0 | AC167: 845081Matte Nardo Gray | AD167: 845081 | AE167: =VLOOKUP($C167,Classification!$A:$F,5,FALSE) -> 22.000 | AF167: =VLOOKUP($C167,Classification!$A:$F,6,FALSE) -> 1 | AG167: =INDEX(ATS!$A:$AE,MATCH('2) Order Form'!$W167,ATS!$AD:$AD,0),7) -> Stock
A168: 1 | B168: =VLOOKUP(A168,Classification!$H$2:$I$11,2,FALSE) -> Helmets & Helmet Acc. | C168: =INDEX(ATS!$A:$AE,MATCH('2) Order Form'!$W168,ATS!$AD:$AD,0),1) -> 845081 | D168: =INDEX(ATS!$A:$AE,MATCH('2) Order Form'!$W168,ATS!$AD:$AD,0),2) -> Outrider Helmet | E168: =INDEX(ATS!$A:$AE,MATCH('2) Order Form'!$W168,ATS!$AD:$AD,0),4) -> MNGRY-L | F168: =INDEX(ATS!$A:$AE,MATCH('2) Order Form'!$W168,ATS!$AD:$AD,0),5) -> Matte Nardo Gray | G168: =INDEX(ATS!$A:$AE,MATCH('2) Order Form'!$W168,ATS!$AD:$AD,0),6) -> L | H168: 1 | I168: 0 | J168: =IFERROR(VLOOKUP(W168,ATS!$AD:$AF,2,FALSE),0) -> 0 | K168: 0 | L168: =IFERROR(VLOOKUP(W168,ATS!$AD:$AF,3,FALSE),0) -> 0 | M168: 0 | N168: 0% | O168: 0% | P168: =VLOOKUP($C168,Prices!$A$3:$R$1996,MATCH('2) Order Form'!P$8,Prices!$A$2:$R$2,0),FALSE) -> 60.00 | Q168: =VLOOKUP($C168,Prices!$A$3:$R$1996,MATCH('2) Order Form'!Q$8,Prices!$A$2:$R$2,0),FALSE) -> 119.95 | R168: 0 | S168: 0 | T168: 0 | U168: 0% | W168: 7048652660893 | Y168: 0 | Z168: 0 | AA168: 0 | AB168: 0 | AC168: 845081Matte Nardo Gray | AD168: 845081 | AE168: =VLOOKUP($C168,Classification!$A:$F,5,FALSE) -> 22.000 | AF168: =VLOOKUP($C168,Classification!$A:$F,6,FALSE) -> 1 | AG168: =INDEX(ATS!$A:$AE,MATCH('2) Order Form'!$W168,ATS!$AD:$AD,0),7) -> Stock
A169: 1 | B169: =VLOOKUP(A169,Classification!$H$2:$I$11,2,FALSE) -> Helmets & Helmet Acc. | C169: =INDEX(ATS!$A:$AE,MATCH('2) Order Form'!$W169,ATS!$AD:$AD,0),1) -> 845081 | D169: =INDEX(ATS!$A:$AE,MATCH('2) Order Form'!$W169,ATS!$AD:$AD,0),2) -> Outrider Helmet | E169: =INDEX(ATS!$A:$AE,MATCH('2) Order Form'!$W169,ATS!$AD:$AD,0),4) -> MWH20-S | F169: =INDEX(ATS!$A:$AE,MATCH('2) Order Form'!$W169,ATS!$AD:$AD,0),5) -> Matte White | G169: =INDEX(ATS!$A:$AE,MATCH('2) Order Form'!$W169,ATS!$AD:$AD,0),6) -> S | H169: 1 | I169: 0 | J169: =IFERROR(VLOOKUP(W169,ATS!$AD:$AF,2,FALSE),0) -> 0 | K169: 0 | L169: =IFERROR(VLOOKUP(W169,ATS!$AD:$AF,3,FALSE),0) -> 0 | M169: 0 | N169: 0% | O169: 0% | P169: =VLOOKUP($C169,Prices!$A$3:$R$1996,MATCH('2) Order Form'!P$8,Prices!$A$2:$R$2,0),FALSE) -> 60.00 | Q169: =VLOOKUP($C169,Prices!$A$3:$R$1996,MATCH('2) Order Form'!Q$8,Prices!$A$2:$R$2,0),FALSE) -> 119.95 | R169: 0 | S169: 0 | T169: 0 | U169: 0% | W169: 7048652555496 | Y169: 0 | Z169: 0 | AA169: 0 | AB169: 1 | AC169: 845081Matte White | AD169: 845081 | AE169: =VLOOKUP($C169,Classification!$A:$F,5,FALSE) -> 22.000 | AF169: =VLOOKUP($C169,Classification!$A:$F,6,FALSE) -> 1 | AG169: =INDEX(ATS!$A:$AE,MATCH('2) Order Form'!$W169,ATS!$AD:$AD,0),7) -> Active
A170: 1 | B170: =VLOOKUP(A170,Classification!$H$2:$I$11,2,FALSE) -> Helmets & Helmet Acc. | C170: =INDEX(ATS!$A:$AE,MATCH('2) Order Form'!$W170,ATS!$AD:$AD,0),1) -> 845081 | D170: =INDEX(ATS!$A:$AE,MATCH('2) Order Form'!$W170,ATS!$AD:$AD,0),2) -> Outrider Helmet | E170: =INDEX(ATS!$A:$AE,MATCH('2) Order Form'!$W170,ATS!$AD:$AD,0),4) -> MWH20-M | F170: =INDEX(ATS!$A:$AE,MATCH('2) Order Form'!$W170,ATS!$AD:$AD,0),5) -> Matte White | G170: =INDEX(ATS!$A:$AE,MATCH('2) Order Form'!$W170,ATS!$AD:$AD,0),6) -> M | H170: 1 | I170: 0 | J170: =IFERROR(VLOOKUP(W170,ATS!$AD:$AF,2,FALSE),0) -> 0 | K170: 0 | L170: =IFERROR(VLOOKUP(W170,ATS!$AD:$AF,3,FALSE),0) -> 0 | M170: 0 | N170: 0% | O170: 0% | P170: =VLOOKUP($C170,Prices!$A$3:$R$1996,MATCH('2) Order Form'!P$8,Prices!$A$2:$R$2,0),FALSE) -> 60.00 | Q170: =VLOOKUP($C170,Prices!$A$3:$R$1996,MATCH('2) Order Form'!Q$8,Prices!$A$2:$R$2,0),FALSE) -> 119.95 | R170: 0 | S170: 0 | T170: 0 | U170: 0% | W170: 7048652555489 | Y170: 0 | Z170: 0 | AA170: 0 | AB170: 0 | AC170: 845081Matte White | AD170: 845081 | AE170: =VLOOKUP($C170,Classification!$A:$F,5,FALSE) -> 22.000 | AF170: =VLOOKUP($C170,Classification!$A:$F,6,FALSE) -> 1 | AG170: =INDEX(ATS!$A:$AE,MATCH('2) Order Form'!$W170,ATS!$AD:$AD,0),7) -> Active
A171: 1 | B171: =VLOOKUP(A171,Classification!$H$2:$I$11,2,FALSE) -> Helmets & Helmet Acc. | C171: =INDEX(ATS!$A:$AE,MATCH('2) Order Form'!$W171,ATS!$AD:$AD,0),1) -> 845081 | D171: =INDEX(ATS!$A:$AE,MATCH('2) Order Form'!$W171,ATS!$AD:$AD,0),2) -> Outrider Helmet | E171: =INDEX(ATS!$A:$AE,MATCH('2) Order Form'!$W171,ATS!$AD:$AD,0),4) -> MWH20-L | F171: =INDEX(ATS!$A:$AE,MATCH('2) Order Form'!$W171,ATS!$AD:$AD,0),5) -> Matte White | G171: =INDEX(ATS!$A:$AE,MATCH('2) Order Form'!$W171,ATS!$AD:$AD,0),6) -> L | H171: 1 | I171: 0 | J171: =IFERROR(VLOOKUP(W171,ATS!$AD:$AF,2,FALSE),0) -> 0 | K171: 0 | L171: =IFERROR(VLOOKUP(W171,ATS!$AD:$AF,3,FALSE),0) -> 0 | M171: 0 | N171: 0% | O171: 0% | P171: =VLOOKUP($C171,Prices!$A$3:$R$1996,MATCH('2) Order Form'!P$8,Prices!$A$2:$R$2,0),FALSE) -> 60.00 | Q171: =VLOOKUP($C171,Prices!$A$3:$R$1996,MATCH('2) Order Form'!Q$8,Prices!$A$2:$R$2,0),FALSE) -> 119.95 | R171: 0 | S171: 0 | T171: 0 | U171: 0% | W171: 7048652555472 | Y171: 0 | Z171: 0 | AA171: 0 | AB171: 0 | AC171: 845081Matte White | AD171: 845081 | AE171: =VLOOKUP($C171,Classification!$A:$F,5,FALSE) -> 22.000 | AF171: =VLOOKUP($C171,Classification!$A:$F,6,FALSE) -> 1 | AG171: =INDEX(ATS!$A:$AE,MATCH('2) Order Form'!$W171,ATS!$AD:$AD,0),7) -> Active
A172: 1 | B172: =VLOOKUP(A172,Classification!$H$2:$I$11,2,FALSE) -> Helmets & Helmet Acc. | C172: =INDEX(ATS!$A:$AE,MATCH('2) Order Form'!$W172,ATS!$AD:$AD,0),1) -> 845088 | D172: =INDEX(ATS!$A:$AE,MATCH('2) Order Form'!$W172,ATS!$AD:$AD,0),2) -> Chaser Mips Helmet | E172: =INDEX(ATS!$A:$AE,MATCH('2) Order Form'!$W172,ATS!$AD:$AD,0),4) -> MBLCK-SM | F172: =INDEX(ATS!$A:$AE,MATCH('2) Order Form'!$W172,ATS!$AD:$AD,0),5) -> Matte Black | G172: =INDEX(ATS!$A:$AE,MATCH('2) Order Form'!$W172,ATS!$AD:$AD,0),6) -> SM | H172: 1 | I172: 0 | J172: =IFERROR(VLOOKUP(W172,ATS!$AD:$AF,2,FALSE),0) -> 0 | K172: 0 | L172: =IFERROR(VLOOKUP(W172,ATS!$AD:$AF,3,FALSE),0) -> 0 | M172: 0 | N172: 0% | O172: 0% | P172: =VLOOKUP($C172,Prices!$A$3:$R$1996,MATCH('2) Order Form'!P$8,Prices!$A$2:$R$2,0),FALSE) -> 65.00 | Q172: =VLOOKUP($C172,Prices!$A$3:$R$1996,MATCH('2) Order Form'!Q$8,Prices!$A$2:$R$2,0),FALSE) -> 129.95 | R172: 0 | S172: 0 | T172: 0 | U172: 0% | W172: 7048652274724 | Y172: 0 | Z172: 0 | AA172: 1 | AB172: 1 | AC172: 845088Matte Black | AD172: 845088 | AE172: =VLOOKUP($C172,Classification!$A:$F,5,FALSE) -> 23.000 | AF172: =VLOOKUP($C172,Classification!$A:$F,6,FALSE) -> 1 | AG172: =INDEX(ATS!$A:$AE,MATCH('2) Order Form'!$W172,ATS!$AD:$AD,0),7) -> Active
A173: 1 | B173: =VLOOKUP(A173,Classification!$H$2:$I$11,2,FALSE) -> Helmets & Helmet Acc. | C173: =INDEX(ATS!$A:$AE,MATCH('2) Order Form'!$W173,ATS!$AD:$AD,0),1) -> 845088 | D173: =INDEX(ATS!$A:$AE,MATCH('2) Order Form'!$W173,ATS!$AD:$AD,0),2) -> Chaser Mips Helmet | E173: =INDEX(ATS!$A:$AE,MATCH('2) Order Form'!$W173,ATS!$AD:$AD,0),4) -> MBLCK-ML | F173: =INDEX(ATS!$A:$AE,MATCH('2) Order Form'!$W173,ATS!$AD:$AD,0),5) -> Matte Black | G173: =INDEX(ATS!$A:$AE,MATCH('2) Order Form'!$W173,ATS!$AD:$AD,0),6) -> ML | H173: 1 | I173: 0 | J173: =IFERROR(VLOOKUP(W173,ATS!$AD:$AF,2,FALSE),0) -> 0 | K173: 0 | L173: =IFERROR(VLOOKUP(W173,ATS!$AD:$AF,3,FALSE),0) -> 0 | M173: 0 | N173: 0% | O173: 0% | P173: =VLOOKUP($C173,Prices!$A$3:$R$1996,MATCH('2) Order Form'!P$8,Prices!$A$2:$R$2,0),FALSE) -> 65.00 | Q173: =VLOOKUP($C173,Prices!$A$3:$R$1996,MATCH('2) Order Form'!Q$8,Prices!$A$2:$R$2,0),FALSE) -> 129.95 | R173: 0 | S173: 0 | T173: 0 | U173: 0% | W173: 7048652274717 | Y173: 0 | Z173: 0 | AA173: 0 | AB173: 0 | AC173: 845088Matte Black | AD173: 845088 | AE173: =VLOOKUP($C173,Classification!$A:$F,5,FALSE) -> 23.000 | AF173: =VLOOKUP($C173,Classification!$A:$F,6,FALSE) -> 1 | AG173: =INDEX(ATS!$A:$AE,MATCH('2) Order Form'!$W173,ATS!$AD:$AD,0),7) -> Active
A174: 1 | B174: =VLOOKUP(A174,Classification!$H$2:$I$11,2,FALSE) -> Helmets & Helmet Acc. | C174: =INDEX(ATS!$A:$AE,MATCH('2) Order Form'!$W174,ATS!$AD:$AD,0),1) -> 845088 | D174: =INDEX(ATS!$A:$AE,MATCH('2) Order Form'!$W174,ATS!$AD:$AD,0),2) -> Chaser Mips Helmet | E174: =INDEX(ATS!$A:$AE,MATCH('2) Order Form'!$W174,ATS!$AD:$AD,0),4) -> MBLCK-LXL | F174: =INDEX(ATS!$A:$AE,MATCH('2) Order Form'!$W174,ATS!$AD:$AD,0),5) -> Matte Black | G174: =INDEX(ATS!$A:$AE,MATCH('2) Order Form'!$W174,ATS!$AD:$AD,0),6) -> LXL | H174: 1 | I174: 0 | J174: =IFERROR(VLOOKUP(W174,ATS!$AD:$AF,2,FALSE),0) -> 0 | K174: 0 | L174: =IFERROR(VLOOKUP(W174,ATS!$AD:$AF,3,FALSE),0) -> 0 | M174: 0 | N174: 0% | O174: 0% | P174: =VLOOKUP($C174,Prices!$A$3:$R$1996,MATCH('2) Order Form'!P$8,Prices!$A$2:$R$2,0),FALSE) -> 65.00 | Q174: =VLOOKUP($C174,Prices!$A$3:$R$1996,MATCH('2) Order Form'!Q$8,Prices!$A$2:$R$2,0),FALSE) -> 129.95 | R174: 0 | S174: 0 | T174: 0 | U174: 0% | W174: 7048652274700 | Y174: 0 | Z174: 0 | AA174: 0 | AB174: 0 | AC174: 845088Matte Black | AD174: 845088 | AE174: =VLOOKUP($C174,Classification!$A:$F,5,FALSE) -> 23.000 | AF174: =VLOOKUP($C174,Classification!$A:$F,6,FALSE) -> 1 | AG174: =INDEX(ATS!$A:$AE,MATCH('2) Order Form'!$W174,ATS!$AD:$AD,0),7) -> Active
A175: 1 | B175: =VLOOKUP(A175,Classification!$H$2:$I$11,2,FALSE) -> Helmets & Helmet Acc. | C175: =INDEX(ATS!$A:$AE,MATCH('2) Order Form'!$W175,ATS!$AD:$AD,0),1) -> 845088 | D175: =INDEX(ATS!$A:$AE,MATCH('2) Order Form'!$W175,ATS!$AD:$AD,0),2) -> Chaser Mips Helmet | E175: =INDEX(ATS!$A:$AE,MATCH('2) Order Form'!$W175,ATS!$AD:$AD,0),4) -> MNGRY-SM | F175: =INDEX(ATS!$A:$AE,MATCH('2) Order Form'!$W175,ATS!$AD:$AD,0),5) -> Matte Nardo Gray | G175: =INDEX(ATS!$A:$AE,MATCH('2) Order Form'!$W175,ATS!$AD:$AD,0),6) -> SM | H175: 1 | I175: 0 | J175: =IFERROR(VLOOKUP(W175,ATS!$AD:$AF,2,FALSE),0) -> 25 | K175: 25 | L175: =IFERROR(VLOOKUP(W175,ATS!$AD:$AF,3,FALSE),0) -> 25 | M175: 25 | N175: 0% | O175: 0% | P175: =VLOOKUP($C175,Prices!$A$3:$R$1996,MATCH('2) Order Form'!P$8,Prices!$A$2:$R$2,0),FALSE) -> 65.00 | Q175: =VLOOKUP($C175,Prices!$A$3:$R$1996,MATCH('2) Order Form'!Q$8,Prices!$A$2:$R$2,0),FALSE) -> 129.95 | R175: 0 | S175: 0 | T175: 0 | U175: 0% | W175: 7048652661067 | Y175: 0 | Z175: 0 | AA175: 0 | AB175: 1 | AC175: 845088Matte Nardo Gray | AD175: 845088 | AE175: =VLOOKUP($C175,Classification!$A:$F,5,FALSE) -> 23.000 | AF175: =VLOOKUP($C175,Classification!$A:$F,6,FALSE) -> 1 | AG175: =INDEX(ATS!$A:$AE,MATCH('2) Order Form'!$W175,ATS!$AD:$AD,0),7) -> Active
A176: 1 | B176: =VLOOKUP(A176,Classification!$H$2:$I$11,2,FALSE) -> Helmets & Helmet Acc. | C176: =INDEX(ATS!$A:$AE,MATCH('2) Order Form'!$W176,ATS!$AD:$AD,0),1) -> 845088 | D176: =INDEX(ATS!$A:$AE,MATCH('2) Order Form'!$W176,ATS!$AD:$AD,0),2) -> Chaser Mips Helmet | E176: =INDEX(ATS!$A:$AE,MATCH('2) Order Form'!$W176,ATS!$AD:$AD,0),4) -> MNGRY-ML | F176: =INDEX(ATS!$A:$AE,MATCH('2) Order Form'!$W176,ATS!$AD:$AD,0),5) -> Matte Nardo Gray | G176: =INDEX(ATS!$A:$AE,MATCH('2) Order Form'!$W176,ATS!$AD:$AD,0),6) -> ML | H176: 1 | I176: 0 | J176: =IFERROR(VLOOKUP(W176,ATS!$AD:$AF,2,FALSE),0) -> 0 | K176: 0 | L176: =IFERROR(VLOOKUP(W176,ATS!$AD:$AF,3,FALSE),0) -> 0 | M176: 0 | N176: 0% | O176: 0% | P176: =VLOOKUP($C176,Prices!$A$3:$R$1996,MATCH('2) Order Form'!P$8,Prices!$A$2:$R$2,0),FALSE) -> 65.00 | Q176: =VLOOKUP($C176,Prices!$A$3:$R$1996,MATCH('2) Order Form'!Q$8,Prices!$A$2:$R$2,0),FALSE) -> 129.95 | R176: 0 | S176: 0 | T176: 0 | U176: 0% | W176: 7048652661050 | Y176: 0 | Z176: 0 | AA176: 0 | AB176: 0 | AC176: 845088Matte Nardo Gray | AD176: 845088 | AE176: =VLOOKUP($C176,Classification!$A:$F,5,FALSE) -> 23.000 | AF176: =VLOOKUP($C176,Classification!$A:$F,6,FALSE) -> 1 | AG176: =INDEX(ATS!$A:$AE,MATCH('2) Order Form'!$W176,ATS!$AD:$AD,0),7) -> Active
A177: 1 | B177: =VLOOKUP(A177,Classification!$H$2:$I$11,2,FALSE) -> Helmets & Helmet Acc. | C177: =INDEX(ATS!$A:$AE,MATCH('2) Order Form'!$W177,ATS!$AD:$AD,0),1) -> 845088 | D177: =INDEX(ATS!$A:$AE,MATCH('2) Order Form'!$W177,ATS!$AD:$AD,0),2) -> Chaser Mips Helmet | E177: =INDEX(ATS!$A:$AE,MATCH('2) Order Form'!$W177,ATS!$AD:$AD,0),4) -> MNGRY-LXL | F177: =INDEX(ATS!$A:$AE,MATCH('2) Order Form'!$W177,ATS!$AD:$AD,0),5) -> Matte Nardo Gray | G177: =INDEX(ATS!$A:$AE,MATCH('2) Order Form'!$W177,ATS!$AD:$AD,0),6) -> LXL | H177: 1 | I177: 0 | J177: =IFERROR(VLOOKUP(W177,ATS!$AD:$AF,2,FALSE),0) -> 6 | K177: 6 | L177: =IFERROR(VLOOKUP(W177,ATS!$AD:$AF,3,FALSE),0) -> 6 | M177: 6 | N177: 0% | O177: 0% | P177: =VLOOKUP($C177,Prices!$A$3:$R$1996,MATCH('2) Order Form'!P$8,Prices!$A$2:$R$2,0),FALSE) -> 65.00 | Q177: =VLOOKUP($C177,Prices!$A$3:$R$1996,MATCH('2) Order Form'!Q$8,Prices!$A$2:$R$2,0),FALSE) -> 129.95 | R177: 0 | S177: 0 | T177: 0 | U177: 0% | W177: 7048652661043 | Y177: 0 | Z177: 0 | AA177: 0 | AB177: 0 | AC177: 845088Matte Nardo Gray | AD177: 845088 | AE177: =VLOOKUP($C177,Classification!$A:$F,5,FALSE) -> 23.000 | AF177: =VLOOKUP($C177,Classification!$A:$F,6,FALSE) -> 1 | AG177: =INDEX(ATS!$A:$AE,MATCH('2) Order Form'!$W177,ATS!$AD:$AD,0),7) -> Active
A178: 1 | B178: =VLOOKUP(A178,Classification!$H$2:$I$11,2,FALSE) -> Helmets & Helmet Acc. | C178: =INDEX(ATS!$A:$AE,MATCH('2) Order Form'!$W178,ATS!$AD:$AD,0),1) -> 845087 | D178: =INDEX(ATS!$A:$AE,MATCH('2) Order Form'!$W178,ATS!$AD:$AD,0),2) -> Chaser Helmet | E178: =INDEX(ATS!$A:$AE,MATCH('2) Order Form'!$W178,ATS!$AD:$AD,0),4) -> MBLCK-SM | F178: =INDEX(ATS!$A:$AE,MATCH('2) Order Form'!$W178,ATS!$AD:$AD,0),5) -> Matte Black | G178: =INDEX(ATS!$A:$AE,MATCH('2) Order Form'!$W178,ATS!$AD:$AD,0),6) -> SM | H178: 1 | I178: 0 | J178: =IFERROR(VLOOKUP(W178,ATS!$AD:$AF,2,FALSE),0) -> 0 | K178: 0 | L178: =IFERROR(VLOOKUP(W178,ATS!$AD:$AF,3,FALSE),0) -> 0 | M178: 0 | N178: 0% | O178: 0% | P178: =VLOOKUP($C178,Prices!$A$3:$R$1996,MATCH('2) Order Form'!P$8,Prices!$A$2:$R$2,0),FALSE) -> 50.00 | Q178: =VLOOKUP($C178,Prices!$A$3:$R$1996,MATCH('2) Order Form'!Q$8,Prices!$A$2:$R$2,0),FALSE) -> 99.95 | R178: 0 | S178: 0 | T178: 0 | U178: 0% | W178: 7048652274663 | Y178: 0 | Z178: 0 | AA178: 1 | AB178: 1 | AC178: 845087Matte Black | AD178: 845087 | AE178: =VLOOKUP($C178,Classification!$A:$F,5,FALSE) -> 24.000 | AF178: =VLOOKUP($C178,Classification!$A:$F,6,FALSE) -> 1 | AG178: =INDEX(ATS!$A:$AE,MATCH('2) Order Form'!$W178,ATS!$AD:$AD,0),7) -> Active
A179: 1 | B179: =VLOOKUP(A179,Classification!$H$2:$I$11,2,FALSE) -> Helmets & Helmet Acc. | C179: =INDEX(ATS!$A:$AE,MATCH('2) Order Form'!$W179,ATS!$AD:$AD,0),1) -> 845087 | D179: =INDEX(ATS!$A:$AE,MATCH('2) Order Form'!$W179,ATS!$AD:$AD,0),2) -> Chaser Helmet | E179: =INDEX(ATS!$A:$AE,MATCH('2) Order Form'!$W179,ATS!$AD:$AD,0),4) -> MBLCK-ML | F179: =INDEX(ATS!$A:$AE,MATCH('2) Order Form'!$W179,ATS!$AD:$AD,0),5) -> Matte Black | G179: =INDEX(ATS!$A:$AE,MATCH('2) Order Form'!$W179,ATS!$AD:$AD,0),6) -> ML | H179: 1 | I179: 0 | J179: =IFERROR(VLOOKUP(W179,ATS!$AD:$AF,2,FALSE),0) -> 0 | K179: 0 | L179: =IFERROR(VLOOKUP(W179,ATS!$AD:$AF,3,FALSE),0) -> 0 | M179: 0 | N179: 0% | O179: 0% | P179: =VLOOKUP($C179,Prices!$A$3:$R$1996,MATCH('2) Order Form'!P$8,Prices!$A$2:$R$2,0),FALSE) -> 50.00 | Q179: =VLOOKUP($C179,Prices!$A$3:$R$1996,MATCH('2) Order Form'!Q$8,Prices!$A$2:$R$2,0),FALSE) -> 99.95 | R179: 0 | S179: 0 | T179: 0 | U179: 0% | W179: 7048652274656 | Y179: 0 | Z179: 0 | AA179: 0 | AB179: 0 | AC179: 845087Matte Black | AD179: 845087 | AE179: =VLOOKUP($C179,Classification!$A:$F,5,FALSE) -> 24.000 | AF179: =VLOOKUP($C179,Classification!$A:$F,6,FALSE) -> 1 | AG179: =INDEX(ATS!$A:$AE,MATCH('2) Order Form'!$W179,ATS!$AD:$AD,0),7) -> Active
A180: 1 | B180: =VLOOKUP(A180,Classification!$H$2:$I$11,2,FALSE) -> Helmets & Helmet Acc. | C180: =INDEX(ATS!$A:$AE,MATCH('2) Order Form'!$W180,ATS!$AD:$AD,0),1) -> 845087 | D180: =INDEX(ATS!$A:$AE,MATCH('2) Order Form'!$W180,ATS!$AD:$AD,0),2) -> Chaser Helmet | E180: =INDEX(ATS!$A:$AE,MATCH('2) Order Form'!$W180,ATS!$AD:$AD,0),4) -> MBLCK-LXL | F180: =INDEX(ATS!$A:$AE,MATCH('2) Order Form'!$W180,ATS!$AD:$AD,0),5) -> Matte Black | G180: =INDEX(ATS!$A:$AE,MATCH('2) Order Form'!$W180,ATS!$AD:$AD,0),6) -> LXL | H180: 1 | I180: 0 | J180: =IFERROR(VLOOKUP(W180,ATS!$AD:$AF,2,FALSE),0) -> 0 | K180: 0 | L180: =IFERROR(VLOOKUP(W180,ATS!$AD:$AF,3,FALSE),0) -> 0 | M180: 0 | N180: 0% | O180: 0% | P180: =VLOOKUP($C180,Prices!$A$3:$R$1996,MATCH('2) Order Form'!P$8,Prices!$A$2:$R$2,0),FALSE) -> 50.00 | Q180: =VLOOKUP($C180,Prices!$A$3:$R$1996,MATCH('2) Order Form'!Q$8,Prices!$A$2:$R$2,0),FALSE) -> 99.95 | R180: 0 | S180: 0 | T180: 0 | U180: 0% | W180: 7048652274649 | Y180: 0 | Z180: 0 | AA180: 0 | AB180: 0 | AC180: 845087Matte Black | AD180: 845087 | AE180: =VLOOKUP($C180,Classification!$A:$F,5,FALSE) -> 24.000 | AF180: =VLOOKUP($C180,Classification!$A:$F,6,FALSE) -> 1 | AG180: =INDEX(ATS!$A:$AE,MATCH('2) Order Form'!$W180,ATS!$AD:$AD,0),7) -> Active
A181: 1 | B181: =VLOOKUP(A181,Classification!$H$2:$I$11,2,FALSE) -> Helmets & Helmet Acc. | C181: =INDEX(ATS!$A:$AE,MATCH('2) Order Form'!$W181,ATS!$AD:$AD,0),1) -> 845087 | D181: =INDEX(ATS!$A:$AE,MATCH('2) Order Form'!$W181,ATS!$AD:$AD,0),2) -> Chaser Helmet | E181: =INDEX(ATS!$A:$AE,MATCH('2) Order Form'!$W181,ATS!$AD:$AD,0),4) -> MNGRY-SM | F181: =INDEX(ATS!$A:$AE,MATCH('2) Order Form'!$W181,ATS!$AD:$AD,0),5) -> Matte Nardo Gray | G181: =INDEX(ATS!$A:$AE,MATCH('2) Order Form'!$W181,ATS!$AD:$AD,0),6) -> SM | H181: 1 | I181: 0 | J181: =IFERROR(VLOOKUP(W181,ATS!$AD:$AF,2,FALSE),0) -> 0 | K181: 0 | L181: =IFERROR(VLOOKUP(W181,ATS!$AD:$AF,3,FALSE),0) -> 0 | M181: 0 | N181: 0% | O181: 0% | P181: =VLOOKUP($C181,Prices!$A$3:$R$1996,MATCH('2) Order Form'!P$8,Prices!$A$2:$R$2,0),FALSE) -> 50.00 | Q181: =VLOOKUP($C181,Prices!$A$3:$R$1996,MATCH('2) Order Form'!Q$8,Prices!$A$2:$R$2,0),FALSE) -> 99.95 | R181: 0 | S181: 0 | T181: 0 | U181: 0% | W181: 7048652661036 | Y181: 0 | Z181: 0 | AA181: 0 | AB181: 1 | AC181: 845087Matte Nardo Gray | AD181: 845087 | AE181: =VLOOKUP($C181,Classification!$A:$F,5,FALSE) -> 24.000 | AF181: =VLOOKUP($C181,Classification!$A:$F,6,FALSE) -> 1 | AG181: =INDEX(ATS!$A:$AE,MATCH('2) Order Form'!$W181,ATS!$AD:$AD,0),7) -> Active
A182: 1 | B182: =VLOOKUP(A182,Classification!$H$2:$I$11,2,FALSE) -> Helmets & Helmet Acc. | C182: =INDEX(ATS!$A:$AE,MATCH('2) Order Form'!$W182,ATS!$AD:$AD,0),1) -> 845087 | D182: =INDEX(ATS!$A:$AE,MATCH('2) Order Form'!$W182,ATS!$AD:$AD,0),2) -> Chaser Helmet | E182: =INDEX(ATS!$A:$AE,MATCH('2) Order Form'!$W182,ATS!$AD:$AD,0),4) -> MNGRY-ML | F182: =INDEX(ATS!$A:$AE,MATCH('2) Order Form'!$W182,ATS!$AD:$AD,0),5) -> Matte Nardo Gray | G182: =INDEX(ATS!$A:$AE,MATCH('2) Order Form'!$W182,ATS!$AD:$AD,0),6) -> ML | H182: 1 | I182: 0 | J182: =IFERROR(VLOOKUP(W182,ATS!$AD:$AF,2,FALSE),0) -> 0 | K182: 0 | L182: =IFERROR(VLOOKUP(W182,ATS!$AD:$AF,3,FALSE),0) -> 0 | M182: 0 | N182: 0% | O182: 0% | P182: =VLOOKUP($C182,Prices!$A$3:$R$1996,MATCH('2) Order Form'!P$8,Prices!$A$2:$R$2,0),FALSE) -> 50.00 | Q182: =VLOOKUP($C182,Prices!$A$3:$R$1996,MATCH('2) Order Form'!Q$8,Prices!$A$2:$R$2,0),FALSE) -> 99.95 | R182: 0 | S182: 0 | T182: 0 | U182: 0% | W182: 7048652661029 | Y182: 0 | Z182: 0 | AA182: 0 | AB182: 0 | AC182: 845087Matte Nardo Gray | AD182: 845087 | AE182: =VLOOKUP($C182,Classification!$A:$F,5,FALSE) -> 24.000 | AF182: =VLOOKUP($C182,Classification!$A:$F,6,FALSE) -> 1 | AG182: =INDEX(ATS!$A:$AE,MATCH('2) Order Form'!$W182,ATS!$AD:$AD,0),7) -> Active
A183: 1 | B183: =VLOOKUP(A183,Classification!$H$2:$I$11,2,FALSE) -> Helmets & Helmet Acc. | C183: =INDEX(ATS!$A:$AE,MATCH('2) Order Form'!$W183,ATS!$AD:$AD,0),1) -> 845087 | D183: =INDEX(ATS!$A:$AE,MATCH('2) Order Form'!$W183,ATS!$AD:$AD,0),2) -> Chaser Helmet | E183: =INDEX(ATS!$A:$AE,MATCH('2) Order Form'!$W183,ATS!$AD:$AD,0),4) -> MNGRY-LXL | F183: =INDEX(ATS!$A:$AE,MATCH('2) Order Form'!$W183,ATS!$AD:$AD,0),5) -> Matte Nardo Gray | G183: =INDEX(ATS!$A:$AE,MATCH('2) Order Form'!$W183,ATS!$AD:$AD,0),6) -> LXL | H183: 1 | I183: 0 | J183: =IFERROR(VLOOKUP(W183,ATS!$AD:$AF,2,FALSE),0) -> 0 | K183: 0 | L183: =IFERROR(VLOOKUP(W183,ATS!$AD:$AF,3,FALSE),0) -> 0 | M183: 0 | N183: 0% | O183: 0% | P183: =VLOOKUP($C183,Prices!$A$3:$R$1996,MATCH('2) Order Form'!P$8,Prices!$A$2:$R$2,0),FALSE) -> 50.00 | Q183: =VLOOKUP($C183,Prices!$A$3:$R$1996,MATCH('2) Order Form'!Q$8,Prices!$A$2:$R$2,0),FALSE) -> 99.95 | R183: 0 | S183: 0 | T183: 0 | U183: 0% | W183: 7048652661012 | Y183: =I183*Q183 -> 0 | Z183: 0 | AA183: 0 | AB183: 0 | AC183: 845087Matte Nardo Gray | AD183: 845087 | AE183: =VLOOKUP($C183,Classification!$A:$F,5,FALSE) -> 24.000 | AF183: =VLOOKUP($C183,Classification!$A:$F,6,FALSE) -> 1 | AG183: =INDEX(ATS!$A:$AE,MATCH('2) Order Form'!$W183,ATS!$AD:$AD,0),7) -> Active
A184: 1 | B184: =VLOOKUP(A184,Classification!$H$2:$I$11,2,FALSE) -> Helmets & Helmet Acc. | C184: =INDEX(ATS!$A:$AE,MATCH('2) Order Form'!$W184,ATS!$AD:$AD,0),1) -> 810052 | D184: =INDEX(ATS!$A:$AE,MATCH('2) Order Form'!$W184,ATS!$AD:$AD,0),2) -> Bike Helmet Case | E184: =INDEX(ATS!$A:$AE,MATCH('2) Order Form'!$W184,ATS!$AD:$AD,0),4) -> TEBLK-OS | F184: =INDEX(ATS!$A:$AE,MATCH('2) Order Form'!$W184,ATS!$AD:$AD,0),5) -> True Black | G184: =INDEX(ATS!$A:$AE,MATCH('2) Order Form'!$W184,ATS!$AD:$AD,0),6) -> OS | H184: 1 | I184: 0 | J184: =IFERROR(VLOOKUP(W184,ATS!$AD:$AF,2,FALSE),0) -> 698 | K184: 50+ | L184: =IFERROR(VLOOKUP(W184,ATS!$AD:$AF,3,FALSE),0) -> 698 | M184: 50+ | N184: 0% | O184: 0% | P184: =VLOOKUP($C184,Prices!$A$3:$R$1996,MATCH('2) Order Form'!P$8,Prices!$A$2:$R$2,0),FALSE) -> 25.00 | Q184: =VLOOKUP($C184,Prices!$A$3:$R$1996,MATCH('2) Order Form'!Q$8,Prices!$A$2:$R$2,0),FALSE) -> 49.95 | R184: 0 | S184: 0 | T184: 0 | U184: 0% | W184: 7048652327543 | Y184: 0 | Z184: 0 | AA184: 1 | AB184: 1 | AC184: 810052True Black | AD184: 810052 | AE184: =VLOOKUP($C184,Classification!$A:$F,5,FALSE) -> 25.000 | AF184: =VLOOKUP($C184,Classification!$A:$F,6,FALSE) -> 1 | AG184: =INDEX(ATS!$A:$AE,MATCH('2) Order Form'!$W184,ATS!$AD:$AD,0),7) -> Active
A185: 1 | B185: =VLOOKUP(A185,Classification!$H$2:$I$11,2,FALSE) -> Helmets & Helmet Acc. | C185: =INDEX(ATS!$A:$AE,MATCH('2) Order Form'!$W185,ATS!$AD:$AD,0),1) -> 810068 | D185: =INDEX(ATS!$A:$AE,MATCH('2) Order Form'!$W185,ATS!$AD:$AD,0),2) -> Arbitrator Mips Visor | E185: =INDEX(ATS!$A:$AE,MATCH('2) Order Form'!$W185,ATS!$AD:$AD,0),4) -> CHOR-OS | F185: =INDEX(ATS!$A:$AE,MATCH('2) Order Form'!$W185,ATS!$AD:$AD,0),5) -> Chopper Orange | G185: =INDEX(ATS!$A:$AE,MATCH('2) Order Form'!$W185,ATS!$AD:$AD,0),6) -> OS | H185: 1 | I185: 0 | J185: =IFERROR(VLOOKUP(W185,ATS!$AD:$AF,2,FALSE),0) -> 13 | K185: 13 | L185: =IFERROR(VLOOKUP(W185,ATS!$AD:$AF,3,FALSE),0) -> 13 | M185: 13 | N185: 0% | O185: 0% | P185: =VLOOKUP($C185,Prices!$A$3:$R$1996,MATCH('2) Order Form'!P$8,Prices!$A$2:$R$2,0),FALSE) -> 15.00 | Q185: =VLOOKUP($C185,Prices!$A$3:$R$1996,MATCH('2) Order Form'!Q$8,Prices!$A$2:$R$2,0),FALSE) -> 29.95 | R185: 0 | S185: 0 | T185: 0 | U185: 0% | W185: 7048652661609 | Y185: 0 | Z185: 0 | AA185: 1 | AB185: 1 | AC185: 810068Chopper Orange | AD185: 810068 | AE185: =VLOOKUP($C185,Classification!$A:$F,5,FALSE) -> 26.000 | AF185: =VLOOKUP($C185,Classification!$A:$F,6,FALSE) -> 1 | AG185: =INDEX(ATS!$A:$AE,MATCH('2) Order Form'!$W185,ATS!$AD:$AD,0),7) -> Stock
A186: 1 | B186: =VLOOKUP(A186,Classification!$H$2:$I$11,2,FALSE) -> Helmets & Helmet Acc. | C186: =INDEX(ATS!$A:$AE,MATCH('2) Order Form'!$W186,ATS!$AD:$AD,0),1) -> 810068 | D186: =INDEX(ATS!$A:$AE,MATCH('2) Order Form'!$W186,ATS!$AD:$AD,0),2) -> Arbitrator Mips Visor | E186: =INDEX(ATS!$A:$AE,MATCH('2) Order Form'!$W186,ATS!$AD:$AD,0),4) -> MBLCK-OS | F186: =INDEX(ATS!$A:$AE,MATCH('2) Order Form'!$W186,ATS!$AD:$AD,0),5) -> Matte Black | G186: =INDEX(ATS!$A:$AE,MATCH('2) Order Form'!$W186,ATS!$AD:$AD,0),6) -> OS | H186: 1 | I186: 0 | J186: =IFERROR(VLOOKUP(W186,ATS!$AD:$AF,2,FALSE),0) -> 24 | K186: 24 | L186: =IFERROR(VLOOKUP(W186,ATS!$AD:$AF,3,FALSE),0) -> 24 | M186: 24 | N186: 0% | O186: 0% | P186: =VLOOKUP($C186,Prices!$A$3:$R$1996,MATCH('2) Order Form'!P$8,Prices!$A$2:$R$2,0),FALSE) -> 15.00 | Q186: =VLOOKUP($C186,Prices!$A$3:$R$1996,MATCH('2) Order Form'!Q$8,Prices!$A$2:$R$2,0),FALSE) -> 29.95 | R186: 0 | S186: 0 | T186: 0 | U186: 0% | W186: 7048652328250 | Y186: 0 | Z186: 0 | AA186: 0 | AB186: 1 | AC186: 810068Matte Black | AD186: 810068 | AE186: =VLOOKUP($C186,Classification!$A:$F,5,FALSE) -> 26.000 | AF186: =VLOOKUP($C186,Classification!$A:$F,6,FALSE) -> 1 | AG186: =INDEX(ATS!$A:$AE,MATCH('2) Order Form'!$W186,ATS!$AD:$AD,0),7) -> Active
A187: 1 | B187: =VLOOKUP(A187,Classification!$H$2:$I$11,2,FALSE) -> Helmets & Helmet Acc. | C187: =INDEX(ATS!$A:$AE,MATCH('2) Order Form'!$W187,ATS!$AD:$AD,0),1) -> 810068 | D187: =INDEX(ATS!$A:$AE,MATCH('2) Order Form'!$W187,ATS!$AD:$AD,0),2) -> Arbitrator Mips Visor | E187: =INDEX(ATS!$A:$AE,MATCH('2) Order Form'!$W187,ATS!$AD:$AD,0),4) -> NAGR-OS | F187: =INDEX(ATS!$A:$AE,MATCH('2) Order Form'!$W187,ATS!$AD:$AD,0),5) -> Nardo Gray | G187: =INDEX(ATS!$A:$AE,MATCH('2) Order Form'!$W187,ATS!$AD:$AD,0),6) -> OS | H187: 1 | I187: 0 | J187: =IFERROR(VLOOKUP(W187,ATS!$AD:$AF,2,FALSE),0) -> 28 | K187: 28 | L187: =IFERROR(VLOOKUP(W187,ATS!$AD:$AF,3,FALSE),0) -> 28 | M187: 28 | N187: 0% | O187: 0% | P187: =VLOOKUP($C187,Prices!$A$3:$R$1996,MATCH('2) Order Form'!P$8,Prices!$A$2:$R$2,0),FALSE) -> 15.00 | Q187: =VLOOKUP($C187,Prices!$A$3:$R$1996,MATCH('2) Order Form'!Q$8,Prices!$A$2:$R$2,0),FALSE) -> 29.95 | R187: 0 | S187: 0 | T187: 0 | U187: 0% | W187: 7048652661623 | Y187: 0 | Z187: 0 | AA187: 0 | AB187: 1 | AC187: 810068Nardo Gray | AD187: 810068 | AE187: =VLOOKUP($C187,Classification!$A:$F,5,FALSE) -> 26.000 | AF187: =VLOOKUP($C187,Classification!$A:$F,6,FALSE) -> 1 | AG187: =INDEX(ATS!$A:$AE,MATCH('2) Order Form'!$W187,ATS!$AD:$AD,0),7) -> Stock
A188: 1 | B188: =VLOOKUP(A188,Classification!$H$2:$I$11,2,FALSE) -> Helmets & Helmet Acc. | C188: =INDEX(ATS!$A:$AE,MATCH('2) Order Form'!$W188,ATS!$AD:$AD,0),1) -> 810070 | D188: =INDEX(ATS!$A:$AE,MATCH('2) Order Form'!$W188,ATS!$AD:$AD,0),2) -> Arbitrator Mips Chin pads | E188: =INDEX(ATS!$A:$AE,MATCH('2) Order Form'!$W188,ATS!$AD:$AD,0),4) -> TEBLK-ML17 | F188: =INDEX(ATS!$A:$AE,MATCH('2) Order Form'!$W188,ATS!$AD:$AD,0),5) -> True Black | G188: =INDEX(ATS!$A:$AE,MATCH('2) Order Form'!$W188,ATS!$AD:$AD,0),6) -> ML17 | H188: 1 | I188: 0 | J188: =IFERROR(VLOOKUP(W188,ATS!$AD:$AF,2,FALSE),0) -> 24 | K188: 24 | L188: =IFERROR(VLOOKUP(W188,ATS!$AD:$AF,3,FALSE),0) -> 24 | M188: =IF(L188=99999,"OPEN",IF(L188>50,"50+",IF(L188<=0,"0",L188))) -> 24 | N188: 0% | O188: =IF(N188<>0,N188,$P$5) -> 0% | P188: =VLOOKUP($C188,Prices!$A$3:$R$1996,MATCH('2) Order Form'!P$8,Prices!$A$2:$R$2,0),FALSE) -> 5.00 | Q188: =VLOOKUP($C188,Prices!$A$3:$R$1996,MATCH('2) Order Form'!Q$8,Prices!$A$2:$R$2,0),FALSE) -> 9.95 | R188: =I188*P188 -> 0 | S188: =R188*O188 -> 0 | T188: =R188-S188 -> 0 | U188: 0% | W188: 7048652476913 | Y188: 0 | Z188: =IF(A188=OFFSET(A188,-1,0),0,1) -> 0 | AA188: =IF(C188=OFFSET(C188,-1,0),0,1) -> 1 | AB188: =IF(F188=OFFSET(F188,-1,0),0,1) -> 1 | AC188: =CONCATENATE(C188,F188) -> 810070True Black | AD188: =IFERROR(IF(B188="EYEWEAR",CONCATENATE(C188,"-",G188),C188),C188) -> 810070 | AE188: =VLOOKUP($C188,Classification!$A:$F,5,FALSE) -> 27.000 | AF188: =VLOOKUP($C188,Classification!$A:$F,6,FALSE) -> 1 | AG188: =INDEX(ATS!$A:$AE,MATCH('2) Order Form'!$W188,ATS!$AD:$AD,0),7) -> Active
A189: 1 | B189: =VLOOKUP(A189,Classification!$H$2:$I$11,2,FALSE) -> Helmets & Helmet Acc. | C189: =INDEX(ATS!$A:$AE,MATCH('2) Order Form'!$W189,ATS!$AD:$AD,0),1) -> 810070 | D189: =INDEX(ATS!$A:$AE,MATCH('2) Order Form'!$W189,ATS!$AD:$AD,0),2) -> Arbitrator Mips Chin pads | E189: =INDEX(ATS!$A:$AE,MATCH('2) Order Form'!$W189,ATS!$AD:$AD,0),4) -> TEBLK-ML25 | F189: =INDEX(ATS!$A:$AE,MATCH('2) Order Form'!$W189,ATS!$AD:$AD,0),5) -> True Black | G189: =INDEX(ATS!$A:$AE,MATCH('2) Order Form'!$W189,ATS!$AD:$AD,0),6) -> ML25 | H189: 1 | I189: 0 | J189: =IFERROR(VLOOKUP(W189,ATS!$AD:$AF,2,FALSE),0) -> 19 | K189: 19 | L189: =IFERROR(VLOOKUP(W189,ATS!$AD:$AF,3,FALSE),0) -> 19 | M189: 19 | N189: 0% | O189: 0% | P189: =VLOOKUP($C189,Prices!$A$3:$R$1996,MATCH('2) Order Form'!P$8,Prices!$A$2:$R$2,0),FALSE) -> 5.00 | Q189: =VLOOKUP($C189,Prices!$A$3:$R$1996,MATCH('2) Order Form'!Q$8,Prices!$A$2:$R$2,0),FALSE) -> 9.95 | R189: 0 | S189: 0 | T189: 0 | U189: 0% | W189: 7048652476920 | Y189: 0 | Z189: 0 | AA189: 0 | AB189: 0 | AC189: 810070True Black | AD189: 810070 | AE189: =VLOOKUP($C189,Classification!$A:$F,5,FALSE) -> 27.000 | AF189: =VLOOKUP($C189,Classification!$A:$F,6,FALSE) -> 1 | AG189: =INDEX(ATS!$A:$AE,MATCH('2) Order Form'!$W189,ATS!$AD:$AD,0),7) -> Active
A190: 1 | B190: =VLOOKUP(A190,Classification!$H$2:$I$11,2,FALSE) -> Helmets & Helmet Acc. | C190: =INDEX(ATS!$A:$AE,MATCH('2) Order Form'!$W190,ATS!$AD:$AD,0),1) -> 810070 | D190: =INDEX(ATS!$A:$AE,MATCH('2) Order Form'!$W190,ATS!$AD:$AD,0),2) -> Arbitrator Mips Chin pads | E190: =INDEX(ATS!$A:$AE,MATCH('2) Order Form'!$W190,ATS!$AD:$AD,0),4) -> TEBLK-SM25 | F190: =INDEX(ATS!$A:$AE,MATCH('2) Order Form'!$W190,ATS!$AD:$AD,0),5) -> True Black | G190: =INDEX(ATS!$A:$AE,MATCH('2) Order Form'!$W190,ATS!$AD:$AD,0),6) -> SM25 | H190: 1 | I190: 0 | J190: =IFERROR(VLOOKUP(W190,ATS!$AD:$AF,2,FALSE),0) -> 18 | K190: 18 | L190: =IFERROR(VLOOKUP(W190,ATS!$AD:$AF,3,FALSE),0) -> 18 | M190: 18 | N190: 0% | O190: 0% | P190: =VLOOKUP($C190,Prices!$A$3:$R$1996,MATCH('2) Order Form'!P$8,Prices!$A$2:$R$2,0),FALSE) -> 5.00 | Q190: =VLOOKUP($C190,Prices!$A$3:$R$1996,MATCH('2) Order Form'!Q$8,Prices!$A$2:$R$2,0),FALSE) -> 9.95 | R190: 0 | S190: 0 | T190: 0 | U190: 0% | W190: 7048652476937 | Y190: 0 | Z190: 0 | AA190: 0 | AB190: 0 | AC190: 810070True Black | AD190: 810070 | AE190: =VLOOKUP($C190,Classification!$A:$F,5,FALSE) -> 27.000 | AF190: =VLOOKUP($C190,Classification!$A:$F,6,FALSE) -> 1 | AG190: =INDEX(ATS!$A:$AE,MATCH('2) Order Form'!$W190,ATS!$AD:$AD,0),7) -> Active
A191: 1 | B191: =VLOOKUP(A191,Classification!$H$2:$I$11,2,FALSE) -> Helmets & Helmet Acc. | C191: =INDEX(ATS!$A:$AE,MATCH('2) Order Form'!$W191,ATS!$AD:$AD,0),1) -> 810070 | D191: =INDEX(ATS!$A:$AE,MATCH('2) Order Form'!$W191,ATS!$AD:$AD,0),2) -> Arbitrator Mips Chin pads | E191: =INDEX(ATS!$A:$AE,MATCH('2) Order Form'!$W191,ATS!$AD:$AD,0),4) -> TEBLK-SM32 | F191: =INDEX(ATS!$A:$AE,MATCH('2) Order Form'!$W191,ATS!$AD:$AD,0),5) -> True Black | G191: =INDEX(ATS!$A:$AE,MATCH('2) Order Form'!$W191,ATS!$AD:$AD,0),6) -> SM32 | H191: 1 | I191: 0 | J191: =IFERROR(VLOOKUP(W191,ATS!$AD:$AF,2,FALSE),0) -> 20 | K191: =IF(J191=99999,"OPEN",IF(J191>50,"50+",IF(J191<=0,"0",J191))) -> 20 | L191: =IFERROR(VLOOKUP(W191,ATS!$AD:$AF,3,FALSE),0) -> 20 | M191: =IF(L191=99999,"OPEN",IF(L191>50,"50+",IF(L191<=0,"0",L191))) -> 20 | N191: 0% | O191: =IF(N191<>0,N191,$P$5) -> 0% | P191: =VLOOKUP($C191,Prices!$A$3:$R$1996,MATCH('2) Order Form'!P$8,Prices!$A$2:$R$2,0),FALSE) -> 5.00 | Q191: =VLOOKUP($C191,Prices!$A$3:$R$1996,MATCH('2) Order Form'!Q$8,Prices!$A$2:$R$2,0),FALSE) -> 9.95 | R191: =I191*P191 -> 0 | S191: =R191*O191 -> 0 | T191: =R191-S191 -> 0 | U191: 0% | W191: 7048652476944 | Y191: 0 | Z191: =IF(A191=OFFSET(A191,-1,0),0,1) -> 0 | AA191: =IF(C191=OFFSET(C191,-1,0),0,1) -> 0 | AB191: =IF(F191=OFFSET(F191,-1,0),0,1) -> 0 | AC191: =CONCATENATE(C191,F191) -> 810070True Black | AD191: =IFERROR(IF(B191="EYEWEAR",CONCATENATE(C191,"-",G191),C191),C191) -> 810070 | AE191: =VLOOKUP($C191,Classification!$A:$F,5,FALSE) -> 27.000 | AF191: =VLOOKUP($C191,Classification!$A:$F,6,FALSE) -> 1 | AG191: =INDEX(ATS!$A:$AE,MATCH('2) Order Form'!$W191,ATS!$AD:$AD,0),7) -> Active
A192: 1 | B192: =VLOOKUP(A192,Classification!$H$2:$I$11,2,FALSE) -> Helmets & Helmet Acc. | C192: =INDEX(ATS!$A:$AE,MATCH('2) Order Form'!$W192,ATS!$AD:$AD,0),1) -> 810069 | D192: =INDEX(ATS!$A:$AE,MATCH('2) Order Form'!$W192,ATS!$AD:$AD,0),2) -> Arbitrator Mips Comfort pads | E192: =INDEX(ATS!$A:$AE,MATCH('2) Order Form'!$W192,ATS!$AD:$AD,0),4) -> TEBLK-SM | F192: =INDEX(ATS!$A:$AE,MATCH('2) Order Form'!$W192,ATS!$AD:$AD,0),5) -> True Black | G192: =INDEX(ATS!$A:$AE,MATCH('2) Order Form'!$W192,ATS!$AD:$AD,0),6) -> SM | H192: 1 | I192: 0 | J192: =IFERROR(VLOOKUP(W192,ATS!$AD:$AF,2,FALSE),0) -> 8 | K192: =IF(J192=99999,"OPEN",IF(J192>50,"50+",IF(J192<=0,"0",J192))) -> 8 | L192: =IFERROR(VLOOKUP(W192,ATS!$AD:$AF,3,FALSE),0) -> 8 | M192: =IF(L192=99999,"OPEN",IF(L192>50,"50+",IF(L192<=0,"0",L192))) -> 8 | N192: 0% | O192: =IF(N192<>0,N192,$P$5) -> 0% | P192: =VLOOKUP($C192,Prices!$A$3:$R$1996,MATCH('2) Order Form'!P$8,Prices!$A$2:$R$2,0),FALSE) -> 5.00 | Q192: =VLOOKUP($C192,Prices!$A$3:$R$1996,MATCH('2) Order Form'!Q$8,Prices!$A$2:$R$2,0),FALSE) -> 9.95 | R192: =I192*P192 -> 0 | S192: =R192*O192 -> 0 | T192: =R192-S192 -> 0 | U192: 0% | W192: 7048652328298 | Y192: 0 | Z192: =IF(A192=OFFSET(A192,-1,0),0,1) -> 0 | AA192: =IF(C192=OFFSET(C192,-1,0),0,1) -> 1 | AB192: =IF(F192=OFFSET(F192,-1,0),0,1) -> 0 | AC192: =CONCATENATE(C192,F192) -> 810069True Black | AD192: =IFERROR(IF(B192="EYEWEAR",CONCATENATE(C192,"-",G192),C192),C192) -> 810069 | AE192: =VLOOKUP($C192,Classification!$A:$F,5,FALSE) -> 28.000 | AF192: =VLOOKUP($C192,Classification!$A:$F,6,FALSE) -> 1 | AG192: =INDEX(ATS!$A:$AE,MATCH('2) Order Form'!$W192,ATS!$AD:$AD,0),7) -> Active
A193: 1 | B193: =VLOOKUP(A193,Classification!$H$2:$I$11,2,FALSE) -> Helmets & Helmet Acc. | C193: =INDEX(ATS!$A:$AE,MATCH('2) Order Form'!$W193,ATS!$AD:$AD,0),1) -> 810069 | D193: =INDEX(ATS!$A:$AE,MATCH('2) Order Form'!$W193,ATS!$AD:$AD,0),2) -> Arbitrator Mips Comfort pads | E193: =INDEX(ATS!$A:$AE,MATCH('2) Order Form'!$W193,ATS!$AD:$AD,0),4) -> TEBLK-ML | F193: =INDEX(ATS!$A:$AE,MATCH('2) Order Form'!$W193,ATS!$AD:$AD,0),5) -> True Black | G193: =INDEX(ATS!$A:$AE,MATCH('2) Order Form'!$W193,ATS!$AD:$AD,0),6) -> ML | H193: 1 | I193: 0 | J193: =IFERROR(VLOOKUP(W193,ATS!$AD:$AF,2,FALSE),0) -> 41 | K193: =IF(J193=99999,"OPEN",IF(J193>50,"50+",IF(J193<=0,"0",J193))) -> 41 | L193: =IFERROR(VLOOKUP(W193,ATS!$AD:$AF,3,FALSE),0) -> 41 | M193: =IF(L193=99999,"OPEN",IF(L193>50,"50+",IF(L193<=0,"0",L193))) -> 41 | N193: 0% | O193: =IF(N193<>0,N193,$P$5) -> 0% | P193: =VLOOKUP($C193,Prices!$A$3:$R$1996,MATCH('2) Order Form'!P$8,Prices!$A$2:$R$2,0),FALSE) -> 5.00 | Q193: =VLOOKUP($C193,Prices!$A$3:$R$1996,MATCH('2) Order Form'!Q$8,Prices!$A$2:$R$2,0),FALSE) -> 9.95 | R193: =I193*P193 -> 0 | S193: =R193*O193 -> 0 | T193: =R193-S193 -> 0 | U193: 0% | W193: 7048652328281 | Y193: 0 | Z193: =IF(A193=OFFSET(A193,-1,0),0,1) -> 0 | AA193: =IF(C193=OFFSET(C193,-1,0),0,1) -> 0 | AB193: =IF(F193=OFFSET(F193,-1,0),0,1) -> 0 | AC193: =CONCATENATE(C193,F193) -> 810069True Black | AD193: =IFERROR(IF(B193="EYEWEAR",CONCATENATE(C193,"-",G193),C193),C193) -> 810069 | AE193: =VLOOKUP($C193,Classification!$A:$F,5,FALSE) -> 28.000 | AF193: =VLOOKUP($C193,Classification!$A:$F,6,FALSE) -> 1 | AG193: =INDEX(ATS!$A:$AE,MATCH('2) Order Form'!$W193,ATS!$AD:$AD,0),7) -> Active
A194: 1 | B194: =VLOOKUP(A194,Classification!$H$2:$I$11,2,FALSE) -> Helmets & Helmet Acc. | C194: =INDEX(ATS!$A:$AE,MATCH('2) Order Form'!$W194,ATS!$AD:$AD,0),1) -> 810054 | D194: =INDEX(ATS!$A:$AE,MATCH('2) Order Form'!$W194,ATS!$AD:$AD,0),2) -> Bushwhacker II Carbon Mips Visor | E194: =INDEX(ATS!$A:$AE,MATCH('2) Order Form'!$W194,ATS!$AD:$AD,0),4) -> MBKME-OS | F194: =INDEX(ATS!$A:$AE,MATCH('2) Order Form'!$W194,ATS!$AD:$AD,0),5) -> Matte Black Metallic | G194: =INDEX(ATS!$A:$AE,MATCH('2) Order Form'!$W194,ATS!$AD:$AD,0),6) -> OS | H194: 1 | I194: 0 | J194: =IFERROR(VLOOKUP(W194,ATS!$AD:$AF,2,FALSE),0) -> 19 | K194: =IF(J194=99999,"OPEN",IF(J194>50,"50+",IF(J194<=0,"0",J194))) -> 19 | L194: =IFERROR(VLOOKUP(W194,ATS!$AD:$AF,3,FALSE),0) -> 19 | M194: 19 | N194: 0% | O194: 0% | P194: =VLOOKUP($C194,Prices!$A$3:$R$1996,MATCH('2) Order Form'!P$8,Prices!$A$2:$R$2,0),FALSE) -> 10.00 | Q194: =VLOOKUP($C194,Prices!$A$3:$R$1996,MATCH('2) Order Form'!Q$8,Prices!$A$2:$R$2,0),FALSE) -> 19.95 | R194: 0 | S194: 0 | T194: 0 | U194: 0% | W194: 7048652327550 | Y194: 0 | Z194: 0 | AA194: 1 | AB194: 1 | AC194: 810054Matte Black Metallic | AD194: 810054 | AE194: =VLOOKUP($C194,Classification!$A:$F,5,FALSE) -> 29.000 | AF194: =VLOOKUP($C194,Classification!$A:$F,6,FALSE) -> 1 | AG194: =INDEX(ATS!$A:$AE,MATCH('2) Order Form'!$W194,ATS!$AD:$AD,0),7) -> Active
A195: 1 | B195: =VLOOKUP(A195,Classification!$H$2:$I$11,2,FALSE) -> Helmets & Helmet Acc. | C195: =INDEX(ATS!$A:$AE,MATCH('2) Order Form'!$W195,ATS!$AD:$AD,0),1) -> 810054 | D195: =INDEX(ATS!$A:$AE,MATCH('2) Order Form'!$W195,ATS!$AD:$AD,0),2) -> Bushwhacker II Carbon Mips Visor | E195: =INDEX(ATS!$A:$AE,MATCH('2) Order Form'!$W195,ATS!$AD:$AD,0),4) -> MWEMC-OS | F195: =INDEX(ATS!$A:$AE,MATCH('2) Order Form'!$W195,ATS!$AD:$AD,0),5) -> Matte White Metallic | G195: =INDEX(ATS!$A:$AE,MATCH('2) Order Form'!$W195,ATS!$AD:$AD,0),6) -> OS | H195: 1 | I195: 0 | J195: =IFERROR(VLOOKUP(W195,ATS!$AD:$AF,2,FALSE),0) -> 9 | K195: 9 | L195: =IFERROR(VLOOKUP(W195,ATS!$AD:$AF,3,FALSE),0) -> 9 | M195: 9 | N195: 0% | O195: 0% | P195: =VLOOKUP($C195,Prices!$A$3:$R$1996,MATCH('2) Order Form'!P$8,Prices!$A$2:$R$2,0),FALSE) -> 10.00 | Q195: =VLOOKUP($C195,Prices!$A$3:$R$1996,MATCH('2) Order Form'!Q$8,Prices!$A$2:$R$2,0),FALSE) -> 19.95 | R195: 0 | S195: 0 | T195: 0 | U195: 0% | W195: 7048652327567 | Y195: 0 | Z195: 0 | AA195: 0 | AB195: 1 | AC195: 810054Matte White Metallic | AD195: 810054 | AE195: =VLOOKUP($C195,Classification!$A:$F,5,FALSE) -> 29.000 | AF195: =VLOOKUP($C195,Classification!$A:$F,6,FALSE) -> 1 | AG195: =INDEX(ATS!$A:$AE,MATCH('2) Order Form'!$W195,ATS!$AD:$AD,0),7) -> Active
A196: 1 | B196: =VLOOKUP(A196,Classification!$H$2:$I$11,2,FALSE) -> Helmets & Helmet Acc. | C196: =INDEX(ATS!$A:$AE,MATCH('2) Order Form'!$W196,ATS!$AD:$AD,0),1) -> 810053 | D196: =INDEX(ATS!$A:$AE,MATCH('2) Order Form'!$W196,ATS!$AD:$AD,0),2) -> Bushwhacker II Visor | E196: =INDEX(ATS!$A:$AE,MATCH('2) Order Form'!$W196,ATS!$AD:$AD,0),4) -> MBLCK-OS | F196: =INDEX(ATS!$A:$AE,MATCH('2) Order Form'!$W196,ATS!$AD:$AD,0),5) -> Matte Black | G196: =INDEX(ATS!$A:$AE,MATCH('2) Order Form'!$W196,ATS!$AD:$AD,0),6) -> OS | H196: 1 | I196: 0 | J196: =IFERROR(VLOOKUP(W196,ATS!$AD:$AF,2,FALSE),0) -> 13 | K196: 13 | L196: =IFERROR(VLOOKUP(W196,ATS!$AD:$AF,3,FALSE),0) -> 13 | M196: 13 | N196: 0% | O196: 0% | P196: =VLOOKUP($C196,Prices!$A$3:$R$1996,MATCH('2) Order Form'!P$8,Prices!$A$2:$R$2,0),FALSE) -> 10.00 | Q196: =VLOOKUP($C196,Prices!$A$3:$R$1996,MATCH('2) Order Form'!Q$8,Prices!$A$2:$R$2,0),FALSE) -> 19.95 | R196: 0 | S196: 0 | T196: 0 | U196: 0% | W196: 7048652327581 | Y196: 0 | Z196: 0 | AA196: 1 | AB196: 1 | AC196: 810053Matte Black | AD196: 810053 | AE196: =VLOOKUP($C196,Classification!$A:$F,5,FALSE) -> 30.000 | AF196: =VLOOKUP($C196,Classification!$A:$F,6,FALSE) -> 1 | AG196: =INDEX(ATS!$A:$AE,MATCH('2) Order Form'!$W196,ATS!$AD:$AD,0),7) -> Active
A197: 1 | B197: =VLOOKUP(A197,Classification!$H$2:$I$11,2,FALSE) -> Helmets & Helmet Acc. | C197: =INDEX(ATS!$A:$AE,MATCH('2) Order Form'!$W197,ATS!$AD:$AD,0),1) -> 810053 | D197: =INDEX(ATS!$A:$AE,MATCH('2) Order Form'!$W197,ATS!$AD:$AD,0),2) -> Bushwhacker II Visor | E197: =INDEX(ATS!$A:$AE,MATCH('2) Order Form'!$W197,ATS!$AD:$AD,0),4) -> MSGMC-OS | F197: =INDEX(ATS!$A:$AE,MATCH('2) Order Form'!$W197,ATS!$AD:$AD,0),5) -> Matte Slate Gray Metallic | G197: =INDEX(ATS!$A:$AE,MATCH('2) Order Form'!$W197,ATS!$AD:$AD,0),6) -> OS | H197: 1 | I197: 0 | J197: =IFERROR(VLOOKUP(W197,ATS!$AD:$AF,2,FALSE),0) -> 3 | K197: 3 | L197: =IFERROR(VLOOKUP(W197,ATS!$AD:$AF,3,FALSE),0) -> 3 | M197: 3 | N197: 0% | O197: 0% | P197: =VLOOKUP($C197,Prices!$A$3:$R$1996,MATCH('2) Order Form'!P$8,Prices!$A$2:$R$2,0),FALSE) -> 10.00 | Q197: =VLOOKUP($C197,Prices!$A$3:$R$1996,MATCH('2) Order Form'!Q$8,Prices!$A$2:$R$2,0),FALSE) -> 19.95 | R197: 0 | S197: 0 | T197: 0 | U197: 0% | W197: 7048652542625 | Y197: 0 | Z197: 0 | AA197: 0 | AB197: 1 | AC197: 810053Matte Slate Gray Metallic | AD197: 810053 | AE197: =VLOOKUP($C197,Classification!$A:$F,5,FALSE) -> 30.000 | AF197: =VLOOKUP($C197,Classification!$A:$F,6,FALSE) -> 1 | AG197: =INDEX(ATS!$A:$AE,MATCH('2) Order Form'!$W197,ATS!$AD:$AD,0),7) -> Active
A198: 1 | B198: =VLOOKUP(A198,Classification!$H$2:$I$11,2,FALSE) -> Helmets & Helmet Acc. | C198: =INDEX(ATS!$A:$AE,MATCH('2) Order Form'!$W198,ATS!$AD:$AD,0),1) -> 810053 | D198: =INDEX(ATS!$A:$AE,MATCH('2) Order Form'!$W198,ATS!$AD:$AD,0),2) -> Bushwhacker II Visor | E198: =INDEX(ATS!$A:$AE,MATCH('2) Order Form'!$W198,ATS!$AD:$AD,0),4) -> MWHTE-OS | F198: =INDEX(ATS!$A:$AE,MATCH('2) Order Form'!$W198,ATS!$AD:$AD,0),5) -> Matte White | G198: =INDEX(ATS!$A:$AE,MATCH('2) Order Form'!$W198,ATS!$AD:$AD,0),6) -> OS | H198: 1 | I198: 0 | J198: =IFERROR(VLOOKUP(W198,ATS!$AD:$AF,2,FALSE),0) -> 5 | K198: 5 | L198: =IFERROR(VLOOKUP(W198,ATS!$AD:$AF,3,FALSE),0) -> 5 | M198: 5 | N198: 0% | O198: 0% | P198: =VLOOKUP($C198,Prices!$A$3:$R$1996,MATCH('2) Order Form'!P$8,Prices!$A$2:$R$2,0),FALSE) -> 10.00 | Q198: =VLOOKUP($C198,Prices!$A$3:$R$1996,MATCH('2) Order Form'!Q$8,Prices!$A$2:$R$2,0),FALSE) -> 19.95 | R198: 0 | S198: 0 | T198: 0 | U198: 0% | W198: 7048652327642 | Y198: 0 | Z198: 0 | AA198: 0 | AB198: 1 | AC198: 810053Matte White | AD198: 810053 | AE198: =VLOOKUP($C198,Classification!$A:$F,5,FALSE) -> 30.000 | AF198: =VLOOKUP($C198,Classification!$A:$F,6,FALSE) -> 1 | AG198: =INDEX(ATS!$A:$AE,MATCH('2) Order Form'!$W198,ATS!$AD:$AD,0),7) -> Active
A199: 1 | B199: =VLOOKUP(A199,Classification!$H$2:$I$11,2,FALSE) -> Helmets & Helmet Acc. | C199: =INDEX(ATS!$A:$AE,MATCH('2) Order Form'!$W199,ATS!$AD:$AD,0),1) -> 810056 | D199: =INDEX(ATS!$A:$AE,MATCH('2) Order Form'!$W199,ATS!$AD:$AD,0),2) -> Bushwhacker II Mips C Pads 7mm | E199: =INDEX(ATS!$A:$AE,MATCH('2) Order Form'!$W199,ATS!$AD:$AD,0),4) -> TEBLK-SM | F199: =INDEX(ATS!$A:$AE,MATCH('2) Order Form'!$W199,ATS!$AD:$AD,0),5) -> True Black | G199: =INDEX(ATS!$A:$AE,MATCH('2) Order Form'!$W199,ATS!$AD:$AD,0),6) -> SM | H199: 1 | I199: 0 | J199: =IFERROR(VLOOKUP(W199,ATS!$AD:$AF,2,FALSE),0) -> 0 | K199: 0 | L199: =IFERROR(VLOOKUP(W199,ATS!$AD:$AF,3,FALSE),0) -> 0 | M199: 0 | N199: 0% | O199: 0% | P199: =VLOOKUP($C199,Prices!$A$3:$R$1996,MATCH('2) Order Form'!P$8,Prices!$A$2:$R$2,0),FALSE) -> 5.00 | Q199: =VLOOKUP($C199,Prices!$A$3:$R$1996,MATCH('2) Order Form'!Q$8,Prices!$A$2:$R$2,0),FALSE) -> 9.95 | R199: 0 | S199: 0 | T199: 0 | U199: 0% | W199: 7048652327703 | Y199: 0 | Z199: 0 | AA199: 1 | AB199: 1 | AC199: 810056True Black | AD199: 810056 | AE199: =VLOOKUP($C199,Classification!$A:$F,5,FALSE) -> 31.000 | AF199: =VLOOKUP($C199,Classification!$A:$F,6,FALSE) -> 1 | AG199: =INDEX(ATS!$A:$AE,MATCH('2) Order Form'!$W199,ATS!$AD:$AD,0),7) -> Active
A200: 1 | B200: =VLOOKUP(A200,Classification!$H$2:$I$11,2,FALSE) -> Helmets & Helmet Acc. | C200: =INDEX(ATS!$A:$AE,MATCH('2) Order Form'!$W200,ATS!$AD:$AD,0),1) -> 810056 | D200: =INDEX(ATS!$A:$AE,MATCH('2) Order Form'!$W200,ATS!$AD:$AD,0),2) -> Bushwhacker II Mips C Pads 7mm | E200: =INDEX(ATS!$A:$AE,MATCH('2) Order Form'!$W200,ATS!$AD:$AD,0),4) -> TEBLK-ML | F200: =INDEX(ATS!$A:$AE,MATCH('2) Order Form'!$W200,ATS!$AD:$AD,0),5) -> True Black | G200: =INDEX(ATS!$A:$AE,MATCH('2) Order Form'!$W200,ATS!$AD:$AD,0),6) -> ML | H200: 1 | I200: 0 | J200: =IFERROR(VLOOKUP(W200,ATS!$AD:$AF,2,FALSE),0) -> 0 | K200: 0 | L200: =IFERROR(VLOOKUP(W200,ATS!$AD:$AF,3,FALSE),0) -> 0 | M200: 0 | N200: 0% | O200: 0% | P200: =VLOOKUP($C200,Prices!$A$3:$R$1996,MATCH('2) Order Form'!P$8,Prices!$A$2:$R$2,0),FALSE) -> 5.00 | Q200: =VLOOKUP($C200,Prices!$A$3:$R$1996,MATCH('2) Order Form'!Q$8,Prices!$A$2:$R$2,0),FALSE) -> 9.95 | R200: 0 | S200: 0 | T200: 0 | U200: 0% | W200: 7048652327697 | Y200: 0 | Z200: 0 | AA200: 0 | AB200: 0 | AC200: 810056True Black | AD200: 810056 | AE200: =VLOOKUP($C200,Classification!$A:$F,5,FALSE) -> 31.000 | AF200: =VLOOKUP($C200,Classification!$A:$F,6,FALSE) -> 1 | AG200: =INDEX(ATS!$A:$AE,MATCH('2) Order Form'!$W200,ATS!$AD:$AD,0),7) -> Active
A201: 1 | B201: =VLOOKUP(A201,Classification!$H$2:$I$11,2,FALSE) -> Helmets & Helmet Acc. | C201: =INDEX(ATS!$A:$AE,MATCH('2) Order Form'!$W201,ATS!$AD:$AD,0),1) -> 810056 | D201: =INDEX(ATS!$A:$AE,MATCH('2) Order Form'!$W201,ATS!$AD:$AD,0),2) -> Bushwhacker II Mips C Pads 7mm | E201: =INDEX(ATS!$A:$AE,MATCH('2) Order Form'!$W201,ATS!$AD:$AD,0),4) -> TEBLK-LXL | F201: =INDEX(ATS!$A:$AE,MATCH('2) Order Form'!$W201,ATS!$AD:$AD,0),5) -> True Black | G201: =INDEX(ATS!$A:$AE,MATCH('2) Order Form'!$W201,ATS!$AD:$AD,0),6) -> LXL | H201: 1 | I201: 0 | J201: =IFERROR(VLOOKUP(W201,ATS!$AD:$AF,2,FALSE),0) -> 0 | K201: 0 | L201: =IFERROR(VLOOKUP(W201,ATS!$AD:$AF,3,FALSE),0) -> 0 | M201: 0 | N201: 0% | O201: 0% | P201: =VLOOKUP($C201,Prices!$A$3:$R$1996,MATCH('2) Order Form'!P$8,Prices!$A$2:$R$2,0),FALSE) -> 5.00 | Q201: =VLOOKUP($C201,Prices!$A$3:$R$1996,MATCH('2) Order Form'!Q$8,Prices!$A$2:$R$2,0),FALSE) -> 9.95 | R201: 0 | S201: 0 | T201: 0 | U201: =IFERROR(I201/SUMIF($AC$9:$AC$684,AC201,$I$9:$I$684),0) -> 0% | W201: 7048652327680 | Y201: 0 | Z201: 0 | AA201: 0 | AB201: 0 | AC201: 810056True Black | AD201: 810056 | AE201: =VLOOKUP($C201,Classification!$A:$F,5,FALSE) -> 31.000 | AF201: =VLOOKUP($C201,Classification!$A:$F,6,FALSE) -> 1 | AG201: =INDEX(ATS!$A:$AE,MATCH('2) Order Form'!$W201,ATS!$AD:$AD,0),7) -> Active
A202: 1 | B202: =VLOOKUP(A202,Classification!$H$2:$I$11,2,FALSE) -> Helmets & Helmet Acc. | C202: =INDEX(ATS!$A:$AE,MATCH('2) Order Form'!$W202,ATS!$AD:$AD,0),1) -> 810055 | D202: =INDEX(ATS!$A:$AE,MATCH('2) Order Form'!$W202,ATS!$AD:$AD,0),2) -> Bushwhacker II Comf Pads 7 mm | E202: =INDEX(ATS!$A:$AE,MATCH('2) Order Form'!$W202,ATS!$AD:$AD,0),4) -> TEBLK-SM | F202: =INDEX(ATS!$A:$AE,MATCH('2) Order Form'!$W202,ATS!$AD:$AD,0),5) -> True Black | G202: =INDEX(ATS!$A:$AE,MATCH('2) Order Form'!$W202,ATS!$AD:$AD,0),6) -> SM | H202: 1 | I202: 0 | J202: =IFERROR(VLOOKUP(W202,ATS!$AD:$AF,2,FALSE),0) -> 6 | K202: 6 | L202: =IFERROR(VLOOKUP(W202,ATS!$AD:$AF,3,FALSE),0) -> 6 | M202: 6 | N202: 0% | O202: 0% | P202: =VLOOKUP($C202,Prices!$A$3:$R$1996,MATCH('2) Order Form'!P$8,Prices!$A$2:$R$2,0),FALSE) -> 5.00 | Q202: =VLOOKUP($C202,Prices!$A$3:$R$1996,MATCH('2) Order Form'!Q$8,Prices!$A$2:$R$2,0),FALSE) -> 9.95 | R202: 0 | S202: 0 | T202: 0 | U202: 0% | W202: 7048652327673 | Y202: 0 | Z202: 0 | AA202: 1 | AB202: 0 | AC202: 810055True Black | AD202: 810055 | AE202: =VLOOKUP($C202,Classification!$A:$F,5,FALSE) -> 32.000 | AF202: =VLOOKUP($C202,Classification!$A:$F,6,FALSE) -> 1 | AG202: =INDEX(ATS!$A:$AE,MATCH('2) Order Form'!$W202,ATS!$AD:$AD,0),7) -> Stock
... 482 more rows

Sheet ELASTIC
A1: EAN-code | B1: ORDER QTY | F1: Control
A2: 7048652660404 | B2: ='2) Order Form'!I9 -> 0 | E2: Sum qty | F2: =SUM(B2:B800) -> 0
A3: 7048652660398 | B3: ='2) Order Form'!I10 -> 0 | E3: Sum from order form | F3: ='2) Order Form'!S2:S2 -> 0
A4: 7048652273154 | B4: ='2) Order Form'!I11 -> 0 | E4: Deviation | F4: =F2-F3 -> 0
A5: 7048652273147 | B5: ='2) Order Form'!I12 -> 0
A6: 7048652660428 | B6: ='2) Order Form'!I13 -> 0
A7: 7048652660411 | B7: ='2) Order Form'!I14 -> 0
A8: 7048652272690 | B8: ='2) Order Form'!I15 -> 0
A9: 7048652272683 | B9: ='2) Order Form'!I16 -> 0
A10: 7048652272676 | B10: ='2) Order Form'!I17 -> 0
A11: 7048652272720 | B11: ='2) Order Form'!I18 -> 0
A12: 7048652272713 | B12: ='2) Order Form'!I19 -> 0
A13: 7048652272706 | B13: ='2) Order Form'!I20 -> 0
A14: 7048652272546 | B14: ='2) Order Form'!I21 -> 0
A15: 7048652272539 | B15: ='2) Order Form'!I22 -> 0
A16: 7048652272522 | B16: ='2) Order Form'!I23 -> 0
A17: 7048652272669 | B17: ='2) Order Form'!I24 -> 0
A18: 7048652272652 | B18: ='2) Order Form'!I25 -> 0
A19: 7048652272645 | B19: ='2) Order Form'!I26 -> 0
A20: 7048652660268 | B20: ='2) Order Form'!I27 -> 0
A21: 7048652660251 | B21: ='2) Order Form'!I28 -> 0
A22: 7048652660244 | B22: ='2) Order Form'!I29 -> 0
A23: 7048652661180 | B23: ='2) Order Form'!I30 -> 0
A24: 7048652661173 | B24: ='2) Order Form'!I31 -> 0
A25: 7048652661166 | B25: ='2) Order Form'!I32 -> 0
A26: 7048652540409 | B26: ='2) Order Form'!I33 -> 0
A27: 7048652540393 | B27: ='2) Order Form'!I34 -> 0
A28: 7048652540386 | B28: ='2) Order Form'!I35 -> 0
A29: 7048652661210 | B29: ='2) Order Form'!I36 -> 0
A30: 7048652661203 | B30: ='2) Order Form'!I37 -> 0
A31: 7048652661197 | B31: ='2) Order Form'!I38 -> 0
A32: 7048652540522 | B32: ='2) Order Form'!I39 -> 0
A33: 7048652540515 | B33: ='2) Order Form'!I40 -> 0
A34: 7048652540508 | B34: ='2) Order Form'!I41 -> 0
A35: 7048652661241 | B35: ='2) Order Form'!I42 -> 0
A36: 7048652661234 | B36: ='2) Order Form'!I43 -> 0
A37: 7048652661227 | B37: ='2) Order Form'!I44 -> 0
A38: 7048652661098 | B38: ='2) Order Form'!I45 -> 0
A39: 7048652661081 | B39: ='2) Order Form'!I46 -> 0
A40: 7048652661074 | B40: ='2) Order Form'!I47 -> 0
A41: 7048652540225 | B41: ='2) Order Form'!I48 -> 0
A42: 7048652540218 | B42: ='2) Order Form'!I49 -> 0
A43: 7048652540201 | B43: ='2) Order Form'!I50 -> 0
A44: 7048652661128 | B44: ='2) Order Form'!I51 -> 0
A45: 7048652661111 | B45: ='2) Order Form'!I52 -> 0
A46: 7048652661104 | B46: ='2) Order Form'!I53 -> 0
A47: 7048652540348 | B47: ='2) Order Form'!I54 -> 0
A48: 7048652540331 | B48: ='2) Order Form'!I55 -> 0
A49: 7048652540324 | B49: ='2) Order Form'!I56 -> 0
A50: 7048652661159 | B50: ='2) Order Form'!I57 -> 0
A51: 7048652661142 | B51: ='2) Order Form'!I58 -> 0
A52: 7048652661135 | B52: ='2) Order Form'!I59 -> 0
A53: 7048652660350 | B53: ='2) Order Form'!I60 -> 0
A54: 7048652660343 | B54: ='2) Order Form'!I61 -> 0
A55: 7048652660336 | B55: ='2) Order Form'!I62 -> 0
A56: 7048652272966 | B56: ='2) Order Form'!I63 -> 0
A57: 7048652272959 | B57: ='2) Order Form'!I64 -> 0
A58: 7048652272942 | B58: ='2) Order Form'!I65 -> 0
A59: 7048652273086 | B59: ='2) Order Form'!I66 -> 0
A60: 7048652273079 | B60: ='2) Order Form'!I67 -> 0
A61: 7048652273062 | B61: ='2) Order Form'!I68 -> 0
A62: 7048652660381 | B62: ='2) Order Form'!I69 -> 0
A63: 7048652660374 | B63: ='2) Order Form'!I70 -> 0
A64: 7048652660367 | B64: ='2) Order Form'!I71 -> 0
A65: 7048652660329 | B65: ='2) Order Form'!I72 -> 0
A66: 7048652660312 | B66: ='2) Order Form'!I73 -> 0
A67: 7048652660305 | B67: ='2) Order Form'!I74 -> 0
A68: 7048652666413 | B68: ='2) Order Form'!I75 -> 0
A69: 7048652666406 | B69: ='2) Order Form'!I76 -> 0
A70: 7048652666390 | B70: ='2) Order Form'!I77 -> 0
A71: 7048652666444 | B71: ='2) Order Form'!I78 -> 0
A72: 7048652666437 | B72: ='2) Order Form'!I79 -> 0
A73: 7048652666420 | B73: ='2) Order Form'!I80 -> 0
A74: 7048652660299 | B74: ='2) Order Form'!I81 -> 0
A75: 7048652660282 | B75: ='2) Order Form'!I82 -> 0
A76: 7048652660275 | B76: ='2) Order Form'!I83 -> 0
A77: 7048652661746 | B77: ='2) Order Form'!I84 -> 0
A78: 7048652540980 | B78: ='2) Order Form'!I85 -> 0
A79: 7048652541024 | B79: ='2) Order Form'!I86 -> 0
A80: 7048652661753 | B80: ='2) Order Form'!I87 -> 0
A81: 7048652661722 | B81: ='2) Order Form'!I88 -> 0
A82: 7048652540935 | B82: ='2) Order Form'!I89 -> 0
A83: 7048652540973 | B83: ='2) Order Form'!I90 -> 0
A84: 7048652661739 | B84: ='2) Order Form'!I91 -> 0
A85: 7048652327420 | B85: ='2) Order Form'!I92 -> 0
A86: 7048652327413 | B86: ='2) Order Form'!I93 -> 0
A87: 7048652327444 | B87: ='2) Order Form'!I94 -> 0
A88: 7048652327437 | B88: ='2) Order Form'!I95 -> 0
A89: 7048652540881 | B89: ='2) Order Form'!I96 -> 0
A90: 7048652552549 | B90: ='2) Order Form'!I97 -> 0
A91: 7048652552532 | B91: ='2) Order Form'!I98 -> 0
A92: 7048652540928 | B92: ='2) Order Form'!I99 -> 0
A93: 7048652661708 | B93: ='2) Order Form'!I100 -> 0
A94: 7048652540836 | B94: ='2) Order Form'!I101 -> 0
A95: 7048652552525 | B95: ='2) Order Form'!I102 -> 0
A96: 7048652552518 | B96: ='2) Order Form'!I103 -> 0
A97: 7048652540874 | B97: ='2) Order Form'!I104 -> 0
A98: 7048652661715 | B98: ='2) Order Form'!I105 -> 0
A99: 7048652274564 | B99: ='2) Order Form'!I106 -> 0
A100: 7048652274557 | B100: ='2) Order Form'!I107 -> 0
A101: 7048652274601 | B101: ='2) Order Form'!I108 -> 0
A102: 7048652274595 | B102: ='2) Order Form'!I109 -> 0
A103: 7048652660602 | B103: ='2) Order Form'!I110 -> 0
A104: 7048652660596 | B104: ='2) Order Form'!I111 -> 0
A105: 7048652660640 | B105: ='2) Order Form'!I112 -> 0
A106: 7048652660633 | B106: ='2) Order Form'!I113 -> 0
A107: 7048652660626 | B107: ='2) Order Form'!I114 -> 0
A108: 7048652660619 | B108: ='2) Order Form'!I115 -> 0
A109: 7048652660664 | B109: ='2) Order Form'!I116 -> 0
A110: 7048652660657 | B110: ='2) Order Form'!I117 -> 0
A111: 7048652660527 | B111: ='2) Order Form'!I118 -> 0
A112: 7048652660510 | B112: ='2) Order Form'!I119 -> 0
A113: 7048652660565 | B113: ='2) Order Form'!I120 -> 0
A114: 7048652660558 | B114: ='2) Order Form'!I121 -> 0
A115: 7048652660541 | B115: ='2) Order Form'!I122 -> 0
A116: 7048652660534 | B116: ='2) Order Form'!I123 -> 0
A117: 7048652660589 | B117: ='2) Order Form'!I124 -> 0
A118: 7048652660572 | B118: ='2) Order Form'!I125 -> 0
A119: 7048652539847 | B119: ='2) Order Form'!I126 -> 0
A120: 7048652539830 | B120: ='2) Order Form'!I127 -> 0
A121: 7048652660480 | B121: ='2) Order Form'!I128 -> 0
A122: 7048652660473 | B122: ='2) Order Form'!I129 -> 0
A123: 7048652660503 | B123: ='2) Order Form'!I130 -> 0
A124: 7048652660497 | B124: ='2) Order Form'!I131 -> 0
A125: 7048652273949 | B125: ='2) Order Form'!I132 -> 0
A126: 7048652273932 | B126: ='2) Order Form'!I133 -> 0
A127: 7048652329257 | B127: ='2) Order Form'!I134 -> 0
A128: 7048652329240 | B128: ='2) Order Form'!I135 -> 0
A129: 7048652660435 | B129: ='2) Order Form'!I136 -> 0
A130: 7048652660459 | B130: ='2) Order Form'!I137 -> 0
A131: 7048652660442 | B131: ='2) Order Form'!I138 -> 0
A132: 7048652660466 | B132: ='2) Order Form'!I139 -> 0
A133: 7048652555540 | B133: ='2) Order Form'!I140 -> 0
A134: 7048652555533 | B134: ='2) Order Form'!I141 -> 0
A135: 7048652660978 | B135: ='2) Order Form'!I142 -> 0
A136: 7048652660961 | B136: ='2) Order Form'!I143 -> 0
A137: 7048652660954 | B137: ='2) Order Form'!I144 -> 0
A138: 7048652555526 | B138: ='2) Order Form'!I145 -> 0
A139: 7048652555519 | B139: ='2) Order Form'!I146 -> 0
A140: 7048652555502 | B140: ='2) Order Form'!I147 -> 0
A141: 7048652660947 | B141: ='2) Order Form'!I148 -> 0
A142: 7048652660930 | B142: ='2) Order Form'!I149 -> 0
A143: 7048652660923 | B143: ='2) Order Form'!I150 -> 0
A144: 7048652661005 | B144: ='2) Order Form'!I151 -> 0
A145: 7048652660992 | B145: ='2) Order Form'!I152 -> 0
A146: 7048652660985 | B146: ='2) Order Form'!I153 -> 0
A147: 7048652274502 | B147: ='2) Order Form'!I154 -> 0
A148: 7048652274496 | B148: ='2) Order Form'!I155 -> 0
A149: 7048652274489 | B149: ='2) Order Form'!I156 -> 0
A150: 7048652662446 | B150: ='2) Order Form'!I157 -> 0
A151: 7048652662439 | B151: ='2) Order Form'!I158 -> 0
A152: 7048652662422 | B152: ='2) Order Form'!I159 -> 0
A153: 7048652274236 | B153: ='2) Order Form'!I160 -> 0
A154: 7048652274229 | B154: ='2) Order Form'!I161 -> 0
A155: 7048652274212 | B155: ='2) Order Form'!I162 -> 0
A156: 7048652660886 | B156: ='2) Order Form'!I163 -> 0
A157: 7048652660879 | B157: ='2) Order Form'!I164 -> 0
A158: 7048652660862 | B158: ='2) Order Form'!I165 -> 0
A159: 7048652660916 | B159: ='2) Order Form'!I166 -> 0
A160: 7048652660909 | B160: ='2) Order Form'!I167 -> 0
A161: 7048652660893 | B161: ='2) Order Form'!I168 -> 0
A162: 7048652555496 | B162: ='2) Order Form'!I169 -> 0
A163: 7048652555489 | B163: ='2) Order Form'!I170 -> 0
A164: 7048652555472 | B164: ='2) Order Form'!I171 -> 0
A165: 7048652274724 | B165: ='2) Order Form'!I172 -> 0
A166: 7048652274717 | B166: ='2) Order Form'!I173 -> 0
A167: 7048652274700 | B167: ='2) Order Form'!I174 -> 0
A168: 7048652661067 | B168: ='2) Order Form'!I175 -> 0
A169: 7048652661050 | B169: ='2) Order Form'!I176 -> 0
A170: 7048652661043 | B170: ='2) Order Form'!I177 -> 0
A171: 7048652274663 | B171: ='2) Order Form'!I178 -> 0
A172: 7048652274656 | B172: ='2) Order Form'!I179 -> 0
A173: 7048652274649 | B173: ='2) Order Form'!I180 -> 0
A174: 7048652661036 | B174: ='2) Order Form'!I181 -> 0
A175: 7048652661029 | B175: ='2) Order Form'!I182 -> 0
A176: 7048652661012 | B176: ='2) Order Form'!I183 -> 0
A177: 7048652327543 | B177: ='2) Order Form'!I184 -> 0
A178: 7048652661609 | B178: ='2) Order Form'!I185 -> 0
A179: 7048652328250 | B179: ='2) Order Form'!I186 -> 0
A180: 7048652661623 | B180: ='2) Order Form'!I187 -> 0
A181: 7048652476913 | B181: ='2) Order Form'!I188 -> 0
A182: 7048652476920 | B182: ='2) Order Form'!I189 -> 0
A183: 7048652476937 | B183: ='2) Order Form'!I190 -> 0
A184: 7048652476944 | B184: ='2) Order Form'!I191 -> 0
A185: 7048652328298 | B185: ='2) Order Form'!I192 -> 0
A186: 7048652328281 | B186: ='2) Order Form'!I193 -> 0
A187: 7048652327550 | B187: ='2) Order Form'!I194 -> 0
A188: 7048652327567 | B188: ='2) Order Form'!I195 -> 0
A189: 7048652327581 | B189: ='2) Order Form'!I196 -> 0
A190: 7048652542625 | B190: ='2) Order Form'!I197 -> 0
A191: 7048652327642 | B191: ='2) Order Form'!I198 -> 0
A192: 7048652327703 | B192: ='2) Order Form'!I199 -> 0
A193: 7048652327697 | B193: ='2) Order Form'!I200 -> 0
A194: 7048652327680 | B194: ='2) Order Form'!I201 -> 0
A195: 7048652327673 | B195: ='2) Order Form'!I202 -> 0
A196: 7048652327666 | B196: ='2) Order Form'!I203 -> 0
A197: 7048652327659 | B197: ='2) Order Form'!I204 -> 0
A198: 7048652661630 | B198: ='2) Order Form'!I205 -> 0
A199: 7048652542434 | B199: ='2) Order Form'!I206 -> 0
A200: 7048652661647 | B200: ='2) Order Form'!I207 -> 0
... 477 more rows

Sheet ATS (hidden)
A1: Item Availability weeks Excel | AC1: IKKE GJØR NOEN ENDRINGER I DISSE KOLONNENE | AH1: MANGLER - MÅ OPPDATERE EAN-FANEN
A2: SKIGUTANE\PETULR : 11.10.21 | B2: Item Variant Status "Active&Stock"
A3: No. | B3: Description | C3: Location Filter | D3: Variant Color | E3: Color Description | F3: Variant Size | G3: Variant Status | H3: Week 1 | I3: Week 1 | J3: Week 1 | K3: Week 1 | L3: Week 1 | M3: Week 1 | N3: Week 1 | O3: Week 1 | P3: Week 1 | Q3: Week 1 | R3: Week 1 | S3: Week 1 | T3: Week 1 | U3: Week 1 | V3: Week 1 | W3: Week 1 | X3: Week 1 | Y3: Week 1 | Z3: Week 1 | AA3: Week 1 | AC3: SKU | AD3: =IFERROR(VLOOKUP(AC3,EAN!$A:$B,2,FALSE),"") -> Cross-Reference No. | AE3: ATS NOW | AF3: ATS W31 | AH3: Med I order form? | AJ3: EAN fra Elastic | AK3: Sjekk mot Order Form | AP3: EAN fra Order Form | AQ3: Sjekk mot Elastic
A4: 810050 | B4: Net | H4: 202141 | I4: 202141 | J4: 202141 | K4: 202141 | L4: 202141 | M4: 202141 | N4: 202141 | O4: 202141 | P4: 202141 | Q4: 202141 | R4: 202141 | S4: 202141 | T4: 202141 | U4: 202141 | V4: 202141 | W4: 202141 | X4: 202141 | Y4: 202141 | Z4: 202141 | AA4: 202141 | AC4: =CONCATENATE(A4,"-",D4) -> 810050- | AD4: =IF(B4="NET","",IF(B4="","",IFERROR(VLOOKUP(AC4,EAN!$A:$B,2,FALSE),"MANGLER - MÅ OPPDATERE EAN-FANEN"))) ->  | AE4: =H4 -> 202141 | AF4: =AA4 -> 202141 | AH4: =IF(B4="NET","",IFERROR(VLOOKUP(AD4,'2) Order Form'!$W$9:$W$684,1,FALSE),"Ikke med I order form")) ->  | AJ4: 7048652273154 | AK4: =IFERROR(VLOOKUP(AJ4,'2) Order Form'!$W$9:$W$724,1,FALSE),"Ikke med I order form") -> 7048652273154 | AL4: =INDEX(ATS!$A:$AE,MATCH(ATS!$AJ4,ATS!$AD:$AD,0),1) -> 845073 | AM4: =INDEX(ATS!$A:$AE,MATCH(ATS!$AJ4,ATS!$AD:$AD,0),2) -> Arbitrator Mips Helmet | AN4: =INDEX(ATS!$A:$AE,MATCH(ATS!$AJ4,ATS!$AD:$AD,0),4) -> MBKNC-SM | AP4: 7048652660404 | AQ4: =IFERROR(VLOOKUP(AP4,$AJ$4:$AJ$1500,1,FALSE),"Ikke med i Elastic") -> 7048652660404 | AR4: =INDEX(ATS!$A:$AE,MATCH(ATS!$AP4,ATS!$AD:$AD,0),1) -> 845073 | AS4: =INDEX(ATS!$A:$AE,MATCH(ATS!$AP4,ATS!$AD:$AD,0),2) -> Arbitrator Mips Helmet | AT4: =INDEX(ATS!$A:$AE,MATCH(ATS!$AP4,ATS!$AD:$AD,0),4) -> CORNC-SM | AU4: =INDEX(ATS!$A:$AE,MATCH(ATS!$AP4,ATS!$AD:$AD,0),7) -> Stock
A5: 810050 | B5: Rocker Visor | C5: WHO | D5: CLGRY-OS | E5: Charcoal Gray | F5: OS | G5: Stock | H5: 4 | I5: 4 | J5: 4 | K5: 4 | L5: 4 | M5: 4 | N5: 4 | O5: 4 | P5: 4 | Q5: 4 | R5: 4 | S5: 4 | T5: 4 | U5: 4 | V5: 4 | W5: 4 | X5: 4 | Y5: 4 | Z5: 4 | AA5: 4 | AC5: =CONCATENATE(A5,"-",D5) -> 810050-CLGRY-OS | AD5: =IF(B5="NET","",IF(B5="","",IFERROR(VLOOKUP(AC5,EAN!$A:$B,2,FALSE),"MANGLER - MÅ OPPDATERE EAN-FANEN"))) -> 7048652327482 | AE5: =H5 -> 4 | AF5: =AA5 -> 4 | AH5: =IF(B5="NET","",IFERROR(VLOOKUP(AD5,'2) Order Form'!$W$9:$W$684,1,FALSE),"Ikke med I order form")) -> Ikke med I order form | AJ5: 7048652273147 | AK5: =IFERROR(VLOOKUP(AJ5,'2) Order Form'!$W$9:$W$724,1,FALSE),"Ikke med I order form") -> 7048652273147 | AL5: =INDEX(ATS!$A:$AE,MATCH(ATS!$AJ5,ATS!$AD:$AD,0),1) -> 845073 | AM5: =INDEX(ATS!$A:$AE,MATCH(ATS!$AJ5,ATS!$AD:$AD,0),2) -> Arbitrator Mips Helmet | AN5: =INDEX(ATS!$A:$AE,MATCH(ATS!$AJ5,ATS!$AD:$AD,0),4) -> MBKNC-ML | AP5: 7048652660398 | AQ5: =IFERROR(VLOOKUP(AP5,$AJ$4:$AJ$1500,1,FALSE),"Ikke med i Elastic") -> 7048652660398 | AR5: =INDEX(ATS!$A:$AE,MATCH(ATS!$AP5,ATS!$AD:$AD,0),1) -> 845073 | AS5: =INDEX(ATS!$A:$AE,MATCH(ATS!$AP5,ATS!$AD:$AD,0),2) -> Arbitrator Mips Helmet | AT5: =INDEX(ATS!$A:$AE,MATCH(ATS!$AP5,ATS!$AD:$AD,0),4) -> CORNC-ML | AU5: =INDEX(ATS!$A:$AE,MATCH(ATS!$AP5,ATS!$AD:$AD,0),7) -> Stock
A6: 810050 | B6: Rocker Visor | C6: WHO | D6: DPUMC-OS | E6: Deep Purple Metallic | F6: OS | G6: Active | H6: -9 | I6: -9 | J6: -9 | K6: -9 | L6: -9 | M6: -9 | N6: -9 | O6: -9 | P6: -9 | Q6: -9 | R6: -9 | S6: -9 | T6: -9 | U6: -9 | V6: -9 | W6: -9 | X6: -9 | Y6: -9 | Z6: -9 | AA6: -9 | AC6: =CONCATENATE(A6,"-",D6) -> 810050-DPUMC-OS | AD6: =IF(B6="NET","",IF(B6="","",IFERROR(VLOOKUP(AC6,EAN!$A:$B,2,FALSE),"MANGLER - MÅ OPPDATERE EAN-FANEN"))) -> MANGLER - MÅ OPPDATERE EAN-FANEN | AE6: -9 | AF6: -9 | AH6: =IF(B6="NET","",IFERROR(VLOOKUP(AD6,'2) Order Form'!$W$9:$W$684,1,FALSE),"Ikke med I order form")) -> Ikke med I order form | AJ6: 7048652660404 | AK6: =IFERROR(VLOOKUP(AJ6,'2) Order Form'!$W$9:$W$724,1,FALSE),"Ikke med I order form") -> 7048652660404 | AL6: =INDEX(ATS!$A:$AE,MATCH(ATS!$AJ6,ATS!$AD:$AD,0),1) -> 845073 | AM6: =INDEX(ATS!$A:$AE,MATCH(ATS!$AJ6,ATS!$AD:$AD,0),2) -> Arbitrator Mips Helmet | AN6: =INDEX(ATS!$A:$AE,MATCH(ATS!$AJ6,ATS!$AD:$AD,0),4) -> CORNC-SM | AP6: 7048652273154 | AQ6: 7048652273154 | AR6: =INDEX(ATS!$A:$AE,MATCH(ATS!$AP6,ATS!$AD:$AD,0),1) -> 845073 | AS6: =INDEX(ATS!$A:$AE,MATCH(ATS!$AP6,ATS!$AD:$AD,0),2) -> Arbitrator Mips Helmet | AT6: =INDEX(ATS!$A:$AE,MATCH(ATS!$AP6,ATS!$AD:$AD,0),4) -> MBKNC-SM | AU6: =INDEX(ATS!$A:$AE,MATCH(ATS!$AP6,ATS!$AD:$AD,0),7) -> Active
A7: 810050 | B7: Rocker Visor | C7: WHO | D7: DTBLK-OS | E7: Dirt Black | F7: OS | G7: Active | H7: -15 | I7: -15 | J7: -15 | K7: -15 | L7: -15 | M7: -15 | N7: -15 | O7: -15 | P7: -15 | Q7: -15 | R7: -15 | S7: -15 | T7: -15 | U7: -15 | V7: -15 | W7: -15 | X7: -15 | Y7: -15 | Z7: -15 | AA7: -15 | AC7: 810050-DTBLK-OS | AD7: =IF(B7="NET","",IF(B7="","",IFERROR(VLOOKUP(AC7,EAN!$A:$B,2,FALSE),"MANGLER - MÅ OPPDATERE EAN-FANEN"))) -> 7048652328304 | AE7: -15 | AF7: -15 | AH7: =IF(B7="NET","",IFERROR(VLOOKUP(AD7,'2) Order Form'!$W$9:$W$684,1,FALSE),"Ikke med I order form")) -> Ikke med I order form | AJ7: 7048652660398 | AK7: =IFERROR(VLOOKUP(AJ7,'2) Order Form'!$W$9:$W$724,1,FALSE),"Ikke med I order form") -> 7048652660398 | AL7: =INDEX(ATS!$A:$AE,MATCH(ATS!$AJ7,ATS!$AD:$AD,0),1) -> 845073 | AM7: =INDEX(ATS!$A:$AE,MATCH(ATS!$AJ7,ATS!$AD:$AD,0),2) -> Arbitrator Mips Helmet | AN7: =INDEX(ATS!$A:$AE,MATCH(ATS!$AJ7,ATS!$AD:$AD,0),4) -> CORNC-ML | AP7: 7048652273147 | AQ7: 7048652273147 | AR7: =INDEX(ATS!$A:$AE,MATCH(ATS!$AP7,ATS!$AD:$AD,0),1) -> 845073 | AS7: =INDEX(ATS!$A:$AE,MATCH(ATS!$AP7,ATS!$AD:$AD,0),2) -> Arbitrator Mips Helmet | AT7: =INDEX(ATS!$A:$AE,MATCH(ATS!$AP7,ATS!$AD:$AD,0),4) -> MBKNC-ML | AU7: =INDEX(ATS!$A:$AE,MATCH(ATS!$AP7,ATS!$AD:$AD,0),7) -> Active
A8: 810050 | B8: Rocker Visor | C8: WHO | D8: EHRED-OS | E8: Earth Red | F8: OS | G8: Stock | H8: 4 | I8: 4 | J8: 4 | K8: 4 | L8: 4 | M8: 4 | N8: 4 | O8: 4 | P8: 4 | Q8: 4 | R8: 4 | S8: 4 | T8: 4 | U8: 4 | V8: 4 | W8: 4 | X8: 4 | Y8: 4 | Z8: 4 | AA8: 4 | AC8: 810050-EHRED-OS | AD8: =IF(B8="NET","",IF(B8="","",IFERROR(VLOOKUP(AC8,EAN!$A:$B,2,FALSE),"MANGLER - MÅ OPPDATERE EAN-FANEN"))) -> 7048652327499 | AE8: 4 | AF8: 4 | AH8: =IF(B8="NET","",IFERROR(VLOOKUP(AD8,'2) Order Form'!$W$9:$W$684,1,FALSE),"Ikke med I order form")) -> Ikke med I order form | AJ8: 7048652660428 | AK8: =IFERROR(VLOOKUP(AJ8,'2) Order Form'!$W$9:$W$724,1,FALSE),"Ikke med I order form") -> 7048652660428 | AL8: =INDEX(ATS!$A:$AE,MATCH(ATS!$AJ8,ATS!$AD:$AD,0),1) -> 845073 | AM8: =INDEX(ATS!$A:$AE,MATCH(ATS!$AJ8,ATS!$AD:$AD,0),2) -> Arbitrator Mips Helmet | AN8: =INDEX(ATS!$A:$AE,MATCH(ATS!$AJ8,ATS!$AD:$AD,0),4) -> NGRNC-SM | AP8: 7048652660428 | AQ8: 7048652660428 | AR8: =INDEX(ATS!$A:$AE,MATCH(ATS!$AP8,ATS!$AD:$AD,0),1) -> 845073 | AS8: =INDEX(ATS!$A:$AE,MATCH(ATS!$AP8,ATS!$AD:$AD,0),2) -> Arbitrator Mips Helmet | AT8: =INDEX(ATS!$A:$AE,MATCH(ATS!$AP8,ATS!$AD:$AD,0),4) -> NGRNC-SM | AU8: =INDEX(ATS!$A:$AE,MATCH(ATS!$AP8,ATS!$AD:$AD,0),7) -> Stock
A9: 810050 | B9: Rocker Visor | C9: WHO | D9: GSWHT-OS | E9: Gloss White | F9: OS | G9: Active | H9: -5 | I9: -5 | J9: -5 | K9: -5 | L9: -5 | M9: -5 | N9: -5 | O9: -5 | P9: -5 | Q9: -5 | R9: -5 | S9: -5 | T9: -5 | U9: -5 | V9: -5 | W9: -5 | X9: -5 | Y9: -5 | Z9: -5 | AA9: -5 | AC9: 810050-GSWHT-OS | AD9: =IF(B9="NET","",IF(B9="","",IFERROR(VLOOKUP(AC9,EAN!$A:$B,2,FALSE),"MANGLER - MÅ OPPDATERE EAN-FANEN"))) -> 7048652327505 | AE9: -5 | AF9: -5 | AH9: =IF(B9="NET","",IFERROR(VLOOKUP(AD9,'2) Order Form'!$W$9:$W$684,1,FALSE),"Ikke med I order form")) -> Ikke med I order form | AJ9: 7048652660411 | AK9: =IFERROR(VLOOKUP(AJ9,'2) Order Form'!$W$9:$W$724,1,FALSE),"Ikke med I order form") -> 7048652660411 | AL9: =INDEX(ATS!$A:$AE,MATCH(ATS!$AJ9,ATS!$AD:$AD,0),1) -> 845073 | AM9: =INDEX(ATS!$A:$AE,MATCH(ATS!$AJ9,ATS!$AD:$AD,0),2) -> Arbitrator Mips Helmet | AN9: =INDEX(ATS!$A:$AE,MATCH(ATS!$AJ9,ATS!$AD:$AD,0),4) -> NGRNC-ML | AP9: 7048652660411 | AQ9: 7048652660411 | AR9: =INDEX(ATS!$A:$AE,MATCH(ATS!$AP9,ATS!$AD:$AD,0),1) -> 845073 | AS9: =INDEX(ATS!$A:$AE,MATCH(ATS!$AP9,ATS!$AD:$AD,0),2) -> Arbitrator Mips Helmet | AT9: =INDEX(ATS!$A:$AE,MATCH(ATS!$AP9,ATS!$AD:$AD,0),4) -> NGRNC-ML | AU9: =INDEX(ATS!$A:$AE,MATCH(ATS!$AP9,ATS!$AD:$AD,0),7) -> Stock
A10: 810050 | B10: Rocker Visor | C10: WHO | D10: MBUOE-OS | E10: Matte Burning Orange | F10: OS | G10: Active | H10: -9 | I10: -9 | J10: -9 | K10: -9 | L10: -9 | M10: -9 | N10: -9 | O10: -9 | P10: -9 | Q10: -9 | R10: -9 | S10: -9 | T10: -9 | U10: -9 | V10: -9 | W10: -9 | X10: -9 | Y10: -9 | Z10: -9 | AA10: -9 | AC10: 810050-MBUOE-OS | AD10: =IF(B10="NET","",IF(B10="","",IFERROR(VLOOKUP(AC10,EAN!$A:$B,2,FALSE),"MANGLER - MÅ OPPDATERE EAN-FANEN"))) -> MANGLER - MÅ OPPDATERE EAN-FANEN | AE10: -9 | AF10: -9 | AH10: =IF(B10="NET","",IFERROR(VLOOKUP(AD10,'2) Order Form'!$W$9:$W$684,1,FALSE),"Ikke med I order form")) -> Ikke med I order form | AJ10: 7048652272690 | AK10: =IFERROR(VLOOKUP(AJ10,'2) Order Form'!$W$9:$W$724,1,FALSE),"Ikke med I order form") -> 7048652272690 | AL10: =INDEX(ATS!$A:$AE,MATCH(ATS!$AJ10,ATS!$AD:$AD,0),1) -> 845066 | AM10: =INDEX(ATS!$A:$AE,MATCH(ATS!$AJ10,ATS!$AD:$AD,0),2) -> Bushwhacker II Carbon Mips Helmet | AN10: =INDEX(ATS!$A:$AE,MATCH(ATS!$AJ10,ATS!$AD:$AD,0),4) -> MBKME-SM | AP10: 7048652272690 | AQ10: 7048652272690 | AR10: =INDEX(ATS!$A:$AE,MATCH(ATS!$AP10,ATS!$AD:$AD,0),1) -> 845066 | AS10: =INDEX(ATS!$A:$AE,MATCH(ATS!$AP10,ATS!$AD:$AD,0),2) -> Bushwhacker II Carbon Mips Helmet | AT10: =INDEX(ATS!$A:$AE,MATCH(ATS!$AP10,ATS!$AD:$AD,0),4) -> MBKME-SM | AU10: =INDEX(ATS!$A:$AE,MATCH(ATS!$AP10,ATS!$AD:$AD,0),7) -> Active
A11: 810050 | B11: Rocker Visor | C11: WHO | D11: MEAME-OS | E11: Matte Aquamarine | F11: OS | G11: Stock | H11: 17 | I11: 17 | J11: 17 | K11: 17 | L11: 17 | M11: 17 | N11: 17 | O11: 17 | P11: 17 | Q11: 17 | R11: 17 | S11: 17 | T11: 17 | U11: 17 | V11: 17 | W11: 17 | X11: 17 | Y11: 17 | Z11: 17 | AA11: 17 | AC11: 810050-MEAME-OS | AD11: =IF(B11="NET","",IF(B11="","",IFERROR(VLOOKUP(AC11,EAN!$A:$B,2,FALSE),"MANGLER - MÅ OPPDATERE EAN-FANEN"))) -> 7048652661487 | AE11: 17 | AF11: 17 | AH11: =IF(B11="NET","",IFERROR(VLOOKUP(AD11,'2) Order Form'!$W$9:$W$684,1,FALSE),"Ikke med I order form")) -> Ikke med I order form | AJ11: 7048652272683 | AK11: =IFERROR(VLOOKUP(AJ11,'2) Order Form'!$W$9:$W$724,1,FALSE),"Ikke med I order form") -> 7048652272683 | AL11: =INDEX(ATS!$A:$AE,MATCH(ATS!$AJ11,ATS!$AD:$AD,0),1) -> 845066 | AM11: =INDEX(ATS!$A:$AE,MATCH(ATS!$AJ11,ATS!$AD:$AD,0),2) -> Bushwhacker II Carbon Mips Helmet | AN11: =INDEX(ATS!$A:$AE,MATCH(ATS!$AJ11,ATS!$AD:$AD,0),4) -> MBKME-ML | AP11: 7048652272683 | AQ11: 7048652272683 | AR11: =INDEX(ATS!$A:$AE,MATCH(ATS!$AP11,ATS!$AD:$AD,0),1) -> 845066 | AS11: =INDEX(ATS!$A:$AE,MATCH(ATS!$AP11,ATS!$AD:$AD,0),2) -> Bushwhacker II Carbon Mips Helmet | AT11: =INDEX(ATS!$A:$AE,MATCH(ATS!$AP11,ATS!$AD:$AD,0),4) -> MBKME-ML | AU11: =INDEX(ATS!$A:$AE,MATCH(ATS!$AP11,ATS!$AD:$AD,0),7) -> Active
A12: 810050 | B12: Rocker Visor | C12: WHO | D12: MFLUO-OS | E12: Matte Fluo | F12: OS | G12: Active | H12: -11 | I12: -11 | J12: -11 | K12: -11 | L12: -11 | M12: -11 | N12: -11 | O12: -11 | P12: -11 | Q12: -11 | R12: -11 | S12: -11 | T12: -11 | U12: -11 | V12: -11 | W12: -11 | X12: -11 | Y12: -11 | Z12: -11 | AA12: -11 | AC12: 810050-MFLUO-OS | AD12: =IF(B12="NET","",IF(B12="","",IFERROR(VLOOKUP(AC12,EAN!$A:$B,2,FALSE),"MANGLER - MÅ OPPDATERE EAN-FANEN"))) -> MANGLER - MÅ OPPDATERE EAN-FANEN | AE12: -11 | AF12: -11 | AH12: =IF(B12="NET","",IFERROR(VLOOKUP(AD12,'2) Order Form'!$W$9:$W$684,1,FALSE),"Ikke med I order form")) -> Ikke med I order form | AJ12: 7048652272676 | AK12: =IFERROR(VLOOKUP(AJ12,'2) Order Form'!$W$9:$W$724,1,FALSE),"Ikke med I order form") -> 7048652272676 | AL12: =INDEX(ATS!$A:$AE,MATCH(ATS!$AJ12,ATS!$AD:$AD,0),1) -> 845066 | AM12: =INDEX(ATS!$A:$AE,MATCH(ATS!$AJ12,ATS!$AD:$AD,0),2) -> Bushwhacker II Carbon Mips Helmet | AN12: =INDEX(ATS!$A:$AE,MATCH(ATS!$AJ12,ATS!$AD:$AD,0),4) -> MBKME-LXL | AP12: 7048652272676 | AQ12: 7048652272676 | AR12: =INDEX(ATS!$A:$AE,MATCH(ATS!$AP12,ATS!$AD:$AD,0),1) -> 845066 | AS12: =INDEX(ATS!$A:$AE,MATCH(ATS!$AP12,ATS!$AD:$AD,0),2) -> Bushwhacker II Carbon Mips Helmet | AT12: =INDEX(ATS!$A:$AE,MATCH(ATS!$AP12,ATS!$AD:$AD,0),4) -> MBKME-LXL | AU12: =INDEX(ATS!$A:$AE,MATCH(ATS!$AP12,ATS!$AD:$AD,0),7) -> Active
A13: 810050 | B13: Rocker Visor | C13: WHO | D13: MNBME-OS | E13: Matte Navy Blue Metallic | F13: OS | G13: Stock | H13: 25 | I13: 25 | J13: 25 | K13: 25 | L13: 25 | M13: 25 | N13: 25 | O13: 25 | P13: 25 | Q13: 25 | R13: 25 | S13: 25 | T13: 25 | U13: 25 | V13: 25 | W13: 25 | X13: 25 | Y13: 25 | Z13: 25 | AA13: 25 | AC13: 810050-MNBME-OS | AD13: =IF(B13="NET","",IF(B13="","",IFERROR(VLOOKUP(AC13,EAN!$A:$B,2,FALSE),"MANGLER - MÅ OPPDATERE EAN-FANEN"))) -> 7048652553843 | AE13: 25 | AF13: 25 | AH13: =IF(B13="NET","",IFERROR(VLOOKUP(AD13,'2) Order Form'!$W$9:$W$684,1,FALSE),"Ikke med I order form")) -> Ikke med I order form | AJ13: 7048652272720 | AK13: =IFERROR(VLOOKUP(AJ13,'2) Order Form'!$W$9:$W$724,1,FALSE),"Ikke med I order form") -> 7048652272720 | AL13: =INDEX(ATS!$A:$AE,MATCH(ATS!$AJ13,ATS!$AD:$AD,0),1) -> 845066 | AM13: =INDEX(ATS!$A:$AE,MATCH(ATS!$AJ13,ATS!$AD:$AD,0),2) -> Bushwhacker II Carbon Mips Helmet | AN13: =INDEX(ATS!$A:$AE,MATCH(ATS!$AJ13,ATS!$AD:$AD,0),4) -> MWEMC-SM | AP13: 7048652272720 | AQ13: 7048652272720 | AR13: =INDEX(ATS!$A:$AE,MATCH(ATS!$AP13,ATS!$AD:$AD,0),1) -> 845066 | AS13: =INDEX(ATS!$A:$AE,MATCH(ATS!$AP13,ATS!$AD:$AD,0),2) -> Bushwhacker II Carbon Mips Helmet | AT13: =INDEX(ATS!$A:$AE,MATCH(ATS!$AP13,ATS!$AD:$AD,0),4) -> MWEMC-SM | AU13: =INDEX(ATS!$A:$AE,MATCH(ATS!$AP13,ATS!$AD:$AD,0),7) -> Active
A14: 810050 | B14: Rocker Visor | C14: WHO | D14: MSGMC-OS | E14: Matte Slate Gray Metallic | F14: OS | G14: Stock | H14: 17 | I14: 17 | J14: 17 | K14: 17 | L14: 17 | M14: 17 | N14: 17 | O14: 17 | P14: 17 | Q14: 17 | R14: 17 | S14: 17 | T14: 17 | U14: 17 | V14: 17 | W14: 17 | X14: 17 | Y14: 17 | Z14: 17 | AA14: 17 | AC14: 810050-MSGMC-OS | AD14: =IF(B14="NET","",IF(B14="","",IFERROR(VLOOKUP(AC14,EAN!$A:$B,2,FALSE),"MANGLER - MÅ OPPDATERE EAN-FANEN"))) -> 7048652553850 | AE14: 17 | AF14: 17 | AH14: =IF(B14="NET","",IFERROR(VLOOKUP(AD14,'2) Order Form'!$W$9:$W$684,1,FALSE),"Ikke med I order form")) -> Ikke med I order form | AJ14: 7048652272713 | AK14: =IFERROR(VLOOKUP(AJ14,'2) Order Form'!$W$9:$W$724,1,FALSE),"Ikke med I order form") -> 7048652272713 | AL14: =INDEX(ATS!$A:$AE,MATCH(ATS!$AJ14,ATS!$AD:$AD,0),1) -> 845066 | AM14: =INDEX(ATS!$A:$AE,MATCH(ATS!$AJ14,ATS!$AD:$AD,0),2) -> Bushwhacker II Carbon Mips Helmet | AN14: =INDEX(ATS!$A:$AE,MATCH(ATS!$AJ14,ATS!$AD:$AD,0),4) -> MWEMC-ML | AP14: 7048652272713 | AQ14: 7048652272713 | AR14: =INDEX(ATS!$A:$AE,MATCH(ATS!$AP14,ATS!$AD:$AD,0),1) -> 845066 | AS14: =INDEX(ATS!$A:$AE,MATCH(ATS!$AP14,ATS!$AD:$AD,0),2) -> Bushwhacker II Carbon Mips Helmet | AT14: =INDEX(ATS!$A:$AE,MATCH(ATS!$AP14,ATS!$AD:$AD,0),4) -> MWEMC-ML | AU14: =INDEX(ATS!$A:$AE,MATCH(ATS!$AP14,ATS!$AD:$AD,0),7) -> Active
A15: 810051 | B15: Net | H15: 202141 | I15: 202141 | J15: 202141 | K15: 202141 | L15: 202141 | M15: 202141 | N15: 202141 | O15: 202141 | P15: 202141 | Q15: 202141 | R15: 202141 | S15: 202141 | T15: 202141 | U15: 202141 | V15: 202141 | W15: 202141 | X15: 202141 | Y15: 202141 | Z15: 202141 | AA15: 202141 | AC15: 810051- | AD15: =IF(B15="NET","",IF(B15="","",IFERROR(VLOOKUP(AC15,EAN!$A:$B,2,FALSE),"MANGLER - MÅ OPPDATERE EAN-FANEN"))) ->  | AE15: 202141 | AF15: 202141 | AH15: =IF(B15="NET","",IFERROR(VLOOKUP(AD15,'2) Order Form'!$W$9:$W$684,1,FALSE),"Ikke med I order form")) ->  | AJ15: 7048652272706 | AK15: =IFERROR(VLOOKUP(AJ15,'2) Order Form'!$W$9:$W$724,1,FALSE),"Ikke med I order form") -> 7048652272706 | AL15: =INDEX(ATS!$A:$AE,MATCH(ATS!$AJ15,ATS!$AD:$AD,0),1) -> 845066 | AM15: =INDEX(ATS!$A:$AE,MATCH(ATS!$AJ15,ATS!$AD:$AD,0),2) -> Bushwhacker II Carbon Mips Helmet | AN15: =INDEX(ATS!$A:$AE,MATCH(ATS!$AJ15,ATS!$AD:$AD,0),4) -> MWEMC-LXL | AP15: 7048652272706 | AQ15: 7048652272706 | AR15: =INDEX(ATS!$A:$AE,MATCH(ATS!$AP15,ATS!$AD:$AD,0),1) -> 845066 | AS15: =INDEX(ATS!$A:$AE,MATCH(ATS!$AP15,ATS!$AD:$AD,0),2) -> Bushwhacker II Carbon Mips Helmet | AT15: =INDEX(ATS!$A:$AE,MATCH(ATS!$AP15,ATS!$AD:$AD,0),4) -> MWEMC-LXL | AU15: =INDEX(ATS!$A:$AE,MATCH(ATS!$AP15,ATS!$AD:$AD,0),7) -> Active
A16: 810051 | B16: Rocker/Wanderer Earpads | C16: WHO | D16: DTBLK-OS | E16: Dirt Black | F16: OS | G16: Active | H16: -201 | I16: -201 | J16: -201 | K16: -201 | L16: -201 | M16: -201 | N16: -201 | O16: -201 | P16: -201 | Q16: -201 | R16: -201 | S16: -201 | T16: -201 | U16: -201 | V16: -201 | W16: -201 | X16: -201 | Y16: -201 | Z16: -201 | AA16: -201 | AC16: 810051-DTBLK-OS | AD16: =IF(B16="NET","",IF(B16="","",IFERROR(VLOOKUP(AC16,EAN!$A:$B,2,FALSE),"MANGLER - MÅ OPPDATERE EAN-FANEN"))) -> 7048652327536 | AE16: -201 | AF16: -201 | AH16: =IF(B16="NET","",IFERROR(VLOOKUP(AD16,'2) Order Form'!$W$9:$W$684,1,FALSE),"Ikke med I order form")) -> Ikke med I order form | AJ16: 7048652272546 | AK16: =IFERROR(VLOOKUP(AJ16,'2) Order Form'!$W$9:$W$724,1,FALSE),"Ikke med I order form") -> 7048652272546 | AL16: =INDEX(ATS!$A:$AE,MATCH(ATS!$AJ16,ATS!$AD:$AD,0),1) -> 845065 | AM16: =INDEX(ATS!$A:$AE,MATCH(ATS!$AJ16,ATS!$AD:$AD,0),2) -> Bushwhacker II Mips Helmet | AN16: =INDEX(ATS!$A:$AE,MATCH(ATS!$AJ16,ATS!$AD:$AD,0),4) -> MBLCK-SM | AP16: 7048652272546 | AQ16: 7048652272546 | AR16: =INDEX(ATS!$A:$AE,MATCH(ATS!$AP16,ATS!$AD:$AD,0),1) -> 845065 | AS16: =INDEX(ATS!$A:$AE,MATCH(ATS!$AP16,ATS!$AD:$AD,0),2) -> Bushwhacker II Mips Helmet | AT16: =INDEX(ATS!$A:$AE,MATCH(ATS!$AP16,ATS!$AD:$AD,0),4) -> MBLCK-SM | AU16: =INDEX(ATS!$A:$AE,MATCH(ATS!$AP16,ATS!$AD:$AD,0),7) -> Active
A17: 810052 | B17: Net | H17: 202141 | I17: 202141 | J17: 202141 | K17: 202141 | L17: 202141 | M17: 202141 | N17: 202141 | O17: 202141 | P17: 202141 | Q17: 202141 | R17: 202141 | S17: 202141 | T17: 202141 | U17: 202141 | V17: 202141 | W17: 202141 | X17: 202141 | Y17: 202141 | Z17: 202141 | AA17: 202141 | AC17: 810052- | AD17: =IF(B17="NET","",IF(B17="","",IFERROR(VLOOKUP(AC17,EAN!$A:$B,2,FALSE),"MANGLER - MÅ OPPDATERE EAN-FANEN"))) ->  | AE17: 202141 | AF17: 202141 | AH17: =IF(B17="NET","",IFERROR(VLOOKUP(AD17,'2) Order Form'!$W$9:$W$684,1,FALSE),"Ikke med I order form")) ->  | AJ17: 7048652272539 | AK17: =IFERROR(VLOOKUP(AJ17,'2) Order Form'!$W$9:$W$724,1,FALSE),"Ikke med I order form") -> 7048652272539 | AL17: =INDEX(ATS!$A:$AE,MATCH(ATS!$AJ17,ATS!$AD:$AD,0),1) -> 845065 | AM17: =INDEX(ATS!$A:$AE,MATCH(ATS!$AJ17,ATS!$AD:$AD,0),2) -> Bushwhacker II Mips Helmet | AN17: =INDEX(ATS!$A:$AE,MATCH(ATS!$AJ17,ATS!$AD:$AD,0),4) -> MBLCK-ML | AP17: 7048652272539 | AQ17: 7048652272539 | AR17: =INDEX(ATS!$A:$AE,MATCH(ATS!$AP17,ATS!$AD:$AD,0),1) -> 845065 | AS17: =INDEX(ATS!$A:$AE,MATCH(ATS!$AP17,ATS!$AD:$AD,0),2) -> Bushwhacker II Mips Helmet | AT17: =INDEX(ATS!$A:$AE,MATCH(ATS!$AP17,ATS!$AD:$AD,0),4) -> MBLCK-ML | AU17: =INDEX(ATS!$A:$AE,MATCH(ATS!$AP17,ATS!$AD:$AD,0),7) -> Active
A18: 810052 | B18: Bike Helmet Case | C18: WHO | D18: TEBLK-OS | E18: True Black | F18: OS | G18: Active | H18: 698 | I18: 698 | J18: 698 | K18: 698 | L18: 698 | M18: 698 | N18: 698 | O18: 698 | P18: 698 | Q18: 698 | R18: 698 | S18: 698 | T18: 698 | U18: 698 | V18: 698 | W18: 698 | X18: 698 | Y18: 698 | Z18: 698 | AA18: 698 | AC18: 810052-TEBLK-OS | AD18: =IF(B18="NET","",IF(B18="","",IFERROR(VLOOKUP(AC18,EAN!$A:$B,2,FALSE),"MANGLER - MÅ OPPDATERE EAN-FANEN"))) -> 7048652327543 | AE18: 698 | AF18: 698 | AH18: =IF(B18="NET","",IFERROR(VLOOKUP(AD18,'2) Order Form'!$W$9:$W$684,1,FALSE),"Ikke med I order form")) -> 7048652327543 | AJ18: 7048652272522 | AK18: =IFERROR(VLOOKUP(AJ18,'2) Order Form'!$W$9:$W$724,1,FALSE),"Ikke med I order form") -> 7048652272522 | AL18: =INDEX(ATS!$A:$AE,MATCH(ATS!$AJ18,ATS!$AD:$AD,0),1) -> 845065 | AM18: =INDEX(ATS!$A:$AE,MATCH(ATS!$AJ18,ATS!$AD:$AD,0),2) -> Bushwhacker II Mips Helmet | AN18: =INDEX(ATS!$A:$AE,MATCH(ATS!$AJ18,ATS!$AD:$AD,0),4) -> MBLCK-LXL | AP18: 7048652272522 | AQ18: 7048652272522 | AR18: =INDEX(ATS!$A:$AE,MATCH(ATS!$AP18,ATS!$AD:$AD,0),1) -> 845065 | AS18: =INDEX(ATS!$A:$AE,MATCH(ATS!$AP18,ATS!$AD:$AD,0),2) -> Bushwhacker II Mips Helmet | AT18: =INDEX(ATS!$A:$AE,MATCH(ATS!$AP18,ATS!$AD:$AD,0),4) -> MBLCK-LXL | AU18: =INDEX(ATS!$A:$AE,MATCH(ATS!$AP18,ATS!$AD:$AD,0),7) -> Active
A19: 810053 | B19: Net | H19: 202141 | I19: 202141 | J19: 202141 | K19: 202141 | L19: 202141 | M19: 202141 | N19: 202141 | O19: 202141 | P19: 202141 | Q19: 202141 | R19: 202141 | S19: 202141 | T19: 202141 | U19: 202141 | V19: 202141 | W19: 202141 | X19: 202141 | Y19: 202141 | Z19: 202141 | AA19: 202141 | AC19: 810053- | AD19: =IF(B19="NET","",IF(B19="","",IFERROR(VLOOKUP(AC19,EAN!$A:$B,2,FALSE),"MANGLER - MÅ OPPDATERE EAN-FANEN"))) ->  | AE19: 202141 | AF19: 202141 | AH19: =IF(B19="NET","",IFERROR(VLOOKUP(AD19,'2) Order Form'!$W$9:$W$684,1,FALSE),"Ikke med I order form")) ->  | AJ19: 7048652272669 | AK19: =IFERROR(VLOOKUP(AJ19,'2) Order Form'!$W$9:$W$724,1,FALSE),"Ikke med I order form") -> 7048652272669 | AL19: =INDEX(ATS!$A:$AE,MATCH(ATS!$AJ19,ATS!$AD:$AD,0),1) -> 845065 | AM19: =INDEX(ATS!$A:$AE,MATCH(ATS!$AJ19,ATS!$AD:$AD,0),2) -> Bushwhacker II Mips Helmet | AN19: =INDEX(ATS!$A:$AE,MATCH(ATS!$AJ19,ATS!$AD:$AD,0),4) -> MWHTE-SM | AP19: 7048652272669 | AQ19: 7048652272669 | AR19: =INDEX(ATS!$A:$AE,MATCH(ATS!$AP19,ATS!$AD:$AD,0),1) -> 845065 | AS19: =INDEX(ATS!$A:$AE,MATCH(ATS!$AP19,ATS!$AD:$AD,0),2) -> Bushwhacker II Mips Helmet | AT19: =INDEX(ATS!$A:$AE,MATCH(ATS!$AP19,ATS!$AD:$AD,0),4) -> MWHTE-SM | AU19: =INDEX(ATS!$A:$AE,MATCH(ATS!$AP19,ATS!$AD:$AD,0),7) -> Active
A20: 810053 | B20: Bushwhacker II Visor | C20: WHO | D20: BGRRG-OS | E20: Bolt Gray/Rose Gold | F20: OS | G20: Active | H20: 0 | I20: 0 | J20: 0 | K20: 0 | L20: 0 | M20: 0 | N20: 0 | O20: 0 | P20: 0 | Q20: 0 | R20: 0 | S20: 0 | T20: 0 | U20: 0 | V20: 0 | W20: 0 | X20: 0 | Y20: 0 | Z20: 0 | AA20: 0 | AC20: 810053-BGRRG-OS | AD20: =IF(B20="NET","",IF(B20="","",IFERROR(VLOOKUP(AC20,EAN!$A:$B,2,FALSE),"MANGLER - MÅ OPPDATERE EAN-FANEN"))) -> MANGLER - MÅ OPPDATERE EAN-FANEN | AE20: 0 | AF20: 0 | AH20: =IF(B20="NET","",IFERROR(VLOOKUP(AD20,'2) Order Form'!$W$9:$W$684,1,FALSE),"Ikke med I order form")) -> Ikke med I order form | AJ20: 7048652272652 | AK20: =IFERROR(VLOOKUP(AJ20,'2) Order Form'!$W$9:$W$724,1,FALSE),"Ikke med I order form") -> 7048652272652 | AL20: =INDEX(ATS!$A:$AE,MATCH(ATS!$AJ20,ATS!$AD:$AD,0),1) -> 845065 | AM20: =INDEX(ATS!$A:$AE,MATCH(ATS!$AJ20,ATS!$AD:$AD,0),2) -> Bushwhacker II Mips Helmet | AN20: =INDEX(ATS!$A:$AE,MATCH(ATS!$AJ20,ATS!$AD:$AD,0),4) -> MWHTE-ML | AP20: 7048652272652 | AQ20: 7048652272652 | AR20: =INDEX(ATS!$A:$AE,MATCH(ATS!$AP20,ATS!$AD:$AD,0),1) -> 845065 | AS20: =INDEX(ATS!$A:$AE,MATCH(ATS!$AP20,ATS!$AD:$AD,0),2) -> Bushwhacker II Mips Helmet | AT20: =INDEX(ATS!$A:$AE,MATCH(ATS!$AP20,ATS!$AD:$AD,0),4) -> MWHTE-ML | AU20: =INDEX(ATS!$A:$AE,MATCH(ATS!$AP20,ATS!$AD:$AD,0),7) -> Active
A21: 810053 | B21: Bushwhacker II Visor | C21: WHO | D21: BRWHT-OS | E21: Bronco White | F21: OS | G21: Active | H21: 0 | I21: 0 | J21: 0 | K21: 0 | L21: 0 | M21: 0 | N21: 0 | O21: 0 | P21: 0 | Q21: 0 | R21: 0 | S21: 0 | T21: 0 | U21: 0 | V21: 0 | W21: 0 | X21: 0 | Y21: 0 | Z21: 0 | AA21: 0 | AC21: 810053-BRWHT-OS | AD21: =IF(B21="NET","",IF(B21="","",IFERROR(VLOOKUP(AC21,EAN!$A:$B,2,FALSE),"MANGLER - MÅ OPPDATERE EAN-FANEN"))) -> MANGLER - MÅ OPPDATERE EAN-FANEN | AE21: 0 | AF21: 0 | AH21: =IF(B21="NET","",IFERROR(VLOOKUP(AD21,'2) Order Form'!$W$9:$W$684,1,FALSE),"Ikke med I order form")) -> Ikke med I order form | AJ21: 7048652272645 | AK21: =IFERROR(VLOOKUP(AJ21,'2) Order Form'!$W$9:$W$724,1,FALSE),"Ikke med I order form") -> 7048652272645 | AL21: =INDEX(ATS!$A:$AE,MATCH(ATS!$AJ21,ATS!$AD:$AD,0),1) -> 845065 | AM21: =INDEX(ATS!$A:$AE,MATCH(ATS!$AJ21,ATS!$AD:$AD,0),2) -> Bushwhacker II Mips Helmet | AN21: =INDEX(ATS!$A:$AE,MATCH(ATS!$AJ21,ATS!$AD:$AD,0),4) -> MWHTE-LXL | AP21: 7048652272645 | AQ21: 7048652272645 | AR21: =INDEX(ATS!$A:$AE,MATCH(ATS!$AP21,ATS!$AD:$AD,0),1) -> 845065 | AS21: =INDEX(ATS!$A:$AE,MATCH(ATS!$AP21,ATS!$AD:$AD,0),2) -> Bushwhacker II Mips Helmet | AT21: =INDEX(ATS!$A:$AE,MATCH(ATS!$AP21,ATS!$AD:$AD,0),4) -> MWHTE-LXL | AU21: =INDEX(ATS!$A:$AE,MATCH(ATS!$AP21,ATS!$AD:$AD,0),7) -> Active
A22: 810053 | B22: Bushwhacker II Visor | C22: WHO | D22: MBKCE-OS | E22: Matte Black Chrome | F22: OS | G22: Stock | H22: 16 | I22: 16 | J22: 16 | K22: 16 | L22: 16 | M22: 16 | N22: 16 | O22: 16 | P22: 16 | Q22: 16 | R22: 16 | S22: 16 | T22: 16 | U22: 16 | V22: 16 | W22: 16 | X22: 16 | Y22: 16 | Z22: 16 | AA22: 16 | AC22: 810053-MBKCE-OS | AD22: =IF(B22="NET","",IF(B22="","",IFERROR(VLOOKUP(AC22,EAN!$A:$B,2,FALSE),"MANGLER - MÅ OPPDATERE EAN-FANEN"))) -> 7048652327574 | AE22: 16 | AF22: 16 | AH22: =IF(B22="NET","",IFERROR(VLOOKUP(AD22,'2) Order Form'!$W$9:$W$684,1,FALSE),"Ikke med I order form")) -> Ikke med I order form | AJ22: 7048652660268 | AK22: =IFERROR(VLOOKUP(AJ22,'2) Order Form'!$W$9:$W$724,1,FALSE),"Ikke med I order form") -> 7048652660268 | AL22: =INDEX(ATS!$A:$AE,MATCH(ATS!$AJ22,ATS!$AD:$AD,0),1) -> 845065 | AM22: =INDEX(ATS!$A:$AE,MATCH(ATS!$AJ22,ATS!$AD:$AD,0),2) -> Bushwhacker II Mips Helmet | AN22: =INDEX(ATS!$A:$AE,MATCH(ATS!$AJ22,ATS!$AD:$AD,0),4) -> SGRME-SM | AP22: 7048652660268 | AQ22: 7048652660268 | AR22: =INDEX(ATS!$A:$AE,MATCH(ATS!$AP22,ATS!$AD:$AD,0),1) -> 845065 | AS22: =INDEX(ATS!$A:$AE,MATCH(ATS!$AP22,ATS!$AD:$AD,0),2) -> Bushwhacker II Mips Helmet | AT22: =INDEX(ATS!$A:$AE,MATCH(ATS!$AP22,ATS!$AD:$AD,0),4) -> SGRME-SM | AU22: =INDEX(ATS!$A:$AE,MATCH(ATS!$AP22,ATS!$AD:$AD,0),7) -> Active
A23: 810053 | B23: Bushwhacker II Visor | C23: WHO | D23: MBLCK-OS | E23: Matte Black | F23: OS | G23: Active | H23: 13 | I23: 13 | J23: 13 | K23: 13 | L23: 13 | M23: 13 | N23: 13 | O23: 13 | P23: 13 | Q23: 13 | R23: 13 | S23: 13 | T23: 13 | U23: 13 | V23: 13 | W23: 13 | X23: 13 | Y23: 13 | Z23: 13 | AA23: 13 | AC23: 810053-MBLCK-OS | AD23: =IF(B23="NET","",IF(B23="","",IFERROR(VLOOKUP(AC23,EAN!$A:$B,2,FALSE),"MANGLER - MÅ OPPDATERE EAN-FANEN"))) -> 7048652327581 | AE23: 13 | AF23: 13 | AH23: =IF(B23="NET","",IFERROR(VLOOKUP(AD23,'2) Order Form'!$W$9:$W$684,1,FALSE),"Ikke med I order form")) -> 7048652327581 | AJ23: 7048652660251 | AK23: =IFERROR(VLOOKUP(AJ23,'2) Order Form'!$W$9:$W$724,1,FALSE),"Ikke med I order form") -> 7048652660251 | AL23: =INDEX(ATS!$A:$AE,MATCH(ATS!$AJ23,ATS!$AD:$AD,0),1) -> 845065 | AM23: =INDEX(ATS!$A:$AE,MATCH(ATS!$AJ23,ATS!$AD:$AD,0),2) -> Bushwhacker II Mips Helmet | AN23: =INDEX(ATS!$A:$AE,MATCH(ATS!$AJ23,ATS!$AD:$AD,0),4) -> SGRME-ML | AP23: 7048652660251 | AQ23: 7048652660251 | AR23: =INDEX(ATS!$A:$AE,MATCH(ATS!$AP23,ATS!$AD:$AD,0),1) -> 845065 | AS23: =INDEX(ATS!$A:$AE,MATCH(ATS!$AP23,ATS!$AD:$AD,0),2) -> Bushwhacker II Mips Helmet | AT23: =INDEX(ATS!$A:$AE,MATCH(ATS!$AP23,ATS!$AD:$AD,0),4) -> SGRME-ML | AU23: =INDEX(ATS!$A:$AE,MATCH(ATS!$AP23,ATS!$AD:$AD,0),7) -> Active
A24: 810053 | B24: Bushwhacker II Visor | C24: WHO | D24: MCDGY-OS | E24: Matte Cloud Gray | F24: OS | G24: Stock | H24: 12 | I24: 12 | J24: 12 | K24: 12 | L24: 12 | M24: 12 | N24: 12 | O24: 12 | P24: 12 | Q24: 12 | R24: 12 | S24: 12 | T24: 12 | U24: 12 | V24: 12 | W24: 12 | X24: 12 | Y24: 12 | Z24: 12 | AA24: 12 | AC24: 810053-MCDGY-OS | AD24: =IF(B24="NET","",IF(B24="","",IFERROR(VLOOKUP(AC24,EAN!$A:$B,2,FALSE),"MANGLER - MÅ OPPDATERE EAN-FANEN"))) -> 7048652327598 | AE24: 12 | AF24: 12 | AH24: =IF(B24="NET","",IFERROR(VLOOKUP(AD24,'2) Order Form'!$W$9:$W$684,1,FALSE),"Ikke med I order form")) -> Ikke med I order form | AJ24: 7048652660244 | AK24: =IFERROR(VLOOKUP(AJ24,'2) Order Form'!$W$9:$W$724,1,FALSE),"Ikke med I order form") -> 7048652660244 | AL24: =INDEX(ATS!$A:$AE,MATCH(ATS!$AJ24,ATS!$AD:$AD,0),1) -> 845065 | AM24: =INDEX(ATS!$A:$AE,MATCH(ATS!$AJ24,ATS!$AD:$AD,0),2) -> Bushwhacker II Mips Helmet | AN24: =INDEX(ATS!$A:$AE,MATCH(ATS!$AJ24,ATS!$AD:$AD,0),4) -> SGRME-LXL | AP24: 7048652660244 | AQ24: 7048652660244 | AR24: =INDEX(ATS!$A:$AE,MATCH(ATS!$AP24,ATS!$AD:$AD,0),1) -> 845065 | AS24: =INDEX(ATS!$A:$AE,MATCH(ATS!$AP24,ATS!$AD:$AD,0),2) -> Bushwhacker II Mips Helmet | AT24: =INDEX(ATS!$A:$AE,MATCH(ATS!$AP24,ATS!$AD:$AD,0),4) -> SGRME-LXL | AU24: =INDEX(ATS!$A:$AE,MATCH(ATS!$AP24,ATS!$AD:$AD,0),7) -> Active
A25: 810053 | B25: Bushwhacker II Visor | C25: WHO | D25: MEHRD-OS | E25: Matte Earth Red | F25: OS | G25: Stock | H25: 12 | I25: 12 | J25: 12 | K25: 12 | L25: 12 | M25: 12 | N25: 12 | O25: 12 | P25: 12 | Q25: 12 | R25: 12 | S25: 12 | T25: 12 | U25: 12 | V25: 12 | W25: 12 | X25: 12 | Y25: 12 | Z25: 12 | AA25: 12 | AC25: 810053-MEHRD-OS | AD25: =IF(B25="NET","",IF(B25="","",IFERROR(VLOOKUP(AC25,EAN!$A:$B,2,FALSE),"MANGLER - MÅ OPPDATERE EAN-FANEN"))) -> 7048652327604 | AE25: 12 | AF25: 12 | AH25: =IF(B25="NET","",IFERROR(VLOOKUP(AD25,'2) Order Form'!$W$9:$W$684,1,FALSE),"Ikke med I order form")) -> Ikke med I order form | AJ25: 7048652540409 | AK25: =IFERROR(VLOOKUP(AJ25,'2) Order Form'!$W$9:$W$724,1,FALSE),"Ikke med I order form") -> 7048652540409 | AL25: =INDEX(ATS!$A:$AE,MATCH(ATS!$AJ25,ATS!$AD:$AD,0),1) -> 845104 | AM25: =INDEX(ATS!$A:$AE,MATCH(ATS!$AJ25,ATS!$AD:$AD,0),2) -> Trailblazer Mips Helmet | AN25: =INDEX(ATS!$A:$AE,MATCH(ATS!$AJ25,ATS!$AD:$AD,0),4) -> MBLCK-SM | AP25: 7048652661180 | AQ25: 7048652661180 | AR25: =INDEX(ATS!$A:$AE,MATCH(ATS!$AP25,ATS!$AD:$AD,0),1) -> 845104 | AS25: =INDEX(ATS!$A:$AE,MATCH(ATS!$AP25,ATS!$AD:$AD,0),2) -> Trailblazer Mips Helmet | AT25: =INDEX(ATS!$A:$AE,MATCH(ATS!$AP25,ATS!$AD:$AD,0),4) -> MEAME-SM | AU25: =INDEX(ATS!$A:$AE,MATCH(ATS!$AP25,ATS!$AD:$AD,0),7) -> Stock
A26: 810053 | B26: Bushwhacker II Visor | C26: WHO | D26: MFGRN-OS | E26: Matte Forest Green | F26: OS | G26: Stock | H26: 8 | I26: 8 | J26: 8 | K26: 8 | L26: 8 | M26: 8 | N26: 8 | O26: 8 | P26: 8 | Q26: 8 | R26: 8 | S26: 8 | T26: 8 | U26: 8 | V26: 8 | W26: 8 | X26: 8 | Y26: 8 | Z26: 8 | AA26: 8 | AC26: 810053-MFGRN-OS | AD26: =IF(B26="NET","",IF(B26="","",IFERROR(VLOOKUP(AC26,EAN!$A:$B,2,FALSE),"MANGLER - MÅ OPPDATERE EAN-FANEN"))) -> 7048652542618 | AE26: 8 | AF26: 8 | AH26: =IF(B26="NET","",IFERROR(VLOOKUP(AD26,'2) Order Form'!$W$9:$W$684,1,FALSE),"Ikke med I order form")) -> Ikke med I order form | AJ26: 7048652540393 | AK26: =IFERROR(VLOOKUP(AJ26,'2) Order Form'!$W$9:$W$724,1,FALSE),"Ikke med I order form") -> 7048652540393 | AL26: =INDEX(ATS!$A:$AE,MATCH(ATS!$AJ26,ATS!$AD:$AD,0),1) -> 845104 | AM26: =INDEX(ATS!$A:$AE,MATCH(ATS!$AJ26,ATS!$AD:$AD,0),2) -> Trailblazer Mips Helmet | AN26: =INDEX(ATS!$A:$AE,MATCH(ATS!$AJ26,ATS!$AD:$AD,0),4) -> MBLCK-ML | AP26: 7048652661173 | AQ26: 7048652661173 | AR26: =INDEX(ATS!$A:$AE,MATCH(ATS!$AP26,ATS!$AD:$AD,0),1) -> 845104 | AS26: =INDEX(ATS!$A:$AE,MATCH(ATS!$AP26,ATS!$AD:$AD,0),2) -> Trailblazer Mips Helmet | AT26: =INDEX(ATS!$A:$AE,MATCH(ATS!$AP26,ATS!$AD:$AD,0),4) -> MEAME-ML | AU26: =INDEX(ATS!$A:$AE,MATCH(ATS!$AP26,ATS!$AD:$AD,0),7) -> Stock
A27: 810053 | B27: Bushwhacker II Visor | C27: WHO | D27: MNAVY-OS | E27: Matte Navy | F27: OS | G27: Stock | H27: 8 | I27: 8 | J27: 8 | K27: 8 | L27: 8 | M27: 8 | N27: 8 | O27: 8 | P27: 8 | Q27: 8 | R27: 8 | S27: 8 | T27: 8 | U27: 8 | V27: 8 | W27: 8 | X27: 8 | Y27: 8 | Z27: 8 | AA27: 8 | AC27: 810053-MNAVY-OS | AD27: =IF(B27="NET","",IF(B27="","",IFERROR(VLOOKUP(AC27,EAN!$A:$B,2,FALSE),"MANGLER - MÅ OPPDATERE EAN-FANEN"))) -> 7048652327611 | AE27: 8 | AF27: 8 | AH27: =IF(B27="NET","",IFERROR(VLOOKUP(AD27,'2) Order Form'!$W$9:$W$684,1,FALSE),"Ikke med I order form")) -> Ikke med I order form | AJ27: 7048652540386 | AK27: =IFERROR(VLOOKUP(AJ27,'2) Order Form'!$W$9:$W$724,1,FALSE),"Ikke med I order form") -> 7048652540386 | AL27: =INDEX(ATS!$A:$AE,MATCH(ATS!$AJ27,ATS!$AD:$AD,0),1) -> 845104 | AM27: =INDEX(ATS!$A:$AE,MATCH(ATS!$AJ27,ATS!$AD:$AD,0),2) -> Trailblazer Mips Helmet | AN27: =INDEX(ATS!$A:$AE,MATCH(ATS!$AJ27,ATS!$AD:$AD,0),4) -> MBLCK-LXL | AP27: 7048652661166 | AQ27: 7048652661166 | AR27: =INDEX(ATS!$A:$AE,MATCH(ATS!$AP27,ATS!$AD:$AD,0),1) -> 845104 | AS27: =INDEX(ATS!$A:$AE,MATCH(ATS!$AP27,ATS!$AD:$AD,0),2) -> Trailblazer Mips Helmet | AT27: =INDEX(ATS!$A:$AE,MATCH(ATS!$AP27,ATS!$AD:$AD,0),4) -> MEAME-LXL | AU27: =INDEX(ATS!$A:$AE,MATCH(ATS!$AP27,ATS!$AD:$AD,0),7) -> Stock
A28: 810053 | B28: Bushwhacker II Visor | C28: WHO | D28: MOEDB-OS | E28: Matte Olive Drab | F28: OS | G28: Stock | H28: 11 | I28: 11 | J28: 11 | K28: 11 | L28: 11 | M28: 11 | N28: 11 | O28: 11 | P28: 11 | Q28: 11 | R28: 11 | S28: 11 | T28: 11 | U28: 11 | V28: 11 | W28: 11 | X28: 11 | Y28: 11 | Z28: 11 | AA28: 11 | AC28: 810053-MOEDB-OS | AD28: =IF(B28="NET","",IF(B28="","",IFERROR(VLOOKUP(AC28,EAN!$A:$B,2,FALSE),"MANGLER - MÅ OPPDATERE EAN-FANEN"))) -> 7048652327628 | AE28: 11 | AF28: 11 | AH28: =IF(B28="NET","",IFERROR(VLOOKUP(AD28,'2) Order Form'!$W$9:$W$684,1,FALSE),"Ikke med I order form")) -> Ikke med I order form | AJ28: 7048652540522 | AK28: =IFERROR(VLOOKUP(AJ28,'2) Order Form'!$W$9:$W$724,1,FALSE),"Ikke med I order form") -> 7048652540522 | AL28: =INDEX(ATS!$A:$AE,MATCH(ATS!$AJ28,ATS!$AD:$AD,0),1) -> 845104 | AM28: =INDEX(ATS!$A:$AE,MATCH(ATS!$AJ28,ATS!$AD:$AD,0),2) -> Trailblazer Mips Helmet | AN28: =INDEX(ATS!$A:$AE,MATCH(ATS!$AJ28,ATS!$AD:$AD,0),4) -> MWHTE-SM | AP28: 7048652540409 | AQ28: 7048652540409 | AR28: =INDEX(ATS!$A:$AE,MATCH(ATS!$AP28,ATS!$AD:$AD,0),1) -> 845104 | AS28: =INDEX(ATS!$A:$AE,MATCH(ATS!$AP28,ATS!$AD:$AD,0),2) -> Trailblazer Mips Helmet | AT28: =INDEX(ATS!$A:$AE,MATCH(ATS!$AP28,ATS!$AD:$AD,0),4) -> MBLCK-SM | AU28: =INDEX(ATS!$A:$AE,MATCH(ATS!$AP28,ATS!$AD:$AD,0),7) -> Active
A29: 810053 | B29: Bushwhacker II Visor | C29: WHO | D29: MSEGY-OS | E29: Matte Smoke Gray | F29: OS | G29: Stock | H29: 12 | I29: 12 | J29: 12 | K29: 12 | L29: 12 | M29: 12 | N29: 12 | O29: 12 | P29: 12 | Q29: 12 | R29: 12 | S29: 12 | T29: 12 | U29: 12 | V29: 12 | W29: 12 | X29: 12 | Y29: 12 | Z29: 12 | AA29: 12 | AC29: 810053-MSEGY-OS | AD29: =IF(B29="NET","",IF(B29="","",IFERROR(VLOOKUP(AC29,EAN!$A:$B,2,FALSE),"MANGLER - MÅ OPPDATERE EAN-FANEN"))) -> 7048652327635 | AE29: 12 | AF29: 12 | AH29: =IF(B29="NET","",IFERROR(VLOOKUP(AD29,'2) Order Form'!$W$9:$W$684,1,FALSE),"Ikke med I order form")) -> Ikke med I order form | AJ29: 7048652540515 | AK29: =IFERROR(VLOOKUP(AJ29,'2) Order Form'!$W$9:$W$724,1,FALSE),"Ikke med I order form") -> 7048652540515 | AL29: =INDEX(ATS!$A:$AE,MATCH(ATS!$AJ29,ATS!$AD:$AD,0),1) -> 845104 | AM29: =INDEX(ATS!$A:$AE,MATCH(ATS!$AJ29,ATS!$AD:$AD,0),2) -> Trailblazer Mips Helmet | AN29: =INDEX(ATS!$A:$AE,MATCH(ATS!$AJ29,ATS!$AD:$AD,0),4) -> MWHTE-ML | AP29: 7048652540393 | AQ29: 7048652540393 | AR29: =INDEX(ATS!$A:$AE,MATCH(ATS!$AP29,ATS!$AD:$AD,0),1) -> 845104 | AS29: =INDEX(ATS!$A:$AE,MATCH(ATS!$AP29,ATS!$AD:$AD,0),2) -> Trailblazer Mips Helmet | AT29: =INDEX(ATS!$A:$AE,MATCH(ATS!$AP29,ATS!$AD:$AD,0),4) -> MBLCK-ML | AU29: =INDEX(ATS!$A:$AE,MATCH(ATS!$AP29,ATS!$AD:$AD,0),7) -> Active
A30: 810053 | B30: Bushwhacker II Visor | C30: WHO | D30: MSGMC-OS | E30: Matte Slate Gray Metallic | F30: OS | G30: Active | H30: 3 | I30: 3 | J30: 3 | K30: 3 | L30: 3 | M30: 3 | N30: 3 | O30: 3 | P30: 3 | Q30: 3 | R30: 3 | S30: 3 | T30: 3 | U30: 3 | V30: 3 | W30: 3 | X30: 3 | Y30: 3 | Z30: 3 | AA30: 3 | AC30: 810053-MSGMC-OS | AD30: =IF(B30="NET","",IF(B30="","",IFERROR(VLOOKUP(AC30,EAN!$A:$B,2,FALSE),"MANGLER - MÅ OPPDATERE EAN-FANEN"))) -> 7048652542625 | AE30: 3 | AF30: 3 | AH30: =IF(B30="NET","",IFERROR(VLOOKUP(AD30,'2) Order Form'!$W$9:$W$684,1,FALSE),"Ikke med I order form")) -> 7048652542625 | AJ30: 7048652540508 | AK30: =IFERROR(VLOOKUP(AJ30,'2) Order Form'!$W$9:$W$724,1,FALSE),"Ikke med I order form") -> 7048652540508 | AL30: =INDEX(ATS!$A:$AE,MATCH(ATS!$AJ30,ATS!$AD:$AD,0),1) -> 845104 | AM30: =INDEX(ATS!$A:$AE,MATCH(ATS!$AJ30,ATS!$AD:$AD,0),2) -> Trailblazer Mips Helmet | AN30: =INDEX(ATS!$A:$AE,MATCH(ATS!$AJ30,ATS!$AD:$AD,0),4) -> MWHTE-LXL | AP30: 7048652540386 | AQ30: 7048652540386 | AR30: =INDEX(ATS!$A:$AE,MATCH(ATS!$AP30,ATS!$AD:$AD,0),1) -> 845104 | AS30: =INDEX(ATS!$A:$AE,MATCH(ATS!$AP30,ATS!$AD:$AD,0),2) -> Trailblazer Mips Helmet | AT30: =INDEX(ATS!$A:$AE,MATCH(ATS!$AP30,ATS!$AD:$AD,0),4) -> MBLCK-LXL | AU30: =INDEX(ATS!$A:$AE,MATCH(ATS!$AP30,ATS!$AD:$AD,0),7) -> Active
